Workbook

Sheet VersionNotes (hidden)
A1: FILE WORKFLOW, NOTES, and VERSION DETAILS | S1: X
A2: Hide this worksheet for publication
F4: CY- Current Year, PY-Prior year
A6: Required Data
B7: 2023 | C7: Enter Fall Year
B8: 1 | C8: Formula Guarantee percentage
A10: File Updates checklist
A11: X | B11: Update Fall Year in cell B7 above
A12: X | B12: Confirm and enter Formula Guarantee percentage in cell B8 above
A15: Update first
A16: X | B16: CPI | D16: W:\Edusfb\CPI\CPI.xlsx
A17: X | B17: Enrolment Statistics | D17: \\ME\edu\114EDUWGP\Edusfb\Staff\Randal\_REQUESTS\FRAME\Enrolment Statistics\Enrolment Statistics for FRAME Reports ACTUAL.xls
A19: Other links
A20: X | B20: 36 School Division Files
A21: X | B21: FRAME Actual Report | C21: PY final report | D21: W:\Edusfb\Frame\REPORTS\xxxx-xy FRAME Actual Report .xlsm
A22: X | B22: Actuals Data | C22: CY data file | D22: W:\Edusfb\Frame.fin\FRAME Report\xxxx WP Files\xxxx-xy Actuals Data.xlsm
A23: X | B23: F Assessment | C23: Spring year file | D23: w:\edusfb\Total School Assessment
A24: X | B24: =RIGHT(B7,2)+1&"F_Prov" -> 24F_Prov | C24: CY Provincial Summary | D24: W:\Edusfb\Frame\Provsums\xxF_prov.xlsm
A25: X | B25: Age and Area | C25: CY file | D25: W:\Edusfb\Age and Area\xxxx-xy\Age and Area xxxx-xy.xlsm
A26: X | B26: Capital Interest | D26: W:\Edusfb\Frame.fin\FRAME Report\xxxx WP Files\Capital Interest Syxxxx-xy.XLSX
A27: X | B27: Principal Payments | D27: W:\Edusfb\Frame.fin\FRAME Report\xxxxWP Files\Principal Payments Syxxxx-xy.XLSX
A28: X | B28: ="Splevy"&RIGHT(B7,2) -> Splevy23 | D28: W:\Edusfb\Frame\SpecLevy\Splevyxx .xlsx
A29: X | B29: TRAF Pension Projections | D29: W:\Edusfb\Frame\REPORTS\Provincial Contribution\TRAF Pension Projections xx-xy
A30: X | B30: ="Final"&RIGHT(B7,2)+1 -> Final24 | D30: W:\Edusfb\Frame.fin\Finalxx.xlsm
A32: X | B32: Page Balance check is nil | C32: Data Worksheet cell B54 to G70
B39: File Preparation workflow and notes
B40: Date | C40: Notes
B41: 2025-01-28 | C41: Updated Year on DATA
C42: updated SD file links to 2024 YE
C43: updated ProvSum to 24f
C44: updated Actuals Data to 23/24
C45: updated SpcLvy from 22 to 23
B46: 2025-01-29 | C46: Total portion assesment file updated from 22 to 23
C47: PY FRAME Actual Report updated from 21/22 to 22/23
B48: 2025-03-27 | C48: PrvFunding updates
C49: MASC Values
C50: Education Property Tax Credit
C51: School Tax Assisitance (pensioners)
C52: Homeowners Education Property tax Rebate
C53: School tax rebate
C54: Education Support Levy
C55: GSG
B56: 2025-03-28 | C56: update page 41 for STR
C57: PrvFunding TRAF values updated
C58: PrvFunding Educ {rop Tax Rebate value updated
C59: - created file checklist
C60: updated CPI
B61: 2025-04-02 | C61: update connections for draft 23/24 file from EV
C62: updated Enrolment stats
C63: update Age & area link
C64: Final link updated
B65: 2025-05-21 | C65: Refresh all links
C66: Verified Expense Pages to PQ summary
C67: Verified pg 6 & 7 Enrolment #'s to PQ summary
C68: Updated page 5 Graph
B69: 2025-06-02 | C69: reviewed and updated pages and notes viii to 66
B71: 2025-08-12 | C71: Update for revisions to SE & DI
B73: 2025-08-27 | C73: Report finalized
B75: 2025-09-19 | C75: Added PTOG to page 54
C76: changed related source to Splevy23v4
B78: 2026-03-11 | C78: Update for Audited Evergreen 2023/24 FRAME report
B81: Final Report Version Control
B86: 2026-03-19 | C86: update for adjustment to Evergreen file after review
C87: unaudited Evergreen remark cleared

Sheet Data (hidden)
W2: update to FINAL23
A3: DATE: | B3: SUPPLEMENTARY DATA FOR FRAME REPORT | Y3: FORMAT CHANGE WHICH COLUMNS
A4: PrevY | B4: =_xlfn.CONCAT(TEXT(FALLYR-1,"0000"),"/",TEXT(MID(B5,3,2),"00")) -> 2022/23 | W4: W:\Edusfb\Frame.fin\[Final24.xls]Scdatabase - Column AD | AG4: TEMPORARY
A5: CurrY | B5: =TEXT(_xlfn.CONCAT(FALLYR,"/",RIGHT(SPRINGYR,2)),"000000") -> 2023/24 | C5: EXPENDITURES | W5: for Page 55 | AG5: DATA for pg55
A6: FALLYR | B6: =VersionNotes!B7 -> 2023 | N6: Incremental administration costs related to Waywayseecappo | W6: 2021 TSA | AD6: W:\Edusfb\Age and Area | AG6: 2022 TSA /pupil
A7: SPRINGYR | B7: =TEXT((FALLYR+1),"0000") -> 2024 | M7: ADMIN. COSTS | Q7: ADJUSTMENT | R7: TOTAL | S7: SPECIAL NEEDS | W7: Per Funded | AB7: AJ | AD7: TOTAL | AG7: from DSFF22-23A4
C8: TRANSFERS BY FUNCTION | J8: 700 | K8: TOTAL | L8: LIABILITY | M8: SELF-FUNDED | O8: TRUSTEE | P8: ADMIN | Q8: FOR DAYS | R8: CATEGORICAL | S8: COORDINATOR/ | T8: SPECIAL NEEDS | W8: Resident | Y8: GROSS SPECIAL | AB8: NET SPECIAL | AD8: AREA | AE8: AREA | AG8: REVERT TO
A9: CO. | B9: DIVISION/DISTRICT | C9: 100 | D9: 200 | E9: 300 | F9: 400 | G9: 500 | H9: 600 | I9: 700 | J9: RECHARGE | K9: TRANSFERS | L9: INSURANCE | M9: PROGRAMS | O9: ELECTION | P9: Limit | Q9: CLOSED | R9: SUPPORT | S9: CLINICIAN | T9: LEVEL 2 | U9: LEVEL 3 | W9: Pupil < 21 | Y9: LEVY | Z9: Total TIG | AA9: Total PTOG | AB9: LEVY | AD9: at September 30, 2023 | AE9: Waywayseecapo | AG9: ref Col W
C10: OE1TRANS | D10: OE2TRANS | E10: OE3TRANS | F10: OE4TRANS | G10: OE5TRANS | H10: OE6TRANS | I10: OE7TRANS | J10: OE799X | L10: LIABINS | M10: ADMINSELF | N10: PA_WAYWAY | O10: ELECTION | P10: I18 | Q10: DAYSCLOS | R10: CATSUP | S10: SPECNEEDCLIN | T10: SPECNEED2 | U10: SPECNEED3 | AG10: after FINAL 23 complete
A11: BE | B11: BEAUTIFUL PLAINS | C11: 74094 | D11: 0 | E11: 0 | F11: 0 | G11: 0 | H11: 14680 | I11: 0 | J11: 0 | K11: =SUM(C11:I11)-J11 -> 88774 | L11: 36803 | M11: 0 | N11: 0 | O11: 0 | P11: 3.36 | Q11: 0 | R11: 2658359 | S11: 215775 | T11: 307800 | U11: 295820 | W11: 461634 | Y11: 10353193.39 | Z11: 252166 | AA11: 596978.5328 | AB11: 9504048.858 | AD11: 306554 | AG11: 416075
A12: BO | B12: BORDER LAND | C12: 568872 | D12: 0 | E12: 0 | F12: 0 | G12: 0 | H12: 0 | I12: 0 | J12: 0 | K12: 568872 | L12: 53910 | M12: 0 | N12: 0 | O12: 0 | P12: 3.37 | Q12: 0 | R12: 3042425 | S12: 230917 | T12: 535800 | U12: 369775 | W12: 598582 | Y12: 18904353 | Z12: 2575999 | AA12: 1096940.627 | AB12: 15231413.37 | AD12: 426345 | AG12: 508881
A13: BR | B13: BRANDON | C13: 68250 | D13: 0 | E13: 0 | F13: 0 | G13: 0 | H13: 0 | I13: 0 | J13: 0 | K13: 68250 | L13: 147526 | M13: 0 | N13: 0 | O13: 38654 | P13: 2.94 | Q13: 0 | R13: 8221431 | S13: 674873 | T13: 1263500 | U13: 1525586 | W13: 393180 | Y13: 52479454 | Z13: 924007 | AA13: 2516079.026 | AB13: 49039367.97 | AD13: 1125824 | AG13: 385825
A14: DI | B14: D.S.F.M. | C14: 894723 | D14: 0 | E14: 0 | F14: 0 | G14: 0 | H14: 15550 | I14: 0 | J14: 0 | K14: 910273 | L14: 0 | M14: 0 | N14: 0 | O14: 0 | P14: 2.4 | Q14: 0 | R14: 8335500 | S14: 507408 | T14: 389500 | U14: 316950 | W14: 553541 | Y14: 0 | Z14: 0 | AA14: 0 | AB14: 0 | AD14: 1080989 | AG14: 502392
A15: EV | B15: EVERGREEN | C15: 32312 | D15: 0 | E15: 0 | F15: 0 | G15: 697 | H15: 8200 | I15: 0 | J15: 0 | K15: 41209 | L15: 0 | M15: 0 | N15: 0 | O15: 0 | P15: 3.47 | Q15: 0 | R15: 2111657 | S15: 153096 | T15: 359100 | U15: 327515 | W15: 835244 | Y15: 13712536 | Z15: 1501499 | AA15: 797708.196 | AB15: 11413328.8 | AD15: 291254 | AG15: 726411
A16: FL | B16: FLIN FLON | C16: 3900 | D16: 0 | E16: 0 | F16: 0 | G16: 0 | H16: 0 | I16: 0 | J16: 0 | K16: 3900 | L16: 42460 | M16: 0 | N16: 0 | O16: 0 | P16: 4.25 | Q16: 0 | R16: 1439332 | S16: 104843 | T16: 285000 | U16: 84520 | W16: 199720 | Y16: 5197414 | Z16: 376357 | AA16: 251285.0602 | AB16: 4569771.94 | AD16: 209745 | AG16: 144394
A17: FO | B17: FORT LA BOSSE | C17: 58974 | D17: 0 | E17: 0 | F17: 0 | G17: 0 | H17: 0 | I17: 0 | J17: 0 | K17: 58974 | L17: 68659 | M17: 0 | N17: 12665 | O17: 0 | P17: 3.45 | Q17: 0 | R17: 1888164 | S17: 151903 | T17: 336300 | U17: 109876 | W17: 908574 | Y17: 10806742 | Z17: 459100 | AA17: 630312.5199 | AB17: 9717329.48 | AD17: 264055 | AG17: 1025140
A18: FR | B18: FRONTIER | C18: 2388758 | D18: 0 | E18: 4218 | F18: 0 | G18: 830635 | H18: 16302 | I18: 68440 | J18: 0 | K18: 3308353 | L18: 0 | M18: 0 | N18: 0 | O18: 0 | P18: 2.7 | Q18: 0 | R18: 6377714 | S18: 299395 | T18: 972800 | U18: 538815 | W18: 145517 | Y18: 3752648 | Z18: 159237 | AA18: 179573.7119 | AB18: 3413837.288 | AD18: 1287213 | AG18: 137781
A19: GA | B19: GARDEN VALLEY | C19: 324731 | D19: 0 | E19: 0 | F19: 27000 | G19: 0 | H19: 21338 | I19: 300 | J19: 0 | K19: 373369 | L19: 0 | M19: 0 | N19: 0 | O19: 0 | P19: 3.05 | Q19: 0 | R19: 4662855 | S19: 326948 | T19: 811300 | U19: 802940 | W19: 415584 | Y19: 21789858 | Z19: 323087 | AA19: 1256740.19 | AB19: 20210030.81 | AD19: 713643 | AG19: 351266
A20: HA | B20: HANOVER | C20: 2809185 | D20: 0 | E20: 0 | F20: 0 | G20: 0 | H20: 0 | I20: 0 | J20: 0 | K20: 2809185 | L20: 116312 | M20: 0 | N20: 0 | O20: 0 | P20: 2.94 | Q20: 0 | R20: 9041440 | S20: 618623 | T20: 1493400 | U20: 1373450 | W20: 341584 | Y20: 38309327 | Z20: 754063 | AA20: 2287988.891 | AB20: 35267275.11 | AD20: 1121683 | AG20: 296435
A21: IN | B21: INTERLAKE | C21: 144094 | D21: 51049 | E21: 0 | F21: 0 | G21: 10790 | H21: 18897 | I21: 0 | J21: 0 | K21: 224830 | L21: 65023 | M21: 0 | N21: 0 | O21: 0 | P21: 3.25 | Q21: 0 | R21: 3383650 | S21: 297647 | T21: 546736 | U21: 505007 | W21: 660204 | Y21: 22207888 | Z21: 808470 | AA21: 1280898.872 | AB21: 20118519.13 | AD21: 447999 | AG21: 563721
A22: KE | B22: KELSEY | C22: 0 | D22: 0 | E22: 0 | F22: 0 | G22: 0 | H22: 5132 | I22: 0 | J22: 0 | K22: 5132 | L22: 46028 | M22: 0 | N22: 0 | O22: 0 | P22: 4.25 | Q22: 0 | R22: 2599658 | S22: 181568 | T22: 491150 | U22: 272577 | W22: 194532 | Y22: 4878449 | Z22: 154704 | AA22: 719654.758 | AB22: 4004090.242 | AD22: 340888 | AG22: 186513
A23: LA | B23: LAKESHORE | C23: 85794 | D23: 0 | E23: 0 | F23: 0 | G23: 0 | H23: 1300 | I23: 0 | J23: 0 | K23: 87094 | L23: 50359 | M23: 0 | N23: 0 | O23: 0 | P23: 3.53 | Q23: 0 | R23: 2023068 | S23: 99517 | T23: 304000 | U23: 242995 | W23: 428983 | Y23: 5790961.48 | Z23: 414194 | AA23: 333927.5104 | AB23: 5042839.97 | AD23: 233256 | AG23: 370450
A24: LO | B24: LORD SELKIRK | C24: 164296 | D24: 0 | E24: 0 | F24: 0 | G24: 0 | H24: 0 | I24: 0 | J24: 0 | K24: 164296 | L24: 98373 | M24: 0 | N24: 0 | O24: 0 | P24: 3.12 | Q24: 0 | R24: 4971848 | S24: 345505 | T24: 984200 | U24: 667708 | W24: 649875 | Y24: 36104739 | Z24: 2534539 | AA24: 2082439.752 | AB24: 31487760.25 | AD24: 710914 | AG24: 594100
A25: LR | B25: LOUIS RIEL | C25: 466048 | D25: 408558 | E25: 1748 | F25: 1500 | G25: 2675 | H25: 32525 | I25: 0 | J25: 0 | K25: 913054 | L25: 8846 | M25: 1442520 | N25: 0 | O25: 157480 | P25: 2.7 | Q25: 0 | R25: 18251024 | S25: 1157940 | T25: 3099850 | U25: 4631696 | W25: 561396 | Y25: 123341764 | Z25: 3270502 | AA25: 6063371.076 | AB25: 114007890.9 | AD25: 2317282 | AG25: 517209
A26: MO | B26: MOUNTAIN VIEW | C26: 0 | D26: 0 | E26: 0 | F26: 0 | G26: 0 | H26: 4520 | I26: 0 | J26: 0 | K26: 4520 | L26: 23130 | M26: 0 | N26: 0 | O26: 0 | P26: 3.22 | Q26: 0 | R26: 3784008 | S26: 322381 | T26: 563350 | U26: 297933 | W26: 461320 | Y26: 18889775 | Z26: 345180 | AA26: 1088497.04 | AB26: 17456097.96 | AD26: 769803 | AG26: 403804
A27: MY | B27: MYSTERY LAKE | C27: 7400 | D27: 0 | E27: 0 | F27: 0 | G27: 0 | H27: 0 | I27: 0 | J27: 0 | K27: 7400 | L27: 87670 | M27: 0 | N27: 0 | O27: 0 | P27: 4.25 | Q27: 0 | R27: 5009748 | S27: 334219 | T27: 695400 | U27: 944511 | W27: 151958 | Y27: 9661468 | Z27: 543025 | AA27: 213440.8693 | AB27: 8905002.131 | AD27: 467871 | AG27: 142809
A28: PA | B28: PARK WEST | C28: 58946 | D28: 0 | E28: 0 | F28: 0 | G28: 0 | H28: 0 | I28: 0 | J28: 0 | K28: 58946 | L28: 29580 | M28: 0 | N28: 0 | O28: 227748 | P28: 3.22 | Q28: 0 | R28: 2403621 | S28: 167098 | T28: 270750 | U28: 162701 | W28: 763740 | Y28: 11711807 | Z28: 769286 | AA28: 589091.1804 | AB28: 10353429.82 | AD28: 394207 | AE28: 50000 | AF28: < from Lyndonna | AG28: 661132
A29: PE | B29: PEMBINA TRAILS | C29: 2384270 | D29: 0 | E29: 0 | F29: 0 | G29: 8000 | H29: 0 | I29: 0 | J29: 0 | K29: 2392270 | L29: 96359 | M29: 885656 | N29: 0 | O29: 0 | P29: 2.7 | Q29: 0 | R29: 16261770 | S29: 1142408 | T29: 2770682 | U29: 3201195 | W29: 700444 | Y29: 120033436 | Z29: 2429845 | AA29: 6889658.426 | AB29: 110713932.6 | AD29: 1852544 | AG29: 652269
A30: PI | B30: PINE CREEK | C30: 36412 | D30: 0 | E30: 0 | F30: 0 | G30: 0 | H30: 0 | I30: 0 | J30: 0 | K30: 36412 | L30: 19114 | M30: 0 | N30: 0 | O30: 0 | P30: 3.52 | Q30: 0 | R30: 1563437 | S30: 111002 | T30: 210900 | U30: 253560 | W30: 654234 | Y30: 8594425 | Z30: 312678 | AA30: 510486.2388 | AB30: 7771260.761 | AD30: 209798 | AG30: 587060
A31: PO | B31: PORTAGE LA PRAIRIE | C31: 48750 | D31: 0 | E31: 0 | F31: 0 | G31: 0 | H31: 0 | I31: 0 | J31: 0 | K31: 48750 | L31: 88026 | M31: 0 | N31: 0 | O31: 0 | P31: 3.19 | Q31: 0 | R31: 3910321 | S31: 304475 | T31: 870200 | U31: 650804 | W31: 515041 | Y31: 20491782 | Z31: 270928 | AA31: 1173715.974 | AB31: 19047138.03 | AD31: 592284 | AG31: 486481
A32: PR | B32: PRAIRIE ROSE | C32: 162340 | D32: 0 | E32: 146 | F32: 0 | G32: 0 | H32: 10453 | I32: 0 | J32: 0 | K32: 172939 | L32: 53190 | M32: 0 | N32: 0 | O32: 0 | P32: 3.24 | Q32: 0 | R32: 3112391 | S32: 246949 | T32: 326800 | U32: 363436 | W32: 745220 | Y32: 19959451 | Z32: 1085297 | AA32: 1283895.08 | AB32: 17590258.92 | AD32: 383320 | AG32: 666664
A33: PS | B33: PRAIRIE SPIRIT | C33: 54600 | D33: 0 | E33: 0 | F33: 0 | G33: 0 | H33: 13705 | I33: 0 | J33: 0 | K33: 68305 | L33: 51897 | M33: 0 | N33: 0 | O33: 0 | P33: 3.37 | Q33: 0 | R33: 3010581 | S33: 225991 | T33: 304000 | U33: 352871 | W33: 817757 | Y33: 17096063 | Z33: 841411 | AA33: 1062712.09 | AB33: 15191939.91 | AD33: 484971 | AG33: 721605
A34: RE | B34: RED RIVER VALLEY | C34: 413107 | D34: 0 | E34: 0 | F34: 0 | G34: 0 | H34: 3925 | I34: 0 | J34: 0 | K34: 417032 | L34: 40735 | M34: 0 | N34: 0 | O34: 0 | P34: 3.24 | Q34: 0 | R34: 3484454 | S34: 241587 | T34: 555750 | U34: 511346 | W34: 803776 | Y34: 24474657 | Z34: 818721 | AA34: 0 | AB34: 23655936 | AD34: 382004 | AG34: 708088
A35: RI | B35: RIVER EAST TRANSCONA | C35: 640588 | D35: 0 | E35: 0 | F35: 0 | G35: 0 | H35: 32455 | I35: 0 | J35: 0 | K35: 673043 | L35: 55937 | M35: 0 | N35: 0 | O35: 13 | P35: 2.7 | Q35: 0 | R35: 19852794 | S35: 1272068 | T35: 8250166 | U35: 0 | W35: 491088 | Y35: 101438863 | Z35: 745262 | AA35: 5789616.718 | AB35: 94903984.28 | AD35: 2480608 | AG35: 454908
A36: RO | B36: ROLLING RIVER | C36: 361061 | D36: 0 | E36: 0 | F36: 0 | G36: 0 | H36: 1000 | I36: 0 | J36: 0 | K36: 362061 | L36: 63744 | M36: 0 | N36: 4131 | O36: 0 | P36: 3.42 | Q36: 0 | R36: 1946912 | S36: 177460 | T36: 294500 | U36: 126780 | W36: 713381 | Y36: 13952562 | Z36: 718967 | AA36: 793166.8554 | AB36: 12440428.14 | AD36: 321059 | AG36: 647529
A37: SE | B37: SEINE RIVER | C37: 418835 | D37: 246649 | E37: 0 | F37: 0 | G37: 0 | H37: 36979 | I37: 0 | J37: 0 | K37: 702463 | L37: 0 | M37: 0 | N37: 0 | O37: 0 | P37: 2.88 | Q37: 0 | R37: 6404840 | S37: 428256 | T37: 1240700 | U37: 961415 | W37: 418182 | Y37: 32080971 | Z37: 1289547 | AA37: 1765655.856 | AB37: 29025768.14 | AD37: 603831 | AG37: 373314
A38: SO | B38: SEVEN OAKS | C38: 656092 | D38: 155198 | E38: 39900 | F38: 246168 | G38: -286068 | H38: 81200 | I38: 0 | J38: 0 | K38: 892490 | L38: 130723 | M38: 0 | N38: 0 | O38: 0 | P38: 2.4 | Q38: 0 | R38: 12155520 | S38: 857895 | T38: 2265750 | U38: 3228664 | W38: 418427 | Y38: 68995320 | Z38: 2681917 | AA38: 0 | AB38: 66313403 | AD38: 1450575 | AG38: 363421
A39: SR | B39: SOUTHWEST HORIZON | C39: 289575 | D39: 0 | E39: 0 | F39: 0 | G39: 0 | H39: 0 | I39: 0 | J39: 0 | K39: 289575 | L39: 48949 | M39: 0 | N39: 0 | O39: 0 | P39: 3.47 | Q39: 0 | R39: 1918313 | S39: 157378 | T39: 217550 | U39: 211300 | W39: 883059 | Y39: 15258694 | Z39: 713853 | AA39: 888968.1057 | AB39: 13655872.89 | AD39: 314983 | AG39: 899624
A40: ST | B40: ST. JAMES-ASSINIBOIA | C40: 363446 | D40: 0 | E40: 0 | F40: 2768 | G40: 0 | H40: 0 | I40: 0 | J40: 0 | K40: 366214 | L40: 125789 | M40: 300764 | N40: 0 | O40: 0 | P40: 2.7 | Q40: 0 | R40: 8536977 | S40: 604643 | T40: 2474750 | U40: 1774920 | W40: 686777 | Y40: 72398145 | Z40: 1772637 | AA40: 4195010.505 | AB40: 66430497.49 | AD40: 1463150 | AG40: 628206
A41: SU | B41: SUNRISE | C41: 411254 | D41: 75655 | E41: 20000 | F41: 0 | G41: -15475 | H41: 10806 | I41: 0 | J41: 0 | K41: 502240 | L41: 68954 | M41: 0 | N41: 0 | O41: 5108 | P41: 3 | Q41: 0 | R41: 6732064 | S41: 488226 | T41: 946200 | U41: 1176941 | W41: 687705 | Y41: 42303586 | Z41: 1489849 | AA41: 2218395.836 | AB41: 38595341.16 | AD41: 754997 | AG41: 587309
A42: SW | B42: SWAN VALLEY | C42: 129930 | D42: 0 | E42: 0 | F42: 0 | G42: 0 | H42: 0 | I42: 0 | J42: 0 | K42: 129930 | L42: 58024 | M42: 0 | N42: 0 | O42: 0 | P42: 3.47 | Q42: 0 | R42: 2265872 | S42: 139956 | T42: 356250 | U42: 221865 | W42: 530521 | Y42: 9695228 | Z42: 994366 | AA42: 659196.8859 | AB42: 8041665.114 | AD42: 290707 | AG42: 480890
A43: TM | B43: TURTLE MOUNTAIN | C43: 21450 | D43: 0 | E43: 0 | F43: 0 | G43: 0 | H43: 0 | I43: 0 | J43: 0 | K43: =SUM(C43:I43)-J43 -> 21450 | L43: 42216 | M43: 0 | N43: 0 | O43: 0 | P43: 3.52 | Q43: 0 | R43: 1355415 | S43: 111132 | T43: 210900 | U43: 63390 | W43: 694018 | Y43: 7992675 | Z43: 0 | AA43: 461002.4578 | AB43: 7531672.542 | AD43: 182598 | AG43: 649150
A44: TR | B44: TURTLE RIVER | C44: 141070 | D44: 0 | E44: 0 | F44: 0 | G44: 0 | H44: 0 | I44: 0 | J44: 0 | K44: =SUM(C44:I44)-J44 -> 141070 | L44: 34564 | M44: 0 | N44: 0 | O44: 0 | P44: 3.42 | Q44: 0 | R44: 1467374 | S44: 73630 | T44: 262200 | U44: 84520 | W44: 434329 | Y44: 4391771 | Z44: 271971 | AA44: 403087.4614 | AB44: 3716712.539 | AD44: 183107 | AG44: 364774
A45: WE | B45: WESTERN | C45: 13508 | D45: 0 | E45: 7000 | F45: 0 | G45: -7000 | H45: 0 | I45: 0 | J45: 0 | K45: =SUM(C45:I45)-J45 -> 13508 | L45: 16723 | M45: 0 | N45: 0 | O45: 972 | P45: 3.36 | Q45: 0 | R45: 2056060 | S45: 177546 | T45: 299250 | U45: 169040 | W45: 398203 | Y45: 10107759 | Z45: 0 | AA45: 582991.912 | AB45: 9524767.088 | AD45: 228853 | AG45: 341195
A46: WI | B46: WINNIPEG | C46: 1251630 | D46: 408746 | E46: 0 | F46: 0 | G46: 2960 | H46: 456515 | I46: 0 | J46: 0 | K46: =SUM(C46:I46)-J46 -> 2119851 | L46: 241013 | M46: 51738 | N46: 0 | O46: 0 | P46: 2.7 | Q46: 0 | R46: 27776738 | S46: 2140733 | T46: 7412850 | U46: 6943318 | W46: 544437 | Y46: 214552496 | Z46: 4790198 | AA46: 12601863.67 | AB46: 197160434.3 | AD46: 5125599 | AG46: 488685
B48: PROVINCE | C48: =SUM(C11:C46) -> 15948295 | D48: 1345855 | E48: 73012 | F48: 277436 | G48: 547214 | H48: 785482 | I48: 68740 | J48: 0 | K48: 19046034 | L48: 2110636 | M48: 2680678 | N48: 16796 | O48: 429975 | P48: 115.77 | Q48: 0 | R48: 214017335 | S48: 15090991 | T48: 42979334 | U48: 33765740 | W48: 539197.9735 | Y48: =SUM(Y11:Y46) -> 1211710261 | Z48: 37392862 | AA48: 63264351.88 | AB48: 1111053047 | AD48: =SUM(AD11:AD46) -> 29814513 | AG48: 489177.2387
A50: XW | B50: WHITESHELL | C50: 0 | D50: 0 | E50: 0 | F50: 0 | G50: 0 | H50: 0 | I50: 22248 | J50: 0 | K50: =SUM(C50:I50)-J50 -> 22248 | L50: 0 | M50: 0 | N50: 0 | O50: 0 | P50: 3.42 | Q50: 0 | R50: 152759 | S50: 20286 | T50: 0 | U50: 0 | Y50: 2775170.178 | Z50: 22588 | AA50: 88369.554 | AB50: 2664212.624 | AD50: 73056 | AE50: ??? | AG50: N/A
B54: Page | C54: Function's check | G54: Function
B55: 18 | C55: 0 | D55: 0 | G55: 100
B56: =+B55+1 -> 19 | C56: 0 | D56: 0 | E56: 0 | G56: 100
B57: =+B56+1 -> 20 | C57: 0 | G57: 100
B58: 21 | C58: 0 | D58: 0 | E58: 0 | G58: 200
B59: 22 | C59: 0 | D59: 0 | E59: 0 | G59: 200
B60: 23 | C60: 0 | D60: 0 | G60: 300
B61: 24 | C61: 0 | D61: 0 | E61: 0 | F61: 0 | G61: 400
B62: 25 | C62: 0 | D62: 0 | E62: 0 | G62: 500
B63: 26 | C63: 0 | G63: 500
B64: 27 | C64: 0 | D64: 0 | E64: 0 | G64: 600
B65: 28 | C65: 0 | D65: 0 | G65: 600
B66: 29 | C66: 0 | D66: 0 | E66: 0 | G66: 700
B67: 30 | C67: 0 | D67: 0 | G67: 700
B68: 31 | C68: 0 | D68: 0 | E68: 0 | G68: 800
B69: 32 | C69: 0 | D69: 0 | G69: 800
B70: 33 | C70: 0 | D70: 0 | E70: 0 | G70: 900
B71: check | C71: =SUM(C55:F70) -> 0
B87: Dates
B88: =+FALLYR-1 -> 2022 | C88: September 30,

Sheet PrvFunding (hidden)
B1: DRAFT - SUBJECT TO FINAL RECONCILIATION WITH FRAME REPORT | H1: Internal links
H2: External source links
A3: PROVINCIAL CONTRIBUTION TO PUBLIC EDUCATION | H3: Input cells
G6: Tot Exp | H6: Prov Govt
G7: =C31 -> 2822493265 | H7: =D31 -> 1880675436
G8: Net Trans to Cap | H8: TIG
G9: ='- 46 -'!$F$48 -> 44616593 | H9: 37389621
G10: TRUE
C12: =CurrY&" ($ millions)" -> 2023/24 ($ millions)
C14: Total Expenditure | D14: Provincial | E14: Provincial
C15: on Public Education | D15: Contribution | E15: Contribution as % | G15: Principal | H15: 97025.31257 | I15: =CurrY&" School year" -> 2023/24 School year | J15: Prior Year | K15: Change | L15: Prior Year | M15: Change
G16: Interest | H16: 54680.98057 | I16: =CurrY&" School year" -> 2023/24 School year
A17: 1 | B17: FRAME Operating Fund | C17: =G7/1000000 -> 2822.493265 | D17: =H7/1000000 -> 1880.675436 | E17: =D17/C17 -> 0.6663170676 | J17: 1547.408582 | K17: =D17-J17 -> 333.266854 | L17: 0.5646568334 | M17: =E17-L17 -> 0.1016602342 | N17: =IF(PrvContPrcntChng>0,"increase","decrease") -> increase | O17: =K17 -> 333.266854 | P17: Ops Funding
A18: 2 | B18: School division capital (net transfers to capital fund) | C18: =G9/1000000 -> 44.616593 | D18: 0 | E18: 0 | J18: 0 | K18: 0 | L18: 0 | M18: =E18-L18 -> 0 | O18: =K19 -> 3.90771976 | P18: Cap Funding
A19: 3 | B19: Provincial Capital Grant Funding and Other | C19: =H19/1000 -> 151.7062931 | D19: =C19 -> 151.7062931 | E19: =D19/C19 -> 1 | H19: =SUM(H15:H18) -> 151706.2931 | J19: 147.7985734 | K19: 3.90771976 | L19: 1 | M19: 0 | O19: =SUM(O17:O18) -> 337.1745738 | P19: Net grants funding
A20: 4 | B20: Manitoba Education Property Tax Credit and School Tax Rebate (1) | C20: n/a | D20: =(G20-H20)/1000000 -> 10.142812 | E20: 1 | G20: =C63*1000 -> 114085000 | H20: ='- 41 -'!$G$48+'- 41 -'!$G$50*0 -> 103942188 | J20: 24.472668 | K20: -14.329856 | L20: 1 | M20: 0
A21: 5 | B21: Farmland School Tax Rebate | C21: n/a | D21: =G27/1000 -> 21.212 | E21: 1 | G21: (Total EPTC | H21: (EPTC from | J21: 26.398 | K21: -5.186 | L21: 1 | M21: 0 | O21: =K20+K21+K22+K24 -> 30.176144 | P21: Tax Cr & Rebates
A22: 6 | B22: Pensioners' School Tax Assistance | C22: n/a | D22: =G28/1000 -> 0.185 | E22: 1 | G22: from Annual Rpt) | H22: FRAME) | J22: 0.148 | K22: 0.037 | L22: 1 | M22: 0 | O22: =K23 -> -15.014 | P22: TRAF
A23: 7 | B23: Teachers' Retirement Allowances Fund | C23: =D23 -> 218.613 | D23: =G29/1000 -> 218.613 | E23: =D23/C23 -> 1 | J23: 233.627 | K23: -15.014 | L23: 1 | M23: 0
A24: 8 | B24: Education Property Tax Rebate | C24: n/a | D24: =D44 -> 453.2 | E24: 1 | J24: 403.545 | K24: 49.655 | L24: 1 | M24: 0
B25: Adjusted Total | C25: =SUM(C17:C24) -> 3237.429152 | D25: =SUM(D17:D24) -> 2735.734541 | E25: =ROUND(D25/C25,3) -> 0.845 | J25: 2383.397823 | K25: 352.3367178 | L25: 0.756 | M25: 0.089
G26: =G20 -> 114085000 | H26: EPTC | J26: 0.756 | L26: 0.756 | O26: =SUM(K17:K23) -> 302.6817178
G27: =D33 -> 21212 | H27: Farmland | J27: =ROUND(E25-J26,3) -> 0.089
G28: =D38 -> 185 | H28: School Tax Assistance for Tenants and Homeowners
G29: =D40 -> 218613 | H29: Teachers’ Retirement Allowances Fund
A31: 1 | B31: FRAME Operating Fund | C31: ='- 3 -'!$B$48+('- 3 -'!$B$50)*0 -> 2822493265 | D31: ='- 41 -'!$J$48+('- 41 -'!$J$50)*0 -> 1880675436
A33: 5 | B33: Farmland School Tax Rebate | D33: 21212 | H33: MB FINANCE EDUCATION CREDITS & REBATES
B34: MASC - Publications | D34: MASC Annual Report 2023 to 2024 - page 35 | H34: Email contacts: Wang.Cheng@gov.mb.ca ; Gladys.Genetiano-Si@gov.mb.ca; Babatunde.Busari@gov.mb.ca
H35: MB Finance/publications/Annual Reports - Enabling Appropriations Part A : Expenditure Summary by Appropriation table
A36: 4 | B36: Manitoba Education Property Tax Credit and School Tax Rebate (1) | D36: =EPTC -> 10900 | H36: Amount | I36: Description | J36: Section | K36: Cell Name | L36: Prior Year
H37: 10900 | I37: Education Property Tax Credit | J37: 2024/25 p14 | K37: EPTC | L37: 18734
A38: 6 | B38: School Tax Assistance (Pensioners) | D38: =STA -> 185 | H38: 185 | I38: School Tax Assisitance (pensioners) | J38: 2024/25 p14 | K38: STA | L38: 148
H39: 103000 | I39: Homeowners Education Prop tax Rebate | J39: 2024/25 p16 | K39: HEPTR | L39: 121031
A40: 7 | B40: Teachers' Retirement Allowances Fund | D40: 218613 | H40: 453200 | I40: School tax rebate | J40: 2024/25 p13 | K40: STR | L40: 403545
B41: W:\Edusfb\Frame\REPORTS\Provincial Contribution\TRAF Pension Projections | D41: W:\Edusfb\Frame\REPORTS\Provincial Contribution\TRAF Pension Projections 24-25 - (OPC - Feb 20-2025 email).xlsx | H41: 350 | I41: Education Property tax rebate | J41: 2024/25 p16 | L41: 250
B42: Updates from Michel.St.Amant@gov.mb.ca
H43: =EPTC+STA -> 11085 | I43: School Tax Assistance for Tennants & Homeowners | K43: STATH
A44: 8 | B44: Education Property Tax Rebate | D44: =STR/1000 -> 453.2
H47: Other Tax Details & sources
H48: PY | I48: 2023-24 Education Annual Report | J48: Page | L48: Prior Year | M48: 69
A49: 1) | B49: 4. Manitoba Education Property Tax Credit and School Tax Rebate- DETAILS | I49: PTOG | L49: 23.9 | M49: 52
H50: 180093 | I50: Education Support Levy | J50: 44 | L50: 180344 | M50: 16-4d - 47
C51: Actual | D51: Actual | H51: 36.5 | I51: GSG | J51: 16-4d p38 | L51: 36.5 | M51: pg 16
C52: =CurrY -> 2023/24 | D52: =PrevY -> 2022/23 | I52: Agrees to calculated total EPTC
B54: School Tax Assistance (Pensioners / Seniors) | C54: =H38 -> 185 | D54: =L38 -> 148
B55: Education Property Tax Credit | C55: =H37 -> 10900 | D55: =L37 -> 18734
B56: Homeowners Education Property Tax Rebaate | C56: =H39 -> 103000 | D56: =L39 -> 121031
C57: =SUM(C54:C56) -> 114085 | D57: =SUM(D54:D56) -> 139913
B61: Income tax | C61: =C54+C56+C55-C62 -> 10142.812 | D61: =D54+D56+D55-D62 -> 102278.401
B62: EPTCA (w/o XW) | C62: =('- 41 -'!G48/1000) -> 103942.188 | D62: 37634.599
B63: Total per estimate | C63: =SUM(C60:C62) -> 114085 | D63: =SUM(D60:D62) -> 139913
C64: =ROUND(C63/1000,1) -> 114.1 | D64: =ROUND(D63/1000,1) -> 139.9
C65: =E25 -> 0.845 | D65: =J26 -> 0.756
C66: =C65-D65 -> 0.089
C67: =IF(C66>0,"more", "less") -> more

Sheet README
B3: ="FRAME Report: "&CurrY&" ACTUAL" -> FRAME Report: 2023/24 ACTUAL
B5: All pages of the FRAME report containing the tables of financial and statistical data are included in this file.
B7: In most cases, formulas have been left intact to show how statistics such as percentages and average costs per pupil are derived.
B10: Each worksheet tab is numbered to match the corresponding page found in the published document so for example to see page 15, click the worksheet tab - 15 - .
B13: This file is unprotected for data analysis by the user. Data can also be copied to other files or additional data copied to this one. In cases of dispute however, the published FRAME reports and the corresponding files located on the Manitoba Govenment web site remain the final authority.
B20: http://www.edu.gov.mb.ca/k12/finance/frame_report/index.html

Sheet viii
A1: PROVINCIAL CONTRIBUTION TO PUBLIC EDUCATION
A3: ="The total cost of public education in Manitoba includes direct expenditures for the operation of schools (e.g. educator and administrator salaries, teaching supplies, pupil transportation, utilities, building maintenance)"&" and capital expenditures for school building construction and major building repairs and renovations. "&"Also included are provincial expenditures for pensions for retired teachers and the provincial education tax credit programs for homeowners, tenants and farmers which results in reduced property tax bills. "&"The total provincial contribution to public education accounts for "&E23*100&"% of the total of these expenditures." -> The total cost of public education in Manitoba includes direct expenditures for the operation of schools (e.g. educator and administrator salaries, teaching supplies, pupil transportation, utilities, building maintenance) and capital expenditures for school building construction and major building repairs and renovations. Also included are provincial expenditures for pensions for retired teachers and the provincial education tax credit programs for homeowners, tenants and farmers which results in reduced property tax bills. The total provincial contribution to public education accounts for 84.5% of the total of these expenditures.
A12: Categories | C12: =CurrY&" ($ millions)" -> 2023/24 ($ millions)
C13: Total Expense on Public Education | D13: Provincial Contribution | E13: Provincial Contribution as %
A15: 1. FRAME Operating Fund | C15: =PrvFunding!C17 -> 2822.493265 | D15: =PrvFunding!D17 -> 1880.675436 | E15: =D15/C15 -> 0.6663170676 | F15: (2)
A16: 2. School Division Capital (transfers to capital fund) | C16: =PrvFunding!C18 -> 44.616593 | D16: =PrvFunding!D18 -> 0 | E16: 0
A17: 3. Provincial Capital Grant Funding and Other | C17: =PrvFunding!C19 -> 151.7062931 | D17: =PrvFunding!D19 -> 151.7062931 | E17: =D17/C17 -> 1
A18: 4. Manitoba Education Property Tax Credit (1) | C18: =PrvFunding!C20 -> n/a | D18: =PrvFunding!D20 -> 10.142812 | E18: 1
A19: 5. Farmland School Tax Rebate | C19: =PrvFunding!C21 -> n/a | D19: =PrvFunding!D21 -> 21.212 | E19: 1
A20: 6. School Tax Assistance for Tenants and Homeowners (55+) | C20: =PrvFunding!C22 -> n/a | D20: =PrvFunding!D22 -> 0.185 | E20: 1
A21: 7. Teachers' Retirement Allowances Fund | C21: =PrvFunding!C23 -> 218.613 | D21: =PrvFunding!D23 -> 218.613 | E21: =D21/C21 -> 1
A22: 8. Education Property Tax Rebate | C22: =PrvFunding!C24 -> n/a | D22: =PrvFunding!D24 -> 453.2 | E22: 1
A23: Adjusted Total | C23: =SUM(C15:C22) -> 3237.429152 | D23: =SUM(D15:D22) -> 2735.734541 | E23: =ROUND(D23/C23,3) -> 0.845 | F23: (3)
A25: (1) | B25: ="The portion of the Education Property Tax Credit (EPTC) delivered through the income tax system directly to homeowners and renters. "&"Starting in the 2022 taxation year, the renters component of the EPTC has been replaced with a new Residential Renters Tax Credit. EPTC reported by school divisions of $"&ROUND('- 41 -'!G48/1000000,1)&" million is adjusted by $"&ROUND(D18,1)&" million to equal total education tax-related credits of $"&PrvFunding!C64&" million as per Manitoba Finance's Enabling Appropriations, Tax Credits and Public Debt 2023 Annual Report. See page 41 for more information." -> The portion of the Education Property Tax Credit (EPTC) delivered through the income tax system directly to homeowners and renters. Starting in the 2022 taxation year, the renters component of the EPTC has been replaced with a new Residential Renters Tax Credit. EPTC reported by school divisions of $103.9 million is adjusted by $10.1 million to equal total education tax-related credits of $114.1 million as per Manitoba Finance's Enabling Appropriations, Tax Credits and Public Debt 2023 Annual Report. See page 41 for more information.
A27: (2) | B27: ="Total expense on public education is based on school divisions' education expenses as reported in their "&CurrY&" financial statements. The total provincial contribution towards these expenses is "&ROUND(PrvContPrcnt*100,1)&"%. The "&ROUND(PrvContPrcntChng*100,1)&"% "&PrvContChg&" from "&PrevY&" is due to the net increase in revenue related to property tax related credits and grants received by divisions, Funding of Schools Program and increases in non-provincial funding." -> Total expense on public education is based on school divisions' education expenses as reported in their 2023/24 financial statements. The total provincial contribution towards these expenses is 66.6%. The 10.2% increase from 2022/23 is due to the net increase in revenue related to property tax related credits and grants received by divisions, Funding of Schools Program and increases in non-provincial funding.
A29: (3) | B29: ="The provincial contribution to public education which, in addition to operating grants, accounts for government funding for capital, teachers' pensions and relevant tax credit programs is at "&ROUND(E23*100,1)&"%, "&ROUND(PrvFunding!C66*100,1)&"% "&PrvFunding!$C$67&" compared to "&PrevY&" due to increases in Operating and Capital Funding and Tax Credits and Rebates in excess of a reduction in Teachers Retirement Allowances. " -> The provincial contribution to public education which, in addition to operating grants, accounts for government funding for capital, teachers' pensions and relevant tax credit programs is at 84.5%, 8.9% more compared to 2022/23 due to increases in Operating and Capital Funding and Tax Credits and Rebates in excess of a reduction in Teachers Retirement Allowances.
A33: Sources:
A35: 1 | B35: ="FRAME "&Data!B$5&" Actual page 3, page 41" -> FRAME 2023/24 Actual page 3, page 41
A36: 2 | B36: ="FRAME "&Data!B$5&" Actual page 46" -> FRAME 2023/24 Actual page 46
A37: 3 | B37: Manitoba Education and Early Childhood Learning
A38: 4 | B38: ="Manitoba Finance Enabling Appropriations, Tax Credits and Public Debt "&SPRINGYR&" Annual Report" -> Manitoba Finance Enabling Appropriations, Tax Credits and Public Debt 2024 Annual Report
A39: 5 | B39: ="Manitoba Finance Enabling Appropriations, Tax Credits and Public Debt "&SPRINGYR&" Annual Report" -> Manitoba Finance Enabling Appropriations, Tax Credits and Public Debt 2024 Annual Report
A40: 6 | B40: ="Manitoba Finance Enabling Appropriations, Tax Credits and Public Debt "&SPRINGYR&" Annual Report" -> Manitoba Finance Enabling Appropriations, Tax Credits and Public Debt 2024 Annual Report
A41: 7 | B41: ="Manitoba Finance " -> Manitoba Finance
A42: 8 | B42: ="Manitoba Finance Enabling Appropriations, Tax Credits and Public Debt "&SPRINGYR&" Annual Report" -> Manitoba Finance Enabling Appropriations, Tax Credits and Public Debt 2024 Annual Report

Sheet - 1 -

Sheet - 2 -
S24: - 2 -

Sheet - 3 -
A2: RECONCILIATION OF EXPENSES
A3: ="OPERATING FUND "&FALLYR&"/"&SPRINGYR&" ACTUAL" -> OPERATING FUND 2023/2024 ACTUAL
C6: LESS OPERATING FUND TRANSFERS (2) | D6: EXPENSES NET OF TRANFERS (3) | E6: LESS NON K-12 EDUCATION & SERVICES (4) | F6: TOTAL EXPENSES FOR PER PUPIL COSTS (5)
B8: TOTAL EXPENSES (1)
A9: DIVISION / DISTRICT
A11: BEAUTIFUL PLAINS | B11: 26987089 | C11: =-Data!K11 -> -88774 | D11: =B11+C11 -> 26898315 | E11: =-'- 15 -'!H11-'- 16 -'!B11 -> -23164 | F11: =D11+E11 -> 26875151
A12: BORDER LAND | B12: 38065365 | C12: =-Data!K12 -> -568872 | D12: =B12+C12 -> 37496493 | E12: =-'- 15 -'!H12-'- 16 -'!B12 -> -404623 | F12: =D12+E12 -> 37091870
A13: BRANDON | B13: 122188525 | C13: =-Data!K13 -> -68250 | D13: 122120275 | E13: =-'- 15 -'!H13-'- 16 -'!B13 -> -446345 | F13: 121673930
A14: DSFM | B14: 108443173 | C14: =-Data!K14 -> -910273 | D14: 107532900 | E14: =-'- 15 -'!H14-'- 16 -'!B14 -> -1245466 | F14: 106287434
A15: EVERGREEN | B15: 22436022 | C15: =-Data!K15 -> -41209 | D15: 22394813 | E15: =-'- 15 -'!H15-'- 16 -'!B15 -> -32469 | F15: 22362344
A16: FLIN FLON | B16: 17061966 | C16: =-Data!K16 -> -3900 | D16: 17058066 | E16: =-'- 15 -'!H16-'- 16 -'!B16 -> -111661 | F16: 16946405
A17: FORT LA BOSSE | B17: 21506242 | C17: =-Data!K17 -> -58974 | D17: 21447268 | E17: =-'- 15 -'!H17-'- 16 -'!B17 -> -235352 | F17: 21211916
A18: FRONTIER | B18: 169473706.4 | C18: =-Data!K18 -> -3308353 | D18: 166165353.4 | E18: =-'- 15 -'!H18-'- 16 -'!B18 -> -4873049 | F18: 161292304.4
A19: GARDEN VALLEY | B19: 57303051 | C19: =-Data!K19 -> -373369 | D19: 56929682 | E19: =-'- 15 -'!H19-'- 16 -'!B19 -> -77142 | F19: 56852540
A20: HANOVER | B20: 106265533 | C20: =-Data!K20 -> -2809185 | D20: 103456348 | E20: =-'- 15 -'!H20-'- 16 -'!B20 -> -119606 | F20: 103336742
A21: INTERLAKE | B21: 41933070 | C21: =-Data!K21 -> -224830 | D21: 41708240 | E21: =-'- 15 -'!H21-'- 16 -'!B21 -> 0 | F21: 41708240
A22: KELSEY | B22: 23142058 | C22: =-Data!K22 -> -5132 | D22: 23136926 | E22: =-'- 15 -'!H22-'- 16 -'!B22 -> -688053 | F22: 22448873
A23: LAKESHORE | B23: 16441379 | C23: =-Data!K23 -> -87094 | D23: 16354285 | E23: =-'- 15 -'!H23-'- 16 -'!B23 -> -359609 | F23: 15994676
A24: LORD SELKIRK | B24: 65172603 | C24: =-Data!K24 -> -164296 | D24: 65008307 | E24: =-'- 15 -'!H24-'- 16 -'!B24 -> -848729 | F24: 64159578
A25: LOUIS RIEL | B25: 234839179 | C25: =-Data!K25 -> -913054 | D25: 233926125 | E25: =-'- 15 -'!H25-'- 16 -'!B25 -> -4209139 | F25: 229716986
A26: MOUNTAIN VIEW | B26: 48046008 | C26: =-Data!K26 -> -4520 | D26: 48041488 | E26: =-'- 15 -'!H26-'- 16 -'!B26 -> -106495 | F26: 47934993
A27: MYSTERY LAKE | B27: 46271197 | C27: =-Data!K27 -> -7400 | D27: 46263797 | E27: =-'- 15 -'!H27-'- 16 -'!B27 -> -60491 | F27: 46203306
A28: PARK WEST | B28: 33038323 | C28: =-Data!K28 -> -58946 | D28: 32979377 | E28: =-'- 15 -'!H28-'- 16 -'!B28 -> -228905 | F28: 32750472
A29: PEMBINA TRAILS | B29: 207597244 | C29: =-Data!K29 -> -2392270 | D29: 205204974 | E29: =-'- 15 -'!H29-'- 16 -'!B29 -> -280574 | F29: 204924400
A30: PINE CREEK | B30: 18818346 | C30: =-Data!K30 -> -36412 | D30: 18781934 | E30: =-'- 15 -'!H30-'- 16 -'!B30 -> -4084 | F30: 18777850
A31: PORTAGE LA PRAIRIE | B31: 48041052 | C31: =-Data!K31 -> -48750 | D31: 47992302 | E31: =-'- 15 -'!H31-'- 16 -'!B31 -> -59085 | F31: 47933217
A32: PRAIRIE ROSE | B32: 35514122 | C32: =-Data!K32 -> -172939 | D32: 35341183 | E32: =-'- 15 -'!H32-'- 16 -'!B32 -> -321148 | F32: 35020035
A33: PRAIRIE SPIRIT | B33: 31286677 | C33: =-Data!K33 -> -68305 | D33: 31218372 | E33: =-'- 15 -'!H33-'- 16 -'!B33 -> -45224 | F33: 31173148
A34: RED RIVER VALLEY | B34: 36546727 | C34: =-Data!K34 -> -417032 | D34: 36129695 | E34: =-'- 15 -'!H34-'- 16 -'!B34 -> -48356 | F34: 36081339
A35: RIVER EAST TRANSCONA | B35: 227807317 | C35: =-Data!K35 -> -673043 | D35: 227134274 | E35: =-'- 15 -'!H35-'- 16 -'!B35 -> -3098143 | F35: 224036131
A36: ROLLING RIVER | B36: 26942508 | C36: =-Data!K36 -> -362061 | D36: 26580447 | E36: =-'- 15 -'!H36-'- 16 -'!B36 -> -150396 | F36: 26430051
A37: SEINE RIVER | B37: 63702597 | C37: =-Data!K37 -> -702463 | D37: 63000134 | E37: =-'- 15 -'!H37-'- 16 -'!B37 -> -1021812 | F37: 61978322
A38: SEVEN OAKS | B38: 173554203 | C38: =-Data!K38 -> -892490 | D38: 172661713 | E38: =-'- 15 -'!H38-'- 16 -'!B38 -> -6451777 | F38: 166209936
A39: SOUTHWEST HORIZON | B39: 24844338 | C39: =-Data!K39 -> -289575 | D39: 24554763 | E39: =-'- 15 -'!H39-'- 16 -'!B39 -> -185850 | F39: 24368913
A40: ST. JAMES-ASSINIBOIA | B40: 120061252 | C40: =-Data!K40 -> -366214 | D40: 119695038 | E40: =-'- 15 -'!H40-'- 16 -'!B40 -> -979940 | F40: 118715098
A41: SUNRISE | B41: 75911343 | C41: =-Data!K41 -> -502240 | D41: 75409103 | E41: =-'- 15 -'!H41-'- 16 -'!B41 -> -1131742 | F41: 74277361
A42: SWAN VALLEY | B42: 24751364 | C42: =-Data!K42 -> -129930 | D42: 24621434 | E42: =-'- 15 -'!H42-'- 16 -'!B42 -> -88355 | F42: 24533079
A43: TURTLE MOUNTAIN | B43: 15434714 | C43: =-Data!K43 -> -21450 | D43: 15413264 | E43: =-'- 15 -'!H43-'- 16 -'!B43 -> -220298 | F43: 15192966
A44: TURTLE RIVER | B44: 12405689 | C44: =-Data!K44 -> -141070 | D44: 12264619 | E44: =-'- 15 -'!H44-'- 16 -'!B44 -> -31696 | F44: 12232923
A45: WESTERN | B45: 27463078 | C45: =-Data!K45 -> -13508 | D45: 27449570 | E45: =-'- 15 -'!H45-'- 16 -'!B45 -> -493662 | F45: 26955908
A46: WINNIPEG | B46: 453196205 | C46: =-Data!K46 -> -2119851 | D46: 451076354 | E46: =-'- 15 -'!H46-'- 16 -'!B46 -> -8517828 | F46: 442558526
A48: PROVINCE | B48: =SUM(B11:B46) -> 2822493265 | C48: =SUM(C11:C46) -> -19046034 | D48: =SUM(D11:D46) -> 2803447231 | E48: =SUM(E11:E46) -> -37200268 | F48: =SUM(F11:F46) -> 2766246963
A50: WHITESHELL | B50: 4116958 | C50: =-Data!K50 -> -22248 | D50: =B50+C50 -> 4094710 | E50: =-'- 15 -'!H50-'- 16 -'!B50 -> -115352 | F50: =D50+E50 -> 3979358
A52: (1) Total operating expenses as reported on the Schedule of Revenue, Expenses and Accumulated Surplus by each school division.
A53: (2) Operating fund transfers are payments to other school divisions, organizations and individuals. These are removed to provide more accurate per-pupil costs.
A55: (3) As reported on pages 10 and 13 (on a provincial basis).
A56: (4) Expenses for Adult Learning Centres and Community Education and Services (Functions 300 and 400).
A57: (5) As reported on page 4.

Sheet - 4 -
A2: OPERATING FUND COST PER PUPIL
A3: =PrevY&" AND "&CurrY&" ACTUAL" -> 2022/23 AND 2023/24 ACTUAL
B7: =PrevY&" ACTUAL" -> 2022/23 ACTUAL | D7: =CurrY&" ACTUAL" -> 2023/24 ACTUAL
A9: DIVISION / DISTRICT | B9: EXPENSES (1)X | C9: PER PUPIL | D9: EXPENSES (1)X | E9: PER PUPIL
A11: BEAUTIFUL PLAINS | B11: 25129996 | C11: 12540 | D11: ='- 3 -'!F11 -> 26875151 | E11: =ROUND(D11/'- 7 -'!E11,0) -> 12368
A12: BORDER LAND | B12: 36853894 | C12: 18064 | D12: ='- 3 -'!F12 -> 37091870 | E12: =ROUND(D12/'- 7 -'!E12,0) -> 17993
A13: BRANDON | B13: 114561461 | C13: 12629 | D13: ='- 3 -'!F13 -> 121673930 | E13: =ROUND(D13/'- 7 -'!E13,0) -> 13015
A14: DSFM | B14: 104512862 | C14: 17905 | D14: ='- 3 -'!F14 -> 106287434 | E14: =ROUND(D14/'- 7 -'!E14,0) -> 17635
A15: EVERGREEN | B15: 22647425 | C15: 15684 | D15: ='- 3 -'!F15 -> 22362344 | E15: =ROUND(D15/'- 7 -'!E15,0) -> 15594
A16: FLIN FLON | B16: 16545575 | C16: 17675 | D16: ='- 3 -'!F16 -> 16946405 | E16: =ROUND(D16/'- 7 -'!E16,0) -> 20516
A17: FORT LA BOSSE | B17: 20513146 | C17: 13635 | D17: ='- 3 -'!F17 -> 21211916 | E17: =ROUND(D17/'- 7 -'!E17,0) -> 13914
A18: FRONTIER | B18: 156279576 | C18: 24644 | D18: ='- 3 -'!F18 -> 161292304.4 | E18: =ROUND(D18/'- 7 -'!E18,0) -> 25497
A19: GARDEN VALLEY | B19: 54297185 | C19: 13298 | D19: ='- 3 -'!F19 -> 56852540 | E19: =ROUND(D19/'- 7 -'!E19,0) -> 13412
A20: HANOVER | B20: 101895044 | C20: 12622 | D20: ='- 3 -'!F20 -> 103336742 | E20: =ROUND(D20/'- 7 -'!E20,0) -> 12274
A21: INTERLAKE | B21: 40717220 | C21: 13916 | D21: ='- 3 -'!F21 -> 41708240 | E21: =ROUND(D21/'- 7 -'!E21,0) -> 14447
A22: KELSEY | B22: 21363835 | C22: 14464 | D22: ='- 3 -'!F22 -> 22448873 | E22: =ROUND(D22/'- 7 -'!E22,0) -> 15503
A23: LAKESHORE | B23: 16076490 | C23: 17637 | D23: ='- 3 -'!F23 -> 15994676 | E23: =ROUND(D23/'- 7 -'!E23,0) -> 16405
A24: LORD SELKIRK | B24: 63124885 | C24: 16726 | D24: ='- 3 -'!F24 -> 64159578 | E24: =ROUND(D24/'- 7 -'!E24,0) -> 16991
A25: LOUIS RIEL | B25: 215124467 | C25: 13203 | D25: ='- 3 -'!F25 -> 229716986 | E25: =ROUND(D25/'- 7 -'!E25,0) -> 13388
A26: MOUNTAIN VIEW | B26: 45716258 | C26: 14962 | D26: ='- 3 -'!F26 -> 47934993 | E26: =ROUND(D26/'- 7 -'!E26,0) -> 15404
A27: MYSTERY LAKE | B27: 46023378 | C27: 16855 | D27: ='- 3 -'!F27 -> 46203306 | E27: =ROUND(D27/'- 7 -'!E27,0) -> 16346
A28: PARK WEST | B28: 32348424 | C28: 15650 | D28: ='- 3 -'!F28 -> 32750472 | E28: =ROUND(D28/'- 7 -'!E28,0) -> 15507
A29: PEMBINA TRAILS | B29: 195312613 | C29: 12894 | D29: ='- 3 -'!F29 -> 204924400 | E29: =ROUND(D29/'- 7 -'!E29,0) -> 12394
A30: PINE CREEK | B30: 17285301 | C30: 15829 | D30: ='- 3 -'!F30 -> 18777850 | E30: =ROUND(D30/'- 7 -'!E30,0) -> 17549
A31: PORTAGE LA PRAIRIE | B31: 45986779 | C31: 13697 | D31: ='- 3 -'!F31 -> 47933217 | E31: =ROUND(D31/'- 7 -'!E31,0) -> 14580
A32: PRAIRIE ROSE | B32: 33148907 | C32: 14558 | D32: ='- 3 -'!F32 -> 35020035 | E32: =ROUND(D32/'- 7 -'!E32,0) -> 15455
A33: PRAIRIE SPIRIT | B33: 30560616 | C33: 14675 | D33: ='- 3 -'!F33 -> 31173148 | E33: =ROUND(D33/'- 7 -'!E33,0) -> 14915
A34: RED RIVER VALLEY | B34: 35336669 | C34: 15605 | D34: ='- 3 -'!F34 -> 36081339 | E34: =ROUND(D34/'- 7 -'!E34,0) -> 15923
A35: RIVER EAST TRANSCONA | B35: 218749938 | C35: 12953 | D35: ='- 3 -'!F35 -> 224036131 | E35: =ROUND(D35/'- 7 -'!E35,0) -> 12627
A36: ROLLING RIVER | B36: 26684754 | C36: 15149 | D36: ='- 3 -'!F36 -> 26430051 | E36: =ROUND(D36/'- 7 -'!E36,0) -> 15277
A37: SEINE RIVER | B37: 62589346 | C37: 14027 | D37: ='- 3 -'!F37 -> 61978322 | E37: =ROUND(D37/'- 7 -'!E37,0) -> 13010
A38: SEVEN OAKS | B38: 160335831 | C38: 13930 | D38: ='- 3 -'!F38 -> 166209936 | E38: =ROUND(D38/'- 7 -'!E38,0) -> 13881
A39: SOUTHWEST HORIZON | B39: 23772106 | C39: 16266 | D39: ='- 3 -'!F39 -> 24368913 | E39: =ROUND(D39/'- 7 -'!E39,0) -> 17000
A40: ST. JAMES-ASSINIBOIA | B40: 119126946 | C40: 14789 | D40: ='- 3 -'!F40 -> 118715098 | E40: =ROUND(D40/'- 7 -'!E40,0) -> 14775
A41: SUNRISE | B41: 72297315 | C41: 15744 | D41: ='- 3 -'!F41 -> 74277361 | E41: =ROUND(D41/'- 7 -'!E41,0) -> 16088
A42: SWAN VALLEY | B42: 24172338 | C42: 17866 | D42: ='- 3 -'!F42 -> 24533079 | E42: =ROUND(D42/'- 7 -'!E42,0) -> 17338
A43: TURTLE MOUNTAIN | B43: 14678887 | C43: 14258 | D43: ='- 3 -'!F43 -> 15192966 | E43: =ROUND(D43/'- 7 -'!E43,0) -> 14374
A44: TURTLE RIVER | B44: 12019969 | C44: 20202 | D44: ='- 3 -'!F44 -> 12232923 | E44: =ROUND(D44/'- 7 -'!E44,0) -> 19875
A45: WESTERN | B45: 24910137 | C45: 12559 | D45: ='- 3 -'!F45 -> 26955908 | E45: =ROUND(D45/'- 7 -'!E45,0) -> 12590
A46: WINNIPEG | B46: 435549946 | C46: 15656 | D46: ='- 3 -'!F46 -> 442558526 | E46: =ROUND(D46/'- 7 -'!E46,0) -> 15912
A48: PROVINCE | B48: =SUM(B11:B46) -> 2686249519 | C48: 14735 | D48: =SUM(D11:D46) -> 2766246963 | E48: =ROUND(D48/'- 7 -'!E48,0) -> 14751
A50: WHITESHELL | B50: 3685008 | C50: 18333 | D50: ='- 3 -'!F50 -> 3979358 | E50: =ROUND(D50/'- 7 -'!E50,0) -> 20407
A52: (1) As calculated on page 3. Operating fund transfers (i.e. payments to other school divisions, organizations and individuals) are excluded to provide more accurate per pupil costs. Also excluded are expenditures on educational services not provided to K-12 pupils: Function 300 (Adult Learning Centres) and Function 400 (Community Education and Services).

Sheet - 5 -
S25: - 5 -

Sheet - 6 -
B2: FRAME STUDENT STATISTICS | H2: PAGE 1 OF 2
B3: ="ACTUAL SEPTEMBER 30, "&FALLYR -> ACTUAL SEPTEMBER 30, 2023
B6: REGULAR INSTRUCTION
B7: SINGLE TRACK (1) | E7: DUAL TRACK (2)
B8: ENGLISH LANGUAGE | D8: FRENCH IMMERSION | E8: ENGLISH LANGUAGE | G8: FRENCH IMMERSION | H8: OTHER BILINGUAL
A9: DIVISION / DISTRICT | C9: FRANÇAIS | F9: FRANÇAIS
A11: BEAUTIFUL PLAINS | B11: 2172.9 | C11: 0 | D11: 0 | E11: 0 | F11: 0 | G11: 0 | H11: 0
A12: BORDER LAND | B12: 1296.6 | C12: 0 | D12: 0 | E12: 498 | F12: 0 | G12: 127.5 | H12: 0
A13: BRANDON | B13: 7437 | C13: 0 | D13: 321.5 | E13: 697.5 | F13: 0 | G13: 465.5 | H13: 0
A14: DSFM | B14: 0 | C14: 5991 | D14: 0 | E14: 0 | F14: 0 | G14: 0 | H14: 0
A15: EVERGREEN | B15: 1405.5 | C15: 0 | D15: 0 | E15: 0 | F15: 0 | G15: 0 | H15: 0
A16: FLIN FLON | B16: 522.5 | C16: 0 | D16: 0 | E16: 214 | F16: 0 | G16: 89.5 | H16: 0
A17: FORT LA BOSSE | B17: 1500.5 | C17: 0 | D17: 0 | E17: 0 | F17: 0 | G17: 0 | H17: 0
A18: FRONTIER | B18: 6216 | C18: 0 | D18: 0 | E18: 0 | F18: 0 | G18: 0 | H18: 0
A19: GARDEN VALLEY | B19: 4239 | C19: 0 | D19: 0 | E19: 0 | F19: 0 | G19: 0 | H19: 0
A20: HANOVER | B20: 7801.6 | C20: 0 | D20: 0 | E20: 0 | F20: 0 | G20: 0 | H20: 0
A21: INTERLAKE | B21: 1572 | C21: 0 | D21: 0 | E21: 914 | F21: 0 | G21: 401 | H21: 0
A22: KELSEY | B22: 815.75 | C22: 0 | D22: 0 | E22: 452 | F22: 0 | G22: 171 | H22: 0
A23: LAKESHORE | B23: 955 | C23: 0 | D23: 0 | E23: 0 | F23: 0 | G23: 0 | H23: 0
A24: LORD SELKIRK | B24: 2677 | C24: 0 | D24: 214.5 | E24: 532 | F24: 0 | G24: 69 | H24: 78.5
A25: LOUIS RIEL | B25: 11085 | C25: 0 | D25: 5174 | E25: 321 | F25: 466 | G25: 0 | H25: 0
A26: MOUNTAIN VIEW | B26: 2395.5 | C26: 0 | D26: 129 | E26: 309 | F26: 0 | G26: 50 | H26: 74
A27: MYSTERY LAKE | B27: 2399.8 | C27: 0 | D27: 0 | E27: 155.5 | F27: 0 | G27: 191.5 | H27: 0
A28: PARK WEST | B28: 2112 | C28: 0 | D28: 0 | E28: 0 | F28: 0 | G28: 0 | H28: 0
A29: PEMBINA TRAILS | B29: 10423 | C29: 0 | D29: 1384 | E29: 2776 | F29: 0 | G29: 1950.5 | H29: 0
A30: PINE CREEK | B30: 993 | C30: 0 | D30: 0 | E30: 0 | F30: 0 | G30: 0 | H30: 0
A31: PORTAGE LA PRAIRIE | B31: 2818 | C31: 0 | D31: 378.5 | E31: 0 | F31: 0 | G31: 0 | H31: 0
A32: PRAIRIE ROSE | B32: 1664.5 | C32: 0 | D32: 112 | E32: 315 | F32: 0 | G32: 174.5 | H32: 0
A33: PRAIRIE SPIRIT | B33: 1641 | C33: 0 | D33: 0 | E33: 223 | F33: 127 | G33: 99 | H33: 0
A34: RED RIVER VALLEY | B34: 1707 | C34: 0 | D34: 321.5 | E34: 89 | F34: 129 | G34: 0 | H34: 0
A35: RIVER EAST TRANSCONA | B35: 8961.5 | C35: 0 | D35: 1565 | E35: 3928 | F35: 0 | G35: 1954 | H35: 569
A36: ROLLING RIVER | B36: 1721 | C36: 0 | D36: 0 | E36: 0 | F36: 0 | G36: 0 | H36: 0
A37: SEINE RIVER | B37: 2394 | C37: 0 | D37: 876 | E37: 816 | F37: 0 | G37: 678 | H37: 0
A38: SEVEN OAKS | B38: 7281.9 | C38: 0 | D38: 1140 | E38: 1726.6 | F38: 0 | G38: 1237 | H38: 354
A39: SOUTHWEST HORIZON | B39: 1433.5 | C39: 0 | D39: 0 | E39: 0 | F39: 0 | G39: 0 | H39: 0
A40: ST. JAMES-ASSINIBOIA | B40: 5507.21 | C40: 0 | D40: 1304 | E40: 503.73 | F40: 0 | G40: 478 | H40: 0
A41: SUNRISE | B41: 2094.5 | C41: 0 | D41: 0 | E41: 1667 | F41: 0 | G41: 793.5 | H41: 62
A42: SWAN VALLEY | B42: 972.4 | C42: 0 | D42: 0 | E42: 201 | F42: 0 | G42: 44.5 | H42: 0
A43: TURTLE MOUNTAIN | B43: 1041 | C43: 0 | D43: 0 | E43: 0 | F43: 0 | G43: 0 | H43: 0
A44: TURTLE RIVER | B44: 585.5 | C44: 0 | D44: 30 | E44: 0 | F44: 0 | G44: 0 | H44: 0
A45: WESTERN | B45: 941 | C45: 0 | D45: 0 | E45: 837.5 | F45: 0 | G45: 330.5 | H45: 0
A46: WINNIPEG | B46: 17096.4 | C46: 0 | D46: 1389.5 | E46: 5227.4 | F46: 0 | G46: 2832.5 | H46: 601
A48: PROVINCE | B48: =SUM(B11:B46) -> 125880.06 | C48: 5991 | D48: 14339.5 | E48: 22403.23 | F48: 722 | G48: 12137 | H48: 1738.5
A50: WHITESHELL | B50: 195 | C50: 0 | D50: 0 | E50: 0 | F50: 0 | G50: 0 | H50: 0
A52: (1) 90% or more of Regular Instruction enrolment is in one language program.
A53: (2) No one language program comprises 90% or more of Regular Instruction enrolment.

Sheet - 7 -
B2: FRAME STUDENT STATISTICS | G2: PAGE 2 OF 2
B3: =STATDATE -> ACTUAL SEPTEMBER 30, 2023
B7: REGULAR INSTRUCTION (1) | E7: TOTAL
B8: SENIOR YEARS TECHNOLOGY | E8: K-12 F.T.E. ENROLMENT
A9: DIVISION / DISTRICT | C9: TOTAL
A11: BEAUTIFUL PLAINS | B11: 0 | C11: =SUM('- 6 -'!B11:H11,B11) -> 2172.9 | E11: =C11 -> 2172.9
A12: BORDER LAND | B12: 139.4 | C12: =SUM('- 6 -'!B12:H12,B12) -> 2061.5 | E12: =C12 -> 2061.5
A13: BRANDON | B13: 427 | C13: =SUM('- 6 -'!B13:H13,B13) -> 9348.5 | E13: 9348.5
A14: DSFM | B14: 36.1 | C14: =SUM('- 6 -'!B14:H14,B14) -> 6027.1 | E14: 6027.1
A15: EVERGREEN | B15: 28.5 | C15: =SUM('- 6 -'!B15:H15,B15) -> 1434 | E15: 1434
A16: FLIN FLON | B16: 0 | C16: =SUM('- 6 -'!B16:H16,B16) -> 826 | E16: 826
A17: FORT LA BOSSE | B17: 24 | C17: =SUM('- 6 -'!B17:H17,B17) -> 1524.5 | E17: 1524.5
A18: FRONTIER | B18: 110 | C18: =SUM('- 6 -'!B18:H18,B18) -> 6326 | E18: 6326
A19: GARDEN VALLEY | B19: 0 | C19: =SUM('- 6 -'!B19:H19,B19) -> 4239 | E19: 4239
A20: HANOVER | B20: 617.5 | C20: =SUM('- 6 -'!B20:H20,B20) -> 8419.1 | E20: 8419.1
A21: INTERLAKE | B21: 0 | C21: =SUM('- 6 -'!B21:H21,B21) -> 2887 | E21: 2887
A22: KELSEY | B22: 9.25 | C22: =SUM('- 6 -'!B22:H22,B22) -> 1448 | E22: 1448
A23: LAKESHORE | B23: 20 | C23: =SUM('- 6 -'!B23:H23,B23) -> 975 | E23: 975
A24: LORD SELKIRK | B24: 205 | C24: =SUM('- 6 -'!B24:H24,B24) -> 3776 | E24: 3776
A25: LOUIS RIEL | B25: 113 | C25: =SUM('- 6 -'!B25:H25,B25) -> 17159 | E25: 17159
A26: MOUNTAIN VIEW | B26: 154.4 | C26: =SUM('- 6 -'!B26:H26,B26) -> 3111.9 | E26: 3111.9
A27: MYSTERY LAKE | B27: 79.7 | C27: =SUM('- 6 -'!B27:H27,B27) -> 2826.5 | E27: 2826.5
A28: PARK WEST | B28: 0 | C28: =SUM('- 6 -'!B28:H28,B28) -> 2112 | E28: 2112
A29: PEMBINA TRAILS | B29: 0 | C29: =SUM('- 6 -'!B29:H29,B29) -> 16533.5 | E29: 16533.5
A30: PINE CREEK | B30: 77 | C30: =SUM('- 6 -'!B30:H30,B30) -> 1070 | E30: 1070
A31: PORTAGE LA PRAIRIE | B31: 91 | C31: =SUM('- 6 -'!B31:H31,B31) -> 3287.5 | E31: 3287.5
A32: PRAIRIE ROSE | B32: 0 | C32: =SUM('- 6 -'!B32:H32,B32) -> 2266 | E32: 2266
A33: PRAIRIE SPIRIT | B33: 0 | C33: =SUM('- 6 -'!B33:H33,B33) -> 2090 | E33: 2090
A34: RED RIVER VALLEY | B34: 19.5 | C34: =SUM('- 6 -'!B34:H34,B34) -> 2266 | E34: 2266
A35: RIVER EAST TRANSCONA | B35: 765 | C35: =SUM('- 6 -'!B35:H35,B35) -> 17742.5 | E35: 17742.5
A36: ROLLING RIVER | B36: 9 | C36: =SUM('- 6 -'!B36:H36,B36) -> 1730 | E36: 1730
A37: SEINE RIVER | B37: 0 | C37: =SUM('- 6 -'!B37:H37,B37) -> 4764 | E37: 4764
A38: SEVEN OAKS | B38: 234.7 | C38: =SUM('- 6 -'!B38:H38,B38) -> 11974.2 | E38: 11974.2
A39: SOUTHWEST HORIZON | B39: 0 | C39: =SUM('- 6 -'!B39:H39,B39) -> 1433.5 | E39: 1433.5
A40: ST. JAMES-ASSINIBOIA | B40: 241.86 | C40: =SUM('- 6 -'!B40:H40,B40) -> 8034.8 | E40: 8034.8
A41: SUNRISE | B41: 0 | C41: =SUM('- 6 -'!B41:H41,B41) -> 4617 | E41: 4617
A42: SWAN VALLEY | B42: 197.08 | C42: =SUM('- 6 -'!B42:H42,B42) -> 1414.98 | E42: 1414.98
A43: TURTLE MOUNTAIN | B43: 16 | C43: =SUM('- 6 -'!B43:H43,B43) -> 1057 | E43: 1057
A44: TURTLE RIVER | B44: 0 | C44: =SUM('- 6 -'!B44:H44,B44) -> 615.5 | E44: 615.5
A45: WESTERN | B45: 32 | C45: =SUM('- 6 -'!B45:H45,B45) -> 2141 | E45: 2141
A46: WINNIPEG | B46: 666.9 | C46: =SUM('- 6 -'!B46:H46,B46) -> 27813.7 | E46: 27813.7
A48: PROVINCE | B48: =SUM(B11:B46) -> 4313.89 | C48: =SUM(C11:C46) -> 187525.18 | E48: =SUM(E11:E46) -> 187525.18
A50: WHITESHELL | B50: 0 | C50: =SUM('- 6 -'!B50:H50,B50) -> 195 | E50: =C50 -> 195
A52: (1) Special Placement students are no longer reported separately. They are included in Regular Instruction Enrolment. As a result, total enrolment in Regular Instruction is equal to Total K-12 F.T.E. enrolment.

Sheet - 8 -
B2: ENROLMENTS - HEADCOUNT, FRAME AND ELIGIBLE
B3: ACTUAL
B6: HEADCOUNT (1) | E6: FRAME (2) | F6: ELIGIBLE (3) | G6: ELIGIBLE (3)
B7: ="SEPT.30, "&FALLYR -> SEPT.30, 2023 | E7: =B7 -> SEPT.30, 2023 | F7: ="SEPT.30, "&FALLYR-1 -> SEPT.30, 2022 | G7: ="SEPT.30, "&FALLYR-2 -> SEPT.30, 2021
B8: N-12 ENROLMENT | C8: NURSERY ENROLMENT | D8: K-12 ENROLMENT | E8: K-12 F.T.E. ENROLMENT | F8: K-12 ENROLMENT | G8: K-12 ENROLMENT
A9: DIVISION / DISTRICT
A11: BEAUTIFUL PLAINS | B11: 2260 | C11: 0 | D11: =+B11-C11 -> 2260 | E11: ='- 7 -'!E11 -> 2172.9 | F11: 2022 | G11: 1911
A12: BORDER LAND | B12: 2123 | C12: 0 | D12: 2123 | E12: ='- 7 -'!E12 -> 2061.5 | F12: 1951.4 | G12: 1845.1
A13: BRANDON | B13: 9692 | C13: 0 | D13: 9692 | E13: ='- 7 -'!E13 -> 9348.5 | F13: 8998.3 | G13: 8649
A14: DSFM | B14: 6092 | C14: 35 | D14: 6057 | E14: ='- 7 -'!E14 -> 6027.1 | F14: 5585.3 | G14: 5529.1
A15: EVERGREEN | B15: 1450 | C15: 0 | D15: 1450 | E15: ='- 7 -'!E15 -> 1434 | F15: 1381.5 | G15: 1354.9
A16: FLIN FLON | B16: 850 | C16: 0 | D16: 850 | E16: ='- 7 -'!E16 -> 826 | F16: 823.4 | G16: 869.6
A17: FORT LA BOSSE | B17: 1578 | C17: 0 | D17: 1578 | E17: ='- 7 -'!E17 -> 1524.5 | F17: 1406.5 | G17: 1367
A18: FRONTIER | B18: 6825 | C18: 394 | D18: 6431 | E18: ='- 7 -'!E18 -> 6326 | F18: 1956.6 | G18: 2027.2
A19: GARDEN VALLEY | B19: 4239 | C19: 0 | D19: 4239 | E19: ='- 7 -'!E19 -> 4239 | F19: 3945 | G19: 3516.3
A20: HANOVER | B20: 8748 | C20: 0 | D20: 8748 | E20: ='- 7 -'!E20 -> 8419.1 | F20: 8120.9 | G20: 7511.3
A21: INTERLAKE | B21: 2988 | C21: 0 | D21: 2988 | E21: ='- 7 -'!E21 -> 2887 | F21: 2918.1 | G21: 2915
A22: KELSEY | B22: 1449 | C22: 0 | D22: 1449 | E22: ='- 7 -'!E22 -> 1448 | F22: 1417 | G22: 1388
A23: LAKESHORE | B23: 1008 | C23: 0 | D23: 1008 | E23: ='- 7 -'!E23 -> 975 | F23: 887.5 | G23: 906.5
A24: LORD SELKIRK | B24: 3914 | C24: 0 | D24: 3914 | E24: ='- 7 -'!E24 -> 3776 | F24: 3715.1 | G24: 3621.1
A25: LOUIS RIEL | B25: 17159 | C25: 0 | D25: 17159 | E25: ='- 7 -'!E25 -> 17159 | F25: 15439.2 | G25: 14783.1
A26: MOUNTAIN VIEW | B26: 3131 | C26: 0 | D26: 3131 | E26: ='- 7 -'!E26 -> 3111.9 | F26: 2945.5 | G26: 2874.4
A27: MYSTERY LAKE | B27: 2912 | C27: 0 | D27: 2912 | E27: ='- 7 -'!E27 -> 2826.5 | F27: 2724.5 | G27: 2750.1
A28: PARK WEST | B28: 2213 | C28: 23 | D28: 2190 | E28: ='- 7 -'!E28 -> 2112 | F28: 1547.2 | G28: 1522
A29: PEMBINA TRAILS | B29: 16728 | C29: 0 | D29: 16728 | E29: ='- 7 -'!E29 -> 16533.5 | F29: 15232.1 | G29: 14564.5
A30: PINE CREEK | B30: 1111 | C30: 0 | D30: 1111 | E30: ='- 7 -'!E30 -> 1070 | F30: 1045.5 | G30: 1045.9
A31: PORTAGE LA PRAIRIE | B31: 3418 | C31: 0 | D31: 3418 | E31: ='- 7 -'!E31 -> 3287.5 | F31: 3075.5 | G31: 3002.6
A32: PRAIRIE ROSE | B32: 2351 | C32: 0 | D32: 2351 | E32: ='- 7 -'!E32 -> 2266 | F32: 2274.5 | G32: 2246.2
A33: PRAIRIE SPIRIT | B33: 2252 | C33: 0 | D33: 2252 | E33: ='- 7 -'!E33 -> 2090 | F33: 2082.5 | G33: 2038
A34: RED RIVER VALLEY | B34: 2352 | C34: 0 | D34: 2352 | E34: ='- 7 -'!E34 -> 2266 | F34: 2267.9 | G34: 2192.5
A35: RIVER EAST TRANSCONA | B35: 18470 | C35: 0 | D35: 18470 | E35: ='- 7 -'!E35 -> 17742.5 | F35: 16960.9 | G35: 16259.7
A36: ROLLING RIVER | B36: 1796 | C36: 0 | D36: 1796 | E36: ='- 7 -'!E36 -> 1730 | F36: 1642.5 | G36: 1642.5
A37: SEINE RIVER | B37: 4777 | C37: 0 | D37: 4777 | E37: ='- 7 -'!E37 -> 4764 | F37: 4461 | G37: 4256.4
A38: SEVEN OAKS | B38: 12284 | C38: 0 | D38: 12284 | E38: ='- 7 -'!E38 -> 11974.2 | F38: 11298 | G38: 11156.1
A39: SOUTHWEST HORIZON | B39: 1492 | C39: 0 | D39: 1492 | E39: ='- 7 -'!E39 -> 1433.5 | F39: 1464.5 | G39: 1464.7
A40: ST. JAMES-ASSINIBOIA | B40: 8330 | C40: 0 | D40: 8330 | E40: ='- 7 -'!E40 -> 8034.8 | F40: 7932 | G40: 7917.4
A41: SUNRISE | B41: 4770 | C41: 0 | D41: 4770 | E41: ='- 7 -'!E41 -> 4617 | F41: 4553.6 | G41: 4466.4
A42: SWAN VALLEY | B42: 1472 | C42: 0 | D42: 1472 | E42: ='- 7 -'!E42 -> 1414.98 | F42: 1295.4 | G42: 1281.2
A43: TURTLE MOUNTAIN | B43: 1099 | C43: 0 | D43: 1099 | E43: ='- 7 -'!E43 -> 1057 | F43: 1029 | G43: 1010.5
A44: TURTLE RIVER | B44: 645 | C44: 7 | D44: 638 | E44: ='- 7 -'!E44 -> 615.5 | F44: 592 | G44: 643
A45: WESTERN | B45: 2219 | C45: 0 | D45: 2219 | E45: ='- 7 -'!E45 -> 2141 | F45: 2015.8 | G45: 1807.1
A46: WINNIPEG | B46: 30775 | C46: 1298 | D46: 29477 | E46: ='- 7 -'!E46 -> 27813.7 | F46: 27036.5 | G46: 26737.3
A48: PROVINCE | B48: =SUM(B11:B46) -> 194972 | C48: 1757 | D48: 193215 | E48: 187525.18 | F48: 174044.2 | G48: 169072.7
A50: WHITESHELL | B50: 195 | C50: 10 | D50: =+B50-C50 -> 185 | E50: ='- 7 -'!E50 -> 195 | F50: 176.8 | G50: 173
A52: (1) Pupils taught in schools, whether or not they are counted for grant purposes.
A53: (2) The total number of pupils enrolled in schools adjusted for full time equivalence (F.T.E.). Full time equivalent means pupils are counted on the basis of time attending school - eg. Kindergarten as 1/2. This total is the same as reported on page 7.
A54: ="(3) 'Eligible Enrolment' count is the number of provincially supported pupils (actual September 30, "&FALLYR-1&" for "&CurrY&" and actual September 30,"&FALLYR-2&" for "&PrevY&"). These figures are not comparative to FTE enrolment reported for Sept 30, "&FALLYR&" in the previous column. The Whiteshell Special Revenue District includes out-of-district pupils." -> (3) 'Eligible Enrolment' count is the number of provincially supported pupils (actual September 30, 2022 for 2023/24 and actual September 30,2021 for 2022/23). These figures are not comparative to FTE enrolment reported for Sept 30, 2023 in the previous column. The Whiteshell Special Revenue District includes out-of-district pupils.
C64: `

Sheet - 9 -
B2: PUPIL / TEACHER RATIOS
B3: =STATDATE -> ACTUAL SEPTEMBER 30, 2023
B7: PUPIL / TEACHER RATIOS
B8: REGULAR INSTRUCTION (1)
A9: DIVISION / DISTRICT | C9: EDUCATOR (2)
A11: BEAUTIFUL PLAINS | B11: 16.88344988 | C11: 14.60773109
A12: BORDER LAND | B12: 13.01041338 | C12: 10.55555556
A13: BRANDON | B13: 16.56624905 | C13: 13.16745778
A14: DSFM | B14: 14.76687492 | C14: 11.7519401
A15: EVERGREEN | B15: 15.12658228 | C15: 11.85123967
A16: FLIN FLON | B16: 13.34949495 | C16: 10.4556962
A17: FORT LA BOSSE | B17: 15.16161114 | C17: 13.11397849
A18: FRONTIER | B18: 13.63068304 | C18: 10.86941581
A19: GARDEN VALLEY | B19: 17.16889429 | C19: 14.13
A20: HANOVER | B20: 18.41693664 | C20: 15.05456522
A21: INTERLAKE | B21: 17.48319506 | C21: 13.05271724
A22: KELSEY | B22: 16.08888889 | C22: 12.36022194
A23: LAKESHORE | B23: 16.04938272 | C23: 12.43622449
A24: LORD SELKIRK | B24: 14.46743295 | C24: 11.72670807
A25: LOUIS RIEL | B25: 19.56199553 | C25: 14.83457106
A26: MOUNTAIN VIEW | B26: 16.42596991 | C26: 13.33747643
A27: MYSTERY LAKE | B27: 15.71412687 | C27: 12.51383539
A28: PARK WEST | B28: 14.53594411 | C28: 11.84354409
A29: PEMBINA TRAILS | B29: 18.14674569 | C29: 14.26371503
A30: PINE CREEK | B30: 11.47453083 | C30: 10.12490537
A31: PORTAGE LA PRAIRIE | B31: 15.15326112 | C31: 12.29845498
A32: PRAIRIE ROSE | B32: 14.94920174 | C32: 11.93385296
A33: PRAIRIE SPIRIT | B33: 15.74904018 | C33: 12.87591987
A34: RED RIVER VALLEY | B34: 15.6762366 | C34: 12.46561778
A35: RIVER EAST TRANSCONA | B35: 17.94201521 | C35: 14.18038683
A36: ROLLING RIVER | B36: 15.98373909 | C36: 13.09267037
A37: SEINE RIVER | B37: 18.93105504 | C37: 14.81435413
A38: SEVEN OAKS | B38: 16.73332495 | C38: 13.64285796
A39: SOUTHWEST HORIZON | B39: 13.44242311 | C39: 11.34367334
A40: ST. JAMES-ASSINIBOIA | B40: 17.33169395 | C40: 13.24497634
A41: SUNRISE | B41: 17.97407249 | C41: 13.39736521
A42: SWAN VALLEY | B42: 15.32192745 | C42: 12.18654724
A43: TURTLE MOUNTAIN | B43: 15.23713421 | C43: 12.68602976
A44: TURTLE RIVER | B44: 10.82673703 | C44: 9.705140334
A45: WESTERN | B45: 16.9517023 | C45: 14.18350447
A46: WINNIPEG | B46: 16.88708228 | C46: 13.02792129
A48: PROVINCE | B48: 16.7625809 | C48: 13.26920721
A50: WHITESHELL | B50: 11.81818182 | C50: 10.33386328
A52: (1) Based on object code 330 Instructional-Teaching personnel and FTE students in Function 100. Included are teachers in physical education, music, EAL, etc. in addition to regular classroom teachers. School-based administrative personnel and teachers in Student Support Services (Function 200) are excluded.
A54: (2) Based on total Instructional-Teaching (excluding Community Education and Adult Learning Centres) as well as school-based administrative staff. eg. department heads, coordinators, principals and vice-principals - and K-12 FTE enrolment. Division administrators (Function 500) are excluded.

Sheet - 10 -
C2: =OPYEAR -> OPERATING FUND 2023/2024 ACTUAL
C5: EXPENSE BY FUNCTION AND OBJECT
C8: OBJECT
D10: EMPLOYEE BENEFITS | F10: SUPPLIES AND MATERIALS | G10: DEBT SERVICES | H10: BAD DEBT EXPENSE
A11: FUNCTION | C11: SALARIES | E11: SERVICES | I11: TRANSFERS | K11: TOTALS
A13: 100 | B13: REGULAR INSTRUCTION | C13: ='- 12 -'!B21 -> 1337433870 | D13: ='- 12 -'!B22 -> 92432845 | E13: ='- 12 -'!B39 -> 39482354 | F13: ='- 12 -'!B45 -> 80624021 | K13: =SUM(C13:F13) -> 1549973090
A14: 200 | B14: STUDENT SUPPORT SERVICES | C14: ='- 12 -'!D21 -> 482541751 | D14: ='- 12 -'!D22 -> 53124931 | E14: ='- 12 -'!D39 -> 13250327.43 | F14: ='- 12 -'!D45 -> 4850760 | K14: =SUM(C14:F14) -> 553767769.4
A15: 300 | B15: ADULT LEARNING CENTRES | C15: ='- 12 -'!F21 -> 10830385 | D15: ='- 12 -'!F22 -> 880612 | E15: ='- 12 -'!F39 -> 1095241 | F15: ='- 12 -'!F45 -> 435692 | I15: ='- 12 -'!F47 -> 66900 | J15: (1) | K15: =SUM(C15:F15,I15) -> 13308830
A16: 400 | B16: COMMUNITY EDUCATION & SERVICES | C16: ='- 12 -'!H21 -> 17756798 | D16: ='- 12 -'!H22 -> 2027296 | E16: ='- 12 -'!H39 -> 2111759 | F16: ='- 12 -'!H45 -> 1749417 | I16: ='- 12 -'!H47 -> 246168 | J16: (1) | K16: =SUM(C16:F16,I16) -> 23891438
A17: 500 | B17: DIVISIONAL ADMINISTRATION | C17: ='- 12 -'!J21 -> 57065800 | D17: ='- 12 -'!J22 -> 9011912 | E17: ='- 12 -'!J39 -> 20422722 | F17: ='- 12 -'!J45 -> 2536080 | I17: ='- 12 -'!J47 -> -313068 | J17: (1) | K17: =SUM(C17:F17,I17) -> 88723446
A19: 600 | B19: INSTRUCTIONAL AND OTHER SUPPORT SERVICES | C19: ='- 13 -'!B21 -> 56812535 | D19: ='- 13 -'!B22 -> 6285853 | E19: ='- 13 -'!B39 -> 19512236 | F19: ='- 13 -'!B45 -> 9542594 | K19: =SUM(C19:F19) -> 92153218
A20: 700 | B20: TRANSPORTATION OF PUPILS | C20: ='- 13 -'!D21 -> 54670316 | D20: ='- 13 -'!D22 -> 8720578 | E20: ='- 13 -'!D39 -> 35599091 | F20: ='- 13 -'!D45 -> 23868936 | K20: =SUM(C20:F20) -> 122858921 | L20: - 10 -
A21: 800 | B21: OPERATIONS AND MAINTENANCE | C21: ='- 13 -'!F21 -> 136662020 | D21: ='- 13 -'!F22 -> 24571177 | E21: ='- 13 -'!F39 -> 121577507 | F21: ='- 13 -'!F45 -> 27584255 | I21: ='- 13 -'!F47 -> 0 | K21: =SUM(C21:F21,I21) -> 310394959
A22: 900 | B22: FISCAL | G22: 5106557 | H22: 89554 | I22: 43179449 | J22: (2) | K22: =SUM(G22:I22) -> 48375560
B25: TOTALS | C25: =SUM(C13:C22) -> 2153773475 | D25: =SUM(D13:D22) -> 197055204 | E25: =SUM(E13:E22) -> 253051237.4 | F25: =SUM(F13:F22) -> 151191755 | G25: =G22 -> 5106557 | H25: =H22 -> 89554 | I25: =SUM(I13:I22) -> 43179449 | K25: =SUM(K13:K22) -> 2803447231 | M25: =K25-'- 3 -'!D48 -> 0
A27: (1) | B27: Reallocation of administration costs associated with Adult Learning Centre operations from Function 500 to Function 300.
A28: (2) | B28: Health and Post Secondary Education Levy

Sheet - 11 -
U29: - 11 -

Sheet - 12 -
D2: =OPYEAR -> OPERATING FUND 2023/2024 ACTUAL | K2: PAGE 1 OF 2
B4: EXPENSE BY 2ND LEVEL OBJECT
B5: AS A PERCENTAGE OF TOTAL OPERATING FUND EXPENSES
B7: FUNCTION
B8: REGULAR INSTRUCTION | D8: STUDENT SUPPORT SERVICES | F8: ADULT LEARNING CENTRES | H8: COMMUNITY EDUCATION | J8: DIVISIONAL ADMINISTRATION
A10: OBJECT | B10: AMOUNT | C10: % | D10: AMOUNT | E10: % | F10: AMOUNT | G10: % | H10: AMOUNT | I10: % | J10: AMOUNT | K10: %
A12: SALARIES
A13: TRUSTEES REMUNERATION | J13: 4409479
A14: EXECUTIVE, MANAGERIAL & SUPERVISORY | B14: 113416686 | C14: =B14/'- 13 -'!$J$53*100 -> 4.045615153 | D14: 8541706 | E14: =D14/'- 13 -'!$J$53*100 -> 0.3046858134 | F14: 1248611 | G14: =F14/'- 13 -'!$J$53*100 -> 0.04453841635 | H14: 816966 | I14: =H14/'- 13 -'!$J$53*100 -> 0.02914147949 | J14: 24891906 | K14: =J14/'- 13 -'!$J$53*100 -> 0.8879034968
A15: INSTRUCTIONAL - TEACHING | B15: 1132298902 | C15: =B15/'- 13 -'!$J$53*100 -> 40.38952078 | D15: 195935178 | E15: =D15/'- 13 -'!$J$53*100 -> 6.989080294 | F15: 8043539 | G15: =F15/'- 13 -'!$J$53*100 -> 0.2869160122 | H15: 8203807 | I15: =H15/'- 13 -'!$J$53*100 -> 0.292632831 | K15: =J15/'- 13 -'!$J$53*100 -> 0
A16: INSTRUCTIONAL - OTHER | B16: 24069792 | C16: =B16/'- 13 -'!$J$53*100 -> 0.8585783863 | D16: 220651059 | E16: =D16/'- 13 -'!$J$53*100 -> 7.870704914 | F16: 360666 | G16: =F16/'- 13 -'!$J$53*100 -> 0.01286508966 | H16: 5565130 | I16: =H16/'- 13 -'!$J$53*100 -> 0.1985102462 | K16: =J16/'- 13 -'!$J$53*100 -> 0
A17: TECHNICAL, SPECIALIZED AND SERVICE | B17: 8420428 | C17: =B17/'- 13 -'!$J$53*100 -> 0.3003597823 | D17: 2339290 | E17: =D17/'- 13 -'!$J$53*100 -> 0.08344333982 | F17: 496410 | G17: =F17/'- 13 -'!$J$53*100 -> 0.01770712837 | H17: 1843030 | I17: =H17/'- 13 -'!$J$53*100 -> 0.06574156201 | J17: 8563367 | K17: =J17/'- 13 -'!$J$53*100 -> 0.3054584693
A18: SECRETARIAL, CLERICAL AND OTHER | B18: 43778062 | C18: =B18/'- 13 -'!$J$53*100 -> 1.561579669 | D18: 2480934 | E18: =D18/'- 13 -'!$J$53*100 -> 0.08849583371 | F18: 681159 | G18: =F18/'- 13 -'!$J$53*100 -> 0.02429719355 | H18: 633311 | I18: =H18/'- 13 -'!$J$53*100 -> 0.02259043769 | J18: 17303302 | K18: =J18/'- 13 -'!$J$53*100 -> 0.6172151844
A19: CLINICIAN | D19: 52435091 | E19: =D19/'- 13 -'!$J$53*100 -> 1.870379097 | H19: 694554
A20: INFORMATION TECHNOLOGY | B20: 15450000 | C20: =B20/'- 13 -'!$J$53*100 -> 0.5511072164 | D20: 158493 | E20: =D20/'- 13 -'!$J$53*100 -> 0.005653503951 | F20: 0 | G20: =F20/'- 13 -'!$J$53*100 -> 0 | H20: 0 | I20: =H20/'- 13 -'!$J$53*100 -> 0 | J20: 1897746 | K20: =J20/'- 13 -'!$J$53*100 -> 0.06769330197
A21: TOTAL SALARIES | B21: =SUM(B13:B20) -> 1337433870 | C21: =B21/'- 13 -'!$J$53*100 -> 47.70676098 | D21: =SUM(D13:D20) -> 482541751 | E21: =D21/'- 13 -'!$J$53*100 -> 17.2124428 | F21: =SUM(F13:F20) -> 10830385 | G21: =F21/'- 13 -'!$J$53*100 -> 0.3863238401 | H21: =SUM(H13:H20) -> 17756798 | I21: =H21/'- 13 -'!$J$53*100 -> 0.6333915545 | J21: =SUM(J13:J20) -> 57065800 | K21: =J21/'- 13 -'!$J$53*100 -> 2.0355582
A22: EMPLOYEE BENEFITS AND ALLOWANCES | B22: 92432845 | C22: =B22/'- 13 -'!$J$53*100 -> 3.297113781 | D22: 53124931 | E22: =D22/'- 13 -'!$J$53*100 -> 1.894985945 | F22: 880612 | G22: =F22/'- 13 -'!$J$53*100 -> 0.03141175586 | H22: 2027296 | I22: =H22/'- 13 -'!$J$53*100 -> 0.0723143984 | J22: 9011912 | K22: =J22/'- 13 -'!$J$53*100 -> 0.3214582354
A23: SERVICES
A24: PROFESSIONAL, TECHNICAL & SPECIALIZED | B24: 8179387 | C24: =B24/'- 13 -'!$J$53*100 -> 0.2917617606 | D24: 8686688.3 | E24: =D24/'- 13 -'!$J$53*100 -> 0.3098573857 | F24: 57236 | G24: =F24/'- 13 -'!$J$53*100 -> 0.002041629297 | H24: 970194 | I24: =H24/'- 13 -'!$J$53*100 -> 0.03460717894 | J24: 5467698 | K24: =J24/'- 13 -'!$J$53*100 -> 0.1950348107
A25: COMMUNICATIONS | B25: 3638524 | C25: =B25/'- 13 -'!$J$53*100 -> 0.1297874973 | D25: 274452.84 | E25: =D25/'- 13 -'!$J$53*100 -> 0.009789834348 | F25: 46202 | G25: =F25/'- 13 -'!$J$53*100 -> 0.001648042434 | H25: 32324 | I25: =H25/'- 13 -'!$J$53*100 -> 0.00115300904 | J25: 875967 | K25: =J25/'- 13 -'!$J$53*100 -> 0.03124606699
A26: UTILITY SERVICES | C26: =B26/'- 13 -'!$J$53*100 -> 0 | E26: =D26/'- 13 -'!$J$53*100 -> 0 | F26: 53133 | G26: =F26/'- 13 -'!$J$53*100 -> 0.001895273769 | I26: =H26/'- 13 -'!$J$53*100 -> 0 | K26: =J26/'- 13 -'!$J$53*100 -> 0
A27: TRAVEL AND MEETINGS | B27: 3285459 | C27: =B27/'- 13 -'!$J$53*100 -> 0.1171935381 | D27: 2355005.77 | E27: =D27/'- 13 -'!$J$53*100 -> 0.08400392715 | F27: 92418 | G27: =F27/'- 13 -'!$J$53*100 -> 0.003296584254 | H27: 117460 | I27: =H27/'- 13 -'!$J$53*100 -> 0.004189841659 | J27: 2087407 | K27: =J27/'- 13 -'!$J$53*100 -> 0.07445858002 | L27: - 12 -
A28: TRANSPORTATION OF PUPILS | C28: =B28/'- 13 -'!$J$53*100 -> 0 | E28: =D28/'- 13 -'!$J$53*100 -> 0 | G28: =F28/'- 13 -'!$J$53*100 -> 0 | I28: =H28/'- 13 -'!$J$53*100 -> 0 | K28: =J28/'- 13 -'!$J$53*100 -> 0
A29: TUITION | B29: 974449 | C29: =B29/'- 13 -'!$J$53*100 -> 0.03475895637 | D29: 732043 | E29: =D29/'- 13 -'!$J$53*100 -> 0.02611224466 | F29: 0 | G29: =F29/'- 13 -'!$J$53*100 -> 0 | I29: =H29/'- 13 -'!$J$53*100 -> 0 | K29: =J29/'- 13 -'!$J$53*100 -> 0
A30: PRINTING AND BINDING | B30: 215183 | C30: =B30/'- 13 -'!$J$53*100 -> 0.007675657226 | D30: 20201 | E30: =D30/'- 13 -'!$J$53*100 -> 0.0007205771442 | F30: 5227 | G30: =F30/'- 13 -'!$J$53*100 -> 0.000186449024 | H30: 13988 | I30: =H30/'- 13 -'!$J$53*100 -> 0.0004989571355 | J30: 111033 | K30: =J30/'- 13 -'!$J$53*100 -> 0.003960588191
A31: INSURANCE AND BOND PREMIUMS | B31: 225678 | C31: =B31/'- 13 -'!$J$53*100 -> 0.008050017759 | D31: 69721.56 | E31: =D31/'- 13 -'!$J$53*100 -> 0.002486993842 | F31: 16174 | G31: =F31/'- 13 -'!$J$53*100 -> 0.0005769325643 | H31: 22119 | I31: =H31/'- 13 -'!$J$53*100 -> 0.0007889929139 | J31: 2450728 | K31: =J31/'- 13 -'!$J$53*100 -> 0.08741837451
A32: MAINTENANCE AND REPAIR SERVICES | B32: 2901688 | C32: =B32/'- 13 -'!$J$53*100 -> 0.1035042846 | D32: 97047 | E32: =D32/'- 13 -'!$J$53*100 -> 0.003461702397 | F32: 31213 | G32: =F32/'- 13 -'!$J$53*100 -> 0.001113379259 | H32: 33069 | I32: =H32/'- 13 -'!$J$53*100 -> 0.001179583465 | J32: 183329 | K32: =J32/'- 13 -'!$J$53*100 -> 0.00653941326
A33: RENTALS | B33: 3613517 | C33: =B33/'- 13 -'!$J$53*100 -> 0.1288954884 | D33: 295080.24 | E33: =D33/'- 13 -'!$J$53*100 -> 0.01052562134 | F33: 740107 | G33: =F33/'- 13 -'!$J$53*100 -> 0.02639989052 | H33: 840856 | I33: =H33/'- 13 -'!$J$53*100 -> 0.02999364463 | J33: 551319 | K33: =J33/'- 13 -'!$J$53*100 -> 0.01966575271
A34: PROPERTY TAXES | C34: =B34/'- 13 -'!$J$53*100 -> 0 | E34: =D34/'- 13 -'!$J$53*100 -> 0 | F34: 287 | G34: =F34/'- 13 -'!$J$53*100 -> 1.023739619e-05 | I34: =H34/'- 13 -'!$J$53*100 -> 0 | K34: =J34/'- 13 -'!$J$53*100 -> 0
A35: ADVERTISING | B35: 188579 | C35: =B35/'- 13 -'!$J$53*100 -> 0.006726682703 | D35: 24416.62 | E35: =D35/'- 13 -'!$J$53*100 -> 0.0008709498694 | F35: 10428 | G35: =F35/'- 13 -'!$J$53*100 -> 0.0003719706183 | H35: 8649 | I35: =H35/'- 13 -'!$J$53*100 -> 0.0003085130301 | J35: 662294 | K35: =J35/'- 13 -'!$J$53*100 -> 0.02362427202
A36: DUES AND FEES | B36: 1103466 | C36: =B36/'- 13 -'!$J$53*100 -> 0.03936104049 | D36: 189490.05 | E36: =D36/'- 13 -'!$J$53*100 -> 0.006759180193 | F36: 139 | G36: =F36/'- 13 -'!$J$53*100 -> 4.958181429e-06 | H36: 5983 | I36: =H36/'- 13 -'!$J$53*100 -> 0.0002134158237 | J36: 3233629 | K36: =J36/'- 13 -'!$J$53*100 -> 0.1153447428
A37: PROFESSIONAL AND STAFF DEVELOPMENT | B37: 362152 | C37: =B37/'- 13 -'!$J$53*100 -> 0.01291809583 | D37: 305956.05 | E37: =D37/'- 13 -'!$J$53*100 -> 0.0109135655 | F37: 30291 | G37: =F37/'- 13 -'!$J$53*100 -> 0.001080491177 | H37: 46197 | I37: =H37/'- 13 -'!$J$53*100 -> 0.001647864083 | J37: 990906 | K37: =J37/'- 13 -'!$J$53*100 -> 0.03534598365
A38: INFORMATION TECHNOLOGY SERVICES | B38: 14794272 | C38: =B38/'- 13 -'!$J$53*100 -> 0.527717156 | D38: 200225 | E38: =D38/'- 13 -'!$J$53*100 -> 0.007142099832 | F38: 12386 | G38: =F38/'- 13 -'!$J$53*100 -> 0.0004418132027 | H38: 20920 | I38: =H38/'- 13 -'!$J$53*100 -> 0.0007462241402 | J38: 3808412 | K38: =J38/'- 13 -'!$J$53*100 -> 0.1358474651
A39: TOTAL SERVICES | B39: =SUM(B24:B38) -> 39482354 | C39: =B39/'- 13 -'!$J$53*100 -> 1.408350175 | D39: =SUM(D24:D38) -> 13250327.43 | E39: =D39/'- 13 -'!$J$53*100 -> 0.472644082 | F39: =SUM(F24:F38) -> 1095241 | G39: =F39/'- 13 -'!$J$53*100 -> 0.0390676517 | H39: =SUM(H24:H38) -> 2111759 | I39: =H39/'- 13 -'!$J$53*100 -> 0.07532722487 | J39: =SUM(J24:J38) -> 20422722 | K39: =J39/'- 13 -'!$J$53*100 -> 0.72848605
A40: SUPPLIES AND EQUIPMENT
A41: SUPPLIES | B41: 39553407 | C41: =B41/'- 13 -'!$J$53*100 -> 1.410884662 | D41: 2765715 | E41: =D41/'- 13 -'!$J$53*100 -> 0.09865407734 | F41: 237510 | G41: =F41/'- 13 -'!$J$53*100 -> 0.008472069577 | H41: 1475773 | I41: =H41/'- 13 -'!$J$53*100 -> 0.05264136894 | J41: 1167124 | K41: =J41/'- 13 -'!$J$53*100 -> 0.04163174491
A42: CURRICULAR AND MEDIA MATERIALS | B42: 8189355 | C42: =B42/'- 13 -'!$J$53*100 -> 0.2921173229 | D42: 697882 | E42: =D42/'- 13 -'!$J$53*100 -> 0.02489370915 | F42: 62398 | G42: =F42/'- 13 -'!$J$53*100 -> 0.002225759747 | H42: 61572 | I42: =H42/'- 13 -'!$J$53*100 -> 0.002196296021 | J42: 158290 | K42: =J42/'- 13 -'!$J$53*100 -> 0.005646262866
A43: MINOR EQUIPMENT | B43: 10622714 | C43: =B43/'- 13 -'!$J$53*100 -> 0.3789161387 | D43: 675743 | E43: =D43/'- 13 -'!$J$53*100 -> 0.02410400283 | F43: 57337 | G43: =F43/'- 13 -'!$J$53*100 -> 0.002045232004 | H43: 107789 | I43: =H43/'- 13 -'!$J$53*100 -> 0.003844873511 | J43: 344240 | K43: =J43/'- 13 -'!$J$53*100 -> 0.01227916817
A44: INFORMATION TECHNOLOGY EQUIPMENT | B44: 22258545 | C44: =B44/'- 13 -'!$J$53*100 -> 0.7939705356 | D44: 711420 | E44: =D44/'- 13 -'!$J$53*100 -> 0.02537661462 | F44: 78447 | G44: =F44/'- 13 -'!$J$53*100 -> 0.002798233515 | H44: 104283 | I44: =H44/'- 13 -'!$J$53*100 -> 0.003719813194 | J44: 866426 | K44: =J44/'- 13 -'!$J$53*100 -> 0.03090573599
A45: TOTAL SUPPLIES AND EQUIPMENT | B45: =SUM(B41:B44) -> 80624021 | C45: =B45/'- 13 -'!$J$53*100 -> 2.875888659 | D45: =SUM(D41:D44) -> 4850760 | E45: =D45/'- 13 -'!$J$53*100 -> 0.1730284039 | F45: =SUM(F41:F44) -> 435692 | G45: =F45/'- 13 -'!$J$53*100 -> 0.01554129484 | H45: =SUM(H41:H44) -> 1749417 | I45: =H45/'- 13 -'!$J$53*100 -> 0.06240235166 | J45: =SUM(J41:J44) -> 2536080 | K45: =J45/'- 13 -'!$J$53*100 -> 0.09046291193
A46: TRANSFERS
A47: RECHARGE (1) | F47: 66900 | H47: 246168 | J47: -313068
A48: TOTAL TRANSFERS | F48: =F47 -> 66900 | H48: =H47 -> 246168 | J48: =J47 -> -313068
A50: PROVINCE | B50: =SUM(B48,B45,B39,B22,B21) -> 1549973090 | C50: =B50/'- 13 -'!$J$53*100 -> 55.2881136 | D50: =SUM(D48,D45,D39,D22,D21) -> 553767769.4 | E50: =D50/'- 13 -'!$J$53*100 -> 19.75310123 | F50: =SUM(F48,F45,F39,F22,F21) -> 13308830 | G50: =F50/'- 13 -'!$J$53*100 -> 0.4747308903 | H50: =SUM(H48,H45,H39,H22,H21) -> 23891438 | I50: =H50/'- 13 -'!$J$53*100 -> 0.8522164331 | J50: =SUM(J48,J45,J39,J22,J21) -> 88723446 | K50: =J50/'- 13 -'!$J$53*100 -> 3.164798146
A51: (1) Reallocation of administration costs associated with Adult Learning Centres and Community Education.
B52: =+B50-'- 15 -'!B48 -> 0 | D52: =+D50-'- 15 -'!E48 -> 0 | F52: =+F50-'- 15 -'!H48 -> 0 | H52: =H50-'- 16 -'!B48 -> 0 | J52: =+J50-'- 16 -'!D48 -> 0
F54: =+F50-'- 15 -'!H48 -> 0 | J54: =+J50-'- 16 -'!D48 -> 0

Sheet - 13 -
C2: =OPYEAR -> OPERATING FUND 2023/2024 ACTUAL | K2: PAGE 2 OF 2
B4: EXPENSE BY 2ND LEVEL OBJECT
B5: AS A PERCENTAGE OF TOTAL OPERATING FUND EXPENSES
B7: FUNCTION
B8: INSTRUCTIONAL & OTHER SUPPORT SERVICES | D8: TRANSPORTATION OF PUPILS | F8: OPERATIONS AND MAINTENANCE
H9: FISCAL | J9: TOTAL
A10: OBJECT | B10: AMOUNT | C10: % | D10: AMOUNT | E10: % | F10: AMOUNT | G10: % | H10: AMOUNT | I10: % | J10: AMOUNT | K10: %
A12: SALARIES | M12: SALARIES | N12: =K21/100 -> 0.7682589673
A13: TRUSTEES REMUNERATION | J13: =SUM(F13,D13,B13,'- 12 -'!J13,'- 12 -'!H13,'- 12 -'!F13,'- 12 -'!D13,'- 12 -'!B13) -> 4409479 | K13: =J13/$J$53*100 -> 0.1572877474 | M13: EMPLOYEE BENEFITS | N13: =K22/100 -> 0.07029032036
A14: EXECUTIVE, MANAGERIAL & SUPERVISORY | B14: 5472509 | C14: =B14/$J$53*100 -> 0.1952064208 | D14: 3891474 | E14: =D14/$J$53*100 -> 0.1388103174 | F14: 5849073 | G14: =F14/$J$53*100 -> 0.208638598 | J14: =SUM(F14,D14,B14,'- 12 -'!J14,'- 12 -'!H14,'- 12 -'!F14,'- 12 -'!D14,'- 12 -'!B14) -> 164128931 | K14: 5.854539695 | M14: SERVICES | N14: =K39/100 -> 0.09026431266
A15: INSTRUCTIONAL - TEACHING | B15: 25765618 | C15: =B15/$J$53*100 -> 0.9190691271 | E15: =D15/$J$53*100 -> 0 | G15: =F15/$J$53*100 -> 0 | J15: =SUM(F15,D15,B15,'- 12 -'!J15,'- 12 -'!H15,'- 12 -'!F15,'- 12 -'!D15,'- 12 -'!B15) -> 1370247044 | K15: 48.87721904 | M15: SUPPLIES & MATERIALS | N15: =K45/100 -> 0.05393065841
A16: INSTRUCTIONAL - OTHER | B16: 16896866 | C16: =B16/$J$53*100 -> 0.6027174619 | D16: 1114278 | E16: =D16/$J$53*100 -> 0.03974670853 | G16: =F16/$J$53*100 -> 0 | J16: =SUM(F16,D16,B16,'- 12 -'!J16,'- 12 -'!H16,'- 12 -'!F16,'- 12 -'!D16,'- 12 -'!B16) -> 268657791 | K16: 9.583122806 | M16: TRANSFERS | N16: =K51/100-N17 -> 0.01543421346
A17: TECHNICAL, SPECIALIZED AND SERVICE | B17: 6078209 | C17: =B17/$J$53*100 -> 0.2168119639 | D17: 47627918 | E17: =D17/$J$53*100 -> 1.698905457 | F17: 128647397 | G17: =F17/$J$53*100 -> 4.58890025 | J17: =SUM(F17,D17,B17,'- 12 -'!J17,'- 12 -'!H17,'- 12 -'!F17,'- 12 -'!D17,'- 12 -'!B17) -> 204016049 | K17: 7.277327952 | M17: DEBT SERVICES | N17: =K48/100 -> 0.001821527776
A18: SECRETARIAL, CLERICAL AND OTHER | B18: 2325566 | C18: =B18/$J$53*100 -> 0.08295379966 | D18: 2036646 | E18: =D18/$J$53*100 -> 0.07264791636 | F18: 2165550 | G18: =F18/$J$53*100 -> 0.07724596974 | J18: =SUM(F18,D18,B18,'- 12 -'!J18,'- 12 -'!H18,'- 12 -'!F18,'- 12 -'!D18,'- 12 -'!B18) -> 71404530 | K18: 2.547026004
A19: CLINICIAN | J19: =SUM(F19,D19,B19,'- 12 -'!J19,'- 12 -'!H19,'- 12 -'!F19,'- 12 -'!D19,'- 12 -'!B19) -> 53129645 | K19: 1.895154095 | N19: =SUM(N12:N17) -> 1
A20: INFORMATION TECHNOLOGY | B20: 273767 | C20: =B20/'- 13 -'!$J$53*100 -> 0.009765370182 | D20: 0 | E20: =D20/'- 13 -'!$J$53*100 -> 0 | F20: 0 | G20: =F20/'- 13 -'!$J$53*100 -> 0 | J20: =SUM(F20,D20,B20,'- 12 -'!J20,'- 12 -'!H20,'- 12 -'!F20,'- 12 -'!D20,'- 12 -'!B20) -> 17780006 | K20: 0.6342193925
A21: TOTAL SALARIES | B21: =SUM(B13:B20) -> 56812535 | C21: =B21/$J$53*100 -> 2.026524144 | D21: =SUM(D13:D20) -> 54670316 | E21: =D21/$J$53*100 -> 1.950110399 | F21: =SUM(F13:F20) -> 136662020 | G21: =F21/$J$53*100 -> 4.874784817 | J21: =SUM(F21,D21,B21,'- 12 -'!J21,'- 12 -'!H21,'- 12 -'!F21,'- 12 -'!D21,'- 12 -'!B21) -> 2153773475 | K21: 76.82589673
A22: EMPLOYEE BENEFITS AND ALLOWANCES | B22: 6285853 | C22: =B22/$J$53*100 -> 0.2242187022 | D22: 8720578 | E22: =D22/$J$53*100 -> 0.3110662438 | F22: 24571177 | G22: =F22/$J$53*100 -> 0.8764629747 | J22: =SUM(F22,D22,B22,'- 12 -'!J22,'- 12 -'!H22,'- 12 -'!F22,'- 12 -'!D22,'- 12 -'!B22) -> 197055204 | K22: 7.029032036
A23: SERVICES | M23: REGULAR INSTRUCTION | N23: ='- 12 -'!C50/100 -> 0.552881136 | O23: REGULAR INSTRUCTION
A24: PROFESSIONAL, TECHNICAL & SPECIALIZED | B24: 2984735 | C24: =B24/$J$53*100 -> 0.1064666018 | D24: 527997 | E24: =D24/$J$53*100 -> 0.01883384835 | F24: 6229068 | G24: =F24/$J$53*100 -> 0.2221931603 | J24: =SUM(F24,D24,B24,'- 12 -'!J24,'- 12 -'!H24,'- 12 -'!F24,'- 12 -'!D24,'- 12 -'!B24) -> 33103003.3 | K24: =J24/$J$53*100 -> 1.180796376 | M24: EXCEPTIONAL | N24: ='- 12 -'!E50/100 -> 0.1975310123 | O24: STUDENT SUPPORT SERVICES
A25: COMMUNICATIONS | B25: 150081 | C25: 0.005353444799 | D25: 376956 | E25: 0.01344615999 | F25: 592902 | G25: 0.02114903371 | J25: =SUM(F25,D25,B25,'- 12 -'!J25,'- 12 -'!H25,'- 12 -'!F25,'- 12 -'!D25,'- 12 -'!B25) -> 5987408.84 | K25: 0.2135730886 | M25: ADULT LEARNING CENTRES | N25: ='- 12 -'!G50/100 -> 0.004747308903 | O25: ADULT LEARNING CENTRES
A26: UTILITY SERVICES | C26: 0 | E26: 0 | F26: 51410993 | G26: 1.833849142 | J26: =SUM(F26,D26,B26,'- 12 -'!J26,'- 12 -'!H26,'- 12 -'!F26,'- 12 -'!D26,'- 12 -'!B26) -> 51464126 | K26: 1.835744416 | L26: - 13 - | M26: COMMUNITY EDUCATION | N26: ='- 12 -'!I50/100 -> 0.008522164331 | O26: COMMUNITY EDUCATION
A27: TRAVEL AND MEETINGS | B27: 1375231 | C27: 0.0490549986 | D27: 2042311 | E27: 0.07284998901 | F27: 844503 | G27: 0.03012373447 | J27: =SUM(F27,D27,B27,'- 12 -'!J27,'- 12 -'!H27,'- 12 -'!F27,'- 12 -'!D27,'- 12 -'!B27) -> 12199794.77 | K27: 0.4351711933 | M27: DIVISIONAL ADMINISTRATION | N27: ='- 12 -'!K50/100 -> 0.03164798146 | O27: DIVISIONAL ADMINISTRATION
A28: TRANSPORTATION OF PUPILS | C28: 0 | D28: 24435030 | E28: 0.8716065609 | G28: 0 | J28: =SUM(F28,D28,B28,'- 12 -'!J28,'- 12 -'!H28,'- 12 -'!F28,'- 12 -'!D28,'- 12 -'!B28) -> 24435030 | K28: 0.8716065609 | M28: INSTRUCTIONAL & PUPIL SUPPORT SERVICES | N28: =C53/100 -> 0.03287139382 | O28: INSTRUCTIONAL & PUPIL SUPPORT SERVICES
A29: TUITION | B29: 14026 | C29: 0.0005003126095 | E29: 0 | G29: 0 | J29: =SUM(F29,D29,B29,'- 12 -'!J29,'- 12 -'!H29,'- 12 -'!F29,'- 12 -'!D29,'- 12 -'!B29) -> 1720518 | K29: 0.06137151364 | M29: TRANSPORTATION OF PUPILS | N29: =E53/100 -> 0.04382423169 | O29: TRANSPORTATION OF PUPILS
A30: PRINTING AND BINDING | B30: 257537 | C30: 0.009186440077 | D30: 8227 | E30: 0.0002934601339 | F30: 7729 | G30: 0.0002756962897 | J30: =SUM(F30,D30,B30,'- 12 -'!J30,'- 12 -'!H30,'- 12 -'!F30,'- 12 -'!D30,'- 12 -'!B30) -> 639125 | K30: 0.02279782522 | M30: OPERATIONS & MAINTENANCE | N30: =G53/100 -> 0.1107190303 | O30: OPERATIONS & MAINTENANCE
A31: INSURANCE AND BOND PREMIUMS | B31: 448337 | C31: 0.01599234667 | D31: 1541977 | E31: 0.05500289011 | F31: 15253498 | G31: 0.5440979173 | J31: =SUM(F31,D31,B31,'- 12 -'!J31,'- 12 -'!H31,'- 12 -'!F31,'- 12 -'!D31,'- 12 -'!B31) -> 20028232.56 | K31: 0.7144144657 | M31: FISCAL | N31: =I53/100 -> 0.01725574124 | O31: FISCAL
A32: MAINTENANCE AND REPAIR SERVICES | B32: 47669 | C32: 0.001700370867 | D32: 4250316 | E32: 0.1516103443 | F32: 37592996 | G32: 1.340956076 | J32: =SUM(F32,D32,B32,'- 12 -'!J32,'- 12 -'!H32,'- 12 -'!F32,'- 12 -'!D32,'- 12 -'!B32) -> 45137327 | K32: 1.610065155
A33: RENTALS | B33: 390032 | C33: 0.01391258575 | D33: 1405345 | E33: 0.05012917612 | F33: 3879393 | G33: 0.1383793837 | J33: =SUM(F33,D33,B33,'- 12 -'!J33,'- 12 -'!H33,'- 12 -'!F33,'- 12 -'!D33,'- 12 -'!B33) -> 11715649.24 | K33: 0.4179015431 | N33: =SUM(N23:N31) -> 1
A34: PROPERTY TAXES | C34: 0 | E34: 0 | F34: 4714446 | G34: 0.1681660331 | J34: =SUM(F34,D34,B34,'- 12 -'!J34,'- 12 -'!H34,'- 12 -'!F34,'- 12 -'!D34,'- 12 -'!B34) -> 4714733 | K34: 0.1681762705
A35: ADVERTISING | B35: 13178 | C35: =B35/J53 -> 4.700641358e-06 | D35: 26117 | E35: =D35/J53 -> 9.316030531e-06 | F35: 320188 | G35: =F35/J53 -> 0.0001142122443 | J35: =SUM(F35,D35,B35,'- 12 -'!J35,'- 12 -'!H35,'- 12 -'!F35,'- 12 -'!D35,'- 12 -'!B35) -> 1253849.62 | K35: 0.04472527986
A36: DUES AND FEES | B36: 210302 | C36: =B36/$J$53*100 -> 0.00750155015 | D36: 72795 | E36: =D36/$J$53*100 -> 0.002596624584 | F36: 118348 | G36: =F36/$J$53*100 -> 0.004221516948 | J36: =SUM(F36,D36,B36,'- 12 -'!J36,'- 12 -'!H36,'- 12 -'!F36,'- 12 -'!D36,'- 12 -'!B36) -> 4934152.05 | K36: 0.1760030292
A37: PROFESSIONAL AND STAFF DEVELOPMENT | B37: 12897373 | C37: =B37/'- 13 -'!$J$53*100 -> 0.4600540668 | D37: 188219 | E37: =D37/'- 13 -'!$J$53*100 -> 0.00671384137 | F37: 241449 | G37: =F37/'- 13 -'!$J$53*100 -> 0.008612575164 | J37: =SUM(F37,D37,B37,'- 12 -'!J37,'- 12 -'!H37,'- 12 -'!F37,'- 12 -'!D37,'- 12 -'!B37) -> 15062543.05 | K37: 0.5372864836
A38: INFORMATION TECHNOLOGY SERVICES | B38: 723735 | C38: =B38/$J$53*100 -> 0.02581589523 | D38: 723801 | E38: =D38/$J$53*100 -> 0.02581824947 | F38: 371994 | G38: =F38/$J$53*100 -> 0.01326916362 | J38: =SUM(F38,D38,B38,'- 12 -'!J38,'- 12 -'!H38,'- 12 -'!F38,'- 12 -'!D38,'- 12 -'!B38) -> 20655745 | K38: 0.7367980666
A39: TOTAL SERVICES | B39: =SUM(B24:B38) -> 19512236 | C39: =B39/$J$53*100 -> 0.6960086775 | D39: =SUM(D24:D38) -> 35599091 | E39: =D39/$J$53*100 -> 1.269832747 | F39: =SUM(F24:F38) -> 121577507 | G39: =F39/$J$53*100 -> 4.336714657 | J39: =SUM(F39,D39,B39,'- 12 -'!J39,'- 12 -'!H39,'- 12 -'!F39,'- 12 -'!D39,'- 12 -'!B39) -> 253051237.4 | K39: 9.026431266
A40: SUPPLIES AND EQUIPMENT
A41: SUPPLIES | B41: 5440072 | C41: =B41/$J$53*100 -> 0.194049381 | D41: 23098049 | E41: =D41/$J$53*100 -> 0.8239159539 | F41: 24658441 | G41: =F41/$J$53*100 -> 0.8795757139 | J41: =SUM(F41,D41,B41,'- 12 -'!J41,'- 12 -'!H41,'- 12 -'!F41,'- 12 -'!D41,'- 12 -'!B41) -> 98396091 | K41: =J41/$J$53*100 -> 3.509824972
A42: CURRICULAR AND MEDIA MATERIALS | B42: 2783895 | C42: =B42/$J$53*100 -> 0.09930256467 | D42: 38143 | E42: =D42/$J$53*100 -> 0.001360574923 | F42: 109246 | G42: =F42/$J$53*100 -> 0.00389684524 | J42: =SUM(F42,D42,B42,'- 12 -'!J42,'- 12 -'!H42,'- 12 -'!F42,'- 12 -'!D42,'- 12 -'!B42) -> 12100781 | K42: =J42/$J$53*100 -> 0.4316393355
A43: MINOR EQUIPMENT | B43: 619534 | C43: =B43/$J$53*100 -> 0.022099007 | D43: 452119 | E43: =D43/$J$53*100 -> 0.01612725201 | F43: 2655725 | G43: =F43/$J$53*100 -> 0.09473069335 | J43: =SUM(F43,D43,B43,'- 12 -'!J43,'- 12 -'!H43,'- 12 -'!F43,'- 12 -'!D43,'- 12 -'!B43) -> 15535201 | K43: =J43/$J$53*100 -> 0.5541463676
A44: INFORMATION TECHNOLOGY EQUIPMENT | B44: 699093 | C44: =B44/$J$53*100 -> 0.02493690597 | D44: 280625 | E44: =D44/$J$53*100 -> 0.01000999758 | F44: 160843 | G44: =F44/$J$53*100 -> 0.005737329321 | J44: =SUM(F44,D44,B44,'- 12 -'!J44,'- 12 -'!H44,'- 12 -'!F44,'- 12 -'!D44,'- 12 -'!B44) -> 25159682 | K44: =J44/$J$53*100 -> 0.8974551658
A45: TOTAL SUPPLIES AND EQUIPMENT | B45: =SUM(B41:B44) -> 9542594 | C45: =B45/$J$53*100 -> 0.3403878587 | D45: =SUM(D41:D44) -> 23868936 | E45: =D45/$J$53*100 -> 0.8514137785 | F45: =SUM(F41:F44) -> 27584255 | G45: =F45/$J$53*100 -> 0.9839405818 | J45: =SUM(F45,D45,B45,'- 12 -'!J45,'- 12 -'!H45,'- 12 -'!F45,'- 12 -'!D45,'- 12 -'!B45) -> 151191755 | K45: =J45/$J$53*100 -> 5.393065841
A46: TRANSFERS
A47: RECHARGE (1) | D47: 0 | F47: 0 | H47: ='- 10 -'!G21 -> 0
A48: DEBT SERVICES | H48: ='- 10 -'!G22 -> 5106557 | I48: =H48/$J$53*100 -> 0.1821527776 | J48: =H48 -> 5106557 | K48: =J48/$J$53*100 -> 0.1821527776
A49: BAD DEBT EXPENSE | H49: ='- 10 -'!H22 -> 89554 | I49: =H49/$J$53*100 -> 0.003194424314 | J49: =H49 -> 89554 | K49: =J49/$J$53*100 -> 0.003194424314
A50: OTHER GOVERNMENT AUTHORITIES | H50: ='- 10 -'!I22 -> 43179449 | I50: =H50/$J$53*100 -> 1.540226922 | J50: =H50 -> 43179449 | K50: =J50/$J$53*100 -> 1.540226922
A51: TOTAL TRANSFERS | F51: =SUM(F47:F50) -> 0 | H51: =SUM(H48:H50) -> 48375560 | I51: =H51/$J$53*100 -> 1.725574124 | J51: =SUM(J47:J50) -> 48375560 | K51: =J51/$J$53*100 -> 1.725574124
A53: PROVINCE | B53: =SUM(B51,B45,B39,B22,B21) -> 92153218 | C53: =B53/$J$53*100 -> 3.287139382 | D53: =SUM(D51,D45,D39,D22,D21) -> 122858921 | E53: =D53/$J$53*100 -> 4.382423169 | F53: =SUM(F51,F45,F39,F22,F21) -> 310394959 | G53: =F53/$J$53*100 -> 11.07190303 | H53: =SUM(H51,H45,H39,H22,H21) -> 48375560 | I53: =H53/$J$53*100 -> 1.725574124 | J53: =SUM(J51,J45,J39,J22,J21) -> 2803447231 | K53: =J53/$J$53*100 -> 100
B54: =+B53-'- 16 -'!G48 -> 0 | D54: =+D53-'- 17 -'!B48 -> 0 | F54: =+F53-'- 17 -'!E48 -> 0 | H54: =+H53-'- 17 -'!H48 -> 0 | J54: =+J53-'- 3 -'!D48 -> 0

Sheet - 14 -
U23: - 14 -

Sheet - 15 -
B2: ANALYSIS OF EXPENSE BY FUNCTION | I2: PAGE 1 OF 3
B3: =OPYEAR -> OPERATING FUND 2023/2024 ACTUAL
E6: STUDENT SUPPORT SERVICES | H6: ADULT LEARNING CENTRES
B7: REGULAR INSTRUCTION
D8: PER PUPIL | G8: PER PUPIL
A9: DIVISION / DISTRICT | B9: AMOUNT | C9: % | E9: AMOUNT | F9: % | H9: AMOUNT | I9: %
A11: BEAUTIFUL PLAINS | B11: =SUM('- 18 -'!B11,'- 18 -'!E11,'- 19 -'!B11,'- 19 -'!E11,'- 19 -'!H11,'- 20 -'!B11) -> 17410742 | C11: =B11/'- 3 -'!D11*100 -> 64.72800248 | D11: =B11/'- 7 -'!C11 -> 8012.675227 | E11: =SUM('- 21 -'!B11,'- 21 -'!E11,'- 21 -'!H11,'- 22 -'!B11,'- 22 -'!E11,'- 22 -'!H11) -> 3578578 | F11: =E11/'- 3 -'!D11*100 -> 13.3040973 | G11: =E11/'- 7 -'!E11 -> 1646.913342 | H11: =SUM('- 23 -'!D11,'- 23 -'!B11) -> 0 | I11: =H11/'- 3 -'!D11*100 -> 0
A12: BORDER LAND | B12: =SUM('- 18 -'!B12,'- 18 -'!E12,'- 19 -'!B12,'- 19 -'!E12,'- 19 -'!H12,'- 20 -'!B12) -> 22013771 | C12: =B12/'- 3 -'!D12*100 -> 58.70887979 | D12: =B12/'- 7 -'!C12 -> 10678.52098 | E12: =SUM('- 21 -'!B12,'- 21 -'!E12,'- 21 -'!H12,'- 22 -'!B12,'- 22 -'!E12,'- 22 -'!H12) -> 5625907 | F12: =E12/'- 3 -'!D12*100 -> 15.00382182 | G12: =E12/'- 7 -'!E12 -> 2729.035654 | H12: =SUM('- 23 -'!D12,'- 23 -'!B12) -> 356964 | I12: =H12/'- 3 -'!D12*100 -> 0.9519930304
A13: BRANDON | B13: =SUM('- 18 -'!B13,'- 18 -'!E13,'- 19 -'!B13,'- 19 -'!E13,'- 19 -'!H13,'- 20 -'!B13) -> 74989722 | C13: =B13/'- 3 -'!D13*100 -> 61.40644705 | D13: =B13/'- 7 -'!C13 -> 8021.578007 | E13: =SUM('- 21 -'!B13,'- 21 -'!E13,'- 21 -'!H13,'- 22 -'!B13,'- 22 -'!E13,'- 22 -'!H13) -> 25814373 | F13: =E13/'- 3 -'!D13*100 -> 21.13848253 | G13: =E13/'- 7 -'!E13 -> 2761.338504 | H13: =SUM('- 23 -'!D13,'- 23 -'!B13) -> 0 | I13: =H13/'- 3 -'!D13*100 -> 0
A14: DSFM | B14: =SUM('- 18 -'!B14,'- 18 -'!E14,'- 19 -'!B14,'- 19 -'!E14,'- 19 -'!H14,'- 20 -'!B14) -> 57989661 | C14: =B14/'- 3 -'!D14*100 -> 53.92736642 | D14: =B14/'- 7 -'!C14 -> 9621.486453 | E14: =SUM('- 21 -'!B14,'- 21 -'!E14,'- 21 -'!H14,'- 22 -'!B14,'- 22 -'!E14,'- 22 -'!H14) -> 14840582 | F14: =E14/'- 3 -'!D14*100 -> 13.80096882 | G14: =E14/'- 7 -'!E14 -> 2462.308905 | H14: =SUM('- 23 -'!D14,'- 23 -'!B14) -> 282833 | I14: =H14/'- 3 -'!D14*100 -> 0.2630199688
A15: EVERGREEN | B15: =SUM('- 18 -'!B15,'- 18 -'!E15,'- 19 -'!B15,'- 19 -'!E15,'- 19 -'!H15,'- 20 -'!B15) -> 12041602 | C15: =B15/'- 3 -'!D15*100 -> 53.76960281 | D15: =B15/'- 7 -'!C15 -> 8397.211994 | E15: =SUM('- 21 -'!B15,'- 21 -'!E15,'- 21 -'!H15,'- 22 -'!B15,'- 22 -'!E15,'- 22 -'!H15) -> 3474666 | F15: =E15/'- 3 -'!D15*100 -> 15.51549459 | G15: =E15/'- 7 -'!E15 -> 2423.058577 | H15: =SUM('- 23 -'!D15,'- 23 -'!B15) -> 0 | I15: =H15/'- 3 -'!D15*100 -> 0
A16: FLIN FLON | B16: =SUM('- 18 -'!B16,'- 18 -'!E16,'- 19 -'!B16,'- 19 -'!E16,'- 19 -'!H16,'- 20 -'!B16) -> 9668570 | C16: =B16/'- 3 -'!D16*100 -> 56.68034114 | D16: =B16/'- 7 -'!C16 -> 11705.29056 | E16: =SUM('- 21 -'!B16,'- 21 -'!E16,'- 21 -'!H16,'- 22 -'!B16,'- 22 -'!E16,'- 22 -'!H16) -> 3013120 | F16: =E16/'- 3 -'!D16*100 -> 17.66390164 | G16: =E16/'- 7 -'!E16 -> 3647.845036 | H16: =SUM('- 23 -'!D16,'- 23 -'!B16) -> 94000 | I16: =H16/'- 3 -'!D16*100 -> 0.5510589536
A17: FORT LA BOSSE | B17: =SUM('- 18 -'!B17,'- 18 -'!E17,'- 19 -'!B17,'- 19 -'!E17,'- 19 -'!H17,'- 20 -'!B17) -> 13123377 | C17: =B17/'- 3 -'!D17*100 -> 61.18903816 | D17: =B17/'- 7 -'!C17 -> 8608.315513 | E17: =SUM('- 21 -'!B17,'- 21 -'!E17,'- 21 -'!H17,'- 22 -'!B17,'- 22 -'!E17,'- 22 -'!H17) -> 2505302 | F17: =E17/'- 3 -'!D17*100 -> 11.68121739 | G17: =E17/'- 7 -'!E17 -> 1643.35979 | H17: =SUM('- 23 -'!D17,'- 23 -'!B17) -> 0 | I17: =H17/'- 3 -'!D17*100 -> 0
A18: FRONTIER | B18: =SUM('- 18 -'!B18,'- 18 -'!E18,'- 19 -'!B18,'- 19 -'!E18,'- 19 -'!H18,'- 20 -'!B18) -> 67974542 | C18: =B18/'- 3 -'!D18*100 -> 40.90777084 | D18: =B18/'- 7 -'!C18 -> 10745.26431 | E18: =SUM('- 21 -'!B18,'- 21 -'!E18,'- 21 -'!H18,'- 22 -'!B18,'- 22 -'!E18,'- 22 -'!H18) -> 23760791.43 | F18: =E18/'- 3 -'!D18*100 -> 14.29948599 | G18: =E18/'- 7 -'!E18 -> 3756.053024 | H18: =SUM('- 23 -'!D18,'- 23 -'!B18) -> 2447313 | I18: =H18/'- 3 -'!D18*100 -> 1.472817859
A19: GARDEN VALLEY | B19: =SUM('- 18 -'!B19,'- 18 -'!E19,'- 19 -'!B19,'- 19 -'!E19,'- 19 -'!H19,'- 20 -'!B19) -> 32418094 | C19: =B19/'- 3 -'!D19*100 -> 56.94409816 | D19: =B19/'- 7 -'!C19 -> 7647.580561 | E19: =SUM('- 21 -'!B19,'- 21 -'!E19,'- 21 -'!H19,'- 22 -'!B19,'- 22 -'!E19,'- 22 -'!H19) -> 10520774 | F19: =E19/'- 3 -'!D19*100 -> 18.48029645 | G19: =E19/'- 7 -'!E19 -> 2481.899976 | H19: =SUM('- 23 -'!D19,'- 23 -'!B19) -> 0 | I19: =H19/'- 3 -'!D19*100 -> 0
A20: HANOVER | B20: =SUM('- 18 -'!B20,'- 18 -'!E20,'- 19 -'!B20,'- 19 -'!E20,'- 19 -'!H20,'- 20 -'!B20) -> 61505587 | C20: =B20/'- 3 -'!D20*100 -> 59.45076178 | D20: =B20/'- 7 -'!C20 -> 7305.482415 | E20: =SUM('- 21 -'!B20,'- 21 -'!E20,'- 21 -'!H20,'- 22 -'!B20,'- 22 -'!E20,'- 22 -'!H20) -> 20907344 | F20: =E20/'- 3 -'!D20*100 -> 20.20885562 | G20: =E20/'- 7 -'!E20 -> 2483.322921 | H20: =SUM('- 23 -'!D20,'- 23 -'!B20) -> 0 | I20: =H20/'- 3 -'!D20*100 -> 0
A21: INTERLAKE | B21: =SUM('- 18 -'!B21,'- 18 -'!E21,'- 19 -'!B21,'- 19 -'!E21,'- 19 -'!H21,'- 20 -'!B21) -> 23190277 | C21: =B21/'- 3 -'!D21*100 -> 55.60118816 | D21: =B21/'- 7 -'!C21 -> 8032.655698 | E21: =SUM('- 21 -'!B21,'- 21 -'!E21,'- 21 -'!H21,'- 22 -'!B21,'- 22 -'!E21,'- 22 -'!H21) -> 8555716 | F21: =E21/'- 3 -'!D21*100 -> 20.5132511 | G21: =E21/'- 7 -'!E21 -> 2963.531694 | H21: =SUM('- 23 -'!D21,'- 23 -'!B21) -> 0 | I21: =H21/'- 3 -'!D21*100 -> 0
A22: KELSEY | B22: =SUM('- 18 -'!B22,'- 18 -'!E22,'- 19 -'!B22,'- 19 -'!E22,'- 19 -'!H22,'- 20 -'!B22) -> 12631275 | C22: =B22/'- 3 -'!D22*100 -> 54.59357479 | D22: =B22/'- 7 -'!C22 -> 8723.256215 | E22: =SUM('- 21 -'!B22,'- 21 -'!E22,'- 21 -'!H22,'- 22 -'!B22,'- 22 -'!E22,'- 22 -'!H22) -> 4721580 | F22: =E22/'- 3 -'!D22*100 -> 20.40711891 | G22: =E22/'- 7 -'!E22 -> 3260.759669 | H22: =SUM('- 23 -'!D22,'- 23 -'!B22) -> 652771 | I22: =H22/'- 3 -'!D22*100 -> 2.821338496
A23: LAKESHORE | B23: =SUM('- 18 -'!B23,'- 18 -'!E23,'- 19 -'!B23,'- 19 -'!E23,'- 19 -'!H23,'- 20 -'!B23) -> 8923832 | C23: =B23/'- 3 -'!D23*100 -> 54.56571168 | D23: =B23/'- 7 -'!C23 -> 9152.648205 | E23: =SUM('- 21 -'!B23,'- 21 -'!E23,'- 21 -'!H23,'- 22 -'!B23,'- 22 -'!E23,'- 22 -'!H23) -> 2651787 | F23: =E23/'- 3 -'!D23*100 -> 16.21463121 | G23: =E23/'- 7 -'!E23 -> 2719.781538 | H23: =SUM('- 23 -'!D23,'- 23 -'!B23) -> 250658 | I23: =H23/'- 3 -'!D23*100 -> 1.53267477
A24: LORD SELKIRK | B24: =SUM('- 18 -'!B24,'- 18 -'!E24,'- 19 -'!B24,'- 19 -'!E24,'- 19 -'!H24,'- 20 -'!B24) -> 39185331 | C24: =B24/'- 3 -'!D24*100 -> 60.27742116 | D24: =B24/'- 7 -'!C24 -> 10377.47113 | E24: =SUM('- 21 -'!B24,'- 21 -'!E24,'- 21 -'!H24,'- 22 -'!B24,'- 22 -'!E24,'- 22 -'!H24) -> 11181473 | F24: =E24/'- 3 -'!D24*100 -> 17.20006799 | G24: =E24/'- 7 -'!E24 -> 2961.19518 | H24: =SUM('- 23 -'!D24,'- 23 -'!B24) -> 370040 | I24: =H24/'- 3 -'!D24*100 -> 0.5692195614
A25: LOUIS RIEL | B25: =SUM('- 18 -'!B25,'- 18 -'!E25,'- 19 -'!B25,'- 19 -'!E25,'- 19 -'!H25,'- 20 -'!B25) -> 126161187 | C25: =B25/'- 3 -'!D25*100 -> 53.93206381 | D25: =B25/'- 7 -'!C25 -> 7352.478991 | E25: =SUM('- 21 -'!B25,'- 21 -'!E25,'- 21 -'!H25,'- 22 -'!B25,'- 22 -'!E25,'- 22 -'!H25) -> 52541114 | F25: =E25/'- 3 -'!D25*100 -> 22.46055843 | G25: =E25/'- 7 -'!E25 -> 3062.014919 | H25: =SUM('- 23 -'!D25,'- 23 -'!B25) -> 1360171 | I25: =H25/'- 3 -'!D25*100 -> 0.5814532259
A26: MOUNTAIN VIEW | B26: =SUM('- 18 -'!B26,'- 18 -'!E26,'- 19 -'!B26,'- 19 -'!E26,'- 19 -'!H26,'- 20 -'!B26) -> 27552664 | C26: =B26/'- 3 -'!D26*100 -> 57.35181225 | D26: =B26/'- 7 -'!C26 -> 8853.968315 | E26: =SUM('- 21 -'!B26,'- 21 -'!E26,'- 21 -'!H26,'- 22 -'!B26,'- 22 -'!E26,'- 22 -'!H26) -> 7005123 | F26: =E26/'- 3 -'!D26*100 -> 14.58140306 | G26: =E26/'- 7 -'!E26 -> 2251.07587 | H26: =SUM('- 23 -'!D26,'- 23 -'!B26) -> 0 | I26: =H26/'- 3 -'!D26*100 -> 0
A27: MYSTERY LAKE | B27: =SUM('- 18 -'!B27,'- 18 -'!E27,'- 19 -'!B27,'- 19 -'!E27,'- 19 -'!H27,'- 20 -'!B27) -> 25429392 | C27: =B27/'- 3 -'!D27*100 -> 54.96607207 | D27: =B27/'- 7 -'!C27 -> 8996.77764 | E27: =SUM('- 21 -'!B27,'- 21 -'!E27,'- 21 -'!H27,'- 22 -'!B27,'- 22 -'!E27,'- 22 -'!H27) -> 9843689 | F27: =E27/'- 3 -'!D27*100 -> 21.27730458 | G27: =E27/'- 7 -'!E27 -> 3482.642491 | H27: =SUM('- 23 -'!D27,'- 23 -'!B27) -> 0 | I27: =H27/'- 3 -'!D27*100 -> 0
A28: PARK WEST | B28: =SUM('- 18 -'!B28,'- 18 -'!E28,'- 19 -'!B28,'- 19 -'!E28,'- 19 -'!H28,'- 20 -'!B28) -> 20196593 | C28: =B28/'- 3 -'!D28*100 -> 61.2400683 | D28: =B28/'- 7 -'!C28 -> 9562.780777 | E28: =SUM('- 21 -'!B28,'- 21 -'!E28,'- 21 -'!H28,'- 22 -'!B28,'- 22 -'!E28,'- 22 -'!H28) -> 4518690 | F28: =E28/'- 3 -'!D28*100 -> 13.70156265 | G28: =E28/'- 7 -'!E28 -> 2139.53125 | H28: =SUM('- 23 -'!D28,'- 23 -'!B28) -> 107138 | I28: =H28/'- 3 -'!D28*100 -> 0.3248636261
A29: PEMBINA TRAILS | B29: =SUM('- 18 -'!B29,'- 18 -'!E29,'- 19 -'!B29,'- 19 -'!E29,'- 19 -'!H29,'- 20 -'!B29) -> 115610502 | C29: =B29/'- 3 -'!D29*100 -> 56.33903494 | D29: =B29/'- 7 -'!C29 -> 6992.500197 | E29: =SUM('- 21 -'!B29,'- 21 -'!E29,'- 21 -'!H29,'- 22 -'!B29,'- 22 -'!E29,'- 22 -'!H29) -> 45186171 | F29: =E29/'- 3 -'!D29*100 -> 22.02001741 | G29: =E29/'- 7 -'!E29 -> 2733.006986 | H29: =SUM('- 23 -'!D29,'- 23 -'!B29) -> 0 | I29: =H29/'- 3 -'!D29*100 -> 0
A30: PINE CREEK | B30: =SUM('- 18 -'!B30,'- 18 -'!E30,'- 19 -'!B30,'- 19 -'!E30,'- 19 -'!H30,'- 20 -'!B30) -> 11841932 | C30: =B30/'- 3 -'!D30*100 -> 63.04958797 | D30: =B30/'- 7 -'!C30 -> 11067.22617 | E30: =SUM('- 21 -'!B30,'- 21 -'!E30,'- 21 -'!H30,'- 22 -'!B30,'- 22 -'!E30,'- 22 -'!H30) -> 2191890 | F30: =E30/'- 3 -'!D30*100 -> 11.67020393 | G30: =E30/'- 7 -'!E30 -> 2048.495327 | H30: =SUM('- 23 -'!D30,'- 23 -'!B30) -> 0 | I30: =H30/'- 3 -'!D30*100 -> 0
A31: PORTAGE LA PRAIRIE | B31: =SUM('- 18 -'!B31,'- 18 -'!E31,'- 19 -'!B31,'- 19 -'!E31,'- 19 -'!H31,'- 20 -'!B31) -> 29325949 | C31: =B31/'- 3 -'!D31*100 -> 61.10552688 | D31: =B31/'- 7 -'!C31 -> 8920.44076 | E31: =SUM('- 21 -'!B31,'- 21 -'!E31,'- 21 -'!H31,'- 22 -'!B31,'- 22 -'!E31,'- 22 -'!H31) -> 8727644 | F31: =E31/'- 3 -'!D31*100 -> 18.18550817 | G31: =E31/'- 7 -'!E31 -> 2654.796654 | H31: =SUM('- 23 -'!D31,'- 23 -'!B31) -> 0 | I31: =H31/'- 3 -'!D31*100 -> 0
A32: PRAIRIE ROSE | B32: =SUM('- 18 -'!B32,'- 18 -'!E32,'- 19 -'!B32,'- 19 -'!E32,'- 19 -'!H32,'- 20 -'!B32) -> 19957912 | C32: =B32/'- 3 -'!D32*100 -> 56.47211074 | D32: =B32/'- 7 -'!C32 -> 8807.551633 | E32: =SUM('- 21 -'!B32,'- 21 -'!E32,'- 21 -'!H32,'- 22 -'!B32,'- 22 -'!E32,'- 22 -'!H32) -> 5587266 | F32: =E32/'- 3 -'!D32*100 -> 15.80950474 | G32: =E32/'- 7 -'!E32 -> 2465.695499 | H32: =SUM('- 23 -'!D32,'- 23 -'!B32) -> 284873 | I32: =H32/'- 3 -'!D32*100 -> 0.8060652639
A33: PRAIRIE SPIRIT | B33: =SUM('- 18 -'!B33,'- 18 -'!E33,'- 19 -'!B33,'- 19 -'!E33,'- 19 -'!H33,'- 20 -'!B33) -> 18128563 | C33: =B33/'- 3 -'!D33*100 -> 58.07017419 | D33: =B33/'- 7 -'!C33 -> 8673.953589 | E33: =SUM('- 21 -'!B33,'- 21 -'!E33,'- 21 -'!H33,'- 22 -'!B33,'- 22 -'!E33,'- 22 -'!H33) -> 4567047 | F33: =E33/'- 3 -'!D33*100 -> 14.62935671 | G33: =E33/'- 7 -'!E33 -> 2185.189952 | H33: =SUM('- 23 -'!D33,'- 23 -'!B33) -> 0 | I33: =H33/'- 3 -'!D33*100 -> 0
A34: RED RIVER VALLEY | B34: =SUM('- 18 -'!B34,'- 18 -'!E34,'- 19 -'!B34,'- 19 -'!E34,'- 19 -'!H34,'- 20 -'!B34) -> 20437758 | C34: =B34/'- 3 -'!D34*100 -> 56.5677568 | D34: =B34/'- 7 -'!C34 -> 9019.31068 | E34: =SUM('- 21 -'!B34,'- 21 -'!E34,'- 21 -'!H34,'- 22 -'!B34,'- 22 -'!E34,'- 22 -'!H34) -> 6372786 | F34: =E34/'- 3 -'!D34*100 -> 17.63863769 | G34: =E34/'- 7 -'!E34 -> 2812.350397 | H34: =SUM('- 23 -'!D34,'- 23 -'!B34) -> 0 | I34: =H34/'- 3 -'!D34*100 -> 0
A35: RIVER EAST TRANSCONA | B35: =SUM('- 18 -'!B35,'- 18 -'!E35,'- 19 -'!B35,'- 19 -'!E35,'- 19 -'!H35,'- 20 -'!B35) -> 130736921 | C35: =B35/'- 3 -'!D35*100 -> 57.55931005 | D35: =B35/'- 7 -'!C35 -> 7368.57382 | E35: =SUM('- 21 -'!B35,'- 21 -'!E35,'- 21 -'!H35,'- 22 -'!B35,'- 22 -'!E35,'- 22 -'!H35) -> 47076406 | F35: =E35/'- 3 -'!D35*100 -> 20.72624495 | G35: =E35/'- 7 -'!E35 -> 2653.313005 | H35: =SUM('- 23 -'!D35,'- 23 -'!B35) -> 1599669 | I35: =H35/'- 3 -'!D35*100 -> 0.7042834055
A36: ROLLING RIVER | B36: =SUM('- 18 -'!B36,'- 18 -'!E36,'- 19 -'!B36,'- 19 -'!E36,'- 19 -'!H36,'- 20 -'!B36) -> 15314870 | C36: =B36/'- 3 -'!D36*100 -> 57.61705211 | D36: =B36/'- 7 -'!C36 -> 8852.526012 | E36: =SUM('- 21 -'!B36,'- 21 -'!E36,'- 21 -'!H36,'- 22 -'!B36,'- 22 -'!E36,'- 22 -'!H36) -> 3527935 | F36: =E36/'- 3 -'!D36*100 -> 13.27266994 | G36: =E36/'- 7 -'!E36 -> 2039.268786 | H36: =SUM('- 23 -'!D36,'- 23 -'!B36) -> 122885 | I36: =H36/'- 3 -'!D36*100 -> 0.4623135194
A37: SEINE RIVER | B37: =SUM('- 18 -'!B37,'- 18 -'!E37,'- 19 -'!B37,'- 19 -'!E37,'- 19 -'!H37,'- 20 -'!B37) -> 35227703 | C37: =B37/'- 3 -'!D37*100 -> 55.91686995 | D37: =B37/'- 7 -'!C37 -> 7394.564022 | E37: =SUM('- 21 -'!B37,'- 21 -'!E37,'- 21 -'!H37,'- 22 -'!B37,'- 22 -'!E37,'- 22 -'!H37) -> 12130272 | F37: =E37/'- 3 -'!D37*100 -> 19.25435905 | G37: =E37/'- 7 -'!E37 -> 2546.236776 | H37: =SUM('- 23 -'!D37,'- 23 -'!B37) -> 323414 | I37: =H37/'- 3 -'!D37*100 -> 0.5133544637
A38: SEVEN OAKS | B38: =SUM('- 18 -'!B38,'- 18 -'!E38,'- 19 -'!B38,'- 19 -'!E38,'- 19 -'!H38,'- 20 -'!B38) -> 100828491 | C38: =B38/'- 3 -'!D38*100 -> 58.39655431 | D38: =B38/'- 7 -'!C38 -> 8420.478278 | E38: =SUM('- 21 -'!B38,'- 21 -'!E38,'- 21 -'!H38,'- 22 -'!B38,'- 22 -'!E38,'- 22 -'!H38) -> 31383809 | F38: =E38/'- 3 -'!D38*100 -> 18.17647263 | G38: =E38/'- 7 -'!E38 -> 2620.952464 | H38: =SUM('- 23 -'!D38,'- 23 -'!B38) -> 2566906 | I38: =H38/'- 3 -'!D38*100 -> 1.486667748
A39: SOUTHWEST HORIZON | B39: =SUM('- 18 -'!B39,'- 18 -'!E39,'- 19 -'!B39,'- 19 -'!E39,'- 19 -'!H39,'- 20 -'!B39) -> 14086807 | C39: =B39/'- 3 -'!D39*100 -> 57.36893897 | D39: =B39/'- 7 -'!C39 -> 9826.862225 | E39: =SUM('- 21 -'!B39,'- 21 -'!E39,'- 21 -'!H39,'- 22 -'!B39,'- 22 -'!E39,'- 22 -'!H39) -> 3775964 | F39: =E39/'- 3 -'!D39*100 -> 15.37772529 | G39: =E39/'- 7 -'!E39 -> 2634.087199 | H39: =SUM('- 23 -'!D39,'- 23 -'!B39) -> 0 | I39: =H39/'- 3 -'!D39*100 -> 0
A40: ST. JAMES-ASSINIBOIA | B40: =SUM('- 18 -'!B40,'- 18 -'!E40,'- 19 -'!B40,'- 19 -'!E40,'- 19 -'!H40,'- 20 -'!B40) -> 65810232 | C40: =B40/'- 3 -'!D40*100 -> 54.98158746 | D40: =B40/'- 7 -'!C40 -> 8190.649674 | E40: =SUM('- 21 -'!B40,'- 21 -'!E40,'- 21 -'!H40,'- 22 -'!B40,'- 22 -'!E40,'- 22 -'!H40) -> 28347505 | F40: =E40/'- 3 -'!D40*100 -> 23.6831079 | G40: =E40/'- 7 -'!E40 -> 3528.090929 | H40: =SUM('- 23 -'!D40,'- 23 -'!B40) -> 0 | I40: =H40/'- 3 -'!D40*100 -> 0
A41: SUNRISE | B41: =SUM('- 18 -'!B41,'- 18 -'!E41,'- 19 -'!B41,'- 19 -'!E41,'- 19 -'!H41,'- 20 -'!B41) -> 39271454 | C41: =B41/'- 3 -'!D41*100 -> 52.07786917 | D41: =B41/'- 7 -'!C41 -> 8505.83799 | E41: =SUM('- 21 -'!B41,'- 21 -'!E41,'- 21 -'!H41,'- 22 -'!B41,'- 22 -'!E41,'- 22 -'!H41) -> 15598684 | F41: =E41/'- 3 -'!D41*100 -> 20.68541248 | G41: =E41/'- 7 -'!E41 -> 3378.53238 | H41: =SUM('- 23 -'!D41,'- 23 -'!B41) -> 1071818 | I41: =H41/'- 3 -'!D41*100 -> 1.421337687
A42: SWAN VALLEY | B42: =SUM('- 18 -'!B42,'- 18 -'!E42,'- 19 -'!B42,'- 19 -'!E42,'- 19 -'!H42,'- 20 -'!B42) -> 13044277 | C42: =B42/'- 3 -'!D42*100 -> 52.9793553 | D42: =B42/'- 7 -'!C42 -> 9218.700618 | E42: =SUM('- 21 -'!B42,'- 21 -'!E42,'- 21 -'!H42,'- 22 -'!B42,'- 22 -'!E42,'- 22 -'!H42) -> 5618003 | F42: =E42/'- 3 -'!D42*100 -> 22.81752964 | G42: =E42/'- 7 -'!E42 -> 3970.37626 | H42: =SUM('- 23 -'!D42,'- 23 -'!B42) -> 0 | I42: =H42/'- 3 -'!D42*100 -> 0
A43: TURTLE MOUNTAIN | B43: =SUM('- 18 -'!B43,'- 18 -'!E43,'- 19 -'!B43,'- 19 -'!E43,'- 19 -'!H43,'- 20 -'!B43) -> 8792058 | C43: =B43/'- 3 -'!D43*100 -> 57.04215538 | D43: =B43/'- 7 -'!C43 -> 8317.935667 | E43: =SUM('- 21 -'!B43,'- 21 -'!E43,'- 21 -'!H43,'- 22 -'!B43,'- 22 -'!E43,'- 22 -'!H43) -> 2761502 | F43: =E43/'- 3 -'!D43*100 -> 17.9163998 | G43: =E43/'- 7 -'!E43 -> 2612.584674 | H43: =SUM('- 23 -'!D43,'- 23 -'!B43) -> 206342 | I43: =H43/'- 3 -'!D43*100 -> 1.33873007
A44: TURTLE RIVER | B44: =SUM('- 18 -'!B44,'- 18 -'!E44,'- 19 -'!B44,'- 19 -'!E44,'- 19 -'!H44,'- 20 -'!B44) -> 7243279 | C44: =B44/'- 3 -'!D44*100 -> 59.05832868 | D44: =B44/'- 7 -'!C44 -> 11768.12185 | E44: =SUM('- 21 -'!B44,'- 21 -'!E44,'- 21 -'!H44,'- 22 -'!B44,'- 22 -'!E44,'- 22 -'!H44) -> 1384219 | F44: =E44/'- 3 -'!D44*100 -> 11.28627803 | G44: =E44/'- 7 -'!E44 -> 2248.9342 | H44: =SUM('- 23 -'!D44,'- 23 -'!B44) -> 0 | I44: =H44/'- 3 -'!D44*100 -> 0
A45: WESTERN | B45: =SUM('- 18 -'!B45,'- 18 -'!E45,'- 19 -'!B45,'- 19 -'!E45,'- 19 -'!H45,'- 20 -'!B45) -> 17338075 | C45: =B45/'- 3 -'!D45*100 -> 63.1633756 | D45: =B45/'- 7 -'!C45 -> 8098.120037 | E45: =SUM('- 21 -'!B45,'- 21 -'!E45,'- 21 -'!H45,'- 22 -'!B45,'- 22 -'!E45,'- 22 -'!H45) -> 3991525 | F45: =E45/'- 3 -'!D45*100 -> 14.54130247 | G45: =E45/'- 7 -'!E45 -> 1864.327417 | H45: =SUM('- 23 -'!D45,'- 23 -'!B45) -> 417354 | I45: =H45/'- 3 -'!D45*100 -> 1.520439118
A46: WINNIPEG | B46: =SUM('- 18 -'!B46,'- 18 -'!E46,'- 19 -'!B46,'- 19 -'!E46,'- 19 -'!H46,'- 20 -'!B46) -> 234570088 | C46: =B46/'- 3 -'!D46*100 -> 52.00230203 | D46: =B46/'- 7 -'!C46 -> 8433.616815 | E46: =SUM('- 21 -'!B46,'- 21 -'!E46,'- 21 -'!H46,'- 22 -'!B46,'- 22 -'!E46,'- 22 -'!H46) -> 110478532 | F46: =E46/'- 3 -'!D46*100 -> 24.49220205 | G46: =E46/'- 7 -'!E46 -> 3972.090445 | H46: =SUM('- 23 -'!D46,'- 23 -'!B46) -> 793681 | I46: =H46/'- 3 -'!D46*100 -> 0.1759526947
A48: PROVINCE | B48: =SUM(B11:B46) -> 1549973090 | C48: =B48/'- 3 -'!D48*100 -> 55.2881136 | D48: =B48/'- 7 -'!C48 -> 8265.413157 | E48: =SUM(E11:E46) -> 553767769.4 | F48: =E48/'- 3 -'!D48*100 -> 19.75310123 | G48: =E48/'- 7 -'!E48 -> 2953.031531 | H48: =SUM(H11:H46) -> 13308830 | I48: =H48/'- 3 -'!D48*100 -> 0.4747308903
A50: WHITESHELL | B50: =SUM('- 18 -'!B50,'- 18 -'!E50,'- 19 -'!B50,'- 19 -'!E50,'- 19 -'!H50,'- 20 -'!B50) -> 2394870 | C50: =B50/'- 3 -'!D50*100 -> 58.48692581 | D50: =B50/'- 7 -'!C50 -> 12281.38462 | E50: =SUM('- 21 -'!B50,'- 21 -'!E50,'- 21 -'!H50,'- 22 -'!B50,'- 22 -'!E50,'- 22 -'!H50) -> 498096 | F50: =E50/'- 3 -'!D50*100 -> 12.16437794 | G50: =E50/'- 7 -'!E50 -> 2554.338462 | H50: =SUM('- 23 -'!D50,'- 23 -'!B50) -> 0 | I50: =H50/'- 3 -'!D50*100 -> 0

Sheet - 16 -
B2: ANALYSIS OF EXPENSE BY FUNCTION | I2: PAGE 2 OF 3
B3: =OPYEAR -> OPERATING FUND 2023/2024 ACTUAL
B6: COMMUNITY EDUCATION AND SERVICES | D6: DIVISIONAL ADMINISTRATION | G6: INSTRUCTIONAL & OTHER SUPPORT SERVICES
F8: PER PUPIL | I8: PER PUPIL
A9: DIVISION / DISTRICT | B9: AMOUNT | C9: % | D9: AMOUNT | E9: % | G9: AMOUNT | H9: %
A11: BEAUTIFUL PLAINS | B11: =SUM('- 24 -'!H11,'- 24 -'!F11,'- 24 -'!D11,'- 24 -'!B11) -> 23164 | C11: =B11/'- 3 -'!D11*100 -> 0.08611691848 | D11: =SUM('- 25 -'!B11,'- 25 -'!E11,'- 25 -'!H11,'- 26 -'!B11) -> 860728 | E11: =D11/'- 3 -'!D11*100 -> 3.199932784 | F11: =D11/'- 7 -'!E11 -> 396.1194717 | G11: =SUM('- 27 -'!B11,'- 27 -'!E11,'- 27 -'!H11,'- 28 -'!B11,'- 28 -'!E11) -> 571081 | H11: =G11/'- 3 -'!D11*100 -> 2.123110686 | I11: =G11/'- 7 -'!E11 -> 262.819734
A12: BORDER LAND | B12: =SUM('- 24 -'!H12,'- 24 -'!F12,'- 24 -'!D12,'- 24 -'!B12) -> 47659 | C12: =B12/'- 3 -'!D12*100 -> 0.1271025533 | D12: =SUM('- 25 -'!B12,'- 25 -'!E12,'- 25 -'!H12,'- 26 -'!B12) -> 1193403 | E12: =D12/'- 3 -'!D12*100 -> 3.182705647 | F12: =D12/'- 7 -'!E12 -> 578.9003153 | G12: =SUM('- 27 -'!B12,'- 27 -'!E12,'- 27 -'!H12,'- 28 -'!B12,'- 28 -'!E12) -> 685480 | H12: =G12/'- 3 -'!D12*100 -> 1.828117632 | I12: =G12/'- 7 -'!E12 -> 332.5151589
A13: BRANDON | B13: =SUM('- 24 -'!H13,'- 24 -'!F13,'- 24 -'!D13,'- 24 -'!B13) -> 446345 | C13: =B13/'- 3 -'!D13*100 -> 0.365496229 | D13: =SUM('- 25 -'!B13,'- 25 -'!E13,'- 25 -'!H13,'- 26 -'!B13) -> 3136229 | E13: =D13/'- 3 -'!D13*100 -> 2.568147672 | F13: =D13/'- 7 -'!E13 -> 335.4793817 | G13: =SUM('- 27 -'!B13,'- 27 -'!E13,'- 27 -'!H13,'- 28 -'!B13,'- 28 -'!E13) -> 3025008 | H13: =G13/'- 3 -'!D13*100 -> 2.477072706 | I13: =G13/'- 7 -'!E13 -> 323.582179
A14: DSFM | B14: =SUM('- 24 -'!H14,'- 24 -'!F14,'- 24 -'!D14,'- 24 -'!B14) -> 962633 | C14: =B14/'- 3 -'!D14*100 -> 0.8951985857 | D14: =SUM('- 25 -'!B14,'- 25 -'!E14,'- 25 -'!H14,'- 26 -'!B14) -> 4059383 | E14: =D14/'- 3 -'!D14*100 -> 3.775014902 | F14: =D14/'- 7 -'!E14 -> 673.5217601 | G14: =SUM('- 27 -'!B14,'- 27 -'!E14,'- 27 -'!H14,'- 28 -'!B14,'- 28 -'!E14) -> 3936461 | H14: =G14/'- 3 -'!D14*100 -> 3.66070384 | I14: =G14/'- 7 -'!E14 -> 653.1268769
A15: EVERGREEN | B15: =SUM('- 24 -'!H15,'- 24 -'!F15,'- 24 -'!D15,'- 24 -'!B15) -> 32469 | C15: =B15/'- 3 -'!D15*100 -> 0.1449844658 | D15: =SUM('- 25 -'!B15,'- 25 -'!E15,'- 25 -'!H15,'- 26 -'!B15) -> 811269 | E15: =D15/'- 3 -'!D15*100 -> 3.62257546 | F15: =D15/'- 7 -'!E15 -> 565.7384937 | G15: =SUM('- 27 -'!B15,'- 27 -'!E15,'- 27 -'!H15,'- 28 -'!B15,'- 28 -'!E15) -> 562432 | H15: =G15/'- 3 -'!D15*100 -> 2.511438698 | I15: =G15/'- 7 -'!E15 -> 392.2119944
A16: FLIN FLON | B16: =SUM('- 24 -'!H16,'- 24 -'!F16,'- 24 -'!D16,'- 24 -'!B16) -> 17661 | C16: =B16/'- 3 -'!D16*100 -> 0.1035345977 | D16: =SUM('- 25 -'!B16,'- 25 -'!E16,'- 25 -'!H16,'- 26 -'!B16) -> 651469 | E16: =D16/'- 3 -'!D16*100 -> 3.819125802 | F16: =D16/'- 7 -'!E16 -> 788.7033898 | G16: =SUM('- 27 -'!B16,'- 27 -'!E16,'- 27 -'!H16,'- 28 -'!B16,'- 28 -'!E16) -> 316484 | H16: =G16/'- 3 -'!D16*100 -> 1.855333424 | I16: =G16/'- 7 -'!E16 -> 383.1525424
A17: FORT LA BOSSE | B17: =SUM('- 24 -'!H17,'- 24 -'!F17,'- 24 -'!D17,'- 24 -'!B17) -> 235352 | C17: =B17/'- 3 -'!D17*100 -> 1.097351886 | D17: =SUM('- 25 -'!B17,'- 25 -'!E17,'- 25 -'!H17,'- 26 -'!B17) -> 839218 | E17: =D17/'- 3 -'!D17*100 -> 3.912936603 | F17: =D17/'- 7 -'!E17 -> 550.4873729 | G17: =SUM('- 27 -'!B17,'- 27 -'!E17,'- 27 -'!H17,'- 28 -'!B17,'- 28 -'!E17) -> 330239 | H17: =G17/'- 3 -'!D17*100 -> 1.539771872 | I17: =G17/'- 7 -'!E17 -> 216.6211873
A18: FRONTIER | B18: =SUM('- 24 -'!H18,'- 24 -'!F18,'- 24 -'!D18,'- 24 -'!B18) -> 2425736 | C18: =B18/'- 3 -'!D18*100 -> 1.4598326 | D18: =SUM('- 25 -'!B18,'- 25 -'!E18,'- 25 -'!H18,'- 26 -'!B18) -> 9490065 | E18: =D18/'- 3 -'!D18*100 -> 5.711217654 | F18: =D18/'- 7 -'!E18 -> 1500.168353 | G18: =SUM('- 27 -'!B18,'- 27 -'!E18,'- 27 -'!H18,'- 28 -'!B18,'- 28 -'!E18) -> 13622932 | H18: =G18/'- 3 -'!D18*100 -> 8.198419056 | I18: =G18/'- 7 -'!E18 -> 2153.48277
A19: GARDEN VALLEY | B19: =SUM('- 24 -'!H19,'- 24 -'!F19,'- 24 -'!D19,'- 24 -'!B19) -> 77142 | C19: =B19/'- 3 -'!D19*100 -> 0.1355040065 | D19: =SUM('- 25 -'!B19,'- 25 -'!E19,'- 25 -'!H19,'- 26 -'!B19) -> 1704517 | E19: =D19/'- 3 -'!D19*100 -> 2.994074339 | F19: =D19/'- 7 -'!E19 -> 402.1035622 | G19: =SUM('- 27 -'!B19,'- 27 -'!E19,'- 27 -'!H19,'- 28 -'!B19,'- 28 -'!E19) -> 1950758 | H19: =G19/'- 3 -'!D19*100 -> 3.42660969 | I19: =G19/'- 7 -'!E19 -> 460.19297
A20: HANOVER | B20: =SUM('- 24 -'!H20,'- 24 -'!F20,'- 24 -'!D20,'- 24 -'!B20) -> 119606 | C20: =B20/'- 3 -'!D20*100 -> 0.1156101122 | D20: =SUM('- 25 -'!B20,'- 25 -'!E20,'- 25 -'!H20,'- 26 -'!B20) -> 2491909 | E20: =D20/'- 3 -'!D20*100 -> 2.408657418 | F20: =D20/'- 7 -'!E20 -> 295.9828248 | G20: =SUM('- 27 -'!B20,'- 27 -'!E20,'- 27 -'!H20,'- 28 -'!B20,'- 28 -'!E20) -> 1985973 | H20: =G20/'- 3 -'!D20*100 -> 1.91962411 | I20: =G20/'- 7 -'!E20 -> 235.8889905
A21: INTERLAKE | B21: =SUM('- 24 -'!H21,'- 24 -'!F21,'- 24 -'!D21,'- 24 -'!B21) -> 0 | C21: =B21/'- 3 -'!D21*100 -> 0 | D21: =SUM('- 25 -'!B21,'- 25 -'!E21,'- 25 -'!H21,'- 26 -'!B21) -> 1417339 | E21: =D21/'- 3 -'!D21*100 -> 3.398222989 | F21: =D21/'- 7 -'!E21 -> 490.9383443 | G21: =SUM('- 27 -'!B21,'- 27 -'!E21,'- 27 -'!H21,'- 28 -'!B21,'- 28 -'!E21) -> 1018879 | H21: =G21/'- 3 -'!D21*100 -> 2.4428722 | I21: =G21/'- 7 -'!E21 -> 352.9196398
A22: KELSEY | B22: =SUM('- 24 -'!H22,'- 24 -'!F22,'- 24 -'!D22,'- 24 -'!B22) -> 35282 | C22: =B22/'- 3 -'!D22*100 -> 0.1524921677 | D22: =SUM('- 25 -'!B22,'- 25 -'!E22,'- 25 -'!H22,'- 26 -'!B22) -> 986598 | E22: =D22/'- 3 -'!D22*100 -> 4.264170616 | F22: =D22/'- 7 -'!E22 -> 681.3522099 | G22: =SUM('- 27 -'!B22,'- 27 -'!E22,'- 27 -'!H22,'- 28 -'!B22,'- 28 -'!E22) -> 375551 | H22: =G22/'- 3 -'!D22*100 -> 1.623167226 | I22: =G22/'- 7 -'!E22 -> 259.3584254
A23: LAKESHORE | B23: =SUM('- 24 -'!H23,'- 24 -'!F23,'- 24 -'!D23,'- 24 -'!B23) -> 108951 | C23: =B23/'- 3 -'!D23*100 -> 0.6661923771 | D23: =SUM('- 25 -'!B23,'- 25 -'!E23,'- 25 -'!H23,'- 26 -'!B23) -> 588834 | E23: =D23/'- 3 -'!D23*100 -> 3.600487579 | F23: =D23/'- 7 -'!E23 -> 603.9323077 | G23: =SUM('- 27 -'!B23,'- 27 -'!E23,'- 27 -'!H23,'- 28 -'!B23,'- 28 -'!E23) -> 286188 | H23: =G23/'- 3 -'!D23*100 -> 1.749926701 | I23: =G23/'- 7 -'!E23 -> 293.5261538
A24: LORD SELKIRK | B24: =SUM('- 24 -'!H24,'- 24 -'!F24,'- 24 -'!D24,'- 24 -'!B24) -> 478689 | C24: =B24/'- 3 -'!D24*100 -> 0.7363505098 | D24: =SUM('- 25 -'!B24,'- 25 -'!E24,'- 25 -'!H24,'- 26 -'!B24) -> 1755670 | E24: =D24/'- 3 -'!D24*100 -> 2.700685622 | F24: =D24/'- 7 -'!E24 -> 464.9549788 | G24: =SUM('- 27 -'!B24,'- 27 -'!E24,'- 27 -'!H24,'- 28 -'!B24,'- 28 -'!E24) -> 1219669 | H24: =G24/'- 3 -'!D24*100 -> 1.876174071 | I24: =G24/'- 7 -'!E24 -> 323.0055614
A25: LOUIS RIEL | B25: =SUM('- 24 -'!H25,'- 24 -'!F25,'- 24 -'!D25,'- 24 -'!B25) -> 2848968 | C25: =B25/'- 3 -'!D25*100 -> 1.217892187 | D25: =SUM('- 25 -'!B25,'- 25 -'!E25,'- 25 -'!H25,'- 26 -'!B25) -> 7678665 | E25: =D25/'- 3 -'!D25*100 -> 3.282517077 | F25: =D25/'- 7 -'!E25 -> 447.5007285 | G25: =SUM('- 27 -'!B25,'- 27 -'!E25,'- 27 -'!H25,'- 28 -'!B25,'- 28 -'!E25) -> 9821661 | H25: =G25/'- 3 -'!D25*100 -> 4.19861655 | I25: =G25/'- 7 -'!E25 -> 572.3912233
A26: MOUNTAIN VIEW | B26: =SUM('- 24 -'!H26,'- 24 -'!F26,'- 24 -'!D26,'- 24 -'!B26) -> 106495 | C26: =B26/'- 3 -'!D26*100 -> 0.221672984 | D26: =SUM('- 25 -'!B26,'- 25 -'!E26,'- 25 -'!H26,'- 26 -'!B26) -> 1380470 | E26: =D26/'- 3 -'!D26*100 -> 2.873495509 | F26: =D26/'- 7 -'!E26 -> 443.6100132 | G26: =SUM('- 27 -'!B26,'- 27 -'!E26,'- 27 -'!H26,'- 28 -'!B26,'- 28 -'!E26) -> 1636175 | H26: =G26/'- 3 -'!D26*100 -> 3.40575421 | I26: =G26/'- 7 -'!E26 -> 525.7800701
A27: MYSTERY LAKE | B27: =SUM('- 24 -'!H27,'- 24 -'!F27,'- 24 -'!D27,'- 24 -'!B27) -> 60491 | C27: =B27/'- 3 -'!D27*100 -> 0.1307523462 | D27: =SUM('- 25 -'!B27,'- 25 -'!E27,'- 25 -'!H27,'- 26 -'!B27) -> 1962720 | E27: =D27/'- 3 -'!D27*100 -> 4.242453338 | F27: =D27/'- 7 -'!E27 -> 694.3994339 | G27: =SUM('- 27 -'!B27,'- 27 -'!E27,'- 27 -'!H27,'- 28 -'!B27,'- 28 -'!E27) -> 1848282 | H27: =G27/'- 3 -'!D27*100 -> 3.995093615 | I27: =G27/'- 7 -'!E27 -> 653.9119052
A28: PARK WEST | B28: =SUM('- 24 -'!H28,'- 24 -'!F28,'- 24 -'!D28,'- 24 -'!B28) -> 121767 | C28: =B28/'- 3 -'!D28*100 -> 0.3692216502 | D28: =SUM('- 25 -'!B28,'- 25 -'!E28,'- 25 -'!H28,'- 26 -'!B28) -> 1158136 | E28: =D28/'- 3 -'!D28*100 -> 3.511697628 | F28: =D28/'- 7 -'!E28 -> 548.3598485 | G28: =SUM('- 27 -'!B28,'- 27 -'!E28,'- 27 -'!H28,'- 28 -'!B28,'- 28 -'!E28) -> 674739 | H28: =G28/'- 3 -'!D28*100 -> 2.045942226 | I28: =G28/'- 7 -'!E28 -> 319.4786932
A29: PEMBINA TRAILS | B29: =SUM('- 24 -'!H29,'- 24 -'!F29,'- 24 -'!D29,'- 24 -'!B29) -> 280574 | C29: =B29/'- 3 -'!D29*100 -> 0.1367286545 | D29: =SUM('- 25 -'!B29,'- 25 -'!E29,'- 25 -'!H29,'- 26 -'!B29) -> 6544982 | E29: =D29/'- 3 -'!D29*100 -> 3.189485066 | F29: =D29/'- 7 -'!E29 -> 395.8618562 | G29: =SUM('- 27 -'!B29,'- 27 -'!E29,'- 27 -'!H29,'- 28 -'!B29,'- 28 -'!E29) -> 7686509 | H29: =G29/'- 3 -'!D29*100 -> 3.745771289 | I29: =G29/'- 7 -'!E29 -> 464.905132
A30: PINE CREEK | B30: =SUM('- 24 -'!H30,'- 24 -'!F30,'- 24 -'!D30,'- 24 -'!B30) -> 4084 | C30: =B30/'- 3 -'!D30*100 -> 0.0217442996 | D30: =SUM('- 25 -'!B30,'- 25 -'!E30,'- 25 -'!H30,'- 26 -'!B30) -> 638456 | E30: =D30/'- 3 -'!D30*100 -> 3.399309145 | F30: =D30/'- 7 -'!E30 -> 596.6878505 | G30: =SUM('- 27 -'!B30,'- 27 -'!E30,'- 27 -'!H30,'- 28 -'!B30,'- 28 -'!E30) -> 461488 | H30: =G30/'- 3 -'!D30*100 -> 2.457084558 | I30: =G30/'- 7 -'!E30 -> 431.2971963
A31: PORTAGE LA PRAIRIE | B31: =SUM('- 24 -'!H31,'- 24 -'!F31,'- 24 -'!D31,'- 24 -'!B31) -> 59085 | C31: =B31/'- 3 -'!D31*100 -> 0.1231134943 | D31: =SUM('- 25 -'!B31,'- 25 -'!E31,'- 25 -'!H31,'- 26 -'!B31) -> 1235579 | E31: =D31/'- 3 -'!D31*100 -> 2.574535808 | F31: =D31/'- 7 -'!E31 -> 375.8415209 | G31: =SUM('- 27 -'!B31,'- 27 -'!E31,'- 27 -'!H31,'- 28 -'!B31,'- 28 -'!E31) -> 1840862 | H31: =G31/'- 3 -'!D31*100 -> 3.835744324 | I31: =G31/'- 7 -'!E31 -> 559.9580228
A32: PRAIRIE ROSE | B32: =SUM('- 24 -'!H32,'- 24 -'!F32,'- 24 -'!D32,'- 24 -'!B32) -> 36275 | C32: =B32/'- 3 -'!D32*100 -> 0.1026422913 | D32: =SUM('- 25 -'!B32,'- 25 -'!E32,'- 25 -'!H32,'- 26 -'!B32) -> 1164000 | E32: =D32/'- 3 -'!D32*100 -> 3.293607913 | F32: =D32/'- 7 -'!E32 -> 513.6804943 | G32: =SUM('- 27 -'!B32,'- 27 -'!E32,'- 27 -'!H32,'- 28 -'!B32,'- 28 -'!E32) -> 741145 | H32: =G32/'- 3 -'!D32*100 -> 2.097114293 | I32: =G32/'- 7 -'!E32 -> 327.0719329
A33: PRAIRIE SPIRIT | B33: =SUM('- 24 -'!H33,'- 24 -'!F33,'- 24 -'!D33,'- 24 -'!B33) -> 45224 | C33: =B33/'- 3 -'!D33*100 -> 0.1448634157 | D33: =SUM('- 25 -'!B33,'- 25 -'!E33,'- 25 -'!H33,'- 26 -'!B33) -> 961570 | E33: =D33/'- 3 -'!D33*100 -> 3.080141399 | F33: =D33/'- 7 -'!E33 -> 460.0813397 | G33: =SUM('- 27 -'!B33,'- 27 -'!E33,'- 27 -'!H33,'- 28 -'!B33,'- 28 -'!E33) -> 753177 | H33: =G33/'- 3 -'!D33*100 -> 2.412608191 | I33: =G33/'- 7 -'!E33 -> 360.3717703
A34: RED RIVER VALLEY | B34: =SUM('- 24 -'!H34,'- 24 -'!F34,'- 24 -'!D34,'- 24 -'!B34) -> 48356 | C34: =B34/'- 3 -'!D34*100 -> 0.1338400449 | D34: =SUM('- 25 -'!B34,'- 25 -'!E34,'- 25 -'!H34,'- 26 -'!B34) -> 1163630 | E34: =D34/'- 3 -'!D34*100 -> 3.220702527 | F34: =D34/'- 7 -'!E34 -> 513.5172109 | G34: =SUM('- 27 -'!B34,'- 27 -'!E34,'- 27 -'!H34,'- 28 -'!B34,'- 28 -'!E34) -> 854779 | H34: =G34/'- 3 -'!D34*100 -> 2.365862762 | I34: =G34/'- 7 -'!E34 -> 377.2193292
A35: RIVER EAST TRANSCONA | B35: =SUM('- 24 -'!H35,'- 24 -'!F35,'- 24 -'!D35,'- 24 -'!B35) -> 1498474 | C35: =B35/'- 3 -'!D35*100 -> 0.6597304641 | D35: =SUM('- 25 -'!B35,'- 25 -'!E35,'- 25 -'!H35,'- 26 -'!B35) -> 5757997 | E35: =D35/'- 3 -'!D35*100 -> 2.535063026 | F35: =D35/'- 7 -'!E35 -> 324.5313231 | G35: =SUM('- 27 -'!B35,'- 27 -'!E35,'- 27 -'!H35,'- 28 -'!B35,'- 28 -'!E35) -> 8330598 | H35: =G35/'- 3 -'!D35*100 -> 3.667697461 | I35: =G35/'- 7 -'!E35 -> 469.5278568
A36: ROLLING RIVER | B36: =SUM('- 24 -'!H36,'- 24 -'!F36,'- 24 -'!D36,'- 24 -'!B36) -> 27511 | C36: =B36/'- 3 -'!D36*100 -> 0.103500893 | D36: =SUM('- 25 -'!B36,'- 25 -'!E36,'- 25 -'!H36,'- 26 -'!B36) -> 964072 | E36: =D36/'- 3 -'!D36*100 -> 3.626996943 | F36: =D36/'- 7 -'!E36 -> 557.267052 | G36: =SUM('- 27 -'!B36,'- 27 -'!E36,'- 27 -'!H36,'- 28 -'!B36,'- 28 -'!E36) -> 529717 | H36: =G36/'- 3 -'!D36*100 -> 1.992882211 | I36: =G36/'- 7 -'!E36 -> 306.1947977
A37: SEINE RIVER | B37: =SUM('- 24 -'!H37,'- 24 -'!F37,'- 24 -'!D37,'- 24 -'!B37) -> 698398 | C37: =B37/'- 3 -'!D37*100 -> 1.108565896 | D37: =SUM('- 25 -'!B37,'- 25 -'!E37,'- 25 -'!H37,'- 26 -'!B37) -> 2187609 | E37: =D37/'- 3 -'!D37*100 -> 3.472387852 | F37: =D37/'- 7 -'!E37 -> 459.1958438 | G37: =SUM('- 27 -'!B37,'- 27 -'!E37,'- 27 -'!H37,'- 28 -'!B37,'- 28 -'!E37) -> 1614727 | H37: =G37/'- 3 -'!D37*100 -> 2.563053279 | I37: =G37/'- 7 -'!E37 -> 338.9435348
A38: SEVEN OAKS | B38: =SUM('- 24 -'!H38,'- 24 -'!F38,'- 24 -'!D38,'- 24 -'!B38) -> 3884871 | C38: =B38/'- 3 -'!D38*100 -> 2.24998984 | D38: =SUM('- 25 -'!B38,'- 25 -'!E38,'- 25 -'!H38,'- 26 -'!B38) -> 4270585 | E38: =D38/'- 3 -'!D38*100 -> 2.473382735 | F38: =D38/'- 7 -'!E38 -> 356.6488784 | G38: =SUM('- 27 -'!B38,'- 27 -'!E38,'- 27 -'!H38,'- 28 -'!B38,'- 28 -'!E38) -> 6363101 | H38: =G38/'- 3 -'!D38*100 -> 3.685299358 | I38: =G38/'- 7 -'!E38 -> 531.4009287
A39: SOUTHWEST HORIZON | B39: =SUM('- 24 -'!H39,'- 24 -'!F39,'- 24 -'!D39,'- 24 -'!B39) -> 185850 | C39: =B39/'- 3 -'!D39*100 -> 0.7568796327 | D39: =SUM('- 25 -'!B39,'- 25 -'!E39,'- 25 -'!H39,'- 26 -'!B39) -> 884684 | E39: =D39/'- 3 -'!D39*100 -> 3.602901808 | F39: =D39/'- 7 -'!E39 -> 617.1496338 | G39: =SUM('- 27 -'!B39,'- 27 -'!E39,'- 27 -'!H39,'- 28 -'!B39,'- 28 -'!E39) -> 523463 | H39: =G39/'- 3 -'!D39*100 -> 2.13181858 | I39: =G39/'- 7 -'!E39 -> 365.1642832
A40: ST. JAMES-ASSINIBOIA | B40: =SUM('- 24 -'!H40,'- 24 -'!F40,'- 24 -'!D40,'- 24 -'!B40) -> 979940 | C40: =B40/'- 3 -'!D40*100 -> 0.818697263 | D40: =SUM('- 25 -'!B40,'- 25 -'!E40,'- 25 -'!H40,'- 26 -'!B40) -> 3387333 | E40: =D40/'- 3 -'!D40*100 -> 2.829969443 | F40: =D40/'- 7 -'!E40 -> 421.5827401 | G40: =SUM('- 27 -'!B40,'- 27 -'!E40,'- 27 -'!H40,'- 28 -'!B40,'- 28 -'!E40) -> 4525362 | H40: =G40/'- 3 -'!D40*100 -> 3.780743192 | I40: =G40/'- 7 -'!E40 -> 563.2202419
A41: SUNRISE | B41: =SUM('- 24 -'!H41,'- 24 -'!F41,'- 24 -'!D41,'- 24 -'!B41) -> 59924 | C41: =B41/'- 3 -'!D41*100 -> 0.07946520727 | D41: =SUM('- 25 -'!B41,'- 25 -'!E41,'- 25 -'!H41,'- 26 -'!B41) -> 2233671 | E41: =D41/'- 3 -'!D41*100 -> 2.962070773 | F41: =D41/'- 7 -'!E41 -> 483.7927225 | G41: =SUM('- 27 -'!B41,'- 27 -'!E41,'- 27 -'!H41,'- 28 -'!B41,'- 28 -'!E41) -> 1656821 | H41: =G41/'- 3 -'!D41*100 -> 2.197110076 | I41: =G41/'- 7 -'!E41 -> 358.852285
A42: SWAN VALLEY | B42: =SUM('- 24 -'!H42,'- 24 -'!F42,'- 24 -'!D42,'- 24 -'!B42) -> 88355 | C42: =B42/'- 3 -'!D42*100 -> 0.3588539969 | D42: =SUM('- 25 -'!B42,'- 25 -'!E42,'- 25 -'!H42,'- 26 -'!B42) -> 801774 | E42: =D42/'- 3 -'!D42*100 -> 3.256406593 | F42: =D42/'- 7 -'!E42 -> 566.6327439 | G42: =SUM('- 27 -'!B42,'- 27 -'!E42,'- 27 -'!H42,'- 28 -'!B42,'- 28 -'!E42) -> 423200 | H42: =G42/'- 3 -'!D42*100 -> 1.718827587 | I42: =G42/'- 7 -'!E42 -> 299.0854994
A43: TURTLE MOUNTAIN | B43: =SUM('- 24 -'!H43,'- 24 -'!F43,'- 24 -'!D43,'- 24 -'!B43) -> 13956 | C43: =B43/'- 3 -'!D43*100 -> 0.09054539 | D43: =SUM('- 25 -'!B43,'- 25 -'!E43,'- 25 -'!H43,'- 26 -'!B43) -> 528839 | E43: =D43/'- 3 -'!D43*100 -> 3.431064309 | F43: =D43/'- 7 -'!E43 -> 500.320719 | G43: =SUM('- 27 -'!B43,'- 27 -'!E43,'- 27 -'!H43,'- 28 -'!B43,'- 28 -'!E43) -> 470066 | H43: =G43/'- 3 -'!D43*100 -> 3.049749878 | I43: =G43/'- 7 -'!E43 -> 444.7171239
A44: TURTLE RIVER | B44: =SUM('- 24 -'!H44,'- 24 -'!F44,'- 24 -'!D44,'- 24 -'!B44) -> 31696 | C44: =B44/'- 3 -'!D44*100 -> 0.2584344446 | D44: =SUM('- 25 -'!B44,'- 25 -'!E44,'- 25 -'!H44,'- 26 -'!B44) -> 473536 | E44: =D44/'- 3 -'!D44*100 -> 3.860992339 | F44: =D44/'- 7 -'!E44 -> 769.3517465 | G44: =SUM('- 27 -'!B44,'- 27 -'!E44,'- 27 -'!H44,'- 28 -'!B44,'- 28 -'!E44) -> 234959 | H44: =G44/'- 3 -'!D44*100 -> 1.915746425 | I44: =G44/'- 7 -'!E44 -> 381.7367994
A45: WESTERN | B45: =SUM('- 24 -'!H45,'- 24 -'!F45,'- 24 -'!D45,'- 24 -'!B45) -> 76308 | C45: =B45/'- 3 -'!D45*100 -> 0.2779934258 | D45: =SUM('- 25 -'!B45,'- 25 -'!E45,'- 25 -'!H45,'- 26 -'!B45) -> 964311 | E45: =D45/'- 3 -'!D45*100 -> 3.513027709 | F45: =D45/'- 7 -'!E45 -> 450.4021485 | G45: =SUM('- 27 -'!B45,'- 27 -'!E45,'- 27 -'!H45,'- 28 -'!B45,'- 28 -'!E45) -> 639743 | H45: =G45/'- 3 -'!D45*100 -> 2.330612101 | I45: =G45/'- 7 -'!E45 -> 298.8056983
A46: WINNIPEG | B46: =SUM('- 24 -'!H46,'- 24 -'!F46,'- 24 -'!D46,'- 24 -'!B46) -> 7724147 | C46: =B46/'- 3 -'!D46*100 -> 1.71238127 | D46: =SUM('- 25 -'!B46,'- 25 -'!E46,'- 25 -'!H46,'- 26 -'!B46) -> 12394196 | E46: =D46/'- 3 -'!D46*100 -> 2.747693576 | F46: =D46/'- 7 -'!E46 -> 445.614787 | G46: =SUM('- 27 -'!B46,'- 27 -'!E46,'- 27 -'!H46,'- 28 -'!B46,'- 28 -'!E46) -> 10635509 | H46: =G46/'- 3 -'!D46*100 -> 2.357806812 | I46: =G46/'- 7 -'!E46 -> 382.3838252
A48: PROVINCE | B48: =SUM(B11:B46) -> 23891438 | C48: =B48/'- 3 -'!D48*100 -> 0.8522164331 | D48: =SUM(D11:D46) -> 88723446 | E48: =D48/'- 3 -'!D48*100 -> 3.164798146 | F48: =D48/'- 7 -'!E48 -> 473.128174 | G48: =SUM(G11:G46) -> 92153218 | H48: =G48/'- 3 -'!D48*100 -> 3.287139382 | I48: =G48/'- 7 -'!E48 -> 491.4178352
A50: WHITESHELL | B50: =SUM('- 24 -'!H50,'- 24 -'!F50,'- 24 -'!D50,'- 24 -'!B50) -> 115352 | C50: =B50/'- 3 -'!D50*100 -> 2.817098158 | D50: =SUM('- 25 -'!B50,'- 25 -'!E50,'- 25 -'!H50,'- 26 -'!B50) -> 214131 | E50: =D50/'- 3 -'!D50*100 -> 5.229454589 | F50: =D50/'- 7 -'!E50 -> 1098.107692 | G50: =SUM('- 27 -'!B50,'- 27 -'!E50,'- 27 -'!H50,'- 28 -'!B50,'- 28 -'!E50) -> 118391 | H50: =G50/'- 3 -'!D50*100 -> 2.891315869 | I50: =G50/'- 7 -'!E50 -> 607.1333333

Sheet - 17 -
B2: ANALYSIS OF EXPENSE BY FUNCTION | J2: PAGE 3 OF 3
B3: =OPYEAR -> OPERATING FUND 2023/2024 ACTUAL
B6: TRANSPORTATION OF PUPILS | E6: OPERATIONS AND MAINTENANCE
H7: FISCAL
D8: PER PUPIL | G8: PER PUPIL | J8: PER PUPIL
A9: DIVISION / DISTRICT | B9: AMOUNT | C9: % | E9: AMOUNT | F9: % | H9: AMOUNT | I9: %
A11: BEAUTIFUL PLAINS | B11: =SUM('- 30 -'!D11,'- 30 -'!B11,'- 29 -'!F11,'- 29 -'!D11,'- 29 -'!B11) -> 1540715 | C11: =B11/'- 3 -'!D11*100 -> 5.72792385 | D11: =B11/'- 7 -'!E11 -> 709.0593216 | E11: =SUM('- 32 -'!D11,'- 32 -'!B11,'- 31 -'!F11,'- 31 -'!D11,'- 31 -'!B11) -> 2430315 | F11: =E11/'- 3 -'!D11*100 -> 9.035194212 | G11: =E11/'- 7 -'!E11 -> 1118.466105 | H11: =SUM('- 33 -'!B11,'- 33 -'!D11,'- 33 -'!F11) -> 482992 | I11: =H11/'- 3 -'!D11*100 -> 1.79562177 | J11: =H11/'- 7 -'!E11 -> 222.2799024
A12: BORDER LAND | B12: =SUM('- 30 -'!D12,'- 30 -'!B12,'- 29 -'!F12,'- 29 -'!D12,'- 29 -'!B12) -> 2947852 | C12: =B12/'- 3 -'!D12*100 -> 7.86167389 | D12: =B12/'- 7 -'!E12 -> 1429.954887 | E12: =SUM('- 32 -'!D12,'- 32 -'!B12,'- 31 -'!F12,'- 31 -'!D12,'- 31 -'!B12) -> 3883379 | F12: =E12/'- 3 -'!D12*100 -> 10.35664589 | G12: =E12/'- 7 -'!E12 -> 1883.763764 | H12: =SUM('- 33 -'!B12,'- 33 -'!D12,'- 33 -'!F12) -> 742078 | I12: =H12/'- 3 -'!D12*100 -> 1.979059748 | J12: =H12/'- 7 -'!E12 -> 359.9699248
A13: BRANDON | B13: =SUM('- 30 -'!D13,'- 30 -'!B13,'- 29 -'!F13,'- 29 -'!D13,'- 29 -'!B13) -> 2844075 | C13: =B13/'- 3 -'!D13*100 -> 2.328913033 | D13: =B13/'- 7 -'!E13 -> 304.227951 | E13: =SUM('- 32 -'!D13,'- 32 -'!B13,'- 31 -'!F13,'- 31 -'!D13,'- 31 -'!B13) -> 9861006 | F13: =E13/'- 3 -'!D13*100 -> 8.074831145 | G13: =E13/'- 7 -'!E13 -> 1054.822271 | H13: =SUM('- 33 -'!B13,'- 33 -'!D13,'- 33 -'!F13) -> 2003517 | I13: =H13/'- 3 -'!D13*100 -> 1.640609637 | J13: =H13/'- 7 -'!E13 -> 214.314275
A14: DSFM | B14: =SUM('- 30 -'!D14,'- 30 -'!B14,'- 29 -'!F14,'- 29 -'!D14,'- 29 -'!B14) -> 12078790 | C14: =B14/'- 3 -'!D14*100 -> 11.23264601 | D14: =B14/'- 7 -'!E14 -> 2004.079906 | E14: =SUM('- 32 -'!D14,'- 32 -'!B14,'- 31 -'!F14,'- 31 -'!D14,'- 31 -'!B14) -> 11797947 | F14: =E14/'- 3 -'!D14*100 -> 10.97147664 | G14: =E14/'- 7 -'!E14 -> 1957.483201 | H14: =SUM('- 33 -'!B14,'- 33 -'!D14,'- 33 -'!F14) -> 1584610 | I14: =H14/'- 3 -'!D14*100 -> 1.473604822 | J14: =H14/'- 7 -'!E14 -> 262.914171
A15: EVERGREEN | B15: =SUM('- 30 -'!D15,'- 30 -'!B15,'- 29 -'!F15,'- 29 -'!D15,'- 29 -'!B15) -> 1872585 | C15: =B15/'- 3 -'!D15*100 -> 8.361690718 | D15: =B15/'- 7 -'!E15 -> 1305.84728 | E15: =SUM('- 32 -'!D15,'- 32 -'!B15,'- 31 -'!F15,'- 31 -'!D15,'- 31 -'!B15) -> 3196587 | F15: =E15/'- 3 -'!D15*100 -> 14.27378295 | G15: =E15/'- 7 -'!E15 -> 2229.140167 | H15: =SUM('- 33 -'!B15,'- 33 -'!D15,'- 33 -'!F15) -> 403203 | I15: =H15/'- 3 -'!D15*100 -> 1.800430305 | J15: =H15/'- 7 -'!E15 -> 281.1736402
A16: FLIN FLON | B16: =SUM('- 30 -'!D16,'- 30 -'!B16,'- 29 -'!F16,'- 29 -'!D16,'- 29 -'!B16) -> 567388 | C16: =B16/'- 3 -'!D16*100 -> 3.326215293 | D16: =B16/'- 7 -'!E16 -> 686.9104116 | E16: =SUM('- 32 -'!D16,'- 32 -'!B16,'- 31 -'!F16,'- 31 -'!D16,'- 31 -'!B16) -> 2482615 | F16: =E16/'- 3 -'!D16*100 -> 14.55390664 | G16: =E16/'- 7 -'!E16 -> 3005.587167 | H16: =SUM('- 33 -'!B16,'- 33 -'!D16,'- 33 -'!F16) -> 246759 | I16: =H16/'- 3 -'!D16*100 -> 1.446582514 | J16: =H16/'- 7 -'!E16 -> 298.7397094
A17: FORT LA BOSSE | B17: =SUM('- 30 -'!D17,'- 30 -'!B17,'- 29 -'!F17,'- 29 -'!D17,'- 29 -'!B17) -> 1805310 | C17: =B17/'- 3 -'!D17*100 -> 8.417435731 | D17: =B17/'- 7 -'!E17 -> 1184.198098 | E17: =SUM('- 32 -'!D17,'- 32 -'!B17,'- 31 -'!F17,'- 31 -'!D17,'- 31 -'!B17) -> 2187248 | F17: =E17/'- 3 -'!D17*100 -> 10.19825928 | G17: =E17/'- 7 -'!E17 -> 1434.731387 | H17: =SUM('- 33 -'!B17,'- 33 -'!D17,'- 33 -'!F17) -> 421222 | I17: =H17/'- 3 -'!D17*100 -> 1.963989073 | J17: =H17/'- 7 -'!E17 -> 276.3017383
A18: FRONTIER | B18: =SUM('- 30 -'!D18,'- 30 -'!B18,'- 29 -'!F18,'- 29 -'!D18,'- 29 -'!B18) -> 13935166 | C18: =B18/'- 3 -'!D18*100 -> 8.386324653 | D18: =B18/'- 7 -'!E18 -> 2202.840025 | E18: =SUM('- 32 -'!D18,'- 32 -'!B18,'- 31 -'!F18,'- 31 -'!D18,'- 31 -'!B18) -> 31063450 | F18: =E18/'- 3 -'!D18*100 -> 18.6943002 | G18: =E18/'- 7 -'!E18 -> 4910.441037 | H18: =SUM('- 33 -'!B18,'- 33 -'!D18,'- 33 -'!F18) -> 1445358 | I18: =H18/'- 3 -'!D18*100 -> 0.8698311472 | J18: =H18/'- 7 -'!E18 -> 228.4789757
A19: GARDEN VALLEY | B19: =SUM('- 30 -'!D19,'- 30 -'!B19,'- 29 -'!F19,'- 29 -'!D19,'- 29 -'!B19) -> 3402702 | C19: =B19/'- 3 -'!D19*100 -> 5.977026185 | D19: =B19/'- 7 -'!E19 -> 802.7133758 | E19: =SUM('- 32 -'!D19,'- 32 -'!B19,'- 31 -'!F19,'- 31 -'!D19,'- 31 -'!B19) -> 5926831 | F19: =E19/'- 3 -'!D19*100 -> 10.41079239 | G19: =E19/'- 7 -'!E19 -> 1398.167256 | H19: =SUM('- 33 -'!B19,'- 33 -'!D19,'- 33 -'!F19) -> 928864 | I19: =H19/'- 3 -'!D19*100 -> 1.631598785 | J19: =H19/'- 7 -'!E19 -> 219.1233782
A20: HANOVER | B20: =SUM('- 30 -'!D20,'- 30 -'!B20,'- 29 -'!F20,'- 29 -'!D20,'- 29 -'!B20) -> 4573575 | C20: =B20/'- 3 -'!D20*100 -> 4.420777544 | D20: =B20/'- 7 -'!E20 -> 543.2379946 | E20: =SUM('- 32 -'!D20,'- 32 -'!B20,'- 31 -'!F20,'- 31 -'!D20,'- 31 -'!B20) -> 9815257 | F20: =E20/'- 3 -'!D20*100 -> 9.487341463 | G20: =E20/'- 7 -'!E20 -> 1165.832096 | H20: =SUM('- 33 -'!B20,'- 33 -'!D20,'- 33 -'!F20) -> 2057097 | I20: =H20/'- 3 -'!D20*100 -> 1.988371946 | J20: =H20/'- 7 -'!E20 -> 244.3369244
A21: INTERLAKE | B21: =SUM('- 30 -'!D21,'- 30 -'!B21,'- 29 -'!F21,'- 29 -'!D21,'- 29 -'!B21) -> 2799644 | C21: =B21/'- 3 -'!D21*100 -> 6.712448188 | D21: =B21/'- 7 -'!E21 -> 969.7416003 | E21: =SUM('- 32 -'!D21,'- 32 -'!B21,'- 31 -'!F21,'- 31 -'!D21,'- 31 -'!B21) -> 3936334 | F21: =E21/'- 3 -'!D21*100 -> 9.437784956 | G21: =E21/'- 7 -'!E21 -> 1363.468653 | H21: =SUM('- 33 -'!B21,'- 33 -'!D21,'- 33 -'!F21) -> 790051 | I21: =H21/'- 3 -'!D21*100 -> 1.894232411 | J21: =H21/'- 7 -'!E21 -> 273.6581226
A22: KELSEY | B22: =SUM('- 30 -'!D22,'- 30 -'!B22,'- 29 -'!F22,'- 29 -'!D22,'- 29 -'!B22) -> 537979 | C22: =B22/'- 3 -'!D22*100 -> 2.325196528 | D22: =B22/'- 7 -'!E22 -> 371.5324586 | E22: =SUM('- 32 -'!D22,'- 32 -'!B22,'- 31 -'!F22,'- 31 -'!D22,'- 31 -'!B22) -> 2816333 | F22: =E22/'- 3 -'!D22*100 -> 12.17245973 | G22: =E22/'- 7 -'!E22 -> 1944.981354 | H22: =SUM('- 33 -'!B22,'- 33 -'!D22,'- 33 -'!F22) -> 379557 | I22: =H22/'- 3 -'!D22*100 -> 1.64048154 | J22: =H22/'- 7 -'!E22 -> 262.125
A23: LAKESHORE | B23: =SUM('- 30 -'!D23,'- 30 -'!B23,'- 29 -'!F23,'- 29 -'!D23,'- 29 -'!B23) -> 1689774 | C23: =B23/'- 3 -'!D23*100 -> 10.33230129 | D23: =B23/'- 7 -'!E23 -> 1733.101538 | E23: =SUM('- 32 -'!D23,'- 32 -'!B23,'- 31 -'!F23,'- 31 -'!D23,'- 31 -'!B23) -> 1600077 | F23: =E23/'- 3 -'!D23*100 -> 9.783839526 | G23: =E23/'- 7 -'!E23 -> 1641.104615 | H23: =SUM('- 33 -'!B23,'- 33 -'!D23,'- 33 -'!F23) -> 254184 | I23: =H23/'- 3 -'!D23*100 -> 1.554234869 | J23: =H23/'- 7 -'!E23 -> 260.7015385
A24: LORD SELKIRK | B24: =SUM('- 30 -'!D24,'- 30 -'!B24,'- 29 -'!F24,'- 29 -'!D24,'- 29 -'!B24) -> 3055681 | C24: =B24/'- 3 -'!D24*100 -> 4.700446975 | D24: =B24/'- 7 -'!E24 -> 809.237553 | E24: =SUM('- 32 -'!D24,'- 32 -'!B24,'- 31 -'!F24,'- 31 -'!D24,'- 31 -'!B24) -> 6444559 | F24: =E24/'- 3 -'!D24*100 -> 9.913439216 | G24: =E24/'- 7 -'!E24 -> 1706.715837 | H24: =SUM('- 33 -'!B24,'- 33 -'!D24,'- 33 -'!F24) -> 1317195 | I24: =H24/'- 3 -'!D24*100 -> 2.026194898 | J24: =H24/'- 7 -'!E24 -> 348.8334216
A25: LOUIS RIEL | B25: =SUM('- 30 -'!D25,'- 30 -'!B25,'- 29 -'!F25,'- 29 -'!D25,'- 29 -'!B25) -> 6009146 | C25: =B25/'- 3 -'!D25*100 -> 2.568822101 | D25: =B25/'- 7 -'!E25 -> 350.2037415 | E25: =SUM('- 32 -'!D25,'- 32 -'!B25,'- 31 -'!F25,'- 31 -'!D25,'- 31 -'!B25) -> 23509512 | F25: =E25/'- 3 -'!D25*100 -> 10.04997283 | G25: =E25/'- 7 -'!E25 -> 1370.098024 | H25: =SUM('- 33 -'!B25,'- 33 -'!D25,'- 33 -'!F25) -> 3995701 | I25: =H25/'- 3 -'!D25*100 -> 1.708103787 | J25: =H25/'- 7 -'!E25 -> 232.8632787
A26: MOUNTAIN VIEW | B26: =SUM('- 30 -'!D26,'- 30 -'!B26,'- 29 -'!F26,'- 29 -'!D26,'- 29 -'!B26) -> 3385297 | C26: =B26/'- 3 -'!D26*100 -> 7.046611462 | D26: =B26/'- 7 -'!E26 -> 1087.85533 | E26: =SUM('- 32 -'!D26,'- 32 -'!B26,'- 31 -'!F26,'- 31 -'!D26,'- 31 -'!B26) -> 6054583 | F26: =E26/'- 3 -'!D26*100 -> 12.60282154 | G26: =E26/'- 7 -'!E26 -> 1945.62261 | H26: =SUM('- 33 -'!B26,'- 33 -'!D26,'- 33 -'!F26) -> 920681 | I26: =H26/'- 3 -'!D26*100 -> 1.916428983 | J26: =H26/'- 7 -'!E26 -> 295.8581574
A27: MYSTERY LAKE | B27: =SUM('- 30 -'!D27,'- 30 -'!B27,'- 29 -'!F27,'- 29 -'!D27,'- 29 -'!B27) -> 432619 | C27: =B27/'- 3 -'!D27*100 -> 0.9351134754 | D27: =B27/'- 7 -'!E27 -> 153.0581992 | E27: =SUM('- 32 -'!D27,'- 32 -'!B27,'- 31 -'!F27,'- 31 -'!D27,'- 31 -'!B27) -> 5990573 | F27: =E27/'- 3 -'!D27*100 -> 12.94872749 | G27: =E27/'- 7 -'!E27 -> 2119.431452 | H27: =SUM('- 33 -'!B27,'- 33 -'!D27,'- 33 -'!F27) -> 696031 | I27: =H27/'- 3 -'!D27*100 -> 1.504483084 | J27: =H27/'- 7 -'!E27 -> 246.2519016
A28: PARK WEST | B28: =SUM('- 30 -'!D28,'- 30 -'!B28,'- 29 -'!F28,'- 29 -'!D28,'- 29 -'!B28) -> 1923700 | C28: =B28/'- 3 -'!D28*100 -> 5.833039235 | D28: =B28/'- 7 -'!E28 -> 910.842803 | E28: =SUM('- 32 -'!D28,'- 32 -'!B28,'- 31 -'!F28,'- 31 -'!D28,'- 31 -'!B28) -> 3700567 | F28: =E28/'- 3 -'!D28*100 -> 11.22085175 | G28: =E28/'- 7 -'!E28 -> 1752.162405 | H28: =SUM('- 33 -'!B28,'- 33 -'!D28,'- 33 -'!F28) -> 578047 | I28: =H28/'- 3 -'!D28*100 -> 1.75275294 | J28: =H28/'- 7 -'!E28 -> 273.6964962
A29: PEMBINA TRAILS | B29: =SUM('- 30 -'!D29,'- 30 -'!B29,'- 29 -'!F29,'- 29 -'!D29,'- 29 -'!B29) -> 4272623 | C29: =B29/'- 3 -'!D29*100 -> 2.082124481 | D29: =B29/'- 7 -'!E29 -> 258.4221732 | E29: =SUM('- 32 -'!D29,'- 32 -'!B29,'- 31 -'!F29,'- 31 -'!D29,'- 31 -'!B29) -> 21810554 | F29: =E29/'- 3 -'!D29*100 -> 10.62866731 | G29: =E29/'- 7 -'!E29 -> 1319.173436 | H29: =SUM('- 33 -'!B29,'- 33 -'!D29,'- 33 -'!F29) -> 3813059 | I29: =H29/'- 3 -'!D29*100 -> 1.858170845 | J29: =H29/'- 7 -'!E29 -> 230.6262437
A30: PINE CREEK | B30: =SUM('- 30 -'!D30,'- 30 -'!B30,'- 29 -'!F30,'- 29 -'!D30,'- 29 -'!B30) -> 1525917 | C30: =B30/'- 3 -'!D30*100 -> 8.124386977 | D30: =B30/'- 7 -'!E30 -> 1426.090654 | E30: =SUM('- 32 -'!D30,'- 32 -'!B30,'- 31 -'!F30,'- 31 -'!D30,'- 31 -'!B30) -> 1761154 | F30: =E30/'- 3 -'!D30*100 -> 9.376851181 | G30: =E30/'- 7 -'!E30 -> 1645.938318 | H30: =SUM('- 33 -'!B30,'- 33 -'!D30,'- 33 -'!F30) -> 357013 | I30: =H30/'- 3 -'!D30*100 -> 1.900831938 | J30: =H30/'- 7 -'!E30 -> 333.6570093
A31: PORTAGE LA PRAIRIE | B31: =SUM('- 30 -'!D31,'- 30 -'!B31,'- 29 -'!F31,'- 29 -'!D31,'- 29 -'!B31) -> 1377558 | C31: =B31/'- 3 -'!D31*100 -> 2.870372836 | D31: =B31/'- 7 -'!E31 -> 419.0290494 | E31: =SUM('- 32 -'!D31,'- 32 -'!B31,'- 31 -'!F31,'- 31 -'!D31,'- 31 -'!B31) -> 4648907 | F31: =E31/'- 3 -'!D31*100 -> 9.686776433 | G31: =E31/'- 7 -'!E31 -> 1414.116198 | H31: =SUM('- 33 -'!B31,'- 33 -'!D31,'- 33 -'!F31) -> 776718 | I31: =H31/'- 3 -'!D31*100 -> 1.618422054 | J31: =H31/'- 7 -'!E31 -> 236.2640304
A32: PRAIRIE ROSE | B32: =SUM('- 30 -'!D32,'- 30 -'!B32,'- 29 -'!F32,'- 29 -'!D32,'- 29 -'!B32) -> 2832861 | C32: =B32/'- 3 -'!D32*100 -> 8.01575035 | D32: =B32/'- 7 -'!E32 -> 1250.159312 | E32: =SUM('- 32 -'!D32,'- 32 -'!B32,'- 31 -'!F32,'- 31 -'!D32,'- 31 -'!B32) -> 4025095 | F32: =E32/'- 3 -'!D32*100 -> 11.38924806 | G32: =E32/'- 7 -'!E32 -> 1776.299647 | H32: =SUM('- 33 -'!B32,'- 33 -'!D32,'- 33 -'!F32) -> 711756 | I32: =H32/'- 3 -'!D32*100 -> 2.013956352 | J32: =H32/'- 7 -'!E32 -> 314.1023831
A33: PRAIRIE SPIRIT | B33: =SUM('- 30 -'!D33,'- 30 -'!B33,'- 29 -'!F33,'- 29 -'!D33,'- 29 -'!B33) -> 2664349 | C33: =B33/'- 3 -'!D33*100 -> 8.534554589 | D33: =B33/'- 7 -'!E33 -> 1274.808134 | E33: =SUM('- 32 -'!D33,'- 32 -'!B33,'- 31 -'!F33,'- 31 -'!D33,'- 31 -'!B33) -> 3510646 | F33: =E33/'- 3 -'!D33*100 -> 11.24544867 | G33: =E33/'- 7 -'!E33 -> 1679.734928 | H33: =SUM('- 33 -'!B33,'- 33 -'!D33,'- 33 -'!F33) -> 587796 | I33: =H33/'- 3 -'!D33*100 -> 1.882852828 | J33: =H33/'- 7 -'!E33 -> 281.2421053
A34: RED RIVER VALLEY | B34: =SUM('- 30 -'!D34,'- 30 -'!B34,'- 29 -'!F34,'- 29 -'!D34,'- 29 -'!B34) -> 3174074 | C34: =B34/'- 3 -'!D34*100 -> 8.785222239 | D34: =B34/'- 7 -'!E34 -> 1400.738747 | E34: =SUM('- 32 -'!D34,'- 32 -'!B34,'- 31 -'!F34,'- 31 -'!D34,'- 31 -'!B34) -> 3351921 | F34: =E34/'- 3 -'!D34*100 -> 9.277468299 | G34: =E34/'- 7 -'!E34 -> 1479.223742 | H34: =SUM('- 33 -'!B34,'- 33 -'!D34,'- 33 -'!F34) -> 726391 | I34: =H34/'- 3 -'!D34*100 -> 2.010509638 | J34: =H34/'- 7 -'!E34 -> 320.5609003
A35: RIVER EAST TRANSCONA | B35: =SUM('- 30 -'!D35,'- 30 -'!B35,'- 29 -'!F35,'- 29 -'!D35,'- 29 -'!B35) -> 5789059 | C35: =B35/'- 3 -'!D35*100 -> 2.548738637 | D35: =B35/'- 7 -'!E35 -> 326.2820347 | E35: =SUM('- 32 -'!D35,'- 32 -'!B35,'- 31 -'!F35,'- 31 -'!D35,'- 31 -'!B35) -> 22708465 | F35: =E35/'- 3 -'!D35*100 -> 9.997815213 | G35: =E35/'- 7 -'!E35 -> 1279.89094 | H35: =SUM('- 33 -'!B35,'- 33 -'!D35,'- 33 -'!F35) -> 3636685 | I35: =H35/'- 3 -'!D35*100 -> 1.601116791 | J35: =H35/'- 7 -'!E35 -> 204.9702691
A36: ROLLING RIVER | B36: =SUM('- 30 -'!D36,'- 30 -'!B36,'- 29 -'!F36,'- 29 -'!D36,'- 29 -'!B36) -> 2038110 | C36: =B36/'- 3 -'!D36*100 -> 7.667704008 | D36: =B36/'- 7 -'!E36 -> 1178.098266 | E36: =SUM('- 32 -'!D36,'- 32 -'!B36,'- 31 -'!F36,'- 31 -'!D36,'- 31 -'!B36) -> 3474719 | F36: =E36/'- 3 -'!D36*100 -> 13.07246263 | G36: =E36/'- 7 -'!E36 -> 2008.508092 | H36: =SUM('- 33 -'!B36,'- 33 -'!D36,'- 33 -'!F36) -> 580628 | I36: =H36/'- 3 -'!D36*100 -> 2.184417741 | J36: =H36/'- 7 -'!E36 -> 335.6231214
A37: SEINE RIVER | B37: =SUM('- 30 -'!D37,'- 30 -'!B37,'- 29 -'!F37,'- 29 -'!D37,'- 29 -'!B37) -> 3962820 | C37: =B37/'- 3 -'!D37*100 -> 6.290177097 | D37: =B37/'- 7 -'!E37 -> 831.8261965 | E37: =SUM('- 32 -'!D37,'- 32 -'!B37,'- 31 -'!F37,'- 31 -'!D37,'- 31 -'!B37) -> 5749954 | F37: =E37/'- 3 -'!D37*100 -> 9.126891698 | G37: =E37/'- 7 -'!E37 -> 1206.959278 | H37: =SUM('- 33 -'!B37,'- 33 -'!D37,'- 33 -'!F37) -> 1105237 | I37: =H37/'- 3 -'!D37*100 -> 1.754340713 | J37: =H37/'- 7 -'!E37 -> 231.997691
A38: SEVEN OAKS | B38: =SUM('- 30 -'!D38,'- 30 -'!B38,'- 29 -'!F38,'- 29 -'!D38,'- 29 -'!B38) -> 5341360 | C38: =B38/'- 3 -'!D38*100 -> 3.093540489 | D38: =B38/'- 7 -'!E38 -> 446.072389 | E38: =SUM('- 32 -'!D38,'- 32 -'!B38,'- 31 -'!F38,'- 31 -'!D38,'- 31 -'!B38) -> 14948986 | F38: =E38/'- 3 -'!D38*100 -> 8.65796229 | G38: =E38/'- 7 -'!E38 -> 1248.432964 | H38: =SUM('- 33 -'!B38,'- 33 -'!D38,'- 33 -'!F38) -> 3073604 | I38: =H38/'- 3 -'!D38*100 -> 1.780130607 | J38: =H38/'- 7 -'!E38 -> 256.6855406
A39: SOUTHWEST HORIZON | B39: =SUM('- 30 -'!D39,'- 30 -'!B39,'- 29 -'!F39,'- 29 -'!D39,'- 29 -'!B39) -> 2024332 | C39: =B39/'- 3 -'!D39*100 -> 8.244152061 | D39: =B39/'- 7 -'!E39 -> 1412.160446 | E39: =SUM('- 32 -'!D39,'- 32 -'!B39,'- 31 -'!F39,'- 31 -'!D39,'- 31 -'!B39) -> 2696684 | F39: =E39/'- 3 -'!D39*100 -> 10.98232551 | G39: =E39/'- 7 -'!E39 -> 1881.188699 | H39: =SUM('- 33 -'!B39,'- 33 -'!D39,'- 33 -'!F39) -> 376979 | I39: =H39/'- 3 -'!D39*100 -> 1.535258149 | J39: =H39/'- 7 -'!E39 -> 262.9780258
A40: ST. JAMES-ASSINIBOIA | B40: =SUM('- 30 -'!D40,'- 30 -'!B40,'- 29 -'!F40,'- 29 -'!D40,'- 29 -'!B40) -> 2816299 | C40: =B40/'- 3 -'!D40*100 -> 2.352895364 | D40: =B40/'- 7 -'!E40 -> 350.512645 | E40: =SUM('- 32 -'!D40,'- 32 -'!B40,'- 31 -'!F40,'- 31 -'!D40,'- 31 -'!B40) -> 11718900 | F40: =E40/'- 3 -'!D40*100 -> 9.790631421 | G40: =E40/'- 7 -'!E40 -> 1458.517947 | H40: =SUM('- 33 -'!B40,'- 33 -'!D40,'- 33 -'!F40) -> 2109467 | I40: =H40/'- 3 -'!D40*100 -> 1.76236796 | J40: =H40/'- 7 -'!E40 -> 262.5413203
A41: SUNRISE | B41: =SUM('- 30 -'!D41,'- 30 -'!B41,'- 29 -'!F41,'- 29 -'!D41,'- 29 -'!B41) -> 5839404 | C41: =B41/'- 3 -'!D41*100 -> 7.743632755 | D41: =B41/'- 7 -'!E41 -> 1264.761533 | E41: =SUM('- 32 -'!D41,'- 32 -'!B41,'- 31 -'!F41,'- 31 -'!D41,'- 31 -'!B41) -> 7747498 | F41: =E41/'- 3 -'!D41*100 -> 10.27395592 | G41: =E41/'- 7 -'!E41 -> 1678.037254 | H41: =SUM('- 33 -'!B41,'- 33 -'!D41,'- 33 -'!F41) -> 1929829 | I41: =H41/'- 3 -'!D41*100 -> 2.559145943 | J41: =H41/'- 7 -'!E41 -> 417.9833225
A42: SWAN VALLEY | B42: =SUM('- 30 -'!D42,'- 30 -'!B42,'- 29 -'!F42,'- 29 -'!D42,'- 29 -'!B42) -> 1746345 | C42: =B42/'- 3 -'!D42*100 -> 7.092783467 | D42: =B42/'- 7 -'!E42 -> 1234.183522 | E42: =SUM('- 32 -'!D42,'- 32 -'!B42,'- 31 -'!F42,'- 31 -'!D42,'- 31 -'!B42) -> 2502038 | F42: =E42/'- 3 -'!D42*100 -> 10.16203199 | G42: =E42/'- 7 -'!E42 -> 1768.249728 | H42: =SUM('- 33 -'!B42,'- 33 -'!D42,'- 33 -'!F42) -> 397442 | I42: =H42/'- 3 -'!D42*100 -> 1.614211422 | J42: =H42/'- 7 -'!E42 -> 280.8817086
A43: TURTLE MOUNTAIN | B43: =SUM('- 30 -'!D43,'- 30 -'!B43,'- 29 -'!F43,'- 29 -'!D43,'- 29 -'!B43) -> 1171276 | C43: =B43/'- 3 -'!D43*100 -> 7.59914318 | D43: =B43/'- 7 -'!E43 -> 1108.113529 | E43: =SUM('- 32 -'!D43,'- 32 -'!B43,'- 31 -'!F43,'- 31 -'!D43,'- 31 -'!B43) -> 1127537 | F43: =E43/'- 3 -'!D43*100 -> 7.315368114 | G43: =E43/'- 7 -'!E43 -> 1066.733207 | H43: =SUM('- 33 -'!B43,'- 33 -'!D43,'- 33 -'!F43) -> 341688 | I43: =H43/'- 3 -'!D43*100 -> 2.216843882 | J43: =H43/'- 7 -'!E43 -> 323.2620624
A44: TURTLE RIVER | B44: =SUM('- 30 -'!D44,'- 30 -'!B44,'- 29 -'!F44,'- 29 -'!D44,'- 29 -'!B44) -> 1361072 | C44: =B44/'- 3 -'!D44*100 -> 11.09754816 | D44: =B44/'- 7 -'!E44 -> 2211.327376 | E44: =SUM('- 32 -'!D44,'- 32 -'!B44,'- 31 -'!F44,'- 31 -'!D44,'- 31 -'!B44) -> 1345059 | F44: =E44/'- 3 -'!D44*100 -> 10.9669856 | G44: =E44/'- 7 -'!E44 -> 2185.311129 | H44: =SUM('- 33 -'!B44,'- 33 -'!D44,'- 33 -'!F44) -> 190799 | I44: =H44/'- 3 -'!D44*100 -> 1.55568632 | J44: =H44/'- 7 -'!E44 -> 309.9902518
A45: WESTERN | B45: =SUM('- 30 -'!D45,'- 30 -'!B45,'- 29 -'!F45,'- 29 -'!D45,'- 29 -'!B45) -> 1202002 | C45: =B45/'- 3 -'!D45*100 -> 4.378946555 | D45: =B45/'- 7 -'!E45 -> 561.4208314 | E45: =SUM('- 32 -'!D45,'- 32 -'!B45,'- 31 -'!F45,'- 31 -'!D45,'- 31 -'!B45) -> 2297132 | F45: =E45/'- 3 -'!D45*100 -> 8.368553679 | G45: =E45/'- 7 -'!E45 -> 1072.924801 | H45: =SUM('- 33 -'!B45,'- 33 -'!D45,'- 33 -'!F45) -> 523120 | I45: =H45/'- 3 -'!D45*100 -> 1.905749343 | J45: =H45/'- 7 -'!E45 -> 244.3344232
A46: WINNIPEG | B46: =SUM('- 30 -'!D46,'- 30 -'!B46,'- 29 -'!F46,'- 29 -'!D46,'- 29 -'!B46) -> 8317462 | C46: =B46/'- 3 -'!D46*100 -> 1.843914434 | D46: =B46/'- 7 -'!E46 -> 299.041911 | E46: =SUM('- 32 -'!D46,'- 32 -'!B46,'- 31 -'!F46,'- 31 -'!D46,'- 31 -'!B46) -> 58272537 | F46: =E46/'- 3 -'!D46*100 -> 12.91855281 | G46: =E46/'- 7 -'!E46 -> 2095.101946 | H46: =SUM('- 33 -'!B46,'- 33 -'!D46,'- 33 -'!F46) -> 7890202 | I46: =H46/'- 3 -'!D46*100 -> 1.749194328 | J46: =H46/'- 7 -'!E46 -> 283.6804165
A48: PROVINCE | B48: =SUM(B11:B46) -> 122858921 | C48: =B48/'- 3 -'!D48*100 -> 4.382423169 | D48: =B48/'- 7 -'!E48 -> 655.1595951 | E48: =SUM(E11:E46) -> 310394959 | F48: =E48/'- 3 -'!D48*100 -> 11.07190303 | G48: =E48/'- 7 -'!E48 -> 1655.217497 | H48: =SUM(H11:H46) -> 48375560 | I48: =H48/'- 3 -'!D48*100 -> 1.725574124 | J48: =H48/'- 7 -'!E48 -> 257.9683432
A50: WHITESHELL | B50: =SUM('- 30 -'!D50,'- 30 -'!B50,'- 29 -'!F50,'- 29 -'!D50,'- 29 -'!B50) -> 61425 | C50: =B50/'- 3 -'!D50*100 -> 1.500106235 | D50: =B50/'- 7 -'!E50 -> 315 | E50: =SUM('- 32 -'!D50,'- 32 -'!B50,'- 31 -'!F50,'- 31 -'!D50,'- 31 -'!B50) -> 664381 | F50: =E50/'- 3 -'!D50*100 -> 16.22534929 | G50: =E50/'- 7 -'!E50 -> 3407.082051 | H50: =SUM('- 33 -'!B50,'- 33 -'!D50,'- 33 -'!F50) -> 28064 | I50: =H50/'- 3 -'!D50*100 -> 0.6853721021 | J50: =H50/'- 7 -'!E50 -> 143.9179487

Sheet - 18 -
B2: ANALYSIS OF EXPENSE BY PROGRAM | G2: PAGE 1 OF 16
B3: =OPYEAR -> OPERATING FUND 2023/2024 ACTUAL
B5: FUNCTION 100: REGULAR INSTRUCTION
E6: SENIOR YEARS TECHNOLOGY EDUCATION
B7: ADMINISTRATION
D8: PER PUPIL | G8: PER PUPIL
A9: DIVISION / DISTRICT | B9: AMOUNT | C9: % | E9: AMOUNT | F9: %
A11: BEAUTIFUL PLAINS | B11: 1961500 | C11: =B11/'- 3 -'!D11*100 -> 7.292278345 | D11: =B11/'- 7 -'!C11 -> 902.7106632 | E11: 0 | F11: =E11/'- 3 -'!D11*100 -> 0 | G11: =IF('- 7 -'!B11=0,"",E11/'- 7 -'!B11) -> 
A12: BORDER LAND | B12: 3041298 | C12: =B12/'- 3 -'!D12*100 -> 8.11088653 | D12: =B12/'- 7 -'!C12 -> 1475.284016 | E12: 1040766 | F12: =E12/'- 3 -'!D12*100 -> 2.775635577 | G12: =IF('- 7 -'!B12=0,"",E12/'- 7 -'!B12) -> 7466.040172
A13: BRANDON | B13: 8894357 | C13: =B13/'- 3 -'!D13*100 -> 7.283276262 | D13: =B13/'- 7 -'!C13 -> 951.4207627 | E13: 4195597 | F13: =E13/'- 3 -'!D13*100 -> 3.435626885 | G13: =IF('- 7 -'!B13=0,"",E13/'- 7 -'!B13) -> 9825.754098
A14: DSFM | B14: 8286525 | C14: =B14/'- 3 -'!D14*100 -> 7.706036943 | D14: =B14/'- 7 -'!C14 -> 1374.877636 | E14: 263188 | F14: =E14/'- 3 -'!D14*100 -> 0.2447511413 | G14: =IF('- 7 -'!B14=0,"",E14/'- 7 -'!B14) -> 7290.526316
A15: EVERGREEN | B15: 1738926 | C15: =B15/'- 3 -'!D15*100 -> 7.764860551 | D15: =B15/'- 7 -'!C15 -> 1212.640167 | E15: 120960 | F15: =E15/'- 3 -'!D15*100 -> 0.5401250727 | G15: =IF('- 7 -'!B15=0,"",E15/'- 7 -'!B15) -> 4244.210526
A16: FLIN FLON | B16: 1435424 | C16: =B16/'- 3 -'!D16*100 -> 8.414928164 | D16: =B16/'- 7 -'!C16 -> 1737.801453 | E16: 0 | F16: =E16/'- 3 -'!D16*100 -> 0 | G16: =IF('- 7 -'!B16=0,"",E16/'- 7 -'!B16) -> 
A17: FORT LA BOSSE | B17: 1396248 | C17: =B17/'- 3 -'!D17*100 -> 6.510143856 | D17: =B17/'- 7 -'!C17 -> 915.8727452 | E17: 214671 | F17: =E17/'- 3 -'!D17*100 -> 1.000924687 | G17: =IF('- 7 -'!B17=0,"",E17/'- 7 -'!B17) -> 8944.625
A18: FRONTIER | B18: 8603575 | C18: =B18/'- 3 -'!D18*100 -> 5.177718954 | D18: =B18/'- 7 -'!C18 -> 1360.033987 | E18: 0 | F18: =E18/'- 3 -'!D18*100 -> 0 | G18: =IF('- 7 -'!B18=0,"",E18/'- 7 -'!B18) -> 0
A19: GARDEN VALLEY | B19: 3328613 | C19: =B19/'- 3 -'!D19*100 -> 5.846884934 | D19: =B19/'- 7 -'!C19 -> 785.2354329 | E19: 1275125 | F19: =E19/'- 3 -'!D19*100 -> 2.239824561 | G19: =IF('- 7 -'!B19=0,"",E19/'- 7 -'!B19) -> 
A20: HANOVER | B20: 7197492 | C20: =B20/'- 3 -'!D20*100 -> 6.957032738 | D20: =B20/'- 7 -'!C20 -> 854.900405 | E20: 3282427 | F20: =E20/'- 3 -'!D20*100 -> 3.172765194 | G20: =IF('- 7 -'!B20=0,"",E20/'- 7 -'!B20) -> 5315.671255
A21: INTERLAKE | B21: 3357026 | C21: =B21/'- 3 -'!D21*100 -> 8.048831598 | D21: =B21/'- 7 -'!C21 -> 1162.807759 | E21: 0 | F21: =E21/'- 3 -'!D21*100 -> 0 | G21: =IF('- 7 -'!B21=0,"",E21/'- 7 -'!B21) -> 
A22: KELSEY | B22: 1605257 | C22: =B22/'- 3 -'!D22*100 -> 6.938073796 | D22: =B22/'- 7 -'!C22 -> 1108.602901 | E22: 36998 | F22: =E22/'- 3 -'!D22*100 -> 0.1599088833 | G22: =IF('- 7 -'!B22=0,"",E22/'- 7 -'!B22) -> 3999.783784
A23: LAKESHORE | B23: 1131915 | C23: =B23/'- 3 -'!D23*100 -> 6.921213615 | D23: =B23/'- 7 -'!C23 -> 1160.938462 | E23: 145688 | F23: =E23/'- 3 -'!D23*100 -> 0.8908246371 | G23: =IF('- 7 -'!B23=0,"",E23/'- 7 -'!B23) -> 7284.4
A24: LORD SELKIRK | B24: 5417974 | C24: =B24/'- 3 -'!D24*100 -> 8.334279494 | D24: =B24/'- 7 -'!C24 -> 1434.844809 | E24: 2100984 | F24: =E24/'- 3 -'!D24*100 -> 3.231870044 | G24: =IF('- 7 -'!B24=0,"",E24/'- 7 -'!B24) -> 10248.70244
A25: LOUIS RIEL | B25: 17460296 | C25: =B25/'- 3 -'!D25*100 -> 7.464021387 | D25: =B25/'- 7 -'!C25 -> 1017.559065 | E25: 2199261 | F25: =E25/'- 3 -'!D25*100 -> 0.940151939 | G25: =IF('- 7 -'!B25=0,"",E25/'- 7 -'!B25) -> 19462.48673
A26: MOUNTAIN VIEW | B26: 4349591 | C26: =B26/'- 3 -'!D26*100 -> 9.053822396 | D26: =B26/'- 7 -'!C26 -> 1397.728397 | E26: 1184918 | F26: =E26/'- 3 -'!D26*100 -> 2.466447334 | G26: =IF('- 7 -'!B26=0,"",E26/'- 7 -'!B26) -> 7674.339378
A27: MYSTERY LAKE | B27: 2908389 | C27: =B27/'- 3 -'!D27*100 -> 6.286533291 | D27: =B27/'- 7 -'!C27 -> 1028.971873 | E27: 1328343 | F27: =E27/'- 3 -'!D27*100 -> 2.871236444 | G27: =IF('- 7 -'!B27=0,"",E27/'- 7 -'!B27) -> 16666.78795
A28: PARK WEST | B28: 2696430 | C28: =B28/'- 3 -'!D28*100 -> 8.176109573 | D28: =B28/'- 7 -'!C28 -> 1276.71875 | E28: 0 | F28: =E28/'- 3 -'!D28*100 -> 0 | G28: =IF('- 7 -'!B28=0,"",E28/'- 7 -'!B28) -> 
A29: PEMBINA TRAILS | B29: 16579615 | C29: =B29/'- 3 -'!D29*100 -> 8.079538559 | D29: =B29/'- 7 -'!C29 -> 1002.789186 | E29: 0 | F29: =E29/'- 3 -'!D29*100 -> 0 | G29: =IF('- 7 -'!B29=0,"",E29/'- 7 -'!B29) -> 
A30: PINE CREEK | B30: 1508635 | C30: =B30/'- 3 -'!D30*100 -> 8.032373024 | D30: =B30/'- 7 -'!C30 -> 1409.939252 | E30: 538106 | F30: =E30/'- 3 -'!D30*100 -> 2.865019119 | G30: =IF('- 7 -'!B30=0,"",E30/'- 7 -'!B30) -> 6988.38961
A31: PORTAGE LA PRAIRIE | B31: 3891833 | C31: =B31/'- 3 -'!D31*100 -> 8.109285943 | D31: =B31/'- 7 -'!C31 -> 1183.827529 | E31: 1027347 | F31: =E31/'- 3 -'!D31*100 -> 2.140649557 | G31: =IF('- 7 -'!B31=0,"",E31/'- 7 -'!B31) -> 11289.52747
A32: PRAIRIE ROSE | B32: 2814831 | C32: =B32/'- 3 -'!D32*100 -> 7.964733382 | D32: =B32/'- 7 -'!C32 -> 1242.20256 | E32: 0 | F32: =E32/'- 3 -'!D32*100 -> 0 | G32: =IF('- 7 -'!B32=0,"",E32/'- 7 -'!B32) -> 
A33: PRAIRIE SPIRIT | B33: 3008913 | C33: =B33/'- 3 -'!D33*100 -> 9.638276461 | D33: =B33/'- 7 -'!C33 -> 1439.671292 | E33: 0 | F33: =E33/'- 3 -'!D33*100 -> 0 | G33: =IF('- 7 -'!B33=0,"",E33/'- 7 -'!B33) -> 
A34: RED RIVER VALLEY | B34: 3156194 | C34: =B34/'- 3 -'!D34*100 -> 8.735733861 | D34: =B34/'- 7 -'!C34 -> 1392.848191 | E34: 325107 | F34: =E34/'- 3 -'!D34*100 -> 0.8998332258 | G34: =IF('- 7 -'!B34=0,"",E34/'- 7 -'!B34) -> 16672.15385
A35: RIVER EAST TRANSCONA | B35: 16858543 | C35: =B35/'- 3 -'!D35*100 -> 7.422280532 | D35: =B35/'- 7 -'!C35 -> 950.1785543 | E35: 4480556 | F35: =E35/'- 3 -'!D35*100 -> 1.972646365 | G35: =IF('- 7 -'!B35=0,"",E35/'- 7 -'!B35) -> 5856.935948
A36: ROLLING RIVER | B36: 2236873 | C36: =B36/'- 3 -'!D36*100 -> 8.415483005 | D36: =B36/'- 7 -'!C36 -> 1292.990173 | E36: 136600 | F36: =E36/'- 3 -'!D36*100 -> 0.5139115983 | G36: =IF('- 7 -'!B36=0,"",E36/'- 7 -'!B36) -> 15177.77778
A37: SEINE RIVER | B37: 5215347 | C37: =B37/'- 3 -'!D37*100 -> 8.278310964 | D37: =B37/'- 7 -'!C37 -> 1094.741184 | E37: 0 | F37: =E37/'- 3 -'!D37*100 -> 0 | G37: =IF('- 7 -'!B37=0,"",E37/'- 7 -'!B37) -> 
A38: SEVEN OAKS | B38: 12568968 | C38: =B38/'- 3 -'!D38*100 -> 7.27953394 | D38: =B38/'- 7 -'!C38 -> 1049.670792 | E38: 1698203 | F38: =E38/'- 3 -'!D38*100 -> 0.983543468 | G38: =IF('- 7 -'!B38=0,"",E38/'- 7 -'!B38) -> 7235.632723
A39: SOUTHWEST HORIZON | B39: 1655414 | C39: =B39/'- 3 -'!D39*100 -> 6.741722573 | D39: =B39/'- 7 -'!C39 -> 1154.80572 | E39: 0 | F39: =E39/'- 3 -'!D39*100 -> 0 | G39: =IF('- 7 -'!B39=0,"",E39/'- 7 -'!B39) -> 
A40: ST. JAMES-ASSINIBOIA | B40: 9217936 | C40: =B40/'- 3 -'!D40*100 -> 7.701184739 | D40: =B40/'- 7 -'!C40 -> 1147.251456 | E40: 1901811 | F40: =E40/'- 3 -'!D40*100 -> 1.588880401 | G40: =IF('- 7 -'!B40=0,"",E40/'- 7 -'!B40) -> 7863.272141
A41: SUNRISE | B41: 5167301 | C41: =B41/'- 3 -'!D41*100 -> 6.852357069 | D41: =B41/'- 7 -'!C41 -> 1119.190167 | E41: 6209 | F41: =E41/'- 3 -'!D41*100 -> 0.008233753954 | G41: =IF('- 7 -'!B41=0,"",E41/'- 7 -'!B41) -> 
A42: SWAN VALLEY | B42: 1996152 | C42: =B42/'- 3 -'!D42*100 -> 8.107375062 | D42: =B42/'- 7 -'!C42 -> 1410.728067 | E42: 1474170 | F42: =E42/'- 3 -'!D42*100 -> 5.987344198 | G42: =IF('- 7 -'!B42=0,"",E42/'- 7 -'!B42) -> 7480.058859
A43: TURTLE MOUNTAIN | B43: 1018993 | C43: =B43/'- 3 -'!D43*100 -> 6.611143493 | D43: =B43/'- 7 -'!C43 -> 964.0425733 | E43: 98880 | F43: =E43/'- 3 -'!D43*100 -> 0.6415253771 | G43: =IF('- 7 -'!B43=0,"",E43/'- 7 -'!B43) -> 6180
A44: TURTLE RIVER | B44: 695594 | C44: =B44/'- 3 -'!D44*100 -> 5.671550009 | D44: =B44/'- 7 -'!C44 -> 1130.128351 | E44: 0 | F44: =E44/'- 3 -'!D44*100 -> 0 | G44: =IF('- 7 -'!B44=0,"",E44/'- 7 -'!B44) -> 
A45: WESTERN | B45: 1909414 | C45: =B45/'- 3 -'!D45*100 -> 6.956079822 | D45: =B45/'- 7 -'!C45 -> 891.8327884 | E45: 390890 | F45: =E45/'- 3 -'!D45*100 -> 1.424029593 | G45: =IF('- 7 -'!B45=0,"",E45/'- 7 -'!B45) -> 12215.3125
A46: WINNIPEG | B46: 31589883 | C46: =B46/'- 3 -'!D46*100 -> 7.003223006 | D46: =B46/'- 7 -'!C46 -> 1135.767014 | E46: 5746503 | F46: =E46/'- 3 -'!D46*100 -> 1.2739535 | G46: =IF('- 7 -'!B46=0,"",E46/'- 7 -'!B46) -> 8616.738641
A48: PROVINCE | B48: =SUM(B11:B46) -> 205901275 | C48: =B48/'- 3 -'!D48*100 -> 7.344574661 | D48: =B48/'- 7 -'!C48 -> 1097.99268 | E48: =SUM(E11:E46) -> 35213308 | F48: =E48/'- 3 -'!D48*100 -> 1.256071725 | G48: =E48/'- 7 -'!B48 -> 8162.773738
A50: WHITESHELL | B50: 276324 | C50: =B50/'- 3 -'!D50*100 -> 6.748316731 | D50: =B50/'- 7 -'!C50 -> 1417.046154 | E50: 0 | F50: =E50/'- 3 -'!D50*100 -> 0 | G50: =IF('- 7 -'!B50=0,"",E50/'- 7 -'!B50) -> 

Sheet - 19 -
B2: ANALYSIS OF EXPENSE BY PROGRAM | J2: PAGE 2 OF 16
B3: =OPYEAR -> OPERATING FUND 2023/2024 ACTUAL
B5: FUNCTION 100: REGULAR INSTRUCTION
B6: SINGLE TRACK SCHOOLS (1)
B7: ENGLISH LANGUAGE | E7: FRANÇAIS | H7: FRENCH IMMERSION
D8: PER PUPIL | G8: PER PUPIL | J8: PER PUPIL
A9: DIVISION / DISTRICT | B9: AMOUNT | C9: % | E9: AMOUNT | F9: % | H9: AMOUNT | I9: %
A11: BEAUTIFUL PLAINS | B11: 15449242 | C11: =B11/'- 3 -'!D11*100 -> 57.43572413 | D11: =B11/'- 6 -'!B11 -> 7109.964563 | E11: 0 | F11: =E11/'- 3 -'!D11*100 -> 0 | G11: =IF('- 6 -'!C11=0,"",E11/'- 6 -'!C11) ->  | H11: 0 | I11: =H11/'- 3 -'!D11*100 -> 0 | J11: =IF('- 6 -'!D11=0,"",H11/'- 6 -'!D11) -> 
A12: BORDER LAND | B12: 13567070 | C12: =B12/'- 3 -'!D12*100 -> 36.1822371 | D12: =B12/'- 6 -'!B12 -> 10463.57396 | E12: 0 | F12: =E12/'- 3 -'!D12*100 -> 0 | G12: =IF('- 6 -'!C12=0,"",E12/'- 6 -'!C12) ->  | H12: 0 | I12: =H12/'- 3 -'!D12*100 -> 0 | J12: =IF('- 6 -'!D12=0,"",H12/'- 6 -'!D12) -> 
A13: BRANDON | B13: 51901607 | C13: =B13/'- 3 -'!D13*100 -> 42.50040135 | D13: =B13/'- 6 -'!B13 -> 6978.836493 | E13: 0 | F13: =E13/'- 3 -'!D13*100 -> 0 | G13: =IF('- 6 -'!C13=0,"",E13/'- 6 -'!C13) ->  | H13: 2348492 | I13: =H13/'- 3 -'!D13*100 -> 1.923097536 | J13: =IF('- 6 -'!D13=0,"",H13/'- 6 -'!D13) -> 7304.796267
A14: DSFM | B14: 0 | C14: =B14/'- 3 -'!D14*100 -> 0 | E14: 49439948 | F14: =E14/'- 3 -'!D14*100 -> 45.97657833 | G14: =IF('- 6 -'!C14=0,"",E14/'- 6 -'!C14) -> 8252.369888 | H14: 0 | I14: =H14/'- 3 -'!D14*100 -> 0 | J14: =IF('- 6 -'!D14=0,"",H14/'- 6 -'!D14) -> 
A15: EVERGREEN | B15: 10181716 | C15: =B15/'- 3 -'!D15*100 -> 45.46461719 | D15: =B15/'- 6 -'!B15 -> 7244.194948 | E15: 0 | F15: =E15/'- 3 -'!D15*100 -> 0 | G15: =IF('- 6 -'!C15=0,"",E15/'- 6 -'!C15) ->  | H15: 0 | I15: =H15/'- 3 -'!D15*100 -> 0 | J15: =IF('- 6 -'!D15=0,"",H15/'- 6 -'!D15) -> 
A16: FLIN FLON | B16: 5439629 | C16: =B16/'- 3 -'!D16*100 -> 31.88889643 | D16: =B16/'- 6 -'!B16 -> 10410.77321 | E16: 0 | F16: =E16/'- 3 -'!D16*100 -> 0 | G16: =IF('- 6 -'!C16=0,"",E16/'- 6 -'!C16) ->  | H16: 0 | I16: =H16/'- 3 -'!D16*100 -> 0 | J16: =IF('- 6 -'!D16=0,"",H16/'- 6 -'!D16) -> 
A17: FORT LA BOSSE | B17: 11512458 | C17: =B17/'- 3 -'!D17*100 -> 53.67796961 | D17: =B17/'- 6 -'!B17 -> 7672.414528 | E17: 0 | F17: =E17/'- 3 -'!D17*100 -> 0 | G17: =IF('- 6 -'!C17=0,"",E17/'- 6 -'!C17) ->  | H17: 0 | I17: =H17/'- 3 -'!D17*100 -> 0 | J17: =IF('- 6 -'!D17=0,"",H17/'- 6 -'!D17) -> 
A18: FRONTIER | B18: 59370967 | C18: =B18/'- 3 -'!D18*100 -> 35.73005189 | D18: =B18/'- 6 -'!B18 -> 9551.313867 | E18: 0 | F18: =E18/'- 3 -'!D18*100 -> 0 | G18: =IF('- 6 -'!C18=0,"",E18/'- 6 -'!C18) ->  | H18: 0 | I18: =H18/'- 3 -'!D18*100 -> 0 | J18: =IF('- 6 -'!D18=0,"",H18/'- 6 -'!D18) -> 
A19: GARDEN VALLEY | B19: 27814356 | C19: =B19/'- 3 -'!D19*100 -> 48.85738866 | D19: =B19/'- 6 -'!B19 -> 6561.537155 | E19: 0 | F19: =E19/'- 3 -'!D19*100 -> 0 | G19: =IF('- 6 -'!C19=0,"",E19/'- 6 -'!C19) ->  | H19: 0 | I19: =H19/'- 3 -'!D19*100 -> 0 | J19: =IF('- 6 -'!D19=0,"",H19/'- 6 -'!D19) -> 
A20: HANOVER | B20: 51025668 | C20: =B20/'- 3 -'!D20*100 -> 49.32096385 | D20: =B20/'- 6 -'!B20 -> 6540.410685 | E20: 0 | F20: =E20/'- 3 -'!D20*100 -> 0 | G20: =IF('- 6 -'!C20=0,"",E20/'- 6 -'!C20) ->  | H20: 0 | I20: =H20/'- 3 -'!D20*100 -> 0 | J20: =IF('- 6 -'!D20=0,"",H20/'- 6 -'!D20) -> 
A21: INTERLAKE | B21: 12028537 | C21: =B21/'- 3 -'!D21*100 -> 28.83971369 | D21: =B21/'- 6 -'!B21 -> 7651.741094 | E21: 0 | F21: =E21/'- 3 -'!D21*100 -> 0 | G21: =IF('- 6 -'!C21=0,"",E21/'- 6 -'!C21) ->  | H21: 0 | I21: =H21/'- 3 -'!D21*100 -> 0 | J21: =IF('- 6 -'!D21=0,"",H21/'- 6 -'!D21) -> 
A22: KELSEY | B22: 5507458 | C22: =B22/'- 3 -'!D22*100 -> 23.80375855 | D22: =B22/'- 6 -'!B22 -> 6751.404229 | E22: 0 | F22: =E22/'- 3 -'!D22*100 -> 0 | G22: =IF('- 6 -'!C22=0,"",E22/'- 6 -'!C22) ->  | H22: 0 | I22: =H22/'- 3 -'!D22*100 -> 0 | J22: =IF('- 6 -'!D22=0,"",H22/'- 6 -'!D22) -> 
A23: LAKESHORE | B23: 7646229 | C23: =B23/'- 3 -'!D23*100 -> 46.75367343 | D23: =B23/'- 6 -'!B23 -> 8006.522513 | E23: 0 | F23: =E23/'- 3 -'!D23*100 -> 0 | G23: =IF('- 6 -'!C23=0,"",E23/'- 6 -'!C23) ->  | H23: 0 | I23: =H23/'- 3 -'!D23*100 -> 0 | J23: =IF('- 6 -'!D23=0,"",H23/'- 6 -'!D23) -> 
A24: LORD SELKIRK | B24: 24492948 | C24: =B24/'- 3 -'!D24*100 -> 37.67664339 | D24: =B24/'- 6 -'!B24 -> 9149.401569 | E24: 0 | F24: =E24/'- 3 -'!D24*100 -> 0 | G24: =IF('- 6 -'!C24=0,"",E24/'- 6 -'!C24) ->  | H24: 1747351 | I24: =H24/'- 3 -'!D24*100 -> 2.687888796 | J24: =IF('- 6 -'!D24=0,"",H24/'- 6 -'!D24) -> 8146.158508
A25: LOUIS RIEL | B25: 69572306 | C25: =B25/'- 3 -'!D25*100 -> 29.74114413 | D25: =B25/'- 6 -'!B25 -> 6276.256743 | E25: 0 | F25: =E25/'- 3 -'!D25*100 -> 0 | G25: =IF('- 6 -'!C25=0,"",E25/'- 6 -'!C25) ->  | H25: 32472745 | I25: =H25/'- 3 -'!D25*100 -> 13.88162395 | J25: =IF('- 6 -'!D25=0,"",H25/'- 6 -'!D25) -> 6276.139351
A26: MOUNTAIN VIEW | B26: 18293179 | C26: =B26/'- 3 -'!D26*100 -> 38.0778776 | D26: =B26/'- 6 -'!B26 -> 7636.47631 | E26: 0 | F26: =E26/'- 3 -'!D26*100 -> 0 | G26: =IF('- 6 -'!C26=0,"",E26/'- 6 -'!C26) ->  | H26: 1032225 | I26: =H26/'- 3 -'!D26*100 -> 2.148611633 | J26: =IF('- 6 -'!D26=0,"",H26/'- 6 -'!D26) -> 8001.744186
A27: MYSTERY LAKE | B27: 18643437 | C27: =B27/'- 3 -'!D27*100 -> 40.29811258 | D27: =B27/'- 6 -'!B27 -> 7768.746146 | E27: 0 | F27: =E27/'- 3 -'!D27*100 -> 0 | G27: =IF('- 6 -'!C27=0,"",E27/'- 6 -'!C27) ->  | H27: 0 | I27: =H27/'- 3 -'!D27*100 -> 0 | J27: =IF('- 6 -'!D27=0,"",H27/'- 6 -'!D27) -> 
A28: PARK WEST | B28: 17500163 | C28: =B28/'- 3 -'!D28*100 -> 53.06395873 | D28: =B28/'- 6 -'!B28 -> 8286.062027 | E28: 0 | F28: =E28/'- 3 -'!D28*100 -> 0 | G28: =IF('- 6 -'!C28=0,"",E28/'- 6 -'!C28) ->  | H28: 0 | I28: =H28/'- 3 -'!D28*100 -> 0 | J28: =IF('- 6 -'!D28=0,"",H28/'- 6 -'!D28) -> 
A29: PEMBINA TRAILS | B29: 63011709 | C29: =B29/'- 3 -'!D29*100 -> 30.7067162 | D29: =B29/'- 6 -'!B29 -> 6045.448431 | E29: 0 | F29: =E29/'- 3 -'!D29*100 -> 0 | G29: =IF('- 6 -'!C29=0,"",E29/'- 6 -'!C29) ->  | H29: 9060846 | I29: =H29/'- 3 -'!D29*100 -> 4.415509928 | J29: =IF('- 6 -'!D29=0,"",H29/'- 6 -'!D29) -> 6546.854046
A30: PINE CREEK | B30: 9795191 | C30: =B30/'- 3 -'!D30*100 -> 52.15219583 | D30: =B30/'- 6 -'!B30 -> 9864.240685 | E30: 0 | F30: =E30/'- 3 -'!D30*100 -> 0 | G30: =IF('- 6 -'!C30=0,"",E30/'- 6 -'!C30) ->  | H30: 0 | I30: =H30/'- 3 -'!D30*100 -> 0 | J30: =IF('- 6 -'!D30=0,"",H30/'- 6 -'!D30) -> 
A31: PORTAGE LA PRAIRIE | B31: 22223736 | C31: =B31/'- 3 -'!D31*100 -> 46.30687647 | D31: =B31/'- 6 -'!B31 -> 7886.350603 | E31: 0 | F31: =E31/'- 3 -'!D31*100 -> 0 | G31: =IF('- 6 -'!C31=0,"",E31/'- 6 -'!C31) ->  | H31: 2183033 | I31: =H31/'- 3 -'!D31*100 -> 4.548714917 | J31: =IF('- 6 -'!D31=0,"",H31/'- 6 -'!D31) -> 5767.590489
A32: PRAIRIE ROSE | B32: 13053603 | C32: =B32/'- 3 -'!D32*100 -> 36.93595373 | D32: =B32/'- 6 -'!B32 -> 7842.356864 | E32: 0 | F32: =E32/'- 3 -'!D32*100 -> 0 | G32: =IF('- 6 -'!C32=0,"",E32/'- 6 -'!C32) ->  | H32: 723961 | I32: =H32/'- 3 -'!D32*100 -> 2.048491133 | J32: =IF('- 6 -'!D32=0,"",H32/'- 6 -'!D32) -> 6463.9375
A33: PRAIRIE SPIRIT | B33: 11999071 | C33: =B33/'- 3 -'!D33*100 -> 38.43592805 | D33: =B33/'- 6 -'!B33 -> 7312.048141 | E33: 0 | F33: =E33/'- 3 -'!D33*100 -> 0 | G33: =IF('- 6 -'!C33=0,"",E33/'- 6 -'!C33) ->  | H33: 0 | I33: =H33/'- 3 -'!D33*100 -> 0 | J33: =IF('- 6 -'!D33=0,"",H33/'- 6 -'!D33) -> 
A34: RED RIVER VALLEY | B34: 12604837 | C34: =B34/'- 3 -'!D34*100 -> 34.88774815 | D34: =B34/'- 6 -'!B34 -> 7384.204452 | E34: 0 | F34: =E34/'- 3 -'!D34*100 -> 0 | G34: =IF('- 6 -'!C34=0,"",E34/'- 6 -'!C34) ->  | H34: 2594970 | I34: =H34/'- 3 -'!D34*100 -> 7.182374498 | J34: =IF('- 6 -'!D34=0,"",H34/'- 6 -'!D34) -> 8071.446345
A35: RIVER EAST TRANSCONA | B35: 69137079 | C35: =B35/'- 3 -'!D35*100 -> 30.43885794 | D35: =B35/'- 6 -'!B35 -> 7714.900296 | E35: 0 | F35: =E35/'- 3 -'!D35*100 -> 0 | G35: =IF('- 6 -'!C35=0,"",E35/'- 6 -'!C35) ->  | H35: 8972300 | I35: =H35/'- 3 -'!D35*100 -> 3.950218451 | J35: =IF('- 6 -'!D35=0,"",H35/'- 6 -'!D35) -> 5733.099042
A36: ROLLING RIVER | B36: 12941397 | C36: =B36/'- 3 -'!D36*100 -> 48.68765751 | D36: =B36/'- 6 -'!B36 -> 7519.696107 | E36: 0 | F36: =E36/'- 3 -'!D36*100 -> 0 | G36: =IF('- 6 -'!C36=0,"",E36/'- 6 -'!C36) ->  | H36: 0 | I36: =H36/'- 3 -'!D36*100 -> 0 | J36: =IF('- 6 -'!D36=0,"",H36/'- 6 -'!D36) -> 
A37: SEINE RIVER | B37: 15516608 | C37: =B37/'- 3 -'!D37*100 -> 24.62948412 | D37: =B37/'- 6 -'!B37 -> 6481.456976 | E37: 0 | F37: =E37/'- 3 -'!D37*100 -> 0 | G37: =IF('- 6 -'!C37=0,"",E37/'- 6 -'!C37) ->  | H37: 4922430 | I37: =H37/'- 3 -'!D37*100 -> 7.813364333 | J37: =IF('- 6 -'!D37=0,"",H37/'- 6 -'!D37) -> 5619.212329
A38: SEVEN OAKS | B38: 55722705 | C38: =B38/'- 3 -'!D38*100 -> 32.27276275 | D38: =B38/'- 6 -'!B38 -> 7652.220574 | E38: 0 | F38: =E38/'- 3 -'!D38*100 -> 0 | G38: =IF('- 6 -'!C38=0,"",E38/'- 6 -'!C38) ->  | H38: 7122144 | I38: =H38/'- 3 -'!D38*100 -> 4.124912163 | J38: =IF('- 6 -'!D38=0,"",H38/'- 6 -'!D38) -> 6247.494737
A39: SOUTHWEST HORIZON | B39: 12431393 | C39: =B39/'- 3 -'!D39*100 -> 50.6272164 | D39: =B39/'- 6 -'!B39 -> 8672.056505 | E39: 0 | F39: =E39/'- 3 -'!D39*100 -> 0 | G39: =IF('- 6 -'!C39=0,"",E39/'- 6 -'!C39) ->  | H39: 0 | I39: =H39/'- 3 -'!D39*100 -> 0 | J39: =IF('- 6 -'!D39=0,"",H39/'- 6 -'!D39) -> 
A40: ST. JAMES-ASSINIBOIA | B40: 40257610 | C40: =B40/'- 3 -'!D40*100 -> 33.63348278 | D40: =B40/'- 6 -'!B40 -> 7309.982732 | E40: 0 | F40: =E40/'- 3 -'!D40*100 -> 0 | G40: =IF('- 6 -'!C40=0,"",E40/'- 6 -'!C40) ->  | H40: 8783061 | I40: =H40/'- 3 -'!D40*100 -> 7.337865585 | J40: =IF('- 6 -'!D40=0,"",H40/'- 6 -'!D40) -> 6735.476227
A41: SUNRISE | B41: 16253568 | C41: =B41/'- 3 -'!D41*100 -> 21.55385405 | D41: =B41/'- 6 -'!B41 -> 7760.118405 | E41: 0 | F41: =E41/'- 3 -'!D41*100 -> 0 | G41: =IF('- 6 -'!C41=0,"",E41/'- 6 -'!C41) ->  | H41: 0 | I41: =H41/'- 3 -'!D41*100 -> 0 | J41: =IF('- 6 -'!D41=0,"",H41/'- 6 -'!D41) -> 
A42: SWAN VALLEY | B42: 7534573 | C42: =B42/'- 3 -'!D42*100 -> 30.60168226 | D42: =B42/'- 6 -'!B42 -> 7748.429659 | E42: 0 | F42: =E42/'- 3 -'!D42*100 -> 0 | G42: =IF('- 6 -'!C42=0,"",E42/'- 6 -'!C42) ->  | H42: 0 | I42: =H42/'- 3 -'!D42*100 -> 0 | J42: =IF('- 6 -'!D42=0,"",H42/'- 6 -'!D42) -> 
A43: TURTLE MOUNTAIN | B43: 7674185 | C43: =B43/'- 3 -'!D43*100 -> 49.78948651 | D43: =B43/'- 6 -'!B43 -> 7371.935639 | E43: 0 | F43: =E43/'- 3 -'!D43*100 -> 0 | G43: =IF('- 6 -'!C43=0,"",E43/'- 6 -'!C43) ->  | H43: 0 | I43: =H43/'- 3 -'!D43*100 -> 0 | J43: =IF('- 6 -'!D43=0,"",H43/'- 6 -'!D43) -> 
A44: TURTLE RIVER | B44: 6150726 | C44: =B44/'- 3 -'!D44*100 -> 50.15015958 | D44: =B44/'- 6 -'!B44 -> 10505.08284 | E44: 0 | F44: =E44/'- 3 -'!D44*100 -> 0 | G44: =IF('- 6 -'!C44=0,"",E44/'- 6 -'!C44) ->  | H44: 396959 | I44: =H44/'- 3 -'!D44*100 -> 3.236619091 | J44: =IF('- 6 -'!D44=0,"",H44/'- 6 -'!D44) -> 13231.96667
A45: WESTERN | B45: 7189557 | C45: =B45/'- 3 -'!D45*100 -> 26.19187477 | D45: =B45/'- 6 -'!B45 -> 7640.336876 | E45: 0 | F45: =E45/'- 3 -'!D45*100 -> 0 | G45: =IF('- 6 -'!C45=0,"",E45/'- 6 -'!C45) ->  | H45: 0 | I45: =H45/'- 3 -'!D45*100 -> 0 | J45: =IF('- 6 -'!D45=0,"",H45/'- 6 -'!D45) -> 
A46: WINNIPEG | B46: 134537868 | C46: =B46/'- 3 -'!D46*100 -> 29.82596334 | D46: =B46/'- 6 -'!B46 -> 7869.368288 | E46: 0 | F46: =E46/'- 3 -'!D46*100 -> 0 | G46: =IF('- 6 -'!C46=0,"",E46/'- 6 -'!C46) ->  | H46: 7211092 | I46: =H46/'- 3 -'!D46*100 -> 1.598641103 | J46: =IF('- 6 -'!D46=0,"",H46/'- 6 -'!D46) -> 5189.702771
A48: PROVINCE | B48: =SUM(B11:B46) -> 937982386 | C48: =B48/'- 3 -'!D48*100 -> 33.45817876 | D48: =B48/'- 6 -'!B48 -> 7451.397672 | E48: =SUM(E11:E46) -> 49439948 | F48: =E48/'- 3 -'!D48*100 -> 1.763541238 | G48: =E48/'- 6 -'!C48 -> 8252.369888 | H48: =SUM(H11:H46) -> 89571609 | I48: =H48/'- 3 -'!D48*100 -> 3.195052434 | J48: =H48/'- 6 -'!D48 -> 6246.494578
A50: WHITESHELL | B50: 2118546 | C50: =B50/'- 3 -'!D50*100 -> 51.73860908 | D50: =B50/'- 6 -'!B50 -> 10864.33846 | E50: 0 | F50: =E50/'- 3 -'!D50*100 -> 0 | G50: =IF('- 6 -'!C50=0,"",E50/'- 6 -'!C50) ->  | H50: 0 | I50: =H50/'- 3 -'!D50*100 -> 0 | J50: =IF('- 6 -'!D50=0,"",H50/'- 6 -'!D50) -> 
A52: (1) 90% or more of Regular Instruction enrolment is in one language.

Sheet - 20 -
B2: ANALYSIS OF EXPENSE BY PROGRAM | I2: PAGE 3 OF 16
B3: =OPYEAR -> OPERATING FUND 2023/2024 ACTUAL
B5: FUNCTION 100: REGULAR INSTRUCTION
B6: DUAL TRACK SCHOOLS (1)
E7: NO. OF F.T.E. PUPILS | F7: % IN DUAL TRACK SCHOOLS
D8: PER PUPIL | H8: FRENCH IMMERSION
A9: DIVISION / DISTRICT | B9: AMOUNT | C9: % | F9: ENGLISH | G9: FRANÇAIS | I9: OTHER
A11: BEAUTIFUL PLAINS | B11: 0 | C11: =B11/'- 3 -'!D11*100 -> 0 | D11: =IF(E11=0,"",B11/E11) ->  | E11: =SUM('- 6 -'!E11:H11) -> 0 | F11: =IF(E11=0,"",'- 6 -'!E11/E11*100) ->  | G11: =IF(E11=0,"",'- 6 -'!F11/E11*100) ->  | H11: =IF(E11=0,"",'- 6 -'!G11/E11*100) ->  | I11: =IF(E11=0,"",'- 6 -'!H11/E11*100) -> 
A12: BORDER LAND | B12: 4364637 | C12: =B12/'- 3 -'!D12*100 -> 11.64012058 | D12: =IF(E12=0,"",B12/E12) -> 6977.83693 | E12: =SUM('- 6 -'!E12:H12) -> 625.5 | F12: =IF(E12=0,"",'- 6 -'!E12/E12*100) -> 79.61630695 | G12: =IF(E12=0,"",'- 6 -'!F12/E12*100) -> 0 | H12: =IF(E12=0,"",'- 6 -'!G12/E12*100) -> 20.38369305 | I12: =IF(E12=0,"",'- 6 -'!H12/E12*100) -> 0
A13: BRANDON | B13: 7649669 | C13: =B13/'- 3 -'!D13*100 -> 6.264045016 | D13: 6577.531384 | E13: =SUM('- 6 -'!E13:H13) -> 1163 | F13: =IF(E13=0,"",'- 6 -'!E13/E13*100) -> 59.97420464 | G13: =IF(E13=0,"",'- 6 -'!F13/E13*100) -> 0 | H13: =IF(E13=0,"",'- 6 -'!G13/E13*100) -> 40.02579536 | I13: =IF(E13=0,"",'- 6 -'!H13/E13*100) -> 0
A14: DSFM | B14: 0 | C14: =B14/'- 3 -'!D14*100 -> 0 | E14: =SUM('- 6 -'!E14:H14) -> 0 | F14: =IF(E14=0,"",'- 6 -'!E14/E14*100) ->  | G14: =IF(E14=0,"",'- 6 -'!F14/E14*100) ->  | H14: =IF(E14=0,"",'- 6 -'!G14/E14*100) ->  | I14: =IF(E14=0,"",'- 6 -'!H14/E14*100) -> 
A15: EVERGREEN | B15: 0 | C15: =B15/'- 3 -'!D15*100 -> 0 | E15: =SUM('- 6 -'!E15:H15) -> 0 | F15: =IF(E15=0,"",'- 6 -'!E15/E15*100) ->  | G15: =IF(E15=0,"",'- 6 -'!F15/E15*100) ->  | H15: =IF(E15=0,"",'- 6 -'!G15/E15*100) ->  | I15: =IF(E15=0,"",'- 6 -'!H15/E15*100) -> 
A16: FLIN FLON | B16: 2793517 | C16: =B16/'- 3 -'!D16*100 -> 16.37651654 | D16: 9204.339374 | E16: =SUM('- 6 -'!E16:H16) -> 303.5 | F16: =IF(E16=0,"",'- 6 -'!E16/E16*100) -> 70.5107084 | G16: =IF(E16=0,"",'- 6 -'!F16/E16*100) -> 0 | H16: =IF(E16=0,"",'- 6 -'!G16/E16*100) -> 29.4892916 | I16: =IF(E16=0,"",'- 6 -'!H16/E16*100) -> 0
A17: FORT LA BOSSE | B17: 0 | C17: =B17/'- 3 -'!D17*100 -> 0 | E17: =SUM('- 6 -'!E17:H17) -> 0 | F17: =IF(E17=0,"",'- 6 -'!E17/E17*100) ->  | G17: =IF(E17=0,"",'- 6 -'!F17/E17*100) ->  | H17: =IF(E17=0,"",'- 6 -'!G17/E17*100) ->  | I17: =IF(E17=0,"",'- 6 -'!H17/E17*100) -> 
A18: FRONTIER | B18: 0 | C18: =B18/'- 3 -'!D18*100 -> 0 | E18: =SUM('- 6 -'!E18:H18) -> 0 | F18: =IF(E18=0,"",'- 6 -'!E18/E18*100) ->  | G18: =IF(E18=0,"",'- 6 -'!F18/E18*100) ->  | H18: =IF(E18=0,"",'- 6 -'!G18/E18*100) ->  | I18: =IF(E18=0,"",'- 6 -'!H18/E18*100) -> 
A19: GARDEN VALLEY | B19: 0 | C19: =B19/'- 3 -'!D19*100 -> 0 | E19: =SUM('- 6 -'!E19:H19) -> 0 | F19: =IF(E19=0,"",'- 6 -'!E19/E19*100) ->  | G19: =IF(E19=0,"",'- 6 -'!F19/E19*100) ->  | H19: =IF(E19=0,"",'- 6 -'!G19/E19*100) ->  | I19: =IF(E19=0,"",'- 6 -'!H19/E19*100) -> 
A20: HANOVER | B20: 0 | C20: =B20/'- 3 -'!D20*100 -> 0 | E20: =SUM('- 6 -'!E20:H20) -> 0 | F20: =IF(E20=0,"",'- 6 -'!E20/E20*100) ->  | G20: =IF(E20=0,"",'- 6 -'!F20/E20*100) ->  | H20: =IF(E20=0,"",'- 6 -'!G20/E20*100) ->  | I20: =IF(E20=0,"",'- 6 -'!H20/E20*100) -> 
A21: INTERLAKE | B21: 7804714 | C21: =B21/'- 3 -'!D21*100 -> 18.71264287 | D21: 5935.143726 | E21: =SUM('- 6 -'!E21:H21) -> 1315 | F21: =IF(E21=0,"",'- 6 -'!E21/E21*100) -> 69.50570342 | G21: =IF(E21=0,"",'- 6 -'!F21/E21*100) -> 0 | H21: =IF(E21=0,"",'- 6 -'!G21/E21*100) -> 30.49429658 | I21: =IF(E21=0,"",'- 6 -'!H21/E21*100) -> 0
A22: KELSEY | B22: 5481562 | C22: =B22/'- 3 -'!D22*100 -> 23.69183357 | D22: 8798.654896 | E22: =SUM('- 6 -'!E22:H22) -> 623 | F22: =IF(E22=0,"",'- 6 -'!E22/E22*100) -> 72.55216693 | G22: =IF(E22=0,"",'- 6 -'!F22/E22*100) -> 0 | H22: =IF(E22=0,"",'- 6 -'!G22/E22*100) -> 27.44783307 | I22: =IF(E22=0,"",'- 6 -'!H22/E22*100) -> 0
A23: LAKESHORE | B23: 0 | C23: =B23/'- 3 -'!D23*100 -> 0 | E23: =SUM('- 6 -'!E23:H23) -> 0 | F23: =IF(E23=0,"",'- 6 -'!E23/E23*100) ->  | G23: =IF(E23=0,"",'- 6 -'!F23/E23*100) ->  | H23: =IF(E23=0,"",'- 6 -'!G23/E23*100) ->  | I23: =IF(E23=0,"",'- 6 -'!H23/E23*100) -> 
A24: LORD SELKIRK | B24: 5426074 | C24: =B24/'- 3 -'!D24*100 -> 8.346739441 | D24: 7985.3922 | E24: =SUM('- 6 -'!E24:H24) -> 679.5 | F24: =IF(E24=0,"",'- 6 -'!E24/E24*100) -> 78.2928624 | G24: =IF(E24=0,"",'- 6 -'!F24/E24*100) -> 0 | H24: =IF(E24=0,"",'- 6 -'!G24/E24*100) -> 10.15452539 | I24: =IF(E24=0,"",'- 6 -'!H24/E24*100) -> 11.55261221
A25: LOUIS RIEL | B25: 4456579 | C25: =B25/'- 3 -'!D25*100 -> 1.905122397 | D25: 5662.743329 | E25: =SUM('- 6 -'!E25:H25) -> 787 | F25: =IF(E25=0,"",'- 6 -'!E25/E25*100) -> 40.78780178 | G25: =IF(E25=0,"",'- 6 -'!F25/E25*100) -> 59.21219822 | H25: =IF(E25=0,"",'- 6 -'!G25/E25*100) -> 0 | I25: =IF(E25=0,"",'- 6 -'!H25/E25*100) -> 0
A26: MOUNTAIN VIEW | B26: 2692751 | C26: =B26/'- 3 -'!D26*100 -> 5.605053282 | D26: 6218.82448 | E26: =SUM('- 6 -'!E26:H26) -> 433 | F26: =IF(E26=0,"",'- 6 -'!E26/E26*100) -> 71.36258661 | G26: =IF(E26=0,"",'- 6 -'!F26/E26*100) -> 0 | H26: =IF(E26=0,"",'- 6 -'!G26/E26*100) -> 11.54734411 | I26: =IF(E26=0,"",'- 6 -'!H26/E26*100) -> 17.09006928
A27: MYSTERY LAKE | B27: 2549223 | C27: =B27/'- 3 -'!D27*100 -> 5.510189749 | D27: 7346.463977 | E27: =SUM('- 6 -'!E27:H27) -> 347 | F27: =IF(E27=0,"",'- 6 -'!E27/E27*100) -> 44.81268012 | G27: =IF(E27=0,"",'- 6 -'!F27/E27*100) -> 0 | H27: =IF(E27=0,"",'- 6 -'!G27/E27*100) -> 55.18731988 | I27: =IF(E27=0,"",'- 6 -'!H27/E27*100) -> 0
A28: PARK WEST | B28: 0 | C28: =B28/'- 3 -'!D28*100 -> 0 | E28: =SUM('- 6 -'!E28:H28) -> 0 | F28: =IF(E28=0,"",'- 6 -'!E28/E28*100) ->  | G28: =IF(E28=0,"",'- 6 -'!F28/E28*100) ->  | H28: =IF(E28=0,"",'- 6 -'!G28/E28*100) ->  | I28: =IF(E28=0,"",'- 6 -'!H28/E28*100) -> 
A29: PEMBINA TRAILS | B29: 26958332 | C29: =B29/'- 3 -'!D29*100 -> 13.13727025 | D29: 5703.656405 | E29: =SUM('- 6 -'!E29:H29) -> 4726.5 | F29: =IF(E29=0,"",'- 6 -'!E29/E29*100) -> 58.73267746 | G29: =IF(E29=0,"",'- 6 -'!F29/E29*100) -> 0 | H29: =IF(E29=0,"",'- 6 -'!G29/E29*100) -> 41.26732254 | I29: =IF(E29=0,"",'- 6 -'!H29/E29*100) -> 0
A30: PINE CREEK | B30: 0 | C30: =B30/'- 3 -'!D30*100 -> 0 | E30: =SUM('- 6 -'!E30:H30) -> 0 | F30: =IF(E30=0,"",'- 6 -'!E30/E30*100) ->  | G30: =IF(E30=0,"",'- 6 -'!F30/E30*100) ->  | H30: =IF(E30=0,"",'- 6 -'!G30/E30*100) ->  | I30: =IF(E30=0,"",'- 6 -'!H30/E30*100) -> 
A31: PORTAGE LA PRAIRIE | B31: 0 | C31: =B31/'- 3 -'!D31*100 -> 0 | E31: =SUM('- 6 -'!E31:H31) -> 0 | F31: =IF(E31=0,"",'- 6 -'!E31/E31*100) ->  | G31: =IF(E31=0,"",'- 6 -'!F31/E31*100) ->  | H31: =IF(E31=0,"",'- 6 -'!G31/E31*100) ->  | I31: =IF(E31=0,"",'- 6 -'!H31/E31*100) -> 
A32: PRAIRIE ROSE | B32: 3365517 | C32: =B32/'- 3 -'!D32*100 -> 9.522932495 | D32: 6875.417773 | E32: =SUM('- 6 -'!E32:H32) -> 489.5 | F32: =IF(E32=0,"",'- 6 -'!E32/E32*100) -> 64.35137896 | G32: =IF(E32=0,"",'- 6 -'!F32/E32*100) -> 0 | H32: =IF(E32=0,"",'- 6 -'!G32/E32*100) -> 35.64862104 | I32: =IF(E32=0,"",'- 6 -'!H32/E32*100) -> 0
A33: PRAIRIE SPIRIT | B33: 3120579 | C33: =B33/'- 3 -'!D33*100 -> 9.995969681 | D33: 6950.064588 | E33: =SUM('- 6 -'!E33:H33) -> 449 | F33: =IF(E33=0,"",'- 6 -'!E33/E33*100) -> 49.66592428 | G33: =IF(E33=0,"",'- 6 -'!F33/E33*100) -> 28.28507795 | H33: =IF(E33=0,"",'- 6 -'!G33/E33*100) -> 22.04899777 | I33: =IF(E33=0,"",'- 6 -'!H33/E33*100) -> 0
A34: RED RIVER VALLEY | B34: 1756650 | C34: =B34/'- 3 -'!D34*100 -> 4.862067061 | D34: 8058.027523 | E34: =SUM('- 6 -'!E34:H34) -> 218 | F34: =IF(E34=0,"",'- 6 -'!E34/E34*100) -> 40.82568807 | G34: =IF(E34=0,"",'- 6 -'!F34/E34*100) -> 59.17431193 | H34: =IF(E34=0,"",'- 6 -'!G34/E34*100) -> 0 | I34: =IF(E34=0,"",'- 6 -'!H34/E34*100) -> 0
A35: RIVER EAST TRANSCONA | B35: 31288443 | C35: =B35/'- 3 -'!D35*100 -> 13.77530676 | D35: 4850.169431 | E35: =SUM('- 6 -'!E35:H35) -> 6451 | F35: =IF(E35=0,"",'- 6 -'!E35/E35*100) -> 60.88978453 | G35: =IF(E35=0,"",'- 6 -'!F35/E35*100) -> 0 | H35: =IF(E35=0,"",'- 6 -'!G35/E35*100) -> 30.28987754 | I35: =IF(E35=0,"",'- 6 -'!H35/E35*100) -> 8.820337932
A36: ROLLING RIVER | B36: 0 | C36: =B36/'- 3 -'!D36*100 -> 0 | E36: =SUM('- 6 -'!E36:H36) -> 0 | F36: =IF(E36=0,"",'- 6 -'!E36/E36*100) ->  | G36: =IF(E36=0,"",'- 6 -'!F36/E36*100) ->  | H36: =IF(E36=0,"",'- 6 -'!G36/E36*100) ->  | I36: =IF(E36=0,"",'- 6 -'!H36/E36*100) -> 
A37: SEINE RIVER | B37: 9573318 | C37: =B37/'- 3 -'!D37*100 -> 15.19571054 | D37: 6407.843373 | E37: =SUM('- 6 -'!E37:H37) -> 1494 | F37: =IF(E37=0,"",'- 6 -'!E37/E37*100) -> 54.6184739 | G37: =IF(E37=0,"",'- 6 -'!F37/E37*100) -> 0 | H37: =IF(E37=0,"",'- 6 -'!G37/E37*100) -> 45.3815261 | I37: =IF(E37=0,"",'- 6 -'!H37/E37*100) -> 0
A38: SEVEN OAKS | B38: 23716471 | C38: =B38/'- 3 -'!D38*100 -> 13.73580198 | D38: 7148.683084 | E38: =SUM('- 6 -'!E38:H38) -> 3317.6 | F38: =IF(E38=0,"",'- 6 -'!E38/E38*100) -> 52.04364601 | G38: =IF(E38=0,"",'- 6 -'!F38/E38*100) -> 0 | H38: =IF(E38=0,"",'- 6 -'!G38/E38*100) -> 37.28598987 | I38: =IF(E38=0,"",'- 6 -'!H38/E38*100) -> 10.67036412
A39: SOUTHWEST HORIZON | B39: 0 | C39: =B39/'- 3 -'!D39*100 -> 0 | E39: =SUM('- 6 -'!E39:H39) -> 0 | F39: =IF(E39=0,"",'- 6 -'!E39/E39*100) ->  | G39: =IF(E39=0,"",'- 6 -'!F39/E39*100) ->  | H39: =IF(E39=0,"",'- 6 -'!G39/E39*100) ->  | I39: =IF(E39=0,"",'- 6 -'!H39/E39*100) -> 
A40: ST. JAMES-ASSINIBOIA | B40: 5649814 | C40: =B40/'- 3 -'!D40*100 -> 4.720173947 | D40: 5754.957066 | E40: =SUM('- 6 -'!E40:H40) -> 981.73 | F40: =IF(E40=0,"",'- 6 -'!E40/E40*100) -> 51.31044177 | G40: =IF(E40=0,"",'- 6 -'!F40/E40*100) -> 0 | H40: =IF(E40=0,"",'- 6 -'!G40/E40*100) -> 48.68955823 | I40: =IF(E40=0,"",'- 6 -'!H40/E40*100) -> 0
A41: SUNRISE | B41: 17844376 | C41: =B41/'- 3 -'!D41*100 -> 23.6634243 | D41: 7074.083647 | E41: =SUM('- 6 -'!E41:H41) -> 2522.5 | F41: =IF(E41=0,"",'- 6 -'!E41/E41*100) -> 66.0852329 | G41: =IF(E41=0,"",'- 6 -'!F41/E41*100) -> 0 | H41: =IF(E41=0,"",'- 6 -'!G41/E41*100) -> 31.45688801 | I41: =IF(E41=0,"",'- 6 -'!H41/E41*100) -> 2.457879088
A42: SWAN VALLEY | B42: 2039382 | C42: =B42/'- 3 -'!D42*100 -> 8.282953787 | D42: 8307.05499 | E42: =SUM('- 6 -'!E42:H42) -> 245.5 | F42: =IF(E42=0,"",'- 6 -'!E42/E42*100) -> 81.87372709 | G42: =IF(E42=0,"",'- 6 -'!F42/E42*100) -> 0 | H42: =IF(E42=0,"",'- 6 -'!G42/E42*100) -> 18.12627291 | I42: =IF(E42=0,"",'- 6 -'!H42/E42*100) -> 0
A43: TURTLE MOUNTAIN | B43: 0 | C43: =B43/'- 3 -'!D43*100 -> 0 | E43: =SUM('- 6 -'!E43:H43) -> 0 | F43: =IF(E43=0,"",'- 6 -'!E43/E43*100) ->  | G43: =IF(E43=0,"",'- 6 -'!F43/E43*100) ->  | H43: =IF(E43=0,"",'- 6 -'!G43/E43*100) ->  | I43: =IF(E43=0,"",'- 6 -'!H43/E43*100) -> 
A44: TURTLE RIVER | B44: 0 | C44: =B44/'- 3 -'!D44*100 -> 0 | E44: =SUM('- 6 -'!E44:H44) -> 0 | F44: =IF(E44=0,"",'- 6 -'!E44/E44*100) ->  | G44: =IF(E44=0,"",'- 6 -'!F44/E44*100) ->  | H44: =IF(E44=0,"",'- 6 -'!G44/E44*100) ->  | I44: =IF(E44=0,"",'- 6 -'!H44/E44*100) -> 
A45: WESTERN | B45: 7848214 | C45: =B45/'- 3 -'!D45*100 -> 28.59139141 | D45: 6719.361301 | E45: =SUM('- 6 -'!E45:H45) -> 1168 | F45: =IF(E45=0,"",'- 6 -'!E45/E45*100) -> 71.70376712 | G45: =IF(E45=0,"",'- 6 -'!F45/E45*100) -> 0 | H45: =IF(E45=0,"",'- 6 -'!G45/E45*100) -> 28.29623288 | I45: =IF(E45=0,"",'- 6 -'!H45/E45*100) -> 0
A46: WINNIPEG | B46: 55484742 | C46: =B46/'- 3 -'!D46*100 -> 12.30052108 | D46: 6406.348301 | E46: =SUM('- 6 -'!E46:H46) -> 8660.9 | F46: =IF(E46=0,"",'- 6 -'!E46/E46*100) -> 60.35631401 | G46: =IF(E46=0,"",'- 6 -'!F46/E46*100) -> 0 | H46: =IF(E46=0,"",'- 6 -'!G46/E46*100) -> 32.70445335 | I46: =IF(E46=0,"",'- 6 -'!H46/E46*100) -> 6.939232643
A48: PROVINCE | B48: =SUM(B11:B46) -> 231864564 | C48: =B48/'- 3 -'!D48*100 -> 8.270694786 | D48: =B48/E48 -> 6266.486202 | E48: =SUM(E11:E46) -> 37000.73 | F48: =IF(E48=0,"",'- 6 -'!E48/E48*100) -> 60.54807567 | G48: =IF(E48=0,"",'- 6 -'!F48/E48*100) -> 1.951312852 | H48: =IF(E48=0,"",'- 6 -'!G48/E48*100) -> 32.80205553 | I48: =IF(E48=0,"",'- 6 -'!H48/E48*100) -> 4.698555947
A50: WHITESHELL | B50: 0 | C50: =B50/'- 3 -'!D50*100 -> 0 | D50: =IF(E50=0,"",B50/E50) ->  | E50: =SUM('- 6 -'!E50:H50) -> 0 | F50: =IF(E50=0,"",'- 6 -'!E50/E50*100) ->  | G50: =IF(E50=0,"",'- 6 -'!F50/E50*100) ->  | H50: =IF(E50=0,"",'- 6 -'!G50/E50*100) ->  | I50: =IF(E50=0,"",'- 6 -'!H50/E50*100) -> 
A52: (1) No one language program comprises 90% or more of Regular Instruction enrolment.

Sheet - 21 -
B2: ANALYSIS OF EXPENSE BY PROGRAM | I2: PAGE 4 OF 16
B3: =OPYEAR -> OPERATING FUND 2023/2024 ACTUAL
B5: FUNCTION 200: STUDENT SUPPORT SERVICES
B6: ADMINISTRATION / COORDINATION | E6: CLINICAL AND RELATED SERVICES | H6: SPECIAL PLACEMENT
D8: PER PUPIL | G8: PER PUPIL
A9: DIVISION / DISTRICT | B9: AMOUNT | C9: % | E9: AMOUNT | F9: % | H9: AMOUNT | I9: %
A11: BEAUTIFUL PLAINS | B11: 187279 | C11: =B11/'- 3 -'!$D11*100 -> 0.6962480735 | D11: =B11/'- 7 -'!$E11 -> 86.18850384 | E11: 373667 | F11: =E11/'- 3 -'!$D11*100 -> 1.389183672 | G11: =E11/'- 7 -'!$E11 -> 171.9669566 | H11: 257959 | I11: =H11/'- 3 -'!$D11*100 -> 0.9590154625
A12: BORDER LAND | B12: 188769 | C12: =B12/'- 3 -'!$D12*100 -> 0.5034310809 | D12: =B12/'- 7 -'!$E12 -> 91.56876061 | E12: 864190 | F12: =E12/'- 3 -'!$D12*100 -> 2.304722204 | G12: =E12/'- 7 -'!$E12 -> 419.2044628 | H12: 0 | I12: =H12/'- 3 -'!$D12*100 -> 0
A13: BRANDON | B13: 216979 | C13: =B13/'- 3 -'!$D13*100 -> 0.1776764751 | D13: =B13/'- 7 -'!$E13 -> 23.2100337 | E13: 3496070 | F13: =E13/'- 3 -'!$D13*100 -> 2.862808817 | G13: =E13/'- 7 -'!$E13 -> 373.9712253 | H13: 689398 | I13: =H13/'- 3 -'!$D13*100 -> 0.5645237861
A14: DSFM | B14: 518780 | C14: =B14/'- 3 -'!$D14*100 -> 0.4824383979 | D14: =B14/'- 7 -'!$E14 -> 86.07456322 | E14: 1485908 | F14: =E14/'- 3 -'!$D14*100 -> 1.3818171 | G14: =E14/'- 7 -'!$E14 -> 246.5378043 | H14: 758302 | I14: =H14/'- 3 -'!$D14*100 -> 0.705181391
A15: EVERGREEN | B15: 98646 | C15: =B15/'- 3 -'!$D15*100 -> 0.4404859286 | D15: =B15/'- 7 -'!$E15 -> 68.79079498 | E15: 404627 | F15: =E15/'- 3 -'!$D15*100 -> 1.80678892 | G15: =E15/'- 7 -'!$E15 -> 282.1666667 | H15: 0 | I15: =H15/'- 3 -'!$D15*100 -> 0
A16: FLIN FLON | B16: 191885 | C16: =B16/'- 3 -'!$D16*100 -> 1.124893056 | D16: =B16/'- 7 -'!$E16 -> 232.3062954 | E16: 340252 | F16: =E16/'- 3 -'!$D16*100 -> 1.994669267 | G16: =E16/'- 7 -'!$E16 -> 411.9273608 | H16: 187519 | I16: =H16/'- 3 -'!$D16*100 -> 1.099298127
A17: FORT LA BOSSE | B17: 137787 | C17: =B17/'- 3 -'!$D17*100 -> 0.6424454621 | D17: =B17/'- 7 -'!$E17 -> 90.38176451 | E17: 266425 | F17: =E17/'- 3 -'!$D17*100 -> 1.24223281 | G17: =E17/'- 7 -'!$E17 -> 174.7622171 | H17: 0 | I17: =H17/'- 3 -'!$D17*100 -> 0
A18: FRONTIER | B18: 207920 | C18: =B18/'- 3 -'!$D18*100 -> 0.1251283711 | D18: =B18/'- 7 -'!$E18 -> 32.86753083 | E18: 1567268 | F18: =E18/'- 3 -'!$D18*100 -> 0.9431978253 | G18: =E18/'- 7 -'!$E18 -> 247.7502371 | H18: 0 | I18: =H18/'- 3 -'!$D18*100 -> 0
A19: GARDEN VALLEY | B19: 173261 | C19: =B19/'- 3 -'!$D19*100 -> 0.3043421181 | D19: =B19/'- 7 -'!$E19 -> 40.87308327 | E19: 1219041 | F19: =E19/'- 3 -'!$D19*100 -> 2.141310046 | G19: =E19/'- 7 -'!$E19 -> 287.5774947 | H19: 1277352 | I19: =H19/'- 3 -'!$D19*100 -> 2.243736404
A20: HANOVER | B20: 630064 | C20: =B20/'- 3 -'!$D20*100 -> 0.6090143449 | D20: =B20/'- 7 -'!$E20 -> 74.83745293 | E20: 2847716 | F20: =E20/'- 3 -'!$D20*100 -> 2.752577348 | G20: =E20/'- 7 -'!$E20 -> 338.2447055 | H20: 857286 | I20: =H20/'- 3 -'!$D20*100 -> 0.8286451403
A21: INTERLAKE | B21: 189508 | C21: =B21/'- 3 -'!$D21*100 -> 0.4543658519 | D21: =B21/'- 7 -'!$E21 -> 65.64184274 | E21: 797543 | F21: =E21/'- 3 -'!$D21*100 -> 1.912195288 | G21: =E21/'- 7 -'!$E21 -> 276.253204 | H21: 236615 | I21: =H21/'- 3 -'!$D21*100 -> 0.5673099608
A22: KELSEY | B22: 86790 | C22: =B22/'- 3 -'!$D22*100 -> 0.3751146544 | D22: =B22/'- 7 -'!$E22 -> 59.9378453 | E22: 231864 | F22: =E22/'- 3 -'!$D22*100 -> 1.002138313 | G22: =E22/'- 7 -'!$E22 -> 160.1270718 | H22: 1338759 | I22: =H22/'- 3 -'!$D22*100 -> 5.786244033
A23: LAKESHORE | B23: 135102 | C23: =B23/'- 3 -'!$D23*100 -> 0.8260954239 | D23: =B23/'- 7 -'!$E23 -> 138.5661538 | E23: 244818 | F23: =E23/'- 3 -'!$D23*100 -> 1.496965474 | G23: =E23/'- 7 -'!$E23 -> 251.0953846 | H23: 0 | I23: =H23/'- 3 -'!$D23*100 -> 0
A24: LORD SELKIRK | B24: 341273 | C24: =B24/'- 3 -'!$D24*100 -> 0.5249682937 | D24: =B24/'- 7 -'!$E24 -> 90.37950212 | E24: 2207578 | F24: =E24/'- 3 -'!$D24*100 -> 3.395839858 | G24: =E24/'- 7 -'!$E24 -> 584.6340042 | H24: 371081 | I24: =H24/'- 3 -'!$D24*100 -> 0.5708208952
A25: LOUIS RIEL | B25: 1051621 | C25: =B25/'- 3 -'!$D25*100 -> 0.4495526098 | D25: =B25/'- 7 -'!$E25 -> 61.28684655 | E25: 4827002 | F25: =E25/'- 3 -'!$D25*100 -> 2.063472816 | G25: =E25/'- 7 -'!$E25 -> 281.3102162 | H25: 7744519 | I25: =H25/'- 3 -'!$D25*100 -> 3.310668699
A26: MOUNTAIN VIEW | B26: 159573 | C26: =B26/'- 3 -'!$D26*100 -> 0.3321566559 | D26: =B26/'- 7 -'!$E26 -> 51.27831871 | E26: 738713 | F26: =E26/'- 3 -'!$D26*100 -> 1.537656369 | G26: =E26/'- 7 -'!$E26 -> 237.3832707 | H26: 2639 | I26: =H26/'- 3 -'!$D26*100 -> 0.005493168738
A27: MYSTERY LAKE | B27: 234481 | C27: =B27/'- 3 -'!$D27*100 -> 0.5068347503 | D27: =B27/'- 7 -'!$E27 -> 82.95807536 | E27: 343851 | F27: =E27/'- 3 -'!$D27*100 -> 0.7432399031 | G27: =E27/'- 7 -'!$E27 -> 121.6525739 | H27: 3261540 | I27: =H27/'- 3 -'!$D27*100 -> 7.049875305
A28: PARK WEST | B28: 154911 | C28: =B28/'- 3 -'!$D28*100 -> 0.4697208198 | D28: =B28/'- 7 -'!$E28 -> 73.34801136 | E28: 557213 | F28: =E28/'- 3 -'!$D28*100 -> 1.689580128 | G28: =E28/'- 7 -'!$E28 -> 263.8319129 | H28: 0 | I28: =H28/'- 3 -'!$D28*100 -> 0
A29: PEMBINA TRAILS | B29: 629251 | C29: =B29/'- 3 -'!$D29*100 -> 0.3066451011 | D29: =B29/'- 7 -'!$E29 -> 38.05915263 | E29: 4182859 | F29: =E29/'- 3 -'!$D29*100 -> 2.038380902 | G29: =E29/'- 7 -'!$E29 -> 252.9929537 | H29: 593993 | I29: =H29/'- 3 -'!$D29*100 -> 0.2894632564
A30: PINE CREEK | B30: 215903 | C30: =B30/'- 3 -'!$D30*100 -> 1.149524857 | D30: =B30/'- 7 -'!$E30 -> 201.7785047 | E30: 592668 | F30: =E30/'- 3 -'!$D30*100 -> 3.155521684 | G30: =E30/'- 7 -'!$E30 -> 553.8953271 | H30: 0 | I30: =H30/'- 3 -'!$D30*100 -> 0
A31: PORTAGE LA PRAIRIE | B31: 210175 | C31: =B31/'- 3 -'!$D31*100 -> 0.4379348171 | D31: =B31/'- 7 -'!$E31 -> 63.93155894 | E31: 1082308 | F31: =E31/'- 3 -'!$D31*100 -> 2.255170006 | G31: =E31/'- 7 -'!$E31 -> 329.2191635 | H31: 805629 | I31: =H31/'- 3 -'!$D31*100 -> 1.678662966
A32: PRAIRIE ROSE | B32: 149707 | C32: =B32/'- 3 -'!$D32*100 -> 0.4236049484 | D32: =B32/'- 7 -'!$E32 -> 66.06663725 | E32: 607773 | F32: =E32/'- 3 -'!$D32*100 -> 1.719730208 | G32: =E32/'- 7 -'!$E32 -> 268.2140335 | H32: 0 | I32: =H32/'- 3 -'!$D32*100 -> 0
A33: PRAIRIE SPIRIT | B33: 206010 | C33: =B33/'- 3 -'!$D33*100 -> 0.659899882 | D33: =B33/'- 7 -'!$E33 -> 98.56937799 | E33: 537174 | F33: =E33/'- 3 -'!$D33*100 -> 1.720698312 | G33: =E33/'- 7 -'!$E33 -> 257.0210526 | H33: 0 | I33: =H33/'- 3 -'!$D33*100 -> 0
A34: RED RIVER VALLEY | B34: 266822 | C34: =B34/'- 3 -'!$D34*100 -> 0.7385116315 | D34: =B34/'- 7 -'!$E34 -> 117.7502207 | E34: 502933 | F34: =E34/'- 3 -'!$D34*100 -> 1.392021162 | G34: =E34/'- 7 -'!$E34 -> 221.9474846 | H34: 621830 | I34: =H34/'- 3 -'!$D34*100 -> 1.721105036
A35: RIVER EAST TRANSCONA | B35: 1342622 | C35: =B35/'- 3 -'!$D35*100 -> 0.5911137832 | D35: =B35/'- 7 -'!$E35 -> 75.67265042 | E35: 4465603 | F35: =E35/'- 3 -'!$D35*100 -> 1.966063035 | G35: =E35/'- 7 -'!$E35 -> 251.6896153 | H35: 521522 | I35: =H35/'- 3 -'!$D35*100 -> 0.2296095569
A36: ROLLING RIVER | B36: 166576 | C36: =B36/'- 3 -'!$D36*100 -> 0.6266862254 | D36: =B36/'- 7 -'!$E36 -> 96.2867052 | E36: 549597 | F36: =E36/'- 3 -'!$D36*100 -> 2.067674031 | G36: =E36/'- 7 -'!$E36 -> 317.6861272 | H36: 0 | I36: =H36/'- 3 -'!$D36*100 -> 0
A37: SEINE RIVER | B37: 377031 | C37: =B37/'- 3 -'!$D37*100 -> 0.5984606318 | D37: =B37/'- 7 -'!$E37 -> 79.14168766 | E37: 1322573 | F37: =E37/'- 3 -'!$D37*100 -> 2.099317757 | G37: =E37/'- 7 -'!$E37 -> 277.618178 | H37: 0 | I37: =H37/'- 3 -'!$D37*100 -> 0
A38: SEVEN OAKS | B38: 517607 | C38: =B38/'- 3 -'!$D38*100 -> 0.2997809943 | D38: =B38/'- 7 -'!$E38 -> 43.2268544 | E38: 2238261 | F38: =E38/'- 3 -'!$D38*100 -> 1.296327345 | G38: =E38/'- 7 -'!$E38 -> 186.9236358 | H38: 86095 | I38: =H38/'- 3 -'!$D38*100 -> 0.04986339965
A39: SOUTHWEST HORIZON | B39: 297362 | C39: =B39/'- 3 -'!$D39*100 -> 1.211015557 | D39: =B39/'- 7 -'!$E39 -> 207.4377398 | E39: 320187 | F39: =E39/'- 3 -'!$D39*100 -> 1.303971046 | G39: =E39/'- 7 -'!$E39 -> 223.3603069 | H39: 0 | I39: =H39/'- 3 -'!$D39*100 -> 0
A40: ST. JAMES-ASSINIBOIA | B40: 229540 | C40: =B40/'- 3 -'!$D40*100 -> 0.1917706898 | D40: =B40/'- 7 -'!$E40 -> 28.56822821 | E40: 3365025 | F40: =E40/'- 3 -'!$D40*100 -> 2.811332079 | G40: =E40/'- 7 -'!$E40 -> 418.8063175 | H40: 473010 | I40: =H40/'- 3 -'!$D40*100 -> 0.3951792889
A41: SUNRISE | B41: 290849 | C41: =B41/'- 3 -'!$D41*100 -> 0.3856948146 | D41: =B41/'- 7 -'!$E41 -> 62.995235 | E41: 2419311 | F41: =E41/'- 3 -'!$D41*100 -> 3.208247949 | G41: =E41/'- 7 -'!$E41 -> 524.0006498 | H41: 684649 | I41: =H41/'- 3 -'!$D41*100 -> 0.9079129346
A42: SWAN VALLEY | B42: 180205 | C42: =B42/'- 3 -'!$D42*100 -> 0.7319029428 | D42: =B42/'- 7 -'!$E42 -> 127.355157 | E42: 492574 | F42: =E42/'- 3 -'!$D42*100 -> 2.000590217 | G42: =E42/'- 7 -'!$E42 -> 348.1137543 | H42: 0 | I42: =H42/'- 3 -'!$D42*100 -> 0
A43: TURTLE MOUNTAIN | B43: 121375 | C43: =B43/'- 3 -'!$D43*100 -> 0.7874711028 | D43: =B43/'- 7 -'!$E43 -> 114.8297067 | E43: 399194 | F43: =E43/'- 3 -'!$D43*100 -> 2.589938121 | G43: =E43/'- 7 -'!$E43 -> 377.666982 | H43: 0 | I43: =H43/'- 3 -'!$D43*100 -> 0
A44: TURTLE RIVER | B44: 102364 | C44: =B44/'- 3 -'!$D44*100 -> 0.8346284544 | D44: =B44/'- 7 -'!$E44 -> 166.3103168 | E44: 165020 | F44: =E44/'- 3 -'!$D44*100 -> 1.345496342 | G44: =E44/'- 7 -'!$E44 -> 268.1072299 | H44: 0 | I44: =H44/'- 3 -'!$D44*100 -> 0
A45: WESTERN | B45: 175943 | C45: =B45/'- 3 -'!$D45*100 -> 0.6409681463 | D45: =B45/'- 7 -'!$E45 -> 82.17795423 | E45: 360611 | F45: =E45/'- 3 -'!$D45*100 -> 1.313721854 | G45: =E45/'- 7 -'!$E45 -> 168.431107 | H45: 272662 | I45: =H45/'- 3 -'!$D45*100 -> 0.9933197496
A46: WINNIPEG | B46: 767363 | C46: =B46/'- 3 -'!$D46*100 -> 0.1701182058 | D46: =B46/'- 7 -'!$E46 -> 27.5893894 | E46: 16134964 | F46: =E46/'- 3 -'!$D46*100 -> 3.576991757 | G46: =E46/'- 7 -'!$E46 -> 580.1085077 | H46: 33072029 | I46: =H46/'- 3 -'!$D46*100 -> 7.331802855
A48: PROVINCE | B48: =SUM(B11:B46) -> 11151334 | C48: =B48/'- 3 -'!$D48*100 -> 0.3977722097 | D48: =B48/'- 7 -'!$E48 -> 59.46579547 | E48: =SUM(E11:E46) -> 62552381 | F48: =E48/'- 3 -'!$D48*100 -> 2.231266574 | G48: =E48/'- 7 -'!$E48 -> 333.5679027 | H48: =SUM(H11:H46) -> 54114388 | I48: =H48/'- 3 -'!$D48*100 -> 1.930280242
A50: WHITESHELL | B50: 87534 | C50: =B50/'- 3 -'!$D50*100 -> 2.137733808 | D50: =B50/'- 7 -'!$E50 -> 448.8923077 | E50: 81736 | F50: =E50/'- 3 -'!$D50*100 -> 1.996136479 | G50: =E50/'- 7 -'!$E50 -> 419.1589744 | H50: 0 | I50: =H50/'- 3 -'!$D50*100 -> 0

Sheet - 22 -
C2: ANALYSIS OF EXPENSE BY PROGRAM | J2: PAGE 5 OF 16
C3: =OPYEAR -> OPERATING FUND 2023/2024 ACTUAL
B5: FUNCTION 200: STUDENT SUPPORT SERVICES
B6: REGULAR PLACEMENT (1) | E6: RESOURCE SERVICES | H6: COUNSELLING AND GUIDANCE
D8: PER PUPIL | G8: PER PUPIL | J8: PER PUPIL
A9: DIVISION / DISTRICT | B9: AMOUNT | C9: % | E9: AMOUNT | F9: % | H9: AMOUNT | I9: %
A11: BEAUTIFUL PLAINS | B11: 1329462 | C11: =B11/'- 3 -'!$D11*100 -> 4.942547516 | D11: =B11/'- 7 -'!$E11 -> 611.8376363 | E11: 1030865 | F11: =E11/'- 3 -'!$D11*100 -> 3.832451958 | G11: =E11/'- 7 -'!$E11 -> 474.4189792 | H11: 399346 | I11: =H11/'- 3 -'!$D11*100 -> 1.484650618 | J11: =H11/'- 7 -'!$E11 -> 183.7848037
A12: BORDER LAND | B12: 2414542 | C12: =B12/'- 3 -'!$D12*100 -> 6.439380878 | D12: =B12/'- 7 -'!$E12 -> 1171.254911 | E12: 1587456 | F12: =E12/'- 3 -'!$D12*100 -> 4.233611927 | G12: =E12/'- 7 -'!$E12 -> 770.0489935 | H12: 570950 | I12: =H12/'- 3 -'!$D12*100 -> 1.522675734 | J12: =H12/'- 7 -'!$E12 -> 276.9585253
A13: BRANDON | B13: 12360560 | C13: =B13/'- 3 -'!$D13*100 -> 10.12162804 | D13: =B13/'- 7 -'!$E13 -> 1322.197144 | E13: 5088995 | F13: =E13/'- 3 -'!$D13*100 -> 4.167199099 | G13: =E13/'- 7 -'!$E13 -> 544.3648714 | H13: 3962371 | I13: =H13/'- 3 -'!$D13*100 -> 3.244646313 | J13: =H13/'- 7 -'!$E13 -> 423.8509921
A14: DSFM | B14: 5842033 | C14: =B14/'- 3 -'!$D14*100 -> 5.432786617 | D14: =B14/'- 7 -'!$E14 -> 969.2941879 | E14: 4114777 | F14: =E14/'- 3 -'!$D14*100 -> 3.826528439 | G14: =E14/'- 7 -'!$E14 -> 682.7125815 | H14: 2120782 | I14: =H14/'- 3 -'!$D14*100 -> 1.972216875 | J14: =H14/'- 7 -'!$E14 -> 351.8743674
A15: EVERGREEN | B15: 1610896 | C15: =B15/'- 3 -'!$D15*100 -> 7.193165667 | D15: =B15/'- 7 -'!$E15 -> 1123.358438 | E15: 902714 | F15: =E15/'- 3 -'!$D15*100 -> 4.030906621 | G15: =E15/'- 7 -'!$E15 -> 629.5076709 | H15: 457783 | I15: =H15/'- 3 -'!$D15*100 -> 2.044147455 | J15: =H15/'- 7 -'!$E15 -> 319.235007
A16: FLIN FLON | B16: 1292296 | C16: =B16/'- 3 -'!$D16*100 -> 7.575864697 | D16: =B16/'- 7 -'!$E16 -> 1564.523002 | E16: 726105 | F16: =E16/'- 3 -'!$D16*100 -> 4.256666612 | G16: =E16/'- 7 -'!$E16 -> 879.0617433 | H16: 275063 | I16: =H16/'- 3 -'!$D16*100 -> 1.612509882 | J16: =H16/'- 7 -'!$E16 -> 333.0060533
A17: FORT LA BOSSE | B17: 1062600 | C17: =B17/'- 3 -'!$D17*100 -> 4.954477186 | D17: =B17/'- 7 -'!$E17 -> 697.0154149 | E17: 787414 | F17: =E17/'- 3 -'!$D17*100 -> 3.67139535 | G17: =E17/'- 7 -'!$E17 -> 516.5063955 | H17: 251076 | I17: =H17/'- 3 -'!$D17*100 -> 1.170666586 | J17: =H17/'- 7 -'!$E17 -> 164.693998
A18: FRONTIER | B18: 10776550 | C18: =B18/'- 3 -'!$D18*100 -> 6.485437414 | D18: =B18/'- 7 -'!$E18 -> 1703.533038 | E18: 5849971 | F18: =E18/'- 3 -'!$D18*100 -> 3.520572056 | G18: =E18/'- 7 -'!$E18 -> 924.7503952 | H18: 5359082.43 | I18: =H18/'- 3 -'!$D18*100 -> 3.225150321 | J18: =H18/'- 7 -'!$E18 -> 847.1518226
A19: GARDEN VALLEY | B19: 3976170 | C19: =B19/'- 3 -'!$D19*100 -> 6.984353083 | D19: =B19/'- 7 -'!$E19 -> 937.9971691 | E19: 2593713 | F19: =E19/'- 3 -'!$D19*100 -> 4.555994182 | G19: =E19/'- 7 -'!$E19 -> 611.8690729 | H19: 1281237 | I19: =H19/'- 3 -'!$D19*100 -> 2.250560613 | J19: =H19/'- 7 -'!$E19 -> 302.2498231
A20: HANOVER | B20: 6439148 | C20: =B20/'- 3 -'!$D20*100 -> 6.224024069 | D20: =B20/'- 7 -'!$E20 -> 764.8261691 | E20: 7173192 | F20: =E20/'- 3 -'!$D20*100 -> 6.933544571 | G20: =E20/'- 7 -'!$E20 -> 852.0141108 | H20: 2959938 | I20: =H20/'- 3 -'!$D20*100 -> 2.86105015 | J20: =H20/'- 7 -'!$E20 -> 351.5741588
A21: INTERLAKE | B21: 3580397 | C21: =B21/'- 3 -'!$D21*100 -> 8.584387641 | D21: =B21/'- 7 -'!$E21 -> 1240.179079 | E21: 2388410 | F21: =E21/'- 3 -'!$D21*100 -> 5.726470357 | G21: =E21/'- 7 -'!$E21 -> 827.2982335 | H21: 1363243 | I21: =H21/'- 3 -'!$D21*100 -> 3.268521999 | J21: =H21/'- 7 -'!$E21 -> 472.2005542
A22: KELSEY | B22: 918185 | C22: =B22/'- 3 -'!$D22*100 -> 3.968483108 | D22: =B22/'- 7 -'!$E22 -> 634.105663 | E22: 1450954 | F22: =E22/'- 3 -'!$D22*100 -> 6.271161519 | G22: =E22/'- 7 -'!$E22 -> 1002.040055 | H22: 695028 | I22: =H22/'- 3 -'!$D22*100 -> 3.003977279 | J22: =H22/'- 7 -'!$E22 -> 479.9917127
A23: LAKESHORE | B23: 1493125 | C23: =B23/'- 3 -'!$D23*100 -> 9.129870245 | D23: =B23/'- 7 -'!$E23 -> 1531.410256 | E23: 391629 | F23: =E23/'- 3 -'!$D23*100 -> 2.394656813 | G23: =E23/'- 7 -'!$E23 -> 401.6707692 | H23: 387113 | I23: =H23/'- 3 -'!$D23*100 -> 2.367043255 | J23: =H23/'- 7 -'!$E23 -> 397.0389744
A24: LORD SELKIRK | B24: 4027261 | C24: =B24/'- 3 -'!$D24*100 -> 6.194994434 | D24: =B24/'- 7 -'!$E24 -> 1066.541578 | E24: 2494157 | F24: =E24/'- 3 -'!$D24*100 -> 3.836674288 | G24: =E24/'- 7 -'!$E24 -> 660.5288665 | H24: 1740123 | I24: =H24/'- 3 -'!$D24*100 -> 2.676770216 | J24: =H24/'- 7 -'!$E24 -> 460.8376589
A25: LOUIS RIEL | B25: 20732470 | C25: =B25/'- 3 -'!$D25*100 -> 8.862827955 | D25: =B25/'- 7 -'!$E25 -> 1208.256309 | E25: 13020154 | F25: =E25/'- 3 -'!$D25*100 -> 5.565925567 | G25: =E25/'- 7 -'!$E25 -> 758.7944519 | H25: 5165348 | I25: =H25/'- 3 -'!$D25*100 -> 2.208110787 | J25: =H25/'- 7 -'!$E25 -> 301.0284982
A26: MOUNTAIN VIEW | B26: 2206969 | C26: =B26/'- 3 -'!$D26*100 -> 4.593881438 | D26: =B26/'- 7 -'!$E26 -> 709.2030592 | E26: 2715359 | F26: =E26/'- 3 -'!$D26*100 -> 5.652112607 | G26: =E26/'- 7 -'!$E26 -> 872.5727048 | H26: 1181870 | I26: =H26/'- 3 -'!$D26*100 -> 2.460102818 | J26: =H26/'- 7 -'!$E26 -> 379.7904817
A27: MYSTERY LAKE | B27: 1967062 | C27: =B27/'- 3 -'!$D27*100 -> 4.251838646 | D27: =B27/'- 7 -'!$E27 -> 695.9356094 | E27: 2849752 | F27: =E27/'- 3 -'!$D27*100 -> 6.159788398 | G27: =E27/'- 7 -'!$E27 -> 1008.226428 | H27: 1187003 | I27: =H27/'- 3 -'!$D27*100 -> 2.565727582 | J27: =H27/'- 7 -'!$E27 -> 419.9550681
A28: PARK WEST | B28: 1373188 | C28: =B28/'- 3 -'!$D28*100 -> 4.163777866 | D28: =B28/'- 7 -'!$E28 -> 650.1837121 | E28: 1713319 | F28: =E28/'- 3 -'!$D28*100 -> 5.195122394 | G28: =E28/'- 7 -'!$E28 -> 811.2305871 | H28: 720059 | I28: =H28/'- 3 -'!$D28*100 -> 2.183361438 | J28: =H28/'- 7 -'!$E28 -> 340.9370265
A29: PEMBINA TRAILS | B29: 17531870 | C29: =B29/'- 3 -'!$D29*100 -> 8.543589202 | D29: =B29/'- 7 -'!$E29 -> 1060.384674 | E29: 17256579 | F29: =E29/'- 3 -'!$D29*100 -> 8.409435046 | G29: =E29/'- 7 -'!$E29 -> 1043.734176 | H29: 4991619 | I29: =H29/'- 3 -'!$D29*100 -> 2.432503902 | J29: =H29/'- 7 -'!$E29 -> 301.9093961
A30: PINE CREEK | B30: 881520 | C30: =B30/'- 3 -'!$D30*100 -> 4.693446372 | D30: =B30/'- 7 -'!$E30 -> 823.8504673 | E30: 473141 | F30: =E30/'- 3 -'!$D30*100 -> 2.519128222 | G30: =E30/'- 7 -'!$E30 -> 442.1878505 | H30: 28658 | I30: =H30/'- 3 -'!$D30*100 -> 0.1525827958 | J30: =H30/'- 7 -'!$E30 -> 26.78317757
A31: PORTAGE LA PRAIRIE | B31: 3318469 | C31: =B31/'- 3 -'!$D31*100 -> 6.91458601 | D31: =B31/'- 7 -'!$E31 -> 1009.420228 | E31: 1904141 | F31: =E31/'- 3 -'!$D31*100 -> 3.96759672 | G31: =E31/'- 7 -'!$E31 -> 579.2063878 | H31: 1406922 | I31: =H31/'- 3 -'!$D31*100 -> 2.931557649 | J31: =H31/'- 7 -'!$E31 -> 427.9610646
A32: PRAIRIE ROSE | B32: 1624426 | C32: =B32/'- 3 -'!$D32*100 -> 4.596410935 | D32: =B32/'- 7 -'!$E32 -> 716.8693733 | E32: 2209795 | F32: =E32/'- 3 -'!$D32*100 -> 6.25274768 | G32: =E32/'- 7 -'!$E32 -> 975.1963813 | H32: 995565 | I32: =H32/'- 3 -'!$D32*100 -> 2.817010964 | J32: =H32/'- 7 -'!$E32 -> 439.3490733
A33: PRAIRIE SPIRIT | B33: 1321887 | C33: =B33/'- 3 -'!$D33*100 -> 4.234323942 | D33: =B33/'- 7 -'!$E33 -> 632.4818182 | E33: 1941808 | F33: =E33/'- 3 -'!$D33*100 -> 6.220080919 | G33: =E33/'- 7 -'!$E33 -> 929.0947368 | H33: 560168 | I33: =H33/'- 3 -'!$D33*100 -> 1.794353658 | J33: =H33/'- 7 -'!$E33 -> 268.0229665
A34: RED RIVER VALLEY | B34: 2184965 | C34: =B34/'- 3 -'!$D34*100 -> 6.047560047 | D34: =B34/'- 7 -'!$E34 -> 964.2387467 | E34: 1626474 | F34: =E34/'- 3 -'!$D34*100 -> 4.501765099 | G34: =E34/'- 7 -'!$E34 -> 717.7731686 | H34: 1169762 | I34: =H34/'- 3 -'!$D34*100 -> 3.237674716 | J34: =H34/'- 7 -'!$E34 -> 516.223301
A35: RIVER EAST TRANSCONA | B35: 23171994 | C35: =B35/'- 3 -'!$D35*100 -> 10.2018923 | D35: =B35/'- 7 -'!$E35 -> 1306.016289 | E35: 11864064 | F35: =E35/'- 3 -'!$D35*100 -> 5.223370208 | G35: =E35/'- 7 -'!$E35 -> 668.6805129 | H35: 5710601 | I35: =H35/'- 3 -'!$D35*100 -> 2.514196074 | J35: =H35/'- 7 -'!$E35 -> 321.8599972
A36: ROLLING RIVER | B36: 724177 | C36: =B36/'- 3 -'!$D36*100 -> 2.724472617 | D36: =B36/'- 7 -'!$E36 -> 418.599422 | E36: 1569517 | F36: =E36/'- 3 -'!$D36*100 -> 5.904780307 | G36: =E36/'- 7 -'!$E36 -> 907.2352601 | H36: 518068 | I36: =H36/'- 3 -'!$D36*100 -> 1.949056763 | J36: =H36/'- 7 -'!$E36 -> 299.4612717
A37: SEINE RIVER | B37: 5598134 | C37: =B37/'- 3 -'!$D37*100 -> 8.885908084 | D37: =B37/'- 7 -'!$E37 -> 1175.0911 | E37: 3139009 | F37: =E37/'- 3 -'!$D37*100 -> 4.98254337 | G37: =E37/'- 7 -'!$E37 -> 658.9019731 | H37: 1693525 | I37: =H37/'- 3 -'!$D37*100 -> 2.688129203 | J37: =H37/'- 7 -'!$E37 -> 355.4838371
A38: SEVEN OAKS | B38: 17156292 | C38: =B38/'- 3 -'!$D38*100 -> 9.936361514 | D38: =B38/'- 7 -'!$E38 -> 1432.771459 | E38: 7866979 | F38: =E38/'- 3 -'!$D38*100 -> 4.55629616 | G38: =E38/'- 7 -'!$E38 -> 656.9941207 | H38: 3518575 | I38: =H38/'- 3 -'!$D38*100 -> 2.037843213 | J38: =H38/'- 7 -'!$E38 -> 293.846353
A39: SOUTHWEST HORIZON | B39: 2549898 | C39: =B39/'- 3 -'!$D39*100 -> 10.38453517 | D39: =B39/'- 7 -'!$E39 -> 1778.791768 | E39: 0 | F39: =E39/'- 3 -'!$D39*100 -> 0 | G39: =E39/'- 7 -'!$E39 -> 0 | H39: 608517 | I39: =H39/'- 3 -'!$D39*100 -> 2.478203516 | J39: =H39/'- 7 -'!$E39 -> 424.497384
A40: ST. JAMES-ASSINIBOIA | B40: 15103800 | C40: =B40/'- 3 -'!$D40*100 -> 12.6185682 | D40: =B40/'- 7 -'!$E40 -> 1879.797879 | E40: 5854051 | F40: =E40/'- 3 -'!$D40*100 -> 4.890805081 | G40: =E40/'- 7 -'!$E40 -> 728.5870215 | H40: 3322079 | I40: =H40/'- 3 -'!$D40*100 -> 2.775452563 | J40: =H40/'- 7 -'!$E40 -> 413.4613183
A41: SUNRISE | B41: 5696770 | C41: =B41/'- 3 -'!$D41*100 -> 7.554485829 | D41: =B41/'- 7 -'!$E41 -> 1233.868313 | E41: 5554887 | F41: =E41/'- 3 -'!$D41*100 -> 7.366334804 | G41: =E41/'- 7 -'!$E41 -> 1203.137752 | H41: 952218 | I41: =H41/'- 3 -'!$D41*100 -> 1.262736145 | J41: =H41/'- 7 -'!$E41 -> 206.2417154
A42: SWAN VALLEY | B42: 3289989 | C42: =B42/'- 3 -'!$D42*100 -> 13.36229644 | D42: =B42/'- 7 -'!$E42 -> 2325.113429 | E42: 949020 | F42: =E42/'- 3 -'!$D42*100 -> 3.854446496 | G42: =E42/'- 7 -'!$E42 -> 670.6949922 | H42: 706215 | I42: =H42/'- 3 -'!$D42*100 -> 2.868293536 | J42: =H42/'- 7 -'!$E42 -> 499.0989272
A43: TURTLE MOUNTAIN | B43: 197505 | C43: =B43/'- 3 -'!$D43*100 -> 1.281396335 | D43: =B43/'- 7 -'!$E43 -> 186.8543046 | E43: 1806493 | F43: =E43/'- 3 -'!$D43*100 -> 11.72037928 | G43: =E43/'- 7 -'!$E43 -> 1709.075686 | H43: 236935 | I43: =H43/'- 3 -'!$D43*100 -> 1.53721496 | J43: =H43/'- 7 -'!$E43 -> 224.1579943
A44: TURTLE RIVER | B44: 721228 | C44: =B44/'- 3 -'!$D44*100 -> 5.880557725 | D44: =B44/'- 7 -'!$E44 -> 1171.775792 | E44: 334530 | F44: =E44/'- 3 -'!$D44*100 -> 2.727602056 | G44: =E44/'- 7 -'!$E44 -> 543.509342 | H44: 61077 | I44: =H44/'- 3 -'!$D44*100 -> 0.4979934558 | J44: =H44/'- 7 -'!$E44 -> 99.23151909
A45: WESTERN | B45: 1155698 | C45: =B45/'- 3 -'!$D45*100 -> 4.210259031 | D45: =B45/'- 7 -'!$E45 -> 539.7935544 | E45: 1373770 | F45: =E45/'- 3 -'!$D45*100 -> 5.004704992 | G45: =E45/'- 7 -'!$E45 -> 641.6487623 | H45: 652841 | I45: =H45/'- 3 -'!$D45*100 -> 2.378328695 | J45: =H45/'- 7 -'!$E45 -> 304.9234003
A46: WINNIPEG | B46: 30364875 | C46: =B46/'- 3 -'!$D46*100 -> 6.731648585 | D46: =B46/'- 7 -'!$E46 -> 1091.723683 | E46: 22805914 | F46: =E46/'- 3 -'!$D46*100 -> 5.055887722 | G46: =E46/'- 7 -'!$E46 -> 819.9525414 | H46: 7333387 | I46: =H46/'- 3 -'!$D46*100 -> 1.625752921 | J46: =H46/'- 7 -'!$E46 -> 263.6609656
A48: PROVINCE | B48: =SUM(B11:B46) -> 215996411 | C48: =B48/'- 3 -'!$D48*100 -> 7.704671897 | D48: =B48/'- 7 -'!$E48 -> 1151.826176 | E48: =SUM(E11:E46) -> 145409108 | F48: =E48/'- 3 -'!$D48*100 -> 5.186796683 | G48: =E48/'- 7 -'!$E48 -> 775.4111101 | H48: =SUM(H11:H46) -> 64544147.43 | I48: =H48/'- 3 -'!$D48*100 -> 2.30231362 | J48: =H48/'- 7 -'!$E48 -> 344.1892306
A50: WHITESHELL | B50: 283068 | C50: =B50/'- 3 -'!$D50*100 -> 6.913017039 | D50: =B50/'- 7 -'!$E50 -> 1451.630769 | E50: 22879 | F50: =E50/'- 3 -'!$D50*100 -> 0.558745308 | G50: =E50/'- 7 -'!$E50 -> 117.3282051 | H50: 22879 | I50: =H50/'- 3 -'!$D50*100 -> 0.558745308 | J50: =H50/'- 7 -'!$E50 -> 117.3282051
A52: (1) Expenses shown are extra costs associated with special needs students in regular classes, not the total cost of educating those students.

Sheet - 23 -
B2: ANALYSIS OF EXPENSE BY PROGRAM | F2: PAGE 6 OF 16
B3: =OPYEAR -> OPERATING FUND 2023/2024 ACTUAL
B5: FUNCTION 300: ADULT LEARNING CENTRES
B6: ADMINISTRATION AND OTHER
D7: INSTRUCTION
A9: DIVISION / DISTRICT | B9: AMOUNT | C9: % | D9: AMOUNT | E9: %
A11: BEAUTIFUL PLAINS | B11: 0 | C11: =B11/'- 3 -'!$D11*100 -> 0 | D11: 0 | E11: =D11/'- 3 -'!$D11*100 -> 0
A12: BORDER LAND | B12: 81739 | C12: =B12/'- 3 -'!$D12*100 -> 0.2179910532 | D12: 275225 | E12: =D12/'- 3 -'!$D12*100 -> 0.7340019772
A13: BRANDON | B13: 0 | C13: =B13/'- 3 -'!$D13*100 -> 0 | D13: 0 | E13: =D13/'- 3 -'!$D13*100 -> 0
A14: DSFM | B14: 89386 | C14: =B14/'- 3 -'!$D14*100 -> 0.08312432753 | D14: 193447 | E14: =D14/'- 3 -'!$D14*100 -> 0.1798956412
A15: EVERGREEN | B15: 0 | C15: =B15/'- 3 -'!$D15*100 -> 0 | D15: 0 | E15: =D15/'- 3 -'!$D15*100 -> 0
A16: FLIN FLON | B16: 19430 | C16: =B16/'- 3 -'!$D16*100 -> 0.1139050582 | D16: 74570 | E16: =D16/'- 3 -'!$D16*100 -> 0.4371538954
A17: FORT LA BOSSE | B17: 0 | C17: =B17/'- 3 -'!$D17*100 -> 0 | D17: 0 | E17: =D17/'- 3 -'!$D17*100 -> 0
A18: FRONTIER | B18: 190346 | C18: =B18/'- 3 -'!$D18*100 -> 0.1145521591 | D18: 2256967 | E18: =D18/'- 3 -'!$D18*100 -> 1.358265699
A19: GARDEN VALLEY | B19: 0 | C19: =B19/'- 3 -'!$D19*100 -> 0 | D19: 0 | E19: =D19/'- 3 -'!$D19*100 -> 0
A20: HANOVER | B20: 0 | C20: =B20/'- 3 -'!$D20*100 -> 0 | D20: 0 | E20: =D20/'- 3 -'!$D20*100 -> 0
A21: INTERLAKE | B21: 0 | C21: =B21/'- 3 -'!$D21*100 -> 0 | D21: 0 | E21: =D21/'- 3 -'!$D21*100 -> 0
A22: KELSEY | B22: 204028 | C22: =B22/'- 3 -'!$D22*100 -> 0.8818284676 | D22: 448743 | E22: =D22/'- 3 -'!$D22*100 -> 1.939510028
A23: LAKESHORE | B23: 72450 | C23: =B23/'- 3 -'!$D23*100 -> 0.443003164 | D23: 178208 | E23: =D23/'- 3 -'!$D23*100 -> 1.089671606
A24: LORD SELKIRK | B24: 122604 | C24: =B24/'- 3 -'!$D24*100 -> 0.1885974357 | D24: 247436 | E24: =D24/'- 3 -'!$D24*100 -> 0.3806221257
A25: LOUIS RIEL | B25: 161039 | C25: =B25/'- 3 -'!$D25*100 -> 0.06884181919 | D25: 1199132 | E25: =D25/'- 3 -'!$D25*100 -> 0.5126114067
A26: MOUNTAIN VIEW | B26: 0 | C26: =B26/'- 3 -'!$D26*100 -> 0 | D26: 0 | E26: =D26/'- 3 -'!$D26*100 -> 0
A27: MYSTERY LAKE | B27: 0 | C27: =B27/'- 3 -'!$D27*100 -> 0 | D27: 0 | E27: =D27/'- 3 -'!$D27*100 -> 0
A28: PARK WEST | B28: 0 | C28: =B28/'- 3 -'!$D28*100 -> 0 | D28: 107138 | E28: =D28/'- 3 -'!$D28*100 -> 0.3248636261
A29: PEMBINA TRAILS | B29: 0 | C29: =B29/'- 3 -'!$D29*100 -> 0 | D29: 0 | E29: =D29/'- 3 -'!$D29*100 -> 0
A30: PINE CREEK | B30: 0 | C30: =B30/'- 3 -'!$D30*100 -> 0 | D30: 0 | E30: =D30/'- 3 -'!$D30*100 -> 0
A31: PORTAGE LA PRAIRIE | B31: 0 | C31: =B31/'- 3 -'!$D31*100 -> 0 | D31: 0 | E31: =D31/'- 3 -'!$D31*100 -> 0
A32: PRAIRIE ROSE | B32: 55197 | C32: =B32/'- 3 -'!$D32*100 -> 0.1561832268 | D32: 229676 | E32: =D32/'- 3 -'!$D32*100 -> 0.6498820371
A33: PRAIRIE SPIRIT | B33: 0 | C33: =B33/'- 3 -'!$D33*100 -> 0 | D33: 0 | E33: =D33/'- 3 -'!$D33*100 -> 0
A34: RED RIVER VALLEY | B34: 0 | C34: =B34/'- 3 -'!$D34*100 -> 0 | D34: 0 | E34: =D34/'- 3 -'!$D34*100 -> 0
A35: RIVER EAST TRANSCONA | B35: 340698 | C35: =B35/'- 3 -'!$D35*100 -> 0.1499984982 | D35: 1258971 | E35: =D35/'- 3 -'!$D35*100 -> 0.5542849073
A36: ROLLING RIVER | B36: 35386 | C36: =B36/'- 3 -'!$D36*100 -> 0.1331279342 | D36: 87499 | E36: =D36/'- 3 -'!$D36*100 -> 0.3291855852
A37: SEINE RIVER | B37: 104483 | C37: =B37/'- 3 -'!$D37*100 -> 0.165845679 | D37: 218931 | E37: =D37/'- 3 -'!$D37*100 -> 0.3475087847
A38: SEVEN OAKS | B38: 898140 | C38: =B38/'- 3 -'!$D38*100 -> 0.5201732245 | D38: 1668766 | E38: =D38/'- 3 -'!$D38*100 -> 0.9664945233
A39: SOUTHWEST HORIZON | B39: 0 | C39: =B39/'- 3 -'!$D39*100 -> 0 | D39: 0 | E39: =D39/'- 3 -'!$D39*100 -> 0
A40: ST. JAMES-ASSINIBOIA | B40: 0 | C40: =B40/'- 3 -'!$D40*100 -> 0 | D40: 0 | E40: =D40/'- 3 -'!$D40*100 -> 0
A41: SUNRISE | B41: 333040 | C41: =B41/'- 3 -'!$D41*100 -> 0.4416442933 | D41: 738778 | E41: =D41/'- 3 -'!$D41*100 -> 0.9796933932
A42: SWAN VALLEY | B42: 0 | C42: =B42/'- 3 -'!$D42*100 -> 0 | D42: 0 | E42: =D42/'- 3 -'!$D42*100 -> 0
A43: TURTLE MOUNTAIN | B43: 0 | C43: =B43/'- 3 -'!$D43*100 -> 0 | D43: 206342 | E43: =D43/'- 3 -'!$D43*100 -> 1.33873007
A44: TURTLE RIVER | B44: 0 | C44: =B44/'- 3 -'!$D44*100 -> 0 | D44: 0 | E44: =D44/'- 3 -'!$D44*100 -> 0
A45: WESTERN | B45: 191867 | C45: =B45/'- 3 -'!$D45*100 -> 0.698979984 | D45: 225487 | E45: =D45/'- 3 -'!$D45*100 -> 0.821459134
A46: WINNIPEG | B46: 95417 | C46: =B46/'- 3 -'!$D46*100 -> 0.02115318153 | D46: 698264 | E46: =D46/'- 3 -'!$D46*100 -> 0.1547995132
A48: PROVINCE | B48: =SUM(B11:B46) -> 2995250 | C48: =B48/'- 3 -'!$D48*100 -> 0.1068416757 | D48: =SUM(D11:D46) -> 10313580 | E48: =D48/'- 3 -'!$D48*100 -> 0.3678892145
A50: WHITESHELL | B50: 0 | C50: =B50/'- 3 -'!$D50*100 -> 0 | D50: 0 | E50: =D50/'- 3 -'!$D50*100 -> 0

Sheet - 24 -
B2: ANALYSIS OF EXPENSE BY PROGRAM | I2: PAGE 7 OF 16
B3: =OPYEAR -> OPERATING FUND 2023/2024 ACTUAL
B5: FUNCTION 400: COMMUNITY EDUCATION AND SERVICES
D6: ENGLISH AS AN ADDITIONAL LANGUAGE FOR ADULTS
B7: CONTINUING EDUCATION | F7: COMMUNITY SERVICES & RECREATION | H7: PRE-KINDERGARTEN EDUCATION
A9: DIVISION / DISTRICT | B9: AMOUNT | C9: % | D9: AMOUNT | E9: % | F9: AMOUNT | G9: % | H9: AMOUNT | I9: %
A11: BEAUTIFUL PLAINS | B11: 0 | C11: =B11/'- 3 -'!$D11*100 -> 0 | D11: 0 | E11: =D11/'- 3 -'!$D11*100 -> 0 | F11: 0 | G11: =F11/'- 3 -'!$D11*100 -> 0 | H11: 23164 | I11: =H11/'- 3 -'!$D11*100 -> 0.08611691848
A12: BORDER LAND | B12: 0 | C12: =B12/'- 3 -'!$D12*100 -> 0 | D12: 0 | E12: =D12/'- 3 -'!$D12*100 -> 0 | F12: 0 | G12: =F12/'- 3 -'!$D12*100 -> 0 | H12: 47659 | I12: =H12/'- 3 -'!$D12*100 -> 0.1271025533
A13: BRANDON | B13: 0 | C13: =B13/'- 3 -'!$D13*100 -> 0 | D13: 0 | E13: =D13/'- 3 -'!$D13*100 -> 0 | F13: 249806 | G13: =F13/'- 3 -'!$D13*100 -> 0.2045573513 | H13: 196539 | I13: =H13/'- 3 -'!$D13*100 -> 0.1609388777
A14: DSFM | B14: 0 | C14: =B14/'- 3 -'!$D14*100 -> 0 | D14: 0 | E14: =D14/'- 3 -'!$D14*100 -> 0 | F14: 0 | G14: =F14/'- 3 -'!$D14*100 -> 0 | H14: 962633 | I14: =H14/'- 3 -'!$D14*100 -> 0.8951985857
A15: EVERGREEN | B15: 0 | C15: =B15/'- 3 -'!$D15*100 -> 0 | D15: 0 | E15: =D15/'- 3 -'!$D15*100 -> 0 | F15: 0 | G15: =F15/'- 3 -'!$D15*100 -> 0 | H15: 32469 | I15: =H15/'- 3 -'!$D15*100 -> 0.1449844658
A16: FLIN FLON | B16: 0 | C16: =B16/'- 3 -'!$D16*100 -> 0 | D16: 0 | E16: =D16/'- 3 -'!$D16*100 -> 0 | F16: 0 | G16: =F16/'- 3 -'!$D16*100 -> 0 | H16: 17661 | I16: =H16/'- 3 -'!$D16*100 -> 0.1035345977
A17: FORT LA BOSSE | B17: 0 | C17: =B17/'- 3 -'!$D17*100 -> 0 | D17: 0 | E17: =D17/'- 3 -'!$D17*100 -> 0 | F17: 74535 | G17: =F17/'- 3 -'!$D17*100 -> 0.3475267806 | H17: 160817 | I17: =H17/'- 3 -'!$D17*100 -> 0.7498251059
A18: FRONTIER | B18: 0 | C18: =B18/'- 3 -'!$D18*100 -> 0 | D18: 0 | E18: =D18/'- 3 -'!$D18*100 -> 0 | F18: 862034 | G18: =F18/'- 3 -'!$D18*100 -> 0.5187808302 | H18: 1563702 | I18: =H18/'- 3 -'!$D18*100 -> 0.9410517703
A19: GARDEN VALLEY | B19: 0 | C19: =B19/'- 3 -'!$D19*100 -> 0 | D19: 0 | E19: =D19/'- 3 -'!$D19*100 -> 0 | F19: 0 | G19: =F19/'- 3 -'!$D19*100 -> 0 | H19: 77142 | I19: =H19/'- 3 -'!$D19*100 -> 0.1355040065
A20: HANOVER | B20: 0 | C20: =B20/'- 3 -'!$D20*100 -> 0 | D20: 0 | E20: =D20/'- 3 -'!$D20*100 -> 0 | F20: 0 | G20: =F20/'- 3 -'!$D20*100 -> 0 | H20: 119606 | I20: =H20/'- 3 -'!$D20*100 -> 0.1156101122
A21: INTERLAKE | B21: 0 | C21: =B21/'- 3 -'!$D21*100 -> 0 | D21: 0 | E21: =D21/'- 3 -'!$D21*100 -> 0 | F21: 0 | G21: =F21/'- 3 -'!$D21*100 -> 0 | H21: 0 | I21: =H21/'- 3 -'!$D21*100 -> 0
A22: KELSEY | B22: 0 | C22: =B22/'- 3 -'!$D22*100 -> 0 | D22: 0 | E22: =D22/'- 3 -'!$D22*100 -> 0 | F22: 35282 | G22: =F22/'- 3 -'!$D22*100 -> 0.1524921677 | H22: 0 | I22: =H22/'- 3 -'!$D22*100 -> 0
A23: LAKESHORE | B23: 94691 | C23: =B23/'- 3 -'!$D23*100 -> 0.5789981036 | D23: 0 | E23: =D23/'- 3 -'!$D23*100 -> 0 | F23: 0 | G23: =F23/'- 3 -'!$D23*100 -> 0 | H23: 14260 | I23: =H23/'- 3 -'!$D23*100 -> 0.08719427355
A24: LORD SELKIRK | B24: 259681 | C24: =B24/'- 3 -'!$D24*100 -> 0.39945818 | D24: 0 | E24: =D24/'- 3 -'!$D24*100 -> 0 | F24: 219008 | G24: =F24/'- 3 -'!$D24*100 -> 0.3368923298 | H24: 0 | I24: =H24/'- 3 -'!$D24*100 -> 0
A25: LOUIS RIEL | B25: 5297 | C25: =B25/'- 3 -'!$D25*100 -> 0.002264390093 | D25: 267313 | E25: =D25/'- 3 -'!$D25*100 -> 0.1142724012 | F25: 1551703 | G25: =F25/'- 3 -'!$D25*100 -> 0.663330357 | H25: 1024655 | I25: =H25/'- 3 -'!$D25*100 -> 0.4380250389
A26: MOUNTAIN VIEW | B26: 0 | C26: =B26/'- 3 -'!$D26*100 -> 0 | D26: 0 | E26: =D26/'- 3 -'!$D26*100 -> 0 | F26: 0 | G26: =F26/'- 3 -'!$D26*100 -> 0 | H26: 106495 | I26: =H26/'- 3 -'!$D26*100 -> 0.221672984
A27: MYSTERY LAKE | B27: 0 | C27: =B27/'- 3 -'!$D27*100 -> 0 | D27: 0 | E27: =D27/'- 3 -'!$D27*100 -> 0 | F27: 0 | G27: =F27/'- 3 -'!$D27*100 -> 0 | H27: 60491 | I27: =H27/'- 3 -'!$D27*100 -> 0.1307523462
A28: PARK WEST | B28: 0 | C28: =B28/'- 3 -'!$D28*100 -> 0 | D28: 0 | E28: =D28/'- 3 -'!$D28*100 -> 0 | F28: 0 | G28: =F28/'- 3 -'!$D28*100 -> 0 | H28: 121767 | I28: =H28/'- 3 -'!$D28*100 -> 0.3692216502
A29: PEMBINA TRAILS | B29: 0 | C29: =B29/'- 3 -'!$D29*100 -> 0 | D29: 0 | E29: =D29/'- 3 -'!$D29*100 -> 0 | F29: 280572 | G29: =F29/'- 3 -'!$D29*100 -> 0.1367276799 | H29: 2 | I29: =H29/'- 3 -'!$D29*100 -> 9.746352445e-07
A30: PINE CREEK | B30: 0 | C30: =B30/'- 3 -'!$D30*100 -> 0 | D30: 0 | E30: =D30/'- 3 -'!$D30*100 -> 0 | F30: 0 | G30: =F30/'- 3 -'!$D30*100 -> 0 | H30: 4084 | I30: =H30/'- 3 -'!$D30*100 -> 0.0217442996
A31: PORTAGE LA PRAIRIE | B31: 0 | C31: =B31/'- 3 -'!$D31*100 -> 0 | D31: 0 | E31: =D31/'- 3 -'!$D31*100 -> 0 | F31: 0 | G31: =F31/'- 3 -'!$D31*100 -> 0 | H31: 59085 | I31: =H31/'- 3 -'!$D31*100 -> 0.1231134943
A32: PRAIRIE ROSE | B32: 0 | C32: =B32/'- 3 -'!$D32*100 -> 0 | D32: 0 | E32: =D32/'- 3 -'!$D32*100 -> 0 | F32: 0 | G32: =F32/'- 3 -'!$D32*100 -> 0 | H32: 36275 | I32: =H32/'- 3 -'!$D32*100 -> 0.1026422913
A33: PRAIRIE SPIRIT | B33: 0 | C33: =B33/'- 3 -'!$D33*100 -> 0 | D33: 0 | E33: =D33/'- 3 -'!$D33*100 -> 0 | F33: 0 | G33: =F33/'- 3 -'!$D33*100 -> 0 | H33: 45224 | I33: =H33/'- 3 -'!$D33*100 -> 0.1448634157
A34: RED RIVER VALLEY | B34: 0 | C34: =B34/'- 3 -'!$D34*100 -> 0 | D34: 0 | E34: =D34/'- 3 -'!$D34*100 -> 0 | F34: 0 | G34: =F34/'- 3 -'!$D34*100 -> 0 | H34: 48356 | I34: =H34/'- 3 -'!$D34*100 -> 0.1338400449
A35: RIVER EAST TRANSCONA | B35: 202131 | C35: =B35/'- 3 -'!$D35*100 -> 0.08899185334 | D35: 222519 | E35: =D35/'- 3 -'!$D35*100 -> 0.09796804158 | F35: 844603 | G35: =F35/'- 3 -'!$D35*100 -> 0.3718518501 | H35: 229221 | I35: =H35/'- 3 -'!$D35*100 -> 0.1009187191
A36: ROLLING RIVER | B36: 0 | C36: =B36/'- 3 -'!$D36*100 -> 0 | D36: 0 | E36: =D36/'- 3 -'!$D36*100 -> 0 | F36: 0 | G36: =F36/'- 3 -'!$D36*100 -> 0 | H36: 27511 | I36: =H36/'- 3 -'!$D36*100 -> 0.103500893
A37: SEINE RIVER | B37: 0 | C37: =B37/'- 3 -'!$D37*100 -> 0 | D37: 0 | E37: =D37/'- 3 -'!$D37*100 -> 0 | F37: 0 | G37: =F37/'- 3 -'!$D37*100 -> 0 | H37: 698398 | I37: =H37/'- 3 -'!$D37*100 -> 1.108565896
A38: SEVEN OAKS | B38: 174340 | C38: =B38/'- 3 -'!$D38*100 -> 0.1009720088 | D38: 820526 | E38: =D38/'- 3 -'!$D38*100 -> 0.4752217418 | F38: 2260192 | G38: =F38/'- 3 -'!$D38*100 -> 1.309029061 | H38: 629813 | I38: =H38/'- 3 -'!$D38*100 -> 0.3647670286
A39: SOUTHWEST HORIZON | B39: 0 | C39: =B39/'- 3 -'!$D39*100 -> 0 | D39: 0 | E39: =D39/'- 3 -'!$D39*100 -> 0 | F39: 3623 | G39: =F39/'- 3 -'!$D39*100 -> 0.01475477487 | H39: 182227 | I39: =H39/'- 3 -'!$D39*100 -> 0.7421248578
A40: ST. JAMES-ASSINIBOIA | B40: 462353 | C40: =B40/'- 3 -'!$D40*100 -> 0.3862758287 | D40: 0 | E40: =D40/'- 3 -'!$D40*100 -> 0 | F40: 380559 | G40: =F40/'- 3 -'!$D40*100 -> 0.3179404981 | H40: 137028 | I40: =H40/'- 3 -'!$D40*100 -> 0.1144809361
A41: SUNRISE | B41: 0 | C41: =B41/'- 3 -'!$D41*100 -> 0 | D41: 0 | E41: =D41/'- 3 -'!$D41*100 -> 0 | F41: 0 | G41: =F41/'- 3 -'!$D41*100 -> 0 | H41: 59924 | I41: =H41/'- 3 -'!$D41*100 -> 0.07946520727
A42: SWAN VALLEY | B42: 0 | C42: =B42/'- 3 -'!$D42*100 -> 0 | D42: 0 | E42: =D42/'- 3 -'!$D42*100 -> 0 | F42: 0 | G42: =F42/'- 3 -'!$D42*100 -> 0 | H42: 88355 | I42: =H42/'- 3 -'!$D42*100 -> 0.3588539969
A43: TURTLE MOUNTAIN | B43: 0 | C43: =B43/'- 3 -'!$D43*100 -> 0 | D43: 0 | E43: =D43/'- 3 -'!$D43*100 -> 0 | F43: 0 | G43: =F43/'- 3 -'!$D43*100 -> 0 | H43: 13956 | I43: =H43/'- 3 -'!$D43*100 -> 0.09054539
A44: TURTLE RIVER | B44: 0 | C44: =B44/'- 3 -'!$D44*100 -> 0 | D44: 0 | E44: =D44/'- 3 -'!$D44*100 -> 0 | F44: 0 | G44: =F44/'- 3 -'!$D44*100 -> 0 | H44: 31696 | I44: =H44/'- 3 -'!$D44*100 -> 0.2584344446
A45: WESTERN | B45: 0 | C45: =B45/'- 3 -'!$D45*100 -> 0 | D45: 0 | E45: =D45/'- 3 -'!$D45*100 -> 0 | F45: 0 | G45: =F45/'- 3 -'!$D45*100 -> 0 | H45: 76308 | I45: =H45/'- 3 -'!$D45*100 -> 0.2779934258
A46: WINNIPEG | B46: 0 | C46: =B46/'- 3 -'!$D46*100 -> 0 | D46: 3350249 | E46: =D46/'- 3 -'!$D46*100 -> 0.7427232597 | F46: 175342 | G46: =F46/'- 3 -'!$D46*100 -> 0.03887191125 | H46: 4198556 | I46: =H46/'- 3 -'!$D46*100 -> 0.9307860992
A48: PROVINCE | B48: =SUM(B11:B46) -> 1198493 | C48: =B48/'- 3 -'!$D48*100 -> 0.04275068874 | D48: =SUM(D11:D46) -> 4660607 | E48: =D48/'- 3 -'!$D48*100 -> 0.1662455761 | F48: =SUM(F11:F46) -> 6937259 | G48: =F48/'- 3 -'!$D48*100 -> 0.2474545953 | H48: =SUM(H11:H46) -> 11095079 | I48: =H48/'- 3 -'!$D48*100 -> 0.395765573
A50: WHITESHELL | B50: 0 | C50: =B50/'- 3 -'!$D50*100 -> 0 | D50: 0 | E50: =D50/'- 3 -'!$D50*100 -> 0 | F50: 15142 | G50: =F50/'- 3 -'!$D50*100 -> 0.3697941979 | H50: 100210 | I50: =H50/'- 3 -'!$D50*100 -> 2.44730396

Sheet - 25 -
B2: ANALYSIS OF EXPENSE BY PROGRAM | J2: PAGE 8 OF 16
B3: =OPYEAR -> OPERATING FUND 2023/2024 ACTUAL
B5: FUNCTION 500: DIVISIONAL ADMINISTRATION
E6: INSTRUCTIONAL MGMT. AND ADMINISTRATION | H6: BUSINESS AND ADMIN. SERVICES
B7: BOARD OF TRUSTEES
D8: PER PUPIL | G8: PER PUPIL | J8: PER PUPIL
A9: DIVISION / DISTRICT | B9: AMOUNT | C9: % | E9: AMOUNT | F9: % | H9: AMOUNT | I9: %
A11: BEAUTIFUL PLAINS | B11: 135343 | C11: =B11/'- 3 -'!$D11*100 -> 0.503165347 | D11: =B11/'- 7 -'!$E11 -> 62.28680565 | E11: 181723 | F11: =E11/'- 3 -'!$D11*100 -> 0.6755925046 | G11: =E11/'- 7 -'!$E11 -> 83.6315523 | H11: 526723 | I11: =H11/'- 3 -'!$D11*100 -> 1.958200727 | J11: =H11/'- 7 -'!$E11 -> 242.405541
A12: BORDER LAND | B12: 182456 | C12: =B12/'- 3 -'!$D12*100 -> 0.4865948397 | D12: =B12/'- 7 -'!$E12 -> 88.50642736 | E12: 257698 | F12: =E12/'- 3 -'!$D12*100 -> 0.6872589391 | G12: =E12/'- 7 -'!$E12 -> 125.0050934 | H12: 747632 | I12: =H12/'- 3 -'!$D12*100 -> 1.9938718 | J12: =H12/'- 7 -'!$E12 -> 362.6640796
A13: BRANDON | B13: 372203 | C13: =B13/'- 3 -'!$D13*100 -> 0.3047839517 | D13: =B13/'- 7 -'!$E13 -> 39.81419479 | E13: 690611 | F13: =E13/'- 3 -'!$D13*100 -> 0.5655170691 | G13: =E13/'- 7 -'!$E13 -> 73.87399048 | H13: 1770394 | I13: =H13/'- 3 -'!$D13*100 -> 1.449713408 | J13: =H13/'- 7 -'!$E13 -> 189.3773333
A14: DSFM | B14: 626240 | C14: =B14/'- 3 -'!$D14*100 -> 0.5823706047 | D14: =B14/'- 7 -'!$E14 -> 103.9040334 | E14: 1919938 | F14: =E14/'- 3 -'!$D14*100 -> 1.785442409 | G14: =E14/'- 7 -'!$E14 -> 318.5508785 | H14: 1385531 | I14: =H14/'- 3 -'!$D14*100 -> 1.288471714 | J14: =H14/'- 7 -'!$E14 -> 229.8835261
A15: EVERGREEN | B15: 161158 | C15: =B15/'- 3 -'!$D15*100 -> 0.7196219946 | D15: =B15/'- 7 -'!$E15 -> 112.3835425 | E15: 149395 | F15: =E15/'- 3 -'!$D15*100 -> 0.6670964388 | G15: =E15/'- 7 -'!$E15 -> 104.1806137 | H15: 449490 | I15: =H15/'- 3 -'!$D15*100 -> 2.007116559 | J15: =H15/'- 7 -'!$E15 -> 313.4518828
A16: FLIN FLON | B16: 117039 | C16: =B16/'- 3 -'!$D16*100 -> 0.6861211582 | D16: =B16/'- 7 -'!$E16 -> 141.6937046 | E16: 94130 | F16: =E16/'- 3 -'!$D16*100 -> 0.5518210564 | G16: =E16/'- 7 -'!$E16 -> 113.9588378 | H16: 404557 | I16: =H16/'- 3 -'!$D16*100 -> 2.371646352 | J16: =H16/'- 7 -'!$E16 -> 489.7784504
A17: FORT LA BOSSE | B17: 125366 | C17: =B17/'- 3 -'!$D17*100 -> 0.5845313259 | D17: =B17/'- 7 -'!$E17 -> 82.23417514 | E17: 209352 | F17: =E17/'- 3 -'!$D17*100 -> 0.976124325 | G17: =E17/'- 7 -'!$E17 -> 137.3250246 | H17: 410550 | I17: =H17/'- 3 -'!$D17*100 -> 1.914229822 | J17: =H17/'- 7 -'!$E17 -> 269.3014103
A18: FRONTIER | B18: 1321341 | C18: =B18/'- 3 -'!$D18*100 -> 0.7951964551 | D18: =B18/'- 7 -'!$E18 -> 208.8746443 | E18: 2752114 | F18: =E18/'- 3 -'!$D18*100 -> 1.656250201 | G18: =E18/'- 7 -'!$E18 -> 435.0480556 | H18: 4310158 | I18: =H18/'- 3 -'!$D18*100 -> 2.593896929 | J18: =H18/'- 7 -'!$E18 -> 681.3401834
A19: GARDEN VALLEY | B19: 227548 | C19: =B19/'- 3 -'!$D19*100 -> 0.3997001072 | D19: =B19/'- 7 -'!$E19 -> 53.67964142 | E19: 391723 | F19: =E19/'- 3 -'!$D19*100 -> 0.6880821853 | G19: =E19/'- 7 -'!$E19 -> 92.40929464 | H19: 920478 | I19: =H19/'- 3 -'!$D19*100 -> 1.616868332 | J19: =H19/'- 7 -'!$E19 -> 217.1450814
A20: HANOVER | B20: 314516 | C20: =B20/'- 3 -'!$D20*100 -> 0.3040084114 | D20: =B20/'- 7 -'!$E20 -> 37.35743726 | E20: 664022 | F20: =E20/'- 3 -'!$D20*100 -> 0.6418378503 | G20: =E20/'- 7 -'!$E20 -> 78.87090069 | H20: 1426012 | I20: =H20/'- 3 -'!$D20*100 -> 1.378370711 | J20: =H20/'- 7 -'!$E20 -> 169.3781996
A21: INTERLAKE | B21: 182337 | C21: =B21/'- 3 -'!$D21*100 -> 0.4371726067 | D21: =B21/'- 7 -'!$E21 -> 63.15794943 | E21: 457216 | F21: =E21/'- 3 -'!$D21*100 -> 1.096224631 | G21: =E21/'- 7 -'!$E21 -> 158.3706269 | H21: 723708 | I21: =H21/'- 3 -'!$D21*100 -> 1.735167919 | J21: =H21/'- 7 -'!$E21 -> 250.6782127
A22: KELSEY | B22: 105567 | C22: =B22/'- 3 -'!$D22*100 -> 0.4562706385 | D22: =B22/'- 7 -'!$E22 -> 72.90538674 | E22: 170780 | F22: =E22/'- 3 -'!$D22*100 -> 0.7381274418 | G22: =E22/'- 7 -'!$E22 -> 117.941989 | H22: 658072 | I22: =H22/'- 3 -'!$D22*100 -> 2.844249923 | J22: =H22/'- 7 -'!$E22 -> 454.4696133
A23: LAKESHORE | B23: 104160 | C23: =B23/'- 3 -'!$D23*100 -> 0.6368973025 | D23: =B23/'- 7 -'!$E23 -> 106.8307692 | E23: 144565 | F23: =E23/'- 3 -'!$D23*100 -> 0.8839579352 | G23: =E23/'- 7 -'!$E23 -> 148.2717949 | H23: 319856 | I23: =H23/'- 3 -'!$D23*100 -> 1.955793237 | J23: =H23/'- 7 -'!$E23 -> 328.0574359
A24: LORD SELKIRK | B24: 264397 | C24: =B24/'- 3 -'!$D24*100 -> 0.4067126375 | D24: =B24/'- 7 -'!$E24 -> 70.02039195 | E24: 369027 | F24: =E24/'- 3 -'!$D24*100 -> 0.567661299 | G24: =E24/'- 7 -'!$E24 -> 97.72960805 | H24: 952067 | I24: =H24/'- 3 -'!$D24*100 -> 1.464531294 | J24: =H24/'- 7 -'!$E24 -> 252.1363877
A25: LOUIS RIEL | B25: 637558 | C25: =B25/'- 3 -'!$D25*100 -> 0.2725467282 | D25: =B25/'- 7 -'!$E25 -> 37.15589487 | E25: 1120666 | F25: =E25/'- 3 -'!$D25*100 -> 0.4790683383 | G25: =E25/'- 7 -'!$E25 -> 65.31068244 | H25: 4616482 | I25: =H25/'- 3 -'!$D25*100 -> 1.973478593 | J25: =H25/'- 7 -'!$E25 -> 269.041436
A26: MOUNTAIN VIEW | B26: 218224 | C26: =B26/'- 3 -'!$D26*100 -> 0.4542407179 | D26: =B26/'- 7 -'!$E26 -> 70.12564671 | E26: 390858 | F26: =E26/'- 3 -'!$D26*100 -> 0.813584292 | G26: =E26/'- 7 -'!$E26 -> 125.6010797 | H26: 742425 | I26: =H26/'- 3 -'!$D26*100 -> 1.545383024 | J26: =H26/'- 7 -'!$E26 -> 238.5761111
A27: MYSTERY LAKE | B27: 269840 | C27: =B27/'- 3 -'!$D27*100 -> 0.5832638424 | D27: =B27/'- 7 -'!$E27 -> 95.46789315 | E27: 528976 | F27: =E27/'- 3 -'!$D27*100 -> 1.143390803 | G27: =E27/'- 7 -'!$E27 -> 187.1487706 | H27: 918913 | I27: =H27/'- 3 -'!$D27*100 -> 1.986246395 | J27: =H27/'- 7 -'!$E27 -> 325.1063152
A28: PARK WEST | B28: 156289 | C28: =B28/'- 3 -'!$D28*100 -> 0.4738991886 | D28: =B28/'- 7 -'!$E28 -> 74.00047348 | E28: 394595 | F28: =E28/'- 3 -'!$D28*100 -> 1.196490158 | G28: =E28/'- 7 -'!$E28 -> 186.8347538 | H28: 517248 | I28: =H28/'- 3 -'!$D28*100 -> 1.568398336 | J28: =H28/'- 7 -'!$E28 -> 244.9090909
A29: PEMBINA TRAILS | B29: 558339 | C29: =B29/'- 3 -'!$D29*100 -> 0.2720884339 | D29: =B29/'- 7 -'!$E29 -> 33.77016361 | E29: 2490798 | F29: =E29/'- 3 -'!$D29*100 -> 1.213809759 | G29: =E29/'- 7 -'!$E29 -> 150.6515862 | H29: 2242987 | I29: =H29/'- 3 -'!$D29*100 -> 1.093047092 | J29: =H29/'- 7 -'!$E29 -> 135.6631687
A30: PINE CREEK | B30: 118500 | C30: =B30/'- 3 -'!$D30*100 -> 0.6309254414 | D30: =B30/'- 7 -'!$E30 -> 110.7476636 | E30: 134160 | F30: =E30/'- 3 -'!$D30*100 -> 0.7143034365 | G30: =E30/'- 7 -'!$E30 -> 125.3831776 | H30: 359719 | I30: =H30/'- 3 -'!$D30*100 -> 1.9152394 | J30: =H30/'- 7 -'!$E30 -> 336.1859813
A31: PORTAGE LA PRAIRIE | B31: 225373 | C31: =B31/'- 3 -'!$D31*100 -> 0.4696023958 | D31: =B31/'- 7 -'!$E31 -> 68.55452471 | E31: 347390 | F31: =E31/'- 3 -'!$D31*100 -> 0.7238452533 | G31: =E31/'- 7 -'!$E31 -> 105.669962 | H31: 606644 | I31: =H31/'- 3 -'!$D31*100 -> 1.264044388 | J31: =H31/'- 7 -'!$E31 -> 184.5304943
A32: PRAIRIE ROSE | B32: 242851 | C32: =B32/'- 3 -'!$D32*100 -> 0.6871614909 | D32: =B32/'- 7 -'!$E32 -> 107.1716681 | E32: 174789 | F32: =E32/'- 3 -'!$D32*100 -> 0.4945759739 | G32: =E32/'- 7 -'!$E32 -> 77.13548102 | H32: 683565 | I32: =H32/'- 3 -'!$D32*100 -> 1.934188225 | J32: =H32/'- 7 -'!$E32 -> 301.6615181
A33: PRAIRIE SPIRIT | B33: 178043 | C33: =B33/'- 3 -'!$D33*100 -> 0.5703148133 | D33: =B33/'- 7 -'!$E33 -> 85.18803828 | E33: 258916 | F33: =E33/'- 3 -'!$D33*100 -> 0.8293706027 | G33: =E33/'- 7 -'!$E33 -> 123.8832536 | H33: 474991 | I33: =H33/'- 3 -'!$D33*100 -> 1.521511115 | J33: =H33/'- 7 -'!$E33 -> 227.2684211
A34: RED RIVER VALLEY | B34: 161280 | C34: =B34/'- 3 -'!$D34*100 -> 0.4463918115 | D34: =B34/'- 7 -'!$E34 -> 71.17387467 | E34: 298611 | F34: =E34/'- 3 -'!$D34*100 -> 0.8264974282 | G34: =E34/'- 7 -'!$E34 -> 131.7789056 | H34: 650703 | I34: =H34/'- 3 -'!$D34*100 -> 1.801019909 | J34: =H34/'- 7 -'!$E34 -> 287.1593116
A35: RIVER EAST TRANSCONA | B35: 480312 | C35: =B35/'- 3 -'!$D35*100 -> 0.211466104 | D35: =B35/'- 7 -'!$E35 -> 27.07126955 | E35: 1569396 | F35: =E35/'- 3 -'!$D35*100 -> 0.690955166 | G35: =E35/'- 7 -'!$E35 -> 88.45405101 | H35: 2802789 | I35: =H35/'- 3 -'!$D35*100 -> 1.233978893 | J35: =H35/'- 7 -'!$E35 -> 157.9703537
A36: ROLLING RIVER | B36: 149577 | C36: =B36/'- 3 -'!$D36*100 -> 0.5627332001 | D36: =B36/'- 7 -'!$E36 -> 86.46069364 | E36: 180115 | F36: =E36/'- 3 -'!$D36*100 -> 0.6776221634 | G36: =E36/'- 7 -'!$E36 -> 104.1127168 | H36: 601710 | I36: =H36/'- 3 -'!$D36*100 -> 2.263731682 | J36: =H36/'- 7 -'!$E36 -> 347.8092486
A37: SEINE RIVER | B37: 237566 | C37: =B37/'- 3 -'!$D37*100 -> 0.3770880868 | D37: =B37/'- 7 -'!$E37 -> 49.86691856 | E37: 506886 | F37: =E37/'- 3 -'!$D37*100 -> 0.8045792411 | G37: =E37/'- 7 -'!$E37 -> 106.3992443 | H37: 1123137 | I37: =H37/'- 3 -'!$D37*100 -> 1.782753351 | J37: =H37/'- 7 -'!$E37 -> 235.7550378
A38: SEVEN OAKS | B38: 470233 | C38: =B38/'- 3 -'!$D38*100 -> 0.2723435276 | D38: =B38/'- 7 -'!$E38 -> 39.27051494 | E38: 1484626 | F38: =E38/'- 3 -'!$D38*100 -> 0.859846676 | G38: =E38/'- 7 -'!$E38 -> 123.9854019 | H38: 1613640 | I38: =H38/'- 3 -'!$D38*100 -> 0.9345673525 | J38: =H38/'- 7 -'!$E38 -> 134.7597334
A39: SOUTHWEST HORIZON | B39: 166914 | C39: =B39/'- 3 -'!$D39*100 -> 0.6797622115 | D39: =B39/'- 7 -'!$E39 -> 116.4380886 | E39: 235437 | F39: =E39/'- 3 -'!$D39*100 -> 0.9588241597 | G39: =E39/'- 7 -'!$E39 -> 164.2392745 | H39: 428435 | I39: =H39/'- 3 -'!$D39*100 -> 1.744814234 | J39: =H39/'- 7 -'!$E39 -> 298.8733868
A40: ST. JAMES-ASSINIBOIA | B40: 396751 | C40: =B40/'- 3 -'!$D40*100 -> 0.3314682101 | D40: =B40/'- 7 -'!$E40 -> 49.37907602 | E40: 1033542 | F40: =E40/'- 3 -'!$D40*100 -> 0.8634794034 | G40: =E40/'- 7 -'!$E40 -> 128.6331956 | H40: 1526008 | I40: =H40/'- 3 -'!$D40*100 -> 1.274913334 | J40: =H40/'- 7 -'!$E40 -> 189.924827
A41: SUNRISE | B41: 267089 | C41: =B41/'- 3 -'!$D41*100 -> 0.3541866822 | D41: =B41/'- 7 -'!$E41 -> 57.84903617 | E41: 414589 | F41: =E41/'- 3 -'!$D41*100 -> 0.5497864097 | G41: =E41/'- 7 -'!$E41 -> 89.796188 | H41: 1417501 | I41: =H41/'- 3 -'!$D41*100 -> 1.87974786 | J41: =H41/'- 7 -'!$E41 -> 307.0177605
A42: SWAN VALLEY | B42: 158002 | C42: =B42/'- 3 -'!$D42*100 -> 0.641725417 | D42: =B42/'- 7 -'!$E42 -> 111.6637691 | E42: 215831 | F42: =E42/'- 3 -'!$D42*100 -> 0.8765980081 | G42: =E42/'- 7 -'!$E42 -> 152.532898 | H42: 401611 | I42: =H42/'- 3 -'!$D42*100 -> 1.631143824 | J42: =H42/'- 7 -'!$E42 -> 283.82804
A43: TURTLE MOUNTAIN | B43: 106498 | C43: =B43/'- 3 -'!$D43*100 -> 0.6909503399 | D43: =B43/'- 7 -'!$E43 -> 100.7549669 | E43: 139814 | F43: =E43/'- 3 -'!$D43*100 -> 0.9071018313 | G43: =E43/'- 7 -'!$E43 -> 132.2743614 | H43: 266196 | I43: =H43/'- 3 -'!$D43*100 -> 1.727057942 | J43: =H43/'- 7 -'!$E43 -> 251.8410596
A44: TURTLE RIVER | B44: 98810 | C44: =B44/'- 3 -'!$D44*100 -> 0.8056507911 | D44: =B44/'- 7 -'!$E44 -> 160.5361495 | E44: 69170 | F44: =E44/'- 3 -'!$D44*100 -> 0.5639800144 | G44: =E44/'- 7 -'!$E44 -> 112.3801787 | H44: 295449 | I44: =H44/'- 3 -'!$D44*100 -> 2.408953756 | J44: =H44/'- 7 -'!$E44 -> 480.0146223
A45: WESTERN | B45: 128130 | C45: =B45/'- 3 -'!$D45*100 -> 0.4667832684 | D45: =B45/'- 7 -'!$E45 -> 59.84586642 | E45: 205951 | F45: =E45/'- 3 -'!$D45*100 -> 0.7502886202 | G45: =E45/'- 7 -'!$E45 -> 96.19383466 | H45: 553666 | I45: =H45/'- 3 -'!$D45*100 -> 2.017029775 | J45: =H45/'- 7 -'!$E45 -> 258.601588
A46: WINNIPEG | B46: 999227 | C46: =B46/'- 3 -'!$D46*100 -> 0.2215205898 | D46: =B46/'- 7 -'!$E46 -> 35.92571287 | E46: 3373901 | F46: =E46/'- 3 -'!$D46*100 -> 0.7479667178 | G46: =E46/'- 7 -'!$E46 -> 121.3035662 | H46: 6807261 | I46: =H46/'- 3 -'!$D46*100 -> 1.509115018 | J46: =H46/'- 7 -'!$E46 -> 244.7448919
A48: PROVINCE | B48: =SUM(B11:B46) -> 10665077 | C48: =B48/'- 3 -'!$D48*100 -> 0.3804272426 | D48: =B48/'- 7 -'!$E48 -> 56.87277303 | E48: =SUM(E11:E46) -> 24021311 | F48: =E48/'- 3 -'!$D48*100 -> 0.8568490511 | G48: =E48/'- 7 -'!$E48 -> 128.0964562 | H48: =SUM(H11:H46) -> 44656308 | I48: =H48/'- 3 -'!$D48*100 -> 1.592907029 | J48: =H48/'- 7 -'!$E48 -> 238.1349961
A50: WHITESHELL | B50: 59203 | C50: =B50/'- 3 -'!$D50*100 -> 1.445841097 | D50: =B50/'- 7 -'!$E50 -> 303.6051282 | E50: 67341 | F50: =E50/'- 3 -'!$D50*100 -> 1.644585331 | G50: =E50/'- 7 -'!$E50 -> 345.3384615 | H50: 87587 | I50: =H50/'- 3 -'!$D50*100 -> 2.139028161 | J50: =H50/'- 7 -'!$E50 -> 449.1641026

Sheet - 26 -
B2: ANALYSIS OF EXPENSE BY PROGRAM | E2: PAGE 9 OF 16
B3: =OPYEAR -> OPERATING FUND 2023/2024 ACTUAL
B5: FUNCTION 500: DIVISIONAL ADMINISTRATION
B6: MANAGEMENT INFORMATION SERVICES
D8: PER PUPIL
A9: DIVISION / DISTRICT | B9: AMOUNT | C9: %
A11: BEAUTIFUL PLAINS | B11: 16939 | C11: =B11/'- 3 -'!$D11*100 -> 0.06297420489 | D11: =B11/'- 7 -'!$E11 -> 7.795572737
A12: BORDER LAND | B12: 5617 | C12: =B12/'- 3 -'!$D12*100 -> 0.0149800676 | D12: =B12/'- 7 -'!$E12 -> 2.724715013
A13: BRANDON | B13: 303021 | C13: =B13/'- 3 -'!$D13*100 -> 0.248133244 | D13: =B13/'- 7 -'!$E13 -> 32.41386319
A14: DSFM | B14: 127674 | C14: =B14/'- 3 -'!$D14*100 -> 0.1187301747 | D14: =B14/'- 7 -'!$E14 -> 21.183322
A15: EVERGREEN | B15: 51226 | C15: =B15/'- 3 -'!$D15*100 -> 0.2287404677 | D15: =B15/'- 7 -'!$E15 -> 35.72245467
A16: FLIN FLON | B16: 35743 | C16: =B16/'- 3 -'!$D16*100 -> 0.2095372359 | D16: =B16/'- 7 -'!$E16 -> 43.27239709
A17: FORT LA BOSSE | B17: 93950 | C17: =B17/'- 3 -'!$D17*100 -> 0.4380511308 | D17: =B17/'- 7 -'!$E17 -> 61.62676287
A18: FRONTIER | B18: 1106452 | C18: =B18/'- 3 -'!$D18*100 -> 0.6658740689 | D18: =B18/'- 7 -'!$E18 -> 174.9054695
A19: GARDEN VALLEY | B19: 164768 | C19: =B19/'- 3 -'!$D19*100 -> 0.289423714 | D19: =B19/'- 7 -'!$E19 -> 38.8695447
A20: HANOVER | B20: 87359 | C20: =B20/'- 3 -'!$D20*100 -> 0.08444044439 | D20: =B20/'- 7 -'!$E20 -> 10.37628725
A21: INTERLAKE | B21: 54078 | C21: =B21/'- 3 -'!$D21*100 -> 0.1296578326 | D21: =B21/'- 7 -'!$E21 -> 18.73155525
A22: KELSEY | B22: 52179 | C22: =B22/'- 3 -'!$D22*100 -> 0.2255226126 | D22: =B22/'- 7 -'!$E22 -> 36.03522099
A23: LAKESHORE | B23: 20253 | C23: =B23/'- 3 -'!$D23*100 -> 0.1238391039 | D23: =B23/'- 7 -'!$E23 -> 20.77230769
A24: LORD SELKIRK | B24: 170179 | C24: =B24/'- 3 -'!$D24*100 -> 0.2617803906 | D24: =B24/'- 7 -'!$E24 -> 45.0685911
A25: LOUIS RIEL | B25: 1303959 | C25: =B25/'- 3 -'!$D25*100 -> 0.5574234173 | D25: =B25/'- 7 -'!$E25 -> 75.99271519
A26: MOUNTAIN VIEW | B26: 28963 | C26: =B26/'- 3 -'!$D26*100 -> 0.06028747486 | D26: =B26/'- 7 -'!$E26 -> 9.30717568
A27: MYSTERY LAKE | B27: 244991 | C27: =B27/'- 3 -'!$D27*100 -> 0.5295522977 | D27: =B27/'- 7 -'!$E27 -> 86.67645498
A28: PARK WEST | B28: 90004 | C28: =B28/'- 3 -'!$D28*100 -> 0.2729099461 | D28: =B28/'- 7 -'!$E28 -> 42.6155303
A29: PEMBINA TRAILS | B29: 1252858 | C29: =B29/'- 3 -'!$D29*100 -> 0.6105397816 | D29: =B29/'- 7 -'!$E29 -> 75.77693773
A30: PINE CREEK | B30: 26077 | C30: =B30/'- 3 -'!$D30*100 -> 0.138840867 | D30: =B30/'- 7 -'!$E30 -> 24.37102804
A31: PORTAGE LA PRAIRIE | B31: 56172 | C31: =B31/'- 3 -'!$D31*100 -> 0.1170437709 | D31: =B31/'- 7 -'!$E31 -> 17.08653992
A32: PRAIRIE ROSE | B32: 62795 | C32: =B32/'- 3 -'!$D32*100 -> 0.1776822242 | D32: =B32/'- 7 -'!$E32 -> 27.71182701
A33: PRAIRIE SPIRIT | B33: 49620 | C33: =B33/'- 3 -'!$D33*100 -> 0.1589448675 | D33: =B33/'- 7 -'!$E33 -> 23.74162679
A34: RED RIVER VALLEY | B34: 53036 | C34: =B34/'- 3 -'!$D34*100 -> 0.1467933787 | D34: =B34/'- 7 -'!$E34 -> 23.40511915
A35: RIVER EAST TRANSCONA | B35: 905500 | C35: =B35/'- 3 -'!$D35*100 -> 0.3986628632 | D35: =B35/'- 7 -'!$E35 -> 51.03564887
A36: ROLLING RIVER | B36: 32670 | C36: =B36/'- 3 -'!$D36*100 -> 0.1229098969 | D36: =B36/'- 7 -'!$E36 -> 18.88439306
A37: SEINE RIVER | B37: 320020 | C37: =B37/'- 3 -'!$D37*100 -> 0.5079671735 | D37: =B37/'- 7 -'!$E37 -> 67.17464316
A38: SEVEN OAKS | B38: 702086 | C38: =B38/'- 3 -'!$D38*100 -> 0.4066251793 | D38: =B38/'- 7 -'!$E38 -> 58.63322811
A39: SOUTHWEST HORIZON | B39: 53898 | C39: =B39/'- 3 -'!$D39*100 -> 0.2195012023 | D39: =B39/'- 7 -'!$E39 -> 37.59888385
A40: ST. JAMES-ASSINIBOIA | B40: 431032 | C40: =B40/'- 3 -'!$D40*100 -> 0.3601084951 | D40: =B40/'- 7 -'!$E40 -> 53.64564146
A41: SUNRISE | B41: 134492 | C41: =B41/'- 3 -'!$D41*100 -> 0.1783498207 | D41: =B41/'- 7 -'!$E41 -> 29.12973793
A42: SWAN VALLEY | B42: 26330 | C42: =B42/'- 3 -'!$D42*100 -> 0.106939344 | D42: =B42/'- 7 -'!$E42 -> 18.60803686
A43: TURTLE MOUNTAIN | B43: 16331 | C43: =B43/'- 3 -'!$D43*100 -> 0.1059541963 | D43: =B43/'- 7 -'!$E43 -> 15.45033113
A44: TURTLE RIVER | B44: 10107 | C44: =B44/'- 3 -'!$D44*100 -> 0.08240777802 | D44: =B44/'- 7 -'!$E44 -> 16.4207961
A45: WESTERN | B45: 76564 | C45: =B45/'- 3 -'!$D45*100 -> 0.2789260451 | D45: =B45/'- 7 -'!$E45 -> 35.76085941
A46: WINNIPEG | B46: 1213807 | C46: =B46/'- 3 -'!$D46*100 -> 0.2690912501 | D46: =B46/'- 7 -'!$E46 -> 43.64061596
A48: PROVINCE | B48: =SUM(B11:B46) -> 9380750 | C48: =B48/'- 3 -'!$D48*100 -> 0.3346148233 | D48: =B48/'- 7 -'!$E48 -> 50.02394878
A50: WHITESHELL | B50: 0 | C50: =B50/'- 3 -'!$D50*100 -> 0 | D50: =B50/'- 7 -'!$E50 -> 0

Sheet - 27 -
B2: ANALYSIS OF EXPENSE BY PROGRAM | J2: PAGE 10 OF 16
B3: =OPYEAR -> OPERATING FUND 2023/2024 ACTUAL
B5: FUNCTION 600: INSTRUCTIONAL & OTHER SUPPORT SERVICES
B6: CURRICULUM CONSULTING AND DEVELOPMENT ADMIN. | E6: CURRICULUM CONSULTING AND DEVELOPMENT | H6: LIBRARY / MEDIA CENTRE
D8: PER PUPIL | G8: PER PUPIL | J8: PER PUPIL
A9: DIVISION / DISTRICT | B9: AMOUNT | C9: % | E9: AMOUNT | F9: % | H9: AMOUNT | I9: %
A11: BEAUTIFUL PLAINS | B11: 0 | C11: =B11/'- 3 -'!$D11*100 -> 0 | D11: =B11/'- 7 -'!$E11 -> 0 | E11: 149404 | F11: =E11/'- 3 -'!$D11*100 -> 0.5554399969 | G11: =E11/'- 7 -'!$E11 -> 68.75788117 | H11: 238894 | I11: =H11/'- 3 -'!$D11*100 -> 0.8881374168 | J11: =H11/'- 7 -'!$E11 -> 109.9424732
A12: BORDER LAND | B12: 0 | C12: =B12/'- 3 -'!$D12*100 -> 0 | D12: =B12/'- 7 -'!$E12 -> 0 | E12: 0 | F12: =E12/'- 3 -'!$D12*100 -> 0 | G12: =E12/'- 7 -'!$E12 -> 0 | H12: 273574 | I12: =H12/'- 3 -'!$D12*100 -> 0.7295988988 | J12: =H12/'- 7 -'!$E12 -> 132.7062818
A13: BRANDON | B13: 138747 | C13: =B13/'- 3 -'!$D13*100 -> 0.1136150406 | D13: =B13/'- 7 -'!$E13 -> 14.84163235 | E13: 601003 | F13: =E13/'- 3 -'!$D13*100 -> 0.4921402281 | G13: =E13/'- 7 -'!$E13 -> 64.28870942 | H13: 874798 | I13: =H13/'- 3 -'!$D13*100 -> 0.7163413283 | J13: =H13/'- 7 -'!$E13 -> 93.57629566
A14: DSFM | B14: 254315 | C14: =B14/'- 3 -'!$D14*100 -> 0.2364997131 | D14: =B14/'- 7 -'!$E14 -> 42.19525145 | E14: 2104334 | F14: =E14/'- 3 -'!$D14*100 -> 1.956921091 | G14: =E14/'- 7 -'!$E14 -> 349.1453601 | H14: 874480 | I14: =H14/'- 3 -'!$D14*100 -> 0.813220884 | J14: =H14/'- 7 -'!$E14 -> 145.0913375
A15: EVERGREEN | B15: 80617 | C15: =B15/'- 3 -'!$D15*100 -> 0.3599806795 | D15: =B15/'- 7 -'!$E15 -> 56.21827057 | E15: 207859 | F15: =E15/'- 3 -'!$D15*100 -> 0.9281568906 | G15: =E15/'- 7 -'!$E15 -> 144.9504881 | H15: 133172 | I15: =H15/'- 3 -'!$D15*100 -> 0.5946555571 | J15: =H15/'- 7 -'!$E15 -> 92.86750349
A16: FLIN FLON | B16: 0 | C16: =B16/'- 3 -'!$D16*100 -> 0 | D16: =B16/'- 7 -'!$E16 -> 0 | E16: 0 | F16: =E16/'- 3 -'!$D16*100 -> 0 | G16: =E16/'- 7 -'!$E16 -> 0 | H16: 181710 | I16: =H16/'- 3 -'!$D16*100 -> 1.065243856 | J16: =H16/'- 7 -'!$E16 -> 219.9878935
A17: FORT LA BOSSE | B17: 0 | C17: =B17/'- 3 -'!$D17*100 -> 0 | D17: =B17/'- 7 -'!$E17 -> 0 | E17: 62302 | F17: =E17/'- 3 -'!$D17*100 -> 0.2904892129 | G17: =E17/'- 7 -'!$E17 -> 40.86716956 | H17: 216447 | I17: =H17/'- 3 -'!$D17*100 -> 1.009205462 | J17: =H17/'- 7 -'!$E17 -> 141.9790095
A18: FRONTIER | B18: 0 | C18: =B18/'- 3 -'!$D18*100 -> 0 | D18: =B18/'- 7 -'!$E18 -> 0 | E18: 7630760 | F18: =E18/'- 3 -'!$D18*100 -> 4.592268991 | G18: =E18/'- 7 -'!$E18 -> 1206.253557 | H18: 1828398 | I18: =H18/'- 3 -'!$D18*100 -> 1.100348516 | J18: =H18/'- 7 -'!$E18 -> 289.0290863
A19: GARDEN VALLEY | B19: 59328 | C19: =B19/'- 3 -'!$D19*100 -> 0.1042127725 | D19: =B19/'- 7 -'!$E19 -> 13.99575372 | E19: 367800 | F19: =E19/'- 3 -'!$D19*100 -> 0.6460601695 | G19: =E19/'- 7 -'!$E19 -> 86.76574664 | H19: 475793 | I19: =H19/'- 3 -'!$D19*100 -> 0.8357555906 | J19: =H19/'- 7 -'!$E19 -> 112.2418023
A20: HANOVER | B20: 0 | C20: =B20/'- 3 -'!$D20*100 -> 0 | D20: =B20/'- 7 -'!$E20 -> 0 | E20: 216930 | F20: =E20/'- 3 -'!$D20*100 -> 0.2096826383 | G20: =E20/'- 7 -'!$E20 -> 25.76641209 | H20: 957186 | I20: =H20/'- 3 -'!$D20*100 -> 0.9252076054 | J20: =H20/'- 7 -'!$E20 -> 113.6921999
A21: INTERLAKE | B21: 0 | C21: =B21/'- 3 -'!$D21*100 -> 0 | D21: =B21/'- 7 -'!$E21 -> 0 | E21: 0 | F21: =E21/'- 3 -'!$D21*100 -> 0 | G21: =E21/'- 7 -'!$E21 -> 0 | H21: 467928 | I21: =H21/'- 3 -'!$D21*100 -> 1.121907805 | J21: =H21/'- 7 -'!$E21 -> 162.081053
A22: KELSEY | B22: 20378 | C22: =B22/'- 3 -'!$D22*100 -> 0.0880756588 | D22: =B22/'- 7 -'!$E22 -> 14.07320442 | E22: 81085 | F22: =E22/'- 3 -'!$D22*100 -> 0.3504571005 | G22: =E22/'- 7 -'!$E22 -> 55.99792818 | H22: 205868 | I22: =H22/'- 3 -'!$D22*100 -> 0.889781123 | J22: =H22/'- 7 -'!$E22 -> 142.1740331
A23: LAKESHORE | B23: 0 | C23: =B23/'- 3 -'!$D23*100 -> 0 | D23: =B23/'- 7 -'!$E23 -> 0 | E23: 0 | F23: =E23/'- 3 -'!$D23*100 -> 0 | G23: =E23/'- 7 -'!$E23 -> 0 | H23: 120575 | I23: =H23/'- 3 -'!$D23*100 -> 0.7372685507 | J23: =H23/'- 7 -'!$E23 -> 123.6666667
A24: LORD SELKIRK | B24: 0 | C24: =B24/'- 3 -'!$D24*100 -> 0 | D24: =B24/'- 7 -'!$E24 -> 0 | E24: 118717 | F24: =E24/'- 3 -'!$D24*100 -> 0.1826181999 | G24: =E24/'- 7 -'!$E24 -> 31.43988347 | H24: 605914 | I24: =H24/'- 3 -'!$D24*100 -> 0.9320562678 | J24: =H24/'- 7 -'!$E24 -> 160.4645127
A25: LOUIS RIEL | B25: 379790 | C25: =B25/'- 3 -'!$D25*100 -> 0.162354675 | D25: =B25/'- 7 -'!$E25 -> 22.13357422 | E25: 1761225 | F25: =E25/'- 3 -'!$D25*100 -> 0.7528979502 | G25: =E25/'- 7 -'!$E25 -> 102.6414709 | H25: 5464358 | I25: =H25/'- 3 -'!$D25*100 -> 2.335933193 | J25: =H25/'- 7 -'!$E25 -> 318.4543388
A26: MOUNTAIN VIEW | B26: 38466 | C26: =B26/'- 3 -'!$D26*100 -> 0.0800682943 | D26: =B26/'- 7 -'!$E26 -> 12.36093705 | E26: 300856 | F26: =E26/'- 3 -'!$D26*100 -> 0.6262420515 | G26: =E26/'- 7 -'!$E26 -> 96.6791992 | H26: 621590 | I26: =H26/'- 3 -'!$D26*100 -> 1.29386084 | J26: =H26/'- 7 -'!$E26 -> 199.7461358
A27: MYSTERY LAKE | B27: 0 | C27: =B27/'- 3 -'!$D27*100 -> 0 | D27: =B27/'- 7 -'!$E27 -> 0 | E27: 683776 | F27: =E27/'- 3 -'!$D27*100 -> 1.477993689 | G27: =E27/'- 7 -'!$E27 -> 241.9161507 | H27: 982259 | I27: =H27/'- 3 -'!$D27*100 -> 2.123169873 | J27: =H27/'- 7 -'!$E27 -> 347.5177782
A28: PARK WEST | B28: 52067 | C28: =B28/'- 3 -'!$D28*100 -> 0.1578774517 | D28: =B28/'- 7 -'!$E28 -> 24.65293561 | E28: 243203 | F28: =E28/'- 3 -'!$D28*100 -> 0.737439643 | G28: =E28/'- 7 -'!$E28 -> 115.1529356 | H28: 74374 | I28: =H28/'- 3 -'!$D28*100 -> 0.2255166918 | J28: =H28/'- 7 -'!$E28 -> 35.21496212
A29: PEMBINA TRAILS | B29: 289310 | C29: =B29/'- 3 -'!$D29*100 -> 0.1409858613 | D29: =B29/'- 7 -'!$E29 -> 17.49841231 | E29: 432270 | F29: =E29/'- 3 -'!$D29*100 -> 0.2106527886 | G29: =E29/'- 7 -'!$E29 -> 26.14509934 | H29: 4426996 | I29: =H29/'- 3 -'!$D29*100 -> 2.157353164 | J29: =H29/'- 7 -'!$E29 -> 267.7591557
A30: PINE CREEK | B30: 0 | C30: =B30/'- 3 -'!$D30*100 -> 0 | D30: =B30/'- 7 -'!$E30 -> 0 | E30: 0 | F30: =E30/'- 3 -'!$D30*100 -> 0 | G30: =E30/'- 7 -'!$E30 -> 0 | H30: 339226 | I30: =H30/'- 3 -'!$D30*100 -> 1.80612923 | J30: =H30/'- 7 -'!$E30 -> 317.0336449
A31: PORTAGE LA PRAIRIE | B31: 106958 | C31: =B31/'- 3 -'!$D31*100 -> 0.2228649086 | D31: =B31/'- 7 -'!$E31 -> 32.53475285 | E31: 122113 | F31: =E31/'- 3 -'!$D31*100 -> 0.2544428896 | G31: =E31/'- 7 -'!$E31 -> 37.14463878 | H31: 383046 | I31: =H31/'- 3 -'!$D31*100 -> 0.7981405018 | J31: =H31/'- 7 -'!$E31 -> 116.5158935
A32: PRAIRIE ROSE | B32: 0 | C32: =B32/'- 3 -'!$D32*100 -> 0 | D32: =B32/'- 7 -'!$E32 -> 0 | E32: 154983 | F32: =E32/'- 3 -'!$D32*100 -> 0.4385337073 | G32: =E32/'- 7 -'!$E32 -> 68.39496911 | H32: 351070 | I32: =H32/'- 3 -'!$D32*100 -> 0.9933736514 | J32: =H32/'- 7 -'!$E32 -> 154.929391
A33: PRAIRIE SPIRIT | B33: 0 | C33: =B33/'- 3 -'!$D33*100 -> 0 | D33: =B33/'- 7 -'!$E33 -> 0 | E33: 166409 | F33: =E33/'- 3 -'!$D33*100 -> 0.533048296 | G33: =E33/'- 7 -'!$E33 -> 79.6215311 | H33: 436098 | I33: =H33/'- 3 -'!$D33*100 -> 1.396927425 | J33: =H33/'- 7 -'!$E33 -> 208.6593301
A34: RED RIVER VALLEY | B34: 8399 | C34: =B34/'- 3 -'!$D34*100 -> 0.02324680571 | D34: =B34/'- 7 -'!$E34 -> 3.706531333 | E34: 174093 | F34: =E34/'- 3 -'!$D34*100 -> 0.4818557145 | G34: =E34/'- 7 -'!$E34 -> 76.82833186 | H34: 237616 | I34: =H34/'- 3 -'!$D34*100 -> 0.6576750786 | J34: =H34/'- 7 -'!$E34 -> 104.8614298
A35: RIVER EAST TRANSCONA | B35: 413233 | C35: =B35/'- 3 -'!$D35*100 -> 0.1819333528 | D35: =B35/'- 7 -'!$E35 -> 23.29057348 | E35: 971146 | F35: =E35/'- 3 -'!$D35*100 -> 0.42756471 | G35: =E35/'- 7 -'!$E35 -> 54.73557841 | H35: 4616499 | I35: =H35/'- 3 -'!$D35*100 -> 2.032497746 | J35: =H35/'- 7 -'!$E35 -> 260.194392
A36: ROLLING RIVER | B36: 22113 | C36: =B36/'- 3 -'!$D36*100 -> 0.08319273186 | D36: =B36/'- 7 -'!$E36 -> 12.78208092 | E36: 100218 | F36: =E36/'- 3 -'!$D36*100 -> 0.3770365487 | G36: =E36/'- 7 -'!$E36 -> 57.92947977 | H36: 243260 | I36: =H36/'- 3 -'!$D36*100 -> 0.9151840073 | J36: =H36/'- 7 -'!$E36 -> 140.6127168
A37: SEINE RIVER | B37: 119408 | C37: =B37/'- 3 -'!$D37*100 -> 0.1895361048 | D37: =B37/'- 7 -'!$E37 -> 25.06465155 | E37: 475140 | F37: =E37/'- 3 -'!$D37*100 -> 0.754188872 | G37: =E37/'- 7 -'!$E37 -> 99.73551637 | H37: 661359 | I37: =H37/'- 3 -'!$D37*100 -> 1.049773958 | J37: =H37/'- 7 -'!$E37 -> 138.8243073
A38: SEVEN OAKS | B38: 162273 | C38: =B38/'- 3 -'!$D38*100 -> 0.09398319823 | D38: =B38/'- 7 -'!$E38 -> 13.55188656 | E38: 759703 | F38: =E38/'- 3 -'!$D38*100 -> 0.4399950555 | G38: =E38/'- 7 -'!$E38 -> 63.44499006 | H38: 1915056 | I38: =H38/'- 3 -'!$D38*100 -> 1.109137612 | J38: =H38/'- 7 -'!$E38 -> 159.9318535
A39: SOUTHWEST HORIZON | B39: 0 | C39: =B39/'- 3 -'!$D39*100 -> 0 | D39: =B39/'- 7 -'!$E39 -> 0 | E39: 147244 | F39: =E39/'- 3 -'!$D39*100 -> 0.5996555536 | G39: =E39/'- 7 -'!$E39 -> 102.7164283 | H39: 248239 | I39: =H39/'- 3 -'!$D39*100 -> 1.010960684 | J39: =H39/'- 7 -'!$E39 -> 173.169864
A40: ST. JAMES-ASSINIBOIA | B40: 65448 | C40: =B40/'- 3 -'!$D40*100 -> 0.05467895837 | D40: =B40/'- 7 -'!$E40 -> 8.145566784 | E40: 1082724 | F40: =E40/'- 3 -'!$D40*100 -> 0.904568826 | G40: =E40/'- 7 -'!$E40 -> 134.7543187 | H40: 1303735 | I40: =H40/'- 3 -'!$D40*100 -> 1.089213907 | J40: =H40/'- 7 -'!$E40 -> 162.2610395
A41: SUNRISE | B41: 0 | C41: =B41/'- 3 -'!$D41*100 -> 0 | D41: =B41/'- 7 -'!$E41 -> 0 | E41: 514372 | F41: =E41/'- 3 -'!$D41*100 -> 0.6821086308 | G41: =E41/'- 7 -'!$E41 -> 111.4082738 | H41: 668974 | I41: =H41/'- 3 -'!$D41*100 -> 0.8871263195 | J41: =H41/'- 7 -'!$E41 -> 144.8936539
A42: SWAN VALLEY | B42: 17356 | C42: =B42/'- 3 -'!$D42*100 -> 0.07049142629 | D42: =B42/'- 7 -'!$E42 -> 12.26589775 | E42: 0 | F42: =E42/'- 3 -'!$D42*100 -> 0 | G42: =E42/'- 7 -'!$E42 -> 0 | H42: 206166 | I42: =H42/'- 3 -'!$D42*100 -> 0.8373435926 | J42: =H42/'- 7 -'!$E42 -> 145.7024128
A43: TURTLE MOUNTAIN | B43: 0 | C43: =B43/'- 3 -'!$D43*100 -> 0 | D43: =B43/'- 7 -'!$E43 -> 0 | E43: 76886 | F43: =E43/'- 3 -'!$D43*100 -> 0.4988300985 | G43: =E43/'- 7 -'!$E43 -> 72.73982971 | H43: 196902 | I43: =H43/'- 3 -'!$D43*100 -> 1.27748412 | J43: =H43/'- 7 -'!$E43 -> 186.2838221
A44: TURTLE RIVER | B44: 0 | C44: =B44/'- 3 -'!$D44*100 -> 0 | D44: =B44/'- 7 -'!$E44 -> 0 | E44: 0 | F44: =E44/'- 3 -'!$D44*100 -> 0 | G44: =E44/'- 7 -'!$E44 -> 0 | H44: 129307 | I44: =H44/'- 3 -'!$D44*100 -> 1.054309147 | J44: =H44/'- 7 -'!$E44 -> 210.0844842
A45: WESTERN | B45: 0 | C45: =B45/'- 3 -'!$D45*100 -> 0 | D45: =B45/'- 7 -'!$E45 -> 0 | E45: 0 | F45: =E45/'- 3 -'!$D45*100 -> 0 | G45: =E45/'- 7 -'!$E45 -> 0 | H45: 259699 | I45: =H45/'- 3 -'!$D45*100 -> 0.9460949662 | J45: =H45/'- 7 -'!$E45 -> 121.2979916
A46: WINNIPEG | B46: 1194690 | C46: =B46/'- 3 -'!$D46*100 -> 0.264853165 | D46: =B46/'- 7 -'!$E46 -> 42.9532928 | E46: 1668581 | F46: =E46/'- 3 -'!$D46*100 -> 0.3699109885 | G46: =E46/'- 7 -'!$E46 -> 59.99133521 | H46: 2766725 | I46: =H46/'- 3 -'!$D46*100 -> 0.6133606817 | J46: =H46/'- 7 -'!$E46 -> 99.47346092
A48: PROVINCE | B48: =SUM(B11:B46) -> 3422896 | C48: =B48/'- 3 -'!$D48*100 -> 0.1220959668 | D48: =B48/'- 7 -'!$E48 -> 18.25299408 | E48: =SUM(E11:E46) -> 21375136 | F48: =E48/'- 3 -'!$D48*100 -> 0.7624590098 | G48: =E48/'- 7 -'!$E48 -> 113.9854179 | H48: =SUM(H11:H46) -> 33987291 | I48: =H48/'- 3 -'!$D48*100 -> 1.212339245 | J48: =H48/'- 7 -'!$E48 -> 181.2412125
A50: WHITESHELL | B50: 0 | C50: =B50/'- 3 -'!$D50*100 -> 0 | D50: =B50/'- 7 -'!$E50 -> 0 | E50: 0 | F50: =E50/'- 3 -'!$D50*100 -> 0 | G50: =E50/'- 7 -'!$E50 -> 0 | H50: 11022 | I50: =H50/'- 3 -'!$D50*100 -> 0.2691765717 | J50: =H50/'- 7 -'!$E50 -> 56.52307692

Sheet - 28 -
B2: ANALYSIS OF EXPENSE BY PROGRAM | J2: PAGE 11 OF 16
B3: =OPYEAR -> OPERATING FUND 2023/2024 ACTUAL
B5: FUNCTION 600: INSTRUCTIONAL & OTHER SUPPORT SERVICES
B6: PROFESSIONAL AND STAFF DEVELOPMENT
E7: OTHER (1)
D8: PER PUPIL | G8: PER PUPIL
A9: DIVISION / DISTRICT | B9: AMOUNT | C9: % | E9: AMOUNT | F9: %
A11: BEAUTIFUL PLAINS | B11: 145302 | C11: =B11/'- 3 -'!$D11*100 -> 0.540189971 | D11: =B11/'- 7 -'!$E11 -> 66.87008146 | E11: 37481 | F11: =E11/'- 3 -'!$D11*100 -> 0.1393433009 | G11: =E11/'- 7 -'!$E11 -> 17.24929817
A12: BORDER LAND | B12: 199921 | C12: =B12/'- 3 -'!$D12*100 -> 0.533172529 | D12: =B12/'- 7 -'!$E12 -> 96.97841378 | E12: 211985 | F12: =E12/'- 3 -'!$D12*100 -> 0.5653462045 | G12: =E12/'- 7 -'!$E12 -> 102.8304633
A13: BRANDON | B13: 1312969 | C13: =B13/'- 3 -'!$D13*100 -> 1.075144156 | D13: =B13/'- 7 -'!$E13 -> 140.4470236 | E13: 97491 | F13: =E13/'- 3 -'!$D13*100 -> 0.07983195256 | G13: =E13/'- 7 -'!$E13 -> 10.42851794
A14: DSFM | B14: 429683 | C14: =B14/'- 3 -'!$D14*100 -> 0.3995828253 | D14: =B14/'- 7 -'!$E14 -> 71.29183189 | E14: 273649 | F14: =E14/'- 3 -'!$D14*100 -> 0.2544793268 | G14: =E14/'- 7 -'!$E14 -> 45.40309602
A15: EVERGREEN | B15: 129544 | C15: =B15/'- 3 -'!$D15*100 -> 0.5784553771 | D15: =B15/'- 7 -'!$E15 -> 90.33751743 | E15: 11240 | F15: =E15/'- 3 -'!$D15*100 -> 0.0501901936 | G15: =E15/'- 7 -'!$E15 -> 7.838214784
A16: FLIN FLON | B16: 108851 | C16: =B16/'- 3 -'!$D16*100 -> 0.6381204059 | D16: =B16/'- 7 -'!$E16 -> 131.7808717 | E16: 25923 | F16: =E16/'- 3 -'!$D16*100 -> 0.1519691623 | G16: =E16/'- 7 -'!$E16 -> 31.38377724
A17: FORT LA BOSSE | B17: 49990 | C17: =B17/'- 3 -'!$D17*100 -> 0.2330832999 | D17: =B17/'- 7 -'!$E17 -> 32.79107904 | E17: 1500 | F17: =E17/'- 3 -'!$D17*100 -> 0.006993897778 | G17: =E17/'- 7 -'!$E17 -> 0.9839291571
A18: FRONTIER | B18: 1481644 | C18: =B18/'- 3 -'!$D18*100 -> 0.8916684311 | D18: =B18/'- 7 -'!$E18 -> 234.2149858 | E18: 2682130 | F18: =E18/'- 3 -'!$D18*100 -> 1.614133118 | G18: =E18/'- 7 -'!$E18 -> 423.9851407
A19: GARDEN VALLEY | B19: 635021 | C19: =B19/'- 3 -'!$D19*100 -> 1.115448001 | D19: =B19/'- 7 -'!$E19 -> 149.804435 | E19: 412816 | F19: =E19/'- 3 -'!$D19*100 -> 0.7251331564 | G19: =E19/'- 7 -'!$E19 -> 97.38523237
A20: HANOVER | B20: 553219 | C20: =B20/'- 3 -'!$D20*100 -> 0.5347366408 | D20: =B20/'- 7 -'!$E20 -> 65.70999275 | E20: 258638 | F20: =E20/'- 3 -'!$D20*100 -> 0.2499972259 | G20: =E20/'- 7 -'!$E20 -> 30.72038579
A21: INTERLAKE | B21: 355000 | C21: =B21/'- 3 -'!$D21*100 -> 0.8511507558 | D21: =B21/'- 7 -'!$E21 -> 122.9650156 | E21: 195951 | F21: =E21/'- 3 -'!$D21*100 -> 0.4698136387 | G21: =E21/'- 7 -'!$E21 -> 67.87357118
A22: KELSEY | B22: 68220 | C22: =B22/'- 3 -'!$D22*100 -> 0.294853344 | D22: =B22/'- 7 -'!$E22 -> 47.11325967 | E22: 0 | F22: =E22/'- 3 -'!$D22*100 -> 0 | G22: =E22/'- 7 -'!$E22 -> 0
A23: LAKESHORE | B23: 144964 | C23: =B23/'- 3 -'!$D23*100 -> 0.8863976628 | D23: =B23/'- 7 -'!$E23 -> 148.6810256 | E23: 20649 | F23: =E23/'- 3 -'!$D23*100 -> 0.1262604877 | G23: =E23/'- 7 -'!$E23 -> 21.17846154
A24: LORD SELKIRK | B24: 226510 | C24: =B24/'- 3 -'!$D24*100 -> 0.3484323934 | D24: =B24/'- 7 -'!$E24 -> 59.98675847 | E24: 268528 | F24: =E24/'- 3 -'!$D24*100 -> 0.41306721 | G24: =E24/'- 7 -'!$E24 -> 71.11440678
A25: LOUIS RIEL | B25: 1427200 | C25: =B25/'- 3 -'!$D25*100 -> 0.6101071439 | D25: =B25/'- 7 -'!$E25 -> 83.1750102 | E25: 789088 | F25: =E25/'- 3 -'!$D25*100 -> 0.3373235888 | G25: =E25/'- 7 -'!$E25 -> 45.98682907
A26: MOUNTAIN VIEW | B26: 650365 | C26: =B26/'- 3 -'!$D26*100 -> 1.353756986 | D26: =B26/'- 7 -'!$E26 -> 208.9928982 | E26: 24898 | F26: =E26/'- 3 -'!$D26*100 -> 0.05182603836 | G26: =E26/'- 7 -'!$E26 -> 8.000899772
A27: MYSTERY LAKE | B27: 182247 | C27: =B27/'- 3 -'!$D27*100 -> 0.3939300529 | D27: =B27/'- 7 -'!$E27 -> 64.4779763 | E27: 0 | F27: =E27/'- 3 -'!$D27*100 -> 0 | G27: =E27/'- 7 -'!$E27 -> 0
A28: PARK WEST | B28: 305095 | C28: =B28/'- 3 -'!$D28*100 -> 0.9251084397 | D28: =B28/'- 7 -'!$E28 -> 144.4578598 | E28: 0 | F28: =E28/'- 3 -'!$D28*100 -> 0 | G28: =E28/'- 7 -'!$E28 -> 0
A29: PEMBINA TRAILS | B29: 1590101 | C29: =B29/'- 3 -'!$D29*100 -> 0.7748842384 | D29: =B29/'- 7 -'!$E29 -> 96.17449421 | E29: 947832 | F29: =E29/'- 3 -'!$D29*100 -> 0.4618952365 | G29: =E29/'- 7 -'!$E29 -> 57.32797048
A30: PINE CREEK | B30: 118550 | C30: =B30/'- 3 -'!$D30*100 -> 0.6311916547 | D30: =B30/'- 7 -'!$E30 -> 110.7943925 | E30: 3712 | F30: =E30/'- 3 -'!$D30*100 -> 0.0197636729 | G30: =E30/'- 7 -'!$E30 -> 3.469158879
A31: PORTAGE LA PRAIRIE | B31: 484954 | C31: =B31/'- 3 -'!$D31*100 -> 1.01048289 | D31: =B31/'- 7 -'!$E31 -> 147.5145247 | E31: 743791 | F31: =E31/'- 3 -'!$D31*100 -> 1.549813135 | G31: =E31/'- 7 -'!$E31 -> 226.2482129
A32: PRAIRIE ROSE | B32: 233589 | C32: =B32/'- 3 -'!$D32*100 -> 0.6609541056 | D32: =B32/'- 7 -'!$E32 -> 103.0842895 | E32: 1503 | F32: =E32/'- 3 -'!$D32*100 -> 0.004252828775 | G32: =E32/'- 7 -'!$E32 -> 0.6632833186
A33: PRAIRIE SPIRIT | B33: 149865 | C33: =B33/'- 3 -'!$D33*100 -> 0.4800538606 | D33: =B33/'- 7 -'!$E33 -> 71.70574163 | E33: 805 | F33: =E33/'- 3 -'!$D33*100 -> 0.002578609801 | G33: =E33/'- 7 -'!$E33 -> 0.3851674641
A34: RED RIVER VALLEY | B34: 281804 | C34: =B34/'- 3 -'!$D34*100 -> 0.7799789065 | D34: =B34/'- 7 -'!$E34 -> 124.3618711 | E34: 152867 | F34: =E34/'- 3 -'!$D34*100 -> 0.4231062565 | G34: =E34/'- 7 -'!$E34 -> 67.46116505
A35: RIVER EAST TRANSCONA | B35: 1637020 | C35: =B35/'- 3 -'!$D35*100 -> 0.7207278634 | D35: =B35/'- 7 -'!$E35 -> 92.26546428 | E35: 692700 | F35: =E35/'- 3 -'!$D35*100 -> 0.3049737883 | G35: =E35/'- 7 -'!$E35 -> 39.04184867
A36: ROLLING RIVER | B36: 126165 | C36: =B36/'- 3 -'!$D36*100 -> 0.4746534172 | D36: =B36/'- 7 -'!$E36 -> 72.92774566 | E36: 37961 | F36: =E36/'- 3 -'!$D36*100 -> 0.1428155065 | G36: =E36/'- 7 -'!$E36 -> 21.94277457
A37: SEINE RIVER | B37: 237962 | C37: =B37/'- 3 -'!$D37*100 -> 0.3777166569 | D37: =B37/'- 7 -'!$E37 -> 49.95004198 | E37: 120858 | F37: =E37/'- 3 -'!$D37*100 -> 0.1918376872 | G37: =E37/'- 7 -'!$E37 -> 25.36901763
A38: SEVEN OAKS | B38: 1210197 | C38: =B38/'- 3 -'!$D38*100 -> 0.7009064019 | D38: =B38/'- 7 -'!$E38 -> 101.0670441 | E38: 2315872 | F38: =E38/'- 3 -'!$D38*100 -> 1.34127709 | G38: =E38/'- 7 -'!$E38 -> 193.4051544
A39: SOUTHWEST HORIZON | B39: 101633 | C39: =B39/'- 3 -'!$D39*100 -> 0.4139034044 | D39: =B39/'- 7 -'!$E39 -> 70.89850017 | E39: 26347 | F39: =E39/'- 3 -'!$D39*100 -> 0.1072989383 | G39: =E39/'- 7 -'!$E39 -> 18.37949076
A40: ST. JAMES-ASSINIBOIA | B40: 1620786 | C40: =B40/'- 3 -'!$D40*100 -> 1.354096232 | D40: =B40/'- 7 -'!$E40 -> 201.7207647 | E40: 452669 | F40: =E40/'- 3 -'!$D40*100 -> 0.3781852678 | G40: =E40/'- 7 -'!$E40 -> 56.3385523
A41: SUNRISE | B41: 389241 | C41: =B41/'- 3 -'!$D41*100 -> 0.5161724308 | D41: =B41/'- 7 -'!$E41 -> 84.30604288 | E41: 84234 | F41: =E41/'- 3 -'!$D41*100 -> 0.1117026946 | G41: =E41/'- 7 -'!$E41 -> 18.24431449
A42: SWAN VALLEY | B42: 163217 | C42: =B42/'- 3 -'!$D42*100 -> 0.6629061492 | D42: =B42/'- 7 -'!$E42 -> 115.3493336 | E42: 36461 | F42: =E42/'- 3 -'!$D42*100 -> 0.1480864193 | G42: =E42/'- 7 -'!$E42 -> 25.76785538
A43: TURTLE MOUNTAIN | B43: 110698 | C43: =B43/'- 3 -'!$D43*100 -> 0.7181995974 | D43: =B43/'- 7 -'!$E43 -> 104.7284768 | E43: 85580 | F43: =E43/'- 3 -'!$D43*100 -> 0.5552360616 | G43: =E43/'- 7 -'!$E43 -> 80.96499527
A44: TURTLE RIVER | B44: 36319 | C44: =B44/'- 3 -'!$D44*100 -> 0.2961282368 | D44: =B44/'- 7 -'!$E44 -> 59.00731113 | E44: 69333 | F44: =E44/'- 3 -'!$D44*100 -> 0.5653090406 | G44: =E44/'- 7 -'!$E44 -> 112.6450041
A45: WESTERN | B45: 112510 | C45: =B45/'- 3 -'!$D45*100 -> 0.4098789161 | D45: =B45/'- 7 -'!$E45 -> 52.55021018 | E45: 267534 | F45: =E45/'- 3 -'!$D45*100 -> 0.9746382184 | G45: =E45/'- 7 -'!$E45 -> 124.9574965
A46: WINNIPEG | B46: 1941827 | C46: =B46/'- 3 -'!$D46*100 -> 0.4304874292 | D46: =B46/'- 7 -'!$E46 -> 69.81548661 | E46: 3063686 | F46: =E46/'- 3 -'!$D46*100 -> 0.6791945472 | G46: =E46/'- 7 -'!$E46 -> 110.1502497
A48: PROVINCE | B48: =SUM(B11:B46) -> 18952183 | C48: =B48/'- 3 -'!$D48*100 -> 0.6760313798 | D48: =B48/'- 7 -'!$E48 -> 101.064737 | E48: =SUM(E11:E46) -> 14415712 | F48: =E48/'- 3 -'!$D48*100 -> 0.5142137807 | G48: =E48/'- 7 -'!$E48 -> 76.87347374
A50: WHITESHELL | B50: 39671 | C50: =B50/'- 3 -'!$D50*100 -> 0.9688353998 | D50: =B50/'- 7 -'!$E50 -> 203.4410256 | E50: 67698 | F50: =E50/'- 3 -'!$D50*100 -> 1.653303897 | G50: =E50/'- 7 -'!$E50 -> 347.1692308
A52: (1) Includes food services, health services, and other activities related to instructional and other support not included in previous programs.

Sheet - 29 -
B2: ANALYSIS OF EXPENSE BY PROGRAM | G2: PAGE 12 OF 16
B3: =OPYEAR -> OPERATING FUND 2023/2024 ACTUAL
B6: FUNCTION 700: TRANSPORTATION OF PUPILS
F7: ALLOWANCES IN LIEU OF TRANSPORTATION
B8: ADMINISTRATION | D8: REGULAR
A9: DIVISION / DISTRICT | B9: AMOUNT | C9: % | D9: AMOUNT | E9: % | F9: AMOUNT | G9: %
A11: BEAUTIFUL PLAINS | B11: 95484 | C11: =B11/'- 3 -'!$D11*100 -> 0.3549813436 | D11: 1248669 | E11: =D11/'- 3 -'!$D11*100 -> 4.642182977 | F11: 4977 | G11: =F11/'- 3 -'!$D11*100 -> 0.01850301775
A12: BORDER LAND | B12: 152535 | C12: =B12/'- 3 -'!$D12*100 -> 0.4067980438 | D12: 2498973 | E12: =D12/'- 3 -'!$D12*100 -> 6.664551269 | F12: 0 | G12: =F12/'- 3 -'!$D12*100 -> 0
A13: BRANDON | B13: 250144 | C13: =B13/'- 3 -'!$D13*100 -> 0.2048341277 | D13: 2477987 | E13: =D13/'- 3 -'!$D13*100 -> 2.029136439 | F13: 980 | G13: =F13/'- 3 -'!$D13*100 -> 0.0008024875476
A14: DSFM | B14: 269942 | C14: =B14/'- 3 -'!$D14*100 -> 0.2510320097 | D14: 10713631 | E14: =D14/'- 3 -'!$D14*100 -> 9.963119194 | F14: 264546 | G14: =F14/'- 3 -'!$D14*100 -> 0.2460140106
A15: EVERGREEN | B15: 212261 | C15: =B15/'- 3 -'!$D15*100 -> 0.947813228 | D15: 1546448 | E15: =D15/'- 3 -'!$D15*100 -> 6.905384742 | F15: 4286 | G15: =F15/'- 3 -'!$D15*100 -> 0.0191383603
A16: FLIN FLON | B16: 0 | C16: =B16/'- 3 -'!$D16*100 -> 0 | D16: 410333 | E16: =D16/'- 3 -'!$D16*100 -> 2.405507166 | F16: 0 | G16: =F16/'- 3 -'!$D16*100 -> 0
A17: FORT LA BOSSE | B17: 78657 | C17: =B17/'- 3 -'!$D17*100 -> 0.3667460117 | D17: 1704599 | E17: =D17/'- 3 -'!$D17*100 -> 7.947860772 | F17: 0 | G17: =F17/'- 3 -'!$D17*100 -> 0
A18: FRONTIER | B18: 381632 | C18: =B18/'- 3 -'!$D18*100 -> 0.2296700197 | D18: 8606790 | E18: =D18/'- 3 -'!$D18*100 -> 5.179653774 | F18: 71796 | G18: =F18/'- 3 -'!$D18*100 -> 0.04320756314
A19: GARDEN VALLEY | B19: 149637 | C19: =B19/'- 3 -'!$D19*100 -> 0.2628453115 | D19: 3229138 | E19: =D19/'- 3 -'!$D19*100 -> 5.672151831 | F19: 16866 | G19: =F19/'- 3 -'!$D19*100 -> 0.0296260218
A20: HANOVER | B20: 303736 | C20: =B20/'- 3 -'!$D20*100 -> 0.2935885578 | D20: 3613450 | E20: =D20/'- 3 -'!$D20*100 -> 3.492729127 | F20: 375 | G20: =F20/'- 3 -'!$D20*100 -> 0.0003624717161
A21: INTERLAKE | B21: 179164 | C21: =B21/'- 3 -'!$D21*100 -> 0.4295649972 | D21: 2436023 | E21: =D21/'- 3 -'!$D21*100 -> 5.840627655 | F21: 0 | G21: =F21/'- 3 -'!$D21*100 -> 0
A22: KELSEY | B22: 70330 | C22: =B22/'- 3 -'!$D22*100 -> 0.3039729651 | D22: 427504 | E22: =D22/'- 3 -'!$D22*100 -> 1.847713045 | F22: 1689 | G22: =F22/'- 3 -'!$D22*100 -> 0.007300019026
A23: LAKESHORE | B23: 121670 | C23: =B23/'- 3 -'!$D23*100 -> 0.7439640437 | D23: 1568104 | E23: =D23/'- 3 -'!$D23*100 -> 9.588337246 | F23: 0 | G23: =F23/'- 3 -'!$D23*100 -> 0
A24: LORD SELKIRK | B24: 216900 | C24: =B24/'- 3 -'!$D24*100 -> 0.3336496673 | D24: 2827497 | E24: =D24/'- 3 -'!$D24*100 -> 4.349439526 | F24: 0 | G24: =F24/'- 3 -'!$D24*100 -> 0
A25: LOUIS RIEL | B25: 498122 | C25: =B25/'- 3 -'!$D25*100 -> 0.2129398758 | D25: 5403332 | E25: =D25/'- 3 -'!$D25*100 -> 2.309845469 | F25: 0 | G25: =F25/'- 3 -'!$D25*100 -> 0
A26: MOUNTAIN VIEW | B26: 231314 | C26: =B26/'- 3 -'!$D26*100 -> 0.4814880005 | D26: 2920597 | E26: =D26/'- 3 -'!$D26*100 -> 6.079322522 | F26: 1800 | G26: =F26/'- 3 -'!$D26*100 -> 0.003746761549
A27: MYSTERY LAKE | B27: 0 | C27: =B27/'- 3 -'!$D27*100 -> 0 | D27: 57500 | E27: =D27/'- 3 -'!$D27*100 -> 0.1242872478 | F27: 187828 | G27: =F27/'- 3 -'!$D27*100 -> 0.4059934813
A28: PARK WEST | B28: 54200 | C28: =B28/'- 3 -'!$D28*100 -> 0.16434513 | D28: 1869500 | E28: =D28/'- 3 -'!$D28*100 -> 5.668694105 | F28: 0 | G28: =F28/'- 3 -'!$D28*100 -> 0
A29: PEMBINA TRAILS | B29: 609538 | C29: =B29/'- 3 -'!$D29*100 -> 0.2970386088 | D29: 2867988 | E29: =D29/'- 3 -'!$D29*100 -> 1.397621093 | F29: 26350 | G29: =F29/'- 3 -'!$D29*100 -> 0.01284081935
A30: PINE CREEK | B30: 142129 | C30: =B30/'- 3 -'!$D30*100 -> 0.7567325069 | D30: 1365970 | E30: =D30/'- 3 -'!$D30*100 -> 7.272786711 | F30: 0 | G30: =F30/'- 3 -'!$D30*100 -> 0
A31: PORTAGE LA PRAIRIE | B31: 151263 | C31: =B31/'- 3 -'!$D31*100 -> 0.3151817973 | D31: 1193761 | E31: =D31/'- 3 -'!$D31*100 -> 2.487401 | F31: 0 | G31: =F31/'- 3 -'!$D31*100 -> 0
A32: PRAIRIE ROSE | B32: 184190 | C32: =B32/'- 3 -'!$D32*100 -> 0.521176668 | D32: 2586286 | E32: =D32/'- 3 -'!$D32*100 -> 7.318051577 | F32: 414 | G32: =F32/'- 3 -'!$D32*100 -> 0.001171437866
A33: PRAIRIE SPIRIT | B33: 132622 | C33: =B33/'- 3 -'!$D33*100 -> 0.424820359 | D33: 2446880 | E33: =D33/'- 3 -'!$D33*100 -> 7.837948757 | F33: 0 | G33: =F33/'- 3 -'!$D33*100 -> 0
A34: RED RIVER VALLEY | B34: 192985 | C34: =B34/'- 3 -'!$D34*100 -> 0.5341451125 | D34: 2768269 | E34: =D34/'- 3 -'!$D34*100 -> 7.662032575 | F34: 33058 | G34: =F34/'- 3 -'!$D34*100 -> 0.09149814301
A35: RIVER EAST TRANSCONA | B35: 534776 | C35: =B35/'- 3 -'!$D35*100 -> 0.2354448717 | D35: 5103582 | E35: =D35/'- 3 -'!$D35*100 -> 2.246944906 | F35: 0 | G35: =F35/'- 3 -'!$D35*100 -> 0
A36: ROLLING RIVER | B36: 70659 | C36: =B36/'- 3 -'!$D36*100 -> 0.2658307439 | D36: 1865558 | E36: =D36/'- 3 -'!$D36*100 -> 7.018535091 | F36: 6488 | G36: =F36/'- 3 -'!$D36*100 -> 0.02440891983
A37: SEINE RIVER | B37: 241112 | C37: =B37/'- 3 -'!$D37*100 -> 0.3827166463 | D37: 3673094 | E37: =D37/'- 3 -'!$D37*100 -> 5.830295536 | F37: 0 | G37: =F37/'- 3 -'!$D37*100 -> 0
A38: SEVEN OAKS | B38: 349256 | C38: =B38/'- 3 -'!$D38*100 -> 0.2022776179 | D38: 4526216 | E38: =D38/'- 3 -'!$D38*100 -> 2.621435825 | F38: 0 | G38: =F38/'- 3 -'!$D38*100 -> 0
A39: SOUTHWEST HORIZON | B39: 123540 | C39: =B39/'- 3 -'!$D39*100 -> 0.5031203111 | D39: 1873136 | E39: =D39/'- 3 -'!$D39*100 -> 7.628401871 | F39: 0 | G39: =F39/'- 3 -'!$D39*100 -> 0
A40: ST. JAMES-ASSINIBOIA | B40: 171208 | C40: =B40/'- 3 -'!$D40*100 -> 0.14303684 | D40: 2523694 | E40: =D40/'- 3 -'!$D40*100 -> 2.108436609 | F40: 0 | G40: =F40/'- 3 -'!$D40*100 -> 0
A41: SUNRISE | B41: 450028 | C41: =B41/'- 3 -'!$D41*100 -> 0.5967820622 | D41: 5203425 | E41: =D41/'- 3 -'!$D41*100 -> 6.9002611 | F41: 563 | G41: =F41/'- 3 -'!$D41*100 -> 0.0007465942142
A42: SWAN VALLEY | B42: 141885 | C42: =B42/'- 3 -'!$D42*100 -> 0.5762661915 | D42: 1466707 | E42: =D42/'- 3 -'!$D42*100 -> 5.957033209 | F42: 0 | G42: =F42/'- 3 -'!$D42*100 -> 0
A43: TURTLE MOUNTAIN | B43: 77555 | C43: =B43/'- 3 -'!$D43*100 -> 0.503170516 | D43: 1083258 | E43: =D43/'- 3 -'!$D43*100 -> 7.028089573 | F43: 0 | G43: =F43/'- 3 -'!$D43*100 -> 0
A44: TURTLE RIVER | B44: 41544 | C44: =B44/'- 3 -'!$D44*100 -> 0.3387304571 | D44: 1276317 | E44: =D44/'- 3 -'!$D44*100 -> 10.4064953 | F44: 543 | G44: =F44/'- 3 -'!$D44*100 -> 0.004427369493
A45: WESTERN | B45: 106318 | C45: =B45/'- 3 -'!$D45*100 -> 0.3873211857 | D45: 997753 | E45: =D45/'- 3 -'!$D45*100 -> 3.634858397 | F45: 19109 | G45: =F45/'- 3 -'!$D45*100 -> 0.06961493386
A46: WINNIPEG | B46: 745482 | C46: =B46/'- 3 -'!$D46*100 -> 0.165267364 | D46: 6977392 | E46: =D46/'- 3 -'!$D46*100 -> 1.546831692 | F46: 0 | G46: =F46/'- 3 -'!$D46*100 -> 0
A48: PROVINCE | B48: =SUM(B11:B46) -> 7731818 | C48: =B48/'- 3 -'!$D48*100 -> 0.2757968088 | D48: =SUM(D11:D46) -> 103359361 | E48: =D48/'- 3 -'!$D48*100 -> 3.686866649 | F48: =SUM(F11:F46) -> 641668 | G48: =F48/'- 3 -'!$D48*100 -> 0.02288853497
A50: WHITESHELL | B50: 0 | C50: =B50/'- 3 -'!$D50*100 -> 0 | D50: 0 | E50: =D50/'- 3 -'!$D50*100 -> 0 | F50: 0 | G50: =F50/'- 3 -'!$D50*100 -> 0

Sheet - 30 -
B2: ANALYSIS OF EXPENSE BY PROGRAM | G2: PAGE 13 OF 16
B3: =OPYEAR -> OPERATING FUND 2023/2024 ACTUAL
B6: FUNCTION 700: TRANSPORTATION OF PUPILS
B7: BOARDING OF STUDENTS | D7: FIELD TRIPS AND OTHER
A9: DIVISION / DISTRICT | B9: AMOUNT | C9: % | D9: AMOUNT | E9: %
A11: BEAUTIFUL PLAINS | B11: 0 | C11: =B11/'- 3 -'!$D11*100 -> 0 | D11: 191585 | E11: =D11/'- 3 -'!$D11*100 -> 0.7122565112
A12: BORDER LAND | B12: 0 | C12: =B12/'- 3 -'!$D12*100 -> 0 | D12: 296344 | E12: =D12/'- 3 -'!$D12*100 -> 0.7903245778
A13: BRANDON | B13: 0 | C13: =B13/'- 3 -'!$D13*100 -> 0 | D13: 114964 | E13: =D13/'- 3 -'!$D13*100 -> 0.09413997798
A14: DSFM | B14: 0 | C14: =B14/'- 3 -'!$D14*100 -> 0 | D14: 830671 | E14: =D14/'- 3 -'!$D14*100 -> 0.7724807942
A15: EVERGREEN | B15: 0 | C15: =B15/'- 3 -'!$D15*100 -> 0 | D15: 109590 | E15: =D15/'- 3 -'!$D15*100 -> 0.4893543876
A16: FLIN FLON | B16: 0 | C16: =B16/'- 3 -'!$D16*100 -> 0 | D16: 157055 | E16: =D16/'- 3 -'!$D16*100 -> 0.9207081272
A17: FORT LA BOSSE | B17: 0 | C17: =B17/'- 3 -'!$D17*100 -> 0 | D17: 22054 | E17: =D17/'- 3 -'!$D17*100 -> 0.1028289477
A18: FRONTIER | B18: 3343152 | C18: =B18/'- 3 -'!$D18*100 -> 2.011942882 | D18: 1531796 | E18: =D18/'- 3 -'!$D18*100 -> 0.9218504149
A19: GARDEN VALLEY | B19: 0 | C19: =B19/'- 3 -'!$D19*100 -> 0 | D19: 7061 | E19: =D19/'- 3 -'!$D19*100 -> 0.01240302027
A20: HANOVER | B20: 0 | C20: =B20/'- 3 -'!$D20*100 -> 0 | D20: 656014 | E20: =D20/'- 3 -'!$D20*100 -> 0.6340973876
A21: INTERLAKE | B21: 0 | C21: =B21/'- 3 -'!$D21*100 -> 0 | D21: 184457 | E21: =D21/'- 3 -'!$D21*100 -> 0.4422555351
A22: KELSEY | B22: 0 | C22: =B22/'- 3 -'!$D22*100 -> 0 | D22: 38456 | E22: =D22/'- 3 -'!$D22*100 -> 0.1662104983
A23: LAKESHORE | B23: 0 | C23: =B23/'- 3 -'!$D23*100 -> 0 | D23: 0 | E23: =D23/'- 3 -'!$D23*100 -> 0
A24: LORD SELKIRK | B24: 0 | C24: =B24/'- 3 -'!$D24*100 -> 0 | D24: 11284 | E24: =D24/'- 3 -'!$D24*100 -> 0.01735778168
A25: LOUIS RIEL | B25: 0 | C25: =B25/'- 3 -'!$D25*100 -> 0 | D25: 107692 | E25: =D25/'- 3 -'!$D25*100 -> 0.04603675626
A26: MOUNTAIN VIEW | B26: 0 | C26: =B26/'- 3 -'!$D26*100 -> 0 | D26: 231586 | E26: =D26/'- 3 -'!$D26*100 -> 0.4820541778
A27: MYSTERY LAKE | B27: 0 | C27: =B27/'- 3 -'!$D27*100 -> 0 | D27: 187291 | E27: =D27/'- 3 -'!$D27*100 -> 0.4048327464
A28: PARK WEST | B28: 0 | C28: =B28/'- 3 -'!$D28*100 -> 0 | D28: 0 | E28: =D28/'- 3 -'!$D28*100 -> 0
A29: PEMBINA TRAILS | B29: 0 | C29: =B29/'- 3 -'!$D29*100 -> 0 | D29: 768747 | E29: =D29/'- 3 -'!$D29*100 -> 0.3746239601
A30: PINE CREEK | B30: 0 | C30: =B30/'- 3 -'!$D30*100 -> 0 | D30: 17818 | E30: =D30/'- 3 -'!$D30*100 -> 0.09486775962
A31: PORTAGE LA PRAIRIE | B31: 0 | C31: =B31/'- 3 -'!$D31*100 -> 0 | D31: 32534 | E31: =D31/'- 3 -'!$D31*100 -> 0.06779003849
A32: PRAIRIE ROSE | B32: 0 | C32: =B32/'- 3 -'!$D32*100 -> 0 | D32: 61971 | E32: =D32/'- 3 -'!$D32*100 -> 0.1753506667
A33: PRAIRIE SPIRIT | B33: 0 | C33: =B33/'- 3 -'!$D33*100 -> 0 | D33: 84847 | E33: =D33/'- 3 -'!$D33*100 -> 0.271785473
A34: RED RIVER VALLEY | B34: 0 | C34: =B34/'- 3 -'!$D34*100 -> 0 | D34: 179762 | E34: =D34/'- 3 -'!$D34*100 -> 0.4975464088
A35: RIVER EAST TRANSCONA | B35: 0 | C35: =B35/'- 3 -'!$D35*100 -> 0 | D35: 150701 | E35: =D35/'- 3 -'!$D35*100 -> 0.06634885935
A36: ROLLING RIVER | B36: 0 | C36: =B36/'- 3 -'!$D36*100 -> 0 | D36: 95405 | E36: =D36/'- 3 -'!$D36*100 -> 0.3589292535
A37: SEINE RIVER | B37: 0 | C37: =B37/'- 3 -'!$D37*100 -> 0 | D37: 48614 | E37: =D37/'- 3 -'!$D37*100 -> 0.07716491524
A38: SEVEN OAKS | B38: 0 | C38: =B38/'- 3 -'!$D38*100 -> 0 | D38: 465888 | E38: =D38/'- 3 -'!$D38*100 -> 0.2698270461
A39: SOUTHWEST HORIZON | B39: 0 | C39: =B39/'- 3 -'!$D39*100 -> 0 | D39: 27656 | E39: =D39/'- 3 -'!$D39*100 -> 0.1126298796
A40: ST. JAMES-ASSINIBOIA | B40: 0 | C40: =B40/'- 3 -'!$D40*100 -> 0 | D40: 121397 | E40: =D40/'- 3 -'!$D40*100 -> 0.1014219153
A41: SUNRISE | B41: 0 | C41: =B41/'- 3 -'!$D41*100 -> 0 | D41: 185388 | E41: =D41/'- 3 -'!$D41*100 -> 0.2458429986
A42: SWAN VALLEY | B42: 0 | C42: =B42/'- 3 -'!$D42*100 -> 0 | D42: 137753 | E42: =D42/'- 3 -'!$D42*100 -> 0.5594840658
A43: TURTLE MOUNTAIN | B43: 0 | C43: =B43/'- 3 -'!$D43*100 -> 0 | D43: 10463 | E43: =D43/'- 3 -'!$D43*100 -> 0.06788309082
A44: TURTLE RIVER | B44: 0 | C44: =B44/'- 3 -'!$D44*100 -> 0 | D44: 42668 | E44: =D44/'- 3 -'!$D44*100 -> 0.3478950304
A45: WESTERN | B45: 0 | C45: =B45/'- 3 -'!$D45*100 -> 0 | D45: 78822 | E45: =D45/'- 3 -'!$D45*100 -> 0.2871520392
A46: WINNIPEG | B46: 0 | C46: =B46/'- 3 -'!$D46*100 -> 0 | D46: 594588 | E46: =D46/'- 3 -'!$D46*100 -> 0.1318153778
A48: PROVINCE | B48: =SUM(B11:B46) -> 3343152 | C48: =B48/'- 3 -'!$D48*100 -> 0.1192514688 | D48: =SUM(D11:D46) -> 7782922 | E48: =D48/'- 3 -'!$D48*100 -> 0.2776197074
A50: WHITESHELL | B50: 0 | C50: =B50/'- 3 -'!$D50*100 -> 0 | D50: 61425 | E50: =D50/'- 3 -'!$D50*100 -> 1.500106235

Sheet - 31 -
B2: ANALYSIS OF EXPENSE BY PROGRAM | G2: PAGE 14 OF 16
B3: =OPYEAR -> OPERATING FUND 2023/2024 ACTUAL
B6: FUNCTION 800: OPERATIONS AND MAINTENANCE
D7: SCHOOL BUILDINGS
B8: ADMINISTRATION | D8: MAINTENANCE | F8: REPAIRS
A9: DIVISION / DISTRICT | B9: AMOUNT | C9: % | D9: AMOUNT | E9: % | F9: AMOUNT | G9: %
A11: BEAUTIFUL PLAINS | B11: 85123 | C11: =B11/'- 3 -'!$D11*100 -> 0.3164622022 | D11: 2002216 | E11: =D11/'- 3 -'!$D11*100 -> 7.443648422 | F11: 232136 | G11: =F11/'- 3 -'!$D11*100 -> 0.8630131664
A12: BORDER LAND | B12: 137326 | C12: =B12/'- 3 -'!$D12*100 -> 0.3662369171 | D12: 2965437 | E12: =D12/'- 3 -'!$D12*100 -> 7.90857161 | F12: 413897 | G12: =F12/'- 3 -'!$D12*100 -> 1.103828563
A13: BRANDON | B13: 418085 | C13: =B13/'- 3 -'!$D13*100 -> 0.3423551085 | D13: 8313744 | E13: =D13/'- 3 -'!$D13*100 -> 6.807832688 | F13: 582395 | G13: =F13/'- 3 -'!$D13*100 -> 0.4769027911
A14: DSFM | B14: 437832 | C14: =B14/'- 3 -'!$D14*100 -> 0.4071609712 | D14: 10062264 | E14: =D14/'- 3 -'!$D14*100 -> 9.357381787 | F14: 251291 | G14: =F14/'- 3 -'!$D14*100 -> 0.2336875505
A15: EVERGREEN | B15: 44353 | C15: =B15/'- 3 -'!$D15*100 -> 0.1980503253 | D15: 2328348 | E15: =D15/'- 3 -'!$D15*100 -> 10.39681823 | F15: 560911 | G15: =F15/'- 3 -'!$D15*100 -> 2.504646947
A16: FLIN FLON | B16: 115821 | C16: =B16/'- 3 -'!$D16*100 -> 0.6789808411 | D16: 2198513 | E16: =D16/'- 3 -'!$D16*100 -> 12.88840716 | F16: 126517 | G16: =F16/'- 3 -'!$D16*100 -> 0.7416843152
A17: FORT LA BOSSE | B17: 78232 | C17: =B17/'- 3 -'!$D17*100 -> 0.3647644073 | D17: 1803528 | E17: =D17/'- 3 -'!$D17*100 -> 8.409126981 | F17: 132682 | G17: =F17/'- 3 -'!$D17*100 -> 0.6186428966
A18: FRONTIER | B18: 1127359 | C18: =B18/'- 3 -'!$D18*100 -> 0.6784561142 | D18: 22417515 | E18: =D18/'- 3 -'!$D18*100 -> 13.49108857 | F18: 2561474 | G18: =F18/'- 3 -'!$D18*100 -> 1.54152111
A19: GARDEN VALLEY | B19: 134823 | C19: =B19/'- 3 -'!$D19*100 -> 0.2368237363 | D19: 5461100 | E19: =D19/'- 3 -'!$D19*100 -> 9.592711233 | F19: 23212 | G19: =F19/'- 3 -'!$D19*100 -> 0.04077310672
A20: HANOVER | B20: 237390 | C20: =B20/'- 3 -'!$D20*100 -> 0.2294590952 | D20: 8489830 | E20: =D20/'- 3 -'!$D20*100 -> 8.206195332 | F20: 561196 | G20: =F20/'- 3 -'!$D20*100 -> 0.5424471392
A21: INTERLAKE | B21: 203782 | C21: =B21/'- 3 -'!$D21*100 -> 0.4885893051 | D21: 3221561 | E21: =D21/'- 3 -'!$D21*100 -> 7.724039662 | F21: 250551 | G21: =F21/'- 3 -'!$D21*100 -> 0.6007230226
A22: KELSEY | B22: 73724 | C22: =B22/'- 3 -'!$D22*100 -> 0.3186421567 | D22: 2601837 | E22: =D22/'- 3 -'!$D22*100 -> 11.24538757 | F22: 57213 | G22: =F22/'- 3 -'!$D22*100 -> 0.2472800406
A23: LAKESHORE | B23: 71834 | C23: =B23/'- 3 -'!$D23*100 -> 0.4392365671 | D23: 1346336 | E23: =D23/'- 3 -'!$D23*100 -> 8.232313427 | F23: 101732 | G23: =F23/'- 3 -'!$D23*100 -> 0.6220510404
A24: LORD SELKIRK | B24: 137915 | C24: =B24/'- 3 -'!$D24*100 -> 0.2121498103 | D24: 5848782 | E24: =D24/'- 3 -'!$D24*100 -> 8.99697634 | F24: 237247 | G24: =F24/'- 3 -'!$D24*100 -> 0.3649487442
A25: LOUIS RIEL | B25: 757733 | C25: =B25/'- 3 -'!$D25*100 -> 0.3239197845 | D25: 20822560 | E25: =D25/'- 3 -'!$D25*100 -> 8.901340113 | F25: 811605 | G25: =F25/'- 3 -'!$D25*100 -> 0.3469492773
A26: MOUNTAIN VIEW | B26: 168523 | C26: =B26/'- 3 -'!$D26*100 -> 0.350786387 | D26: 5264809 | E26: =D26/'- 3 -'!$D26*100 -> 10.95887996 | F26: 388782 | G26: =F26/'- 3 -'!$D26*100 -> 0.809263027
A27: MYSTERY LAKE | B27: 223778 | C27: =B27/'- 3 -'!$D27*100 -> 0.4837000301 | D27: 5227461 | E27: =D27/'- 3 -'!$D27*100 -> 11.29924766 | F27: 295696 | G27: =F27/'- 3 -'!$D27*100 -> 0.639152035
A28: PARK WEST | B28: 57704 | C28: =B28/'- 3 -'!$D28*100 -> 0.1749699517 | D28: 3347008 | E28: =D28/'- 3 -'!$D28*100 -> 10.14879086 | F28: 109177 | G28: =F28/'- 3 -'!$D28*100 -> 0.3310462778
A29: PEMBINA TRAILS | B29: 1242104 | C29: =B29/'- 3 -'!$D29*100 -> 0.6052991678 | D29: 18316912 | E29: =D29/'- 3 -'!$D29*100 -> 8.926154002 | F29: 819720 | G29: =F29/'- 3 -'!$D29*100 -> 0.3994640013
A30: PINE CREEK | B30: 158800 | C30: =B30/'- 3 -'!$D30*100 -> 0.8454933342 | D30: 1383665 | E30: =D30/'- 3 -'!$D30*100 -> 7.366999586 | F30: 107925 | G30: =F30/'- 3 -'!$D30*100 -> 0.5746213356
A31: PORTAGE LA PRAIRIE | B31: 147529 | C31: =B31/'- 3 -'!$D31*100 -> 0.3074013828 | D31: 3953360 | E31: =D31/'- 3 -'!$D31*100 -> 8.237487754 | F31: 188666 | G31: =F31/'- 3 -'!$D31*100 -> 0.3931172128
A32: PRAIRIE ROSE | B32: 170665 | C32: =B32/'- 3 -'!$D32*100 -> 0.4829068682 | D32: 3311608 | E32: =D32/'- 3 -'!$D32*100 -> 9.370393741 | F32: 120656 | G32: =F32/'- 3 -'!$D32*100 -> 0.341403399
A33: PRAIRIE SPIRIT | B33: 135354 | C33: =B33/'- 3 -'!$D33*100 -> 0.4335716161 | D33: 3065142 | E33: =D33/'- 3 -'!$D33*100 -> 9.818391555 | F33: 183296 | G33: =F33/'- 3 -'!$D33*100 -> 0.5871414435
A34: RED RIVER VALLEY | B34: 76790 | C34: =B34/'- 3 -'!$D34*100 -> 0.2125398512 | D34: 2525477 | E34: =D34/'- 3 -'!$D34*100 -> 6.99003133 | F34: 398774 | G34: =F34/'- 3 -'!$D34*100 -> 1.103729218
A35: RIVER EAST TRANSCONA | B35: 1164756 | C35: =B35/'- 3 -'!$D35*100 -> 0.512805038 | D35: 20141919 | E35: =D35/'- 3 -'!$D35*100 -> 8.867846602 | F35: 263294 | G35: =F35/'- 3 -'!$D35*100 -> 0.1159199778
A36: ROLLING RIVER | B36: 75450 | C36: =B36/'- 3 -'!$D36*100 -> 0.2838552715 | D36: 2925078 | E36: =D36/'- 3 -'!$D36*100 -> 11.00462306 | F36: 112704 | G36: =F36/'- 3 -'!$D36*100 -> 0.424010928
A37: SEINE RIVER | B37: 163534 | C37: =B37/'- 3 -'!$D37*100 -> 0.2595772257 | D37: 4720179 | E37: =D37/'- 3 -'!$D37*100 -> 7.492331683 | F37: 580727 | G37: =F37/'- 3 -'!$D37*100 -> 0.9217869283
A38: SEVEN OAKS | B38: 663611 | C38: =B38/'- 3 -'!$D38*100 -> 0.3843417214 | D38: 12537506 | E38: =D38/'- 3 -'!$D38*100 -> 7.261312182 | F38: 534314 | G38: =F38/'- 3 -'!$D38*100 -> 0.3094571406
A39: SOUTHWEST HORIZON | B39: 121460 | C39: =B39/'- 3 -'!$D39*100 -> 0.4946494495 | D39: 2280230 | E39: =D39/'- 3 -'!$D39*100 -> 9.28630425 | F39: 132008 | G39: =F39/'- 3 -'!$D39*100 -> 0.5376064921
A40: ST. JAMES-ASSINIBOIA | B40: 544376 | C40: =B40/'- 3 -'!$D40*100 -> 0.4548024789 | D40: 9132430 | E40: =D40/'- 3 -'!$D40*100 -> 7.629748194 | F40: 1075013 | G40: =F40/'- 3 -'!$D40*100 -> 0.8981266208
A41: SUNRISE | B41: 204276 | C41: =B41/'- 3 -'!$D41*100 -> 0.2708903725 | D41: 6276819 | E41: =D41/'- 3 -'!$D41*100 -> 8.32368872 | F41: 331128 | G41: =F41/'- 3 -'!$D41*100 -> 0.4391087904
A42: SWAN VALLEY | B42: 123301 | C42: =B42/'- 3 -'!$D42*100 -> 0.5007872409 | D42: 1952872 | E42: =D42/'- 3 -'!$D42*100 -> 7.931593261 | F42: 129123 | G42: =F42/'- 3 -'!$D42*100 -> 0.5244333047
A43: TURTLE MOUNTAIN | B43: 78833 | C43: =B43/'- 3 -'!$D43*100 -> 0.5114620758 | D43: 807726 | E43: =D43/'- 3 -'!$D43*100 -> 5.240460424 | F43: 79578 | G43: =F43/'- 3 -'!$D43*100 -> 0.516295575
A44: TURTLE RIVER | B44: 37059 | C44: =B44/'- 3 -'!$D44*100 -> 0.3021618527 | D44: 1124415 | E44: =D44/'- 3 -'!$D44*100 -> 9.167957032 | F44: 90090 | G44: =F44/'- 3 -'!$D44*100 -> 0.7345519661
A45: WESTERN | B45: 100746 | C45: =B45/'- 3 -'!$D45*100 -> 0.3670221428 | D45: 1957280 | E45: =D45/'- 3 -'!$D45*100 -> 7.130457781 | F45: 133943 | G45: =F45/'- 3 -'!$D45*100 -> 0.487960285
A46: WINNIPEG | B46: 1351992 | C46: =B46/'- 3 -'!$D46*100 -> 0.2997257533 | D46: 46007994 | E46: =D46/'- 3 -'!$D46*100 -> 10.19960226 | F46: 6635500 | G46: =F46/'- 3 -'!$D46*100 -> 1.471036985
A48: PROVINCE | B48: =SUM(B11:B46) -> 11071973 | C48: =B48/'- 3 -'!$D48*100 -> 0.3949413735 | D48: =SUM(D11:D46) -> 256143461 | E48: =D48/'- 3 -'!$D48*100 -> 9.136732025 | F48: =SUM(F11:F46) -> 19614173 | G48: =F48/'- 3 -'!$D48*100 -> 0.699644808
A50: WHITESHELL | B50: 22197 | C50: =B50/'- 3 -'!$D50*100 -> 0.5420896718 | D50: 623919 | E50: =D50/'- 3 -'!$D50*100 -> 15.23719628 | F50: 0 | G50: =F50/'- 3 -'!$D50*100 -> 0

Sheet - 32 -
B2: ANALYSIS OF EXPENSE BY PROGRAM | F2: PAGE 15 OF 16
B3: =OPYEAR -> OPERATING FUND 2023/2024 ACTUAL
B6: FUNCTION 800: OPERATIONS AND MAINTENANCE
B8: OTHER BUILDINGS | D8: GROUNDS
A9: DIVISION / DISTRICT | B9: AMOUNT | C9: % | D9: AMOUNT | E9: %
A11: BEAUTIFUL PLAINS | B11: 83821 | C11: =B11/'- 3 -'!$D11*100 -> 0.3116217503 | D11: 27019 | E11: =D11/'- 3 -'!$D11*100 -> 0.1004486712
A12: BORDER LAND | B12: 267454 | C12: =B12/'- 3 -'!$D12*100 -> 0.7132773724 | D12: 99265 | E12: =D12/'- 3 -'!$D12*100 -> 0.2647314243
A13: BRANDON | B13: 363112 | C13: =B13/'- 3 -'!$D13*100 -> 0.2973396514 | D13: 183670 | E13: =D13/'- 3 -'!$D13*100 -> 0.150400906
A14: DSFM | B14: 374703 | C14: =B14/'- 3 -'!$D14*100 -> 0.348454287 | D14: 671857 | E14: =D14/'- 3 -'!$D14*100 -> 0.6247920404
A15: EVERGREEN | B15: 135851 | C15: =B15/'- 3 -'!$D15*100 -> 0.6066181486 | D15: 127124 | E15: =D15/'- 3 -'!$D15*100 -> 0.5676493034
A16: FLIN FLON | B16: 18459 | C16: =B16/'- 3 -'!$D16*100 -> 0.1082127364 | D16: 23305 | E16: =D16/'- 3 -'!$D16*100 -> 0.1366215842
A17: FORT LA BOSSE | B17: 103234 | C17: =B17/'- 3 -'!$D17*100 -> 0.4813386954 | D17: 69572 | E17: =D17/'- 3 -'!$D17*100 -> 0.3243863041
A18: FRONTIER | B18: 4893689 | C18: =B18/'- 3 -'!$D18*100 -> 2.945071821 | D18: 63413 | E18: =D18/'- 3 -'!$D18*100 -> 0.03816258846
A19: GARDEN VALLEY | B19: 113021 | C19: =B19/'- 3 -'!$D19*100 -> 0.1985273693 | D19: 194675 | E19: =D19/'- 3 -'!$D19*100 -> 0.3419569426
A20: HANOVER | B20: 145105 | C20: =B20/'- 3 -'!$D20*100 -> 0.1402572223 | D20: 381736 | E20: =D20/'- 3 -'!$D20*100 -> 0.3689826747
A21: INTERLAKE | B21: 151067 | C21: =B21/'- 3 -'!$D21*100 -> 0.3621994119 | D21: 109373 | E21: =D21/'- 3 -'!$D21*100 -> 0.2622335538
A22: KELSEY | B22: 75528 | C22: =B22/'- 3 -'!$D22*100 -> 0.3264392167 | D22: 8031 | E22: =D22/'- 3 -'!$D22*100 -> 0.03471074766
A23: LAKESHORE | B23: 50010 | C23: =B23/'- 3 -'!$D23*100 -> 0.305791418 | D23: 30165 | E23: =D23/'- 3 -'!$D23*100 -> 0.184447073
A24: LORD SELKIRK | B24: 166888 | C24: =B24/'- 3 -'!$D24*100 -> 0.2567179607 | D24: 53727 | E24: =D24/'- 3 -'!$D24*100 -> 0.08264636087
A25: LOUIS RIEL | B25: 704000 | C25: =B25/'- 3 -'!$D25*100 -> 0.3009497122 | D25: 413614 | E25: =D25/'- 3 -'!$D25*100 -> 0.1768139407
A26: MOUNTAIN VIEW | B26: 131889 | C26: =B26/'- 3 -'!$D26*100 -> 0.2745314633 | D26: 100580 | E26: =D26/'- 3 -'!$D26*100 -> 0.2093607092
A27: MYSTERY LAKE | B27: 146517 | C27: =B27/'- 3 -'!$D27*100 -> 0.3166990379 | D27: 97121 | E27: =D27/'- 3 -'!$D27*100 -> 0.2099287268
A28: PARK WEST | B28: 72971 | C28: =B28/'- 3 -'!$D28*100 -> 0.2212625181 | D28: 113707 | E28: =D28/'- 3 -'!$D28*100 -> 0.3447821346
A29: PEMBINA TRAILS | B29: 413108 | C29: =B29/'- 3 -'!$D29*100 -> 0.2013148083 | D29: 1018710 | E29: =D29/'- 3 -'!$D29*100 -> 0.4964353349
A30: PINE CREEK | B30: 42311 | C30: =B30/'- 3 -'!$D30*100 -> 0.2252749903 | D30: 68453 | E30: =D30/'- 3 -'!$D30*100 -> 0.3644619345
A31: PORTAGE LA PRAIRIE | B31: 165234 | C31: =B31/'- 3 -'!$D31*100 -> 0.3442927159 | D31: 194118 | E31: =D31/'- 3 -'!$D31*100 -> 0.4044773681
A32: PRAIRIE ROSE | B32: 227221 | C32: =B32/'- 3 -'!$D32*100 -> 0.6429354671 | D32: 194945 | E32: =D32/'- 3 -'!$D32*100 -> 0.5516085865
A33: PRAIRIE SPIRIT | B33: 97983 | C33: =B33/'- 3 -'!$D33*100 -> 0.3138632597 | D33: 28871 | E33: =D33/'- 3 -'!$D33*100 -> 0.09248079945
A34: RED RIVER VALLEY | B34: 172892 | C34: =B34/'- 3 -'!$D34*100 -> 0.4785315791 | D34: 177988 | E34: =D34/'- 3 -'!$D34*100 -> 0.4926363203
A35: RIVER EAST TRANSCONA | B35: 649041 | C35: =B35/'- 3 -'!$D35*100 -> 0.2857521186 | D35: 489455 | E35: =D35/'- 3 -'!$D35*100 -> 0.2154914762
A36: ROLLING RIVER | B36: 263480 | C36: =B36/'- 3 -'!$D36*100 -> 0.9912549627 | D36: 98007 | E36: =D36/'- 3 -'!$D36*100 -> 0.3687184042
A37: SEINE RIVER | B37: 119158 | C37: =B37/'- 3 -'!$D37*100 -> 0.1891392802 | D37: 166356 | E37: =D37/'- 3 -'!$D37*100 -> 0.2640565812
A38: SEVEN OAKS | B38: 788886 | C38: =B38/'- 3 -'!$D38*100 -> 0.4568968918 | D38: 424669 | E38: =D38/'- 3 -'!$D38*100 -> 0.2459543535
A39: SOUTHWEST HORIZON | B39: 70186 | C39: =B39/'- 3 -'!$D39*100 -> 0.285834565 | D39: 92800 | E39: =D39/'- 3 -'!$D39*100 -> 0.3779307501
A40: ST. JAMES-ASSINIBOIA | B40: 548122 | C40: =B40/'- 3 -'!$D40*100 -> 0.4579320991 | D40: 418959 | E40: =D40/'- 3 -'!$D40*100 -> 0.3500220285
A41: SUNRISE | B41: 365665 | C41: =B41/'- 3 -'!$D41*100 -> 0.4849083008 | D41: 569610 | E41: =D41/'- 3 -'!$D41*100 -> 0.7553597342
A42: SWAN VALLEY | B42: 158605 | C42: =B42/'- 3 -'!$D42*100 -> 0.6441745026 | D42: 138137 | E42: =D42/'- 3 -'!$D42*100 -> 0.5610436825
A43: TURTLE MOUNTAIN | B43: 157410 | C43: =B43/'- 3 -'!$D43*100 -> 1.021263244 | D43: 3990 | E43: =D43/'- 3 -'!$D43*100 -> 0.02588679465
A44: TURTLE RIVER | B44: 46543 | C44: =B44/'- 3 -'!$D44*100 -> 0.3794899784 | D44: 46952 | E44: =D44/'- 3 -'!$D44*100 -> 0.3828247743
A45: WESTERN | B45: 45168 | C45: =B45/'- 3 -'!$D45*100 -> 0.1645490257 | D45: 59995 | E45: =D45/'- 3 -'!$D45*100 -> 0.2185644438
A46: WINNIPEG | B46: 2488450 | C46: =B46/'- 3 -'!$D46*100 -> 0.5516693522 | D46: 1788601 | E46: =D46/'- 3 -'!$D46*100 -> 0.3965184573
A48: PROVINCE | B48: =SUM(B11:B46) -> 14816782 | C48: =B48/'- 3 -'!$D48*100 -> 0.528520096 | D48: =SUM(D11:D46) -> 8748570 | E48: =D48/'- 3 -'!$D48*100 -> 0.3120647288
A50: WHITESHELL | B50: 0 | C50: =B50/'- 3 -'!$D50*100 -> 0 | D50: 18265 | E50: =D50/'- 3 -'!$D50*100 -> 0.4460633354

Sheet - 33 -
B2: ANALYSIS OF EXPENSE BY PROGRAM | G2: PAGE 16 OF 16
B3: =OPYEAR -> OPERATING FUND 2023/2024 ACTUAL
B6: FUNCTION 900: FISCAL
B7: INTEREST AND BANK CHARGES | D7: BAD DEBT | F7: HEALTH AND EDUCATION LEVY
A9: DIVISION / DISTRICT | B9: AMOUNT | C9: % | D9: AMOUNT | E9: % | F9: AMOUNT | G9: %
A11: BEAUTIFUL PLAINS | B11: 29470 | C11: =B11/'- 3 -'!$D11*100 -> 0.1095607662 | D11: 0 | E11: =D11/'- 3 -'!$D11*100 -> 0 | F11: 453522 | G11: =F11/'- 3 -'!$D11*100 -> 1.686061004
A12: BORDER LAND | B12: 140988 | C12: =B12/'- 3 -'!$D12*100 -> 0.3760031638 | D12: 0 | E12: =D12/'- 3 -'!$D12*100 -> 0 | F12: 601090 | G12: =F12/'- 3 -'!$D12*100 -> 1.603056585
A13: BRANDON | B13: 9029 | C13: =B13/'- 3 -'!$D13*100 -> 0.007393530681 | D13: 216 | E13: =D13/'- 3 -'!$D13*100 -> 0.0001768748064 | F13: 1994272 | G13: =F13/'- 3 -'!$D13*100 -> 1.633039231
A14: DSFM | B14: 937 | C14: =B14/'- 3 -'!$D14*100 -> 0.0008713612299 | D14: 5628 | E14: =D14/'- 3 -'!$D14*100 -> 0.005233747067 | F14: 1578045 | G14: =F14/'- 3 -'!$D14*100 -> 1.467499714
A15: EVERGREEN | B15: 65299 | C15: =B15/'- 3 -'!$D15*100 -> 0.2915809121 | D15: 0 | E15: =D15/'- 3 -'!$D15*100 -> 0 | F15: 337904 | G15: =F15/'- 3 -'!$D15*100 -> 1.508849393
A16: FLIN FLON | B16: 2357 | C16: =B16/'- 3 -'!$D16*100 -> 0.01381751014 | D16: 0 | E16: =D16/'- 3 -'!$D16*100 -> 0 | F16: 244402 | G16: =F16/'- 3 -'!$D16*100 -> 1.432765004
A17: FORT LA BOSSE | B17: 113739 | C17: =B17/'- 3 -'!$D17*100 -> 0.5303192929 | D17: 0 | E17: =D17/'- 3 -'!$D17*100 -> 0 | F17: 307483 | G17: =F17/'- 3 -'!$D17*100 -> 1.43366978
A18: FRONTIER | B18: 15332 | C18: =B18/'- 3 -'!$D18*100 -> 0.009226953564 | D18: 0 | E18: =D18/'- 3 -'!$D18*100 -> 0 | F18: 1430026 | G18: =F18/'- 3 -'!$D18*100 -> 0.8606041936
A19: GARDEN VALLEY | B19: 8634 | C19: =B19/'- 3 -'!$D19*100 -> 0.01516607804 | D19: 0 | E19: =D19/'- 3 -'!$D19*100 -> 0 | F19: 920230 | G19: =F19/'- 3 -'!$D19*100 -> 1.616432707
A20: HANOVER | B20: 374469 | C20: =B20/'- 3 -'!$D20*100 -> 0.3619584561 | D20: 0 | E20: =D20/'- 3 -'!$D20*100 -> 0 | F20: 1682628 | G20: =F20/'- 3 -'!$D20*100 -> 1.62641349
A21: INTERLAKE | B21: 97177 | C21: =B21/'- 3 -'!$D21*100 -> 0.2329923296 | D21: 0 | E21: =D21/'- 3 -'!$D21*100 -> 0 | F21: 692874 | G21: =F21/'- 3 -'!$D21*100 -> 1.661240081
A22: KELSEY | B22: 6866 | C22: =B22/'- 3 -'!$D22*100 -> 0.02967550659 | D22: 0 | E22: =D22/'- 3 -'!$D22*100 -> 0 | F22: 372691 | G22: =F22/'- 3 -'!$D22*100 -> 1.610806034
A23: LAKESHORE | B23: 3054 | C23: =B23/'- 3 -'!$D23*100 -> 0.01867400501 | D23: 0 | E23: =D23/'- 3 -'!$D23*100 -> 0 | F23: 251130 | G23: =F23/'- 3 -'!$D23*100 -> 1.535560864
A24: LORD SELKIRK | B24: 242626 | C24: =B24/'- 3 -'!$D24*100 -> 0.3732230713 | D24: 0 | E24: =D24/'- 3 -'!$D24*100 -> 0 | F24: 1074569 | G24: =F24/'- 3 -'!$D24*100 -> 1.652971827
A25: LOUIS RIEL | B25: 250326 | C25: =B25/'- 3 -'!$D25*100 -> 0.1070107069 | D25: 5549 | E25: =D25/'- 3 -'!$D25*100 -> 0.002372116411 | F25: 3739826 | G25: =F25/'- 3 -'!$D25*100 -> 1.598720964
A26: MOUNTAIN VIEW | B26: 133996 | C26: =B26/'- 3 -'!$D26*100 -> 0.2789172559 | D26: 54162 | E26: =D26/'- 3 -'!$D26*100 -> 0.112740055 | F26: 732523 | G26: =F26/'- 3 -'!$D26*100 -> 1.524771672
A27: MYSTERY LAKE | B27: 5702 | C27: =B27/'- 3 -'!$D27*100 -> 0.01232497194 | D27: 0 | E27: =D27/'- 3 -'!$D27*100 -> 0 | F27: 690329 | G27: =F27/'- 3 -'!$D27*100 -> 1.492158112
A28: PARK WEST | B28: 117954 | C28: =B28/'- 3 -'!$D28*100 -> 0.3576598794 | D28: 0 | E28: =D28/'- 3 -'!$D28*100 -> 0 | F28: 460093 | G28: =F28/'- 3 -'!$D28*100 -> 1.395093061
A29: PEMBINA TRAILS | B29: 637249 | C29: =B29/'- 3 -'!$D29*100 -> 0.3105426675 | D29: 0 | E29: =D29/'- 3 -'!$D29*100 -> 0 | F29: 3175810 | G29: =F29/'- 3 -'!$D29*100 -> 1.547628178
A30: PINE CREEK | B30: 47239 | C30: =B30/'- 3 -'!$D30*100 -> 0.2515129699 | D30: 0 | E30: =D30/'- 3 -'!$D30*100 -> 0 | F30: 309774 | G30: =F30/'- 3 -'!$D30*100 -> 1.649318968
A31: PORTAGE LA PRAIRIE | B31: 12356 | C31: =B31/'- 3 -'!$D31*100 -> 0.02574579565 | D31: 0 | E31: =D31/'- 3 -'!$D31*100 -> 0 | F31: 764362 | G31: =F31/'- 3 -'!$D31*100 -> 1.592676259
A32: PRAIRIE ROSE | B32: 157638 | C32: =B32/'- 3 -'!$D32*100 -> 0.4460461892 | D32: 0 | E32: =D32/'- 3 -'!$D32*100 -> 0 | F32: 554118 | G32: =F32/'- 3 -'!$D32*100 -> 1.567910163
A33: PRAIRIE SPIRIT | B33: 87467 | C33: =B33/'- 3 -'!$D33*100 -> 0.280177967 | D33: 0 | E33: =D33/'- 3 -'!$D33*100 -> 0 | F33: 500329 | G33: =F33/'- 3 -'!$D33*100 -> 1.602674861
A34: RED RIVER VALLEY | B34: 165213 | C34: =B34/'- 3 -'!$D34*100 -> 0.457277594 | D34: 0 | E34: =D34/'- 3 -'!$D34*100 -> 0 | F34: 561178 | G34: =F34/'- 3 -'!$D34*100 -> 1.553232044
A35: RIVER EAST TRANSCONA | B35: 288536 | C35: =B35/'- 3 -'!$D35*100 -> 0.1270332279 | D35: 0 | E35: =D35/'- 3 -'!$D35*100 -> 0 | F35: 3348149 | G35: =F35/'- 3 -'!$D35*100 -> 1.474083563
A36: ROLLING RIVER | B36: 173480 | C36: =B36/'- 3 -'!$D36*100 -> 0.6526602055 | D36: 0 | E36: =D36/'- 3 -'!$D36*100 -> 0 | F36: 407148 | G36: =F36/'- 3 -'!$D36*100 -> 1.531757536
A37: SEINE RIVER | B37: 213405 | C37: =B37/'- 3 -'!$D37*100 -> 0.3387373747 | D37: 2611 | E37: =D37/'- 3 -'!$D37*100 -> 0.004144435629 | F37: 889221 | G37: =F37/'- 3 -'!$D37*100 -> 1.411458903
A38: SEVEN OAKS | B38: 336430 | C38: =B38/'- 3 -'!$D38*100 -> 0.1948492194 | D38: 20088 | E38: =D38/'- 3 -'!$D38*100 -> 0.01163431061 | F38: 2717086 | G38: =F38/'- 3 -'!$D38*100 -> 1.573647077
A39: SOUTHWEST HORIZON | B39: 0 | C39: =B39/'- 3 -'!$D39*100 -> 0 | D39: 0 | E39: =D39/'- 3 -'!$D39*100 -> 0 | F39: 376979 | G39: =F39/'- 3 -'!$D39*100 -> 1.535258149
A40: ST. JAMES-ASSINIBOIA | B40: 120506 | C40: =B40/'- 3 -'!$D40*100 -> 0.1006775235 | D40: 0 | E40: =D40/'- 3 -'!$D40*100 -> 0 | F40: 1988961 | G40: =F40/'- 3 -'!$D40*100 -> 1.661690437
A41: SUNRISE | B41: 786604 | C41: =B41/'- 3 -'!$D41*100 -> 1.043115445 | D41: 1300 | E41: =D41/'- 3 -'!$D41*100 -> 0.001723929802 | F41: 1141925 | G41: =F41/'- 3 -'!$D41*100 -> 1.514306569
A42: SWAN VALLEY | B42: 4858 | C42: =B42/'- 3 -'!$D42*100 -> 0.01973077604 | D42: 0 | E42: =D42/'- 3 -'!$D42*100 -> 0 | F42: 392584 | G42: =F42/'- 3 -'!$D42*100 -> 1.594480646
A43: TURTLE MOUNTAIN | B43: 94144 | C43: =B43/'- 3 -'!$D43*100 -> 0.6107985953 | D43: 0 | E43: =D43/'- 3 -'!$D43*100 -> 0 | F43: 247544 | G43: =F43/'- 3 -'!$D43*100 -> 1.606045287
A44: TURTLE RIVER | B44: 9897 | C44: =B44/'- 3 -'!$D44*100 -> 0.08069553567 | D44: 0 | E44: =D44/'- 3 -'!$D44*100 -> 0 | F44: 180902 | G44: =F44/'- 3 -'!$D44*100 -> 1.474990784
A45: WESTERN | B45: 81252 | C45: =B45/'- 3 -'!$D45*100 -> 0.2960046369 | D45: 0 | E45: =D45/'- 3 -'!$D45*100 -> 0 | F45: 441868 | G45: =F45/'- 3 -'!$D45*100 -> 1.609744706
A46: WINNIPEG | B46: 272328 | C46: =B46/'- 3 -'!$D46*100 -> 0.06037292746 | D46: 0 | E46: =D46/'- 3 -'!$D46*100 -> 0 | F46: 7617874 | G46: =F46/'- 3 -'!$D46*100 -> 1.688821401
A48: PROVINCE | B48: =SUM(B11:B46) -> 5106557 | C48: =B48/'- 3 -'!$D48*100 -> 0.1821527776 | D48: =SUM(D11:D46) -> 89554 | E48: =D48/'- 3 -'!$F48*100 -> 0.003237382677 | F48: =SUM(F11:F46) -> 43179449 | G48: =F48/'- 3 -'!$D48*100 -> 1.540226922
A50: WHITESHELL | B50: 2509 | C50: =B50/'- 3 -'!$D50*100 -> 0.06127418059 | D50: 0 | E50: =D50/'- 3 -'!$D50*100 -> 0 | F50: 25555 | G50: =F50/'- 3 -'!$D50*100 -> 0.6240979215

Sheet - 34 -
B2: ANALYSIS OF TRANSPORTATION EXPENSES
B3: =OPYEAR -> OPERATING FUND 2023/2024 ACTUAL
B6: REGULAR TRANSPORTATION
B7: (PROGRAM 720)
C8: TRANSPORTED PUPILS | D8: PER PUPIL | E8: TOTAL KM. (ROUTES) | F8: COST PER KM. | G8: LOADED KM. | H8: COST PER KM.
A9: DIVISION / DISTRICT | B9: AMOUNT
A11: BEAUTIFUL PLAINS | B11: ='- 29 -'!$D11 -> 1248669 | C11: 725 | D11: =IF(AND(CELL("type",C11)="v",C11>0),B11/C11,"") -> 1722.302069 | E11: 589248 | F11: =IF(AND(CELL("type",E11)="v",E11>0),B11/E11,"") -> 2.119089076 | G11: 457473 | H11: =IF(AND(CELL("type",G11)="v",G11>0),B11/G11,"") -> 2.729492232
A12: BORDER LAND | B12: ='- 29 -'!$D12 -> 2498973 | C12: 1591 | D12: =IF(AND(CELL("type",C12)="v",C12>0),B12/C12,"") -> 1570.693275 | E12: 1110048 | F12: =IF(AND(CELL("type",E12)="v",E12>0),B12/E12,"") -> 2.251229677 | G12: 675552 | H12: =IF(AND(CELL("type",G12)="v",G12>0),B12/G12,"") -> 3.699157134
A13: BRANDON | B13: ='- 29 -'!$D13 -> 2477987 | C13: 3080 | D13: 804.5412338 | E13: 838477 | F13: 2.955342842 | G13: 525179.2 | H13: 4.718364703
A14: DSFM | B14: ='- 29 -'!$D14 -> 10713631 | C14: 4563 | D14: 2347.935788 | E14: 3387804 | F14: 3.162411698 | G14: 1782066 | H14: 6.011915945
A15: EVERGREEN | B15: ='- 29 -'!$D15 -> 1546448 | C15: 981 | D15: 1576.399592 | E15: 810885 | F15: 1.907111366 | G15: 446153 | H15: 3.466183126
A16: FLIN FLON | B16: ='- 29 -'!$D16 -> 410333 | C16: 181 | D16: 2267.033149 | E16: 63426 | F16: 6.46947624 | G16: 40176 | H16: 10.2133861
A17: FORT LA BOSSE | B17: ='- 29 -'!$D17 -> 1704599 | C17: 714 | D17: 2387.393557 | E17: 1050952 | F17: 1.621957045 | G17: 649152 | H17: 2.625885771
A18: FRONTIER | B18: ='- 29 -'!$D18 -> 8606790 | C18: 5070 | D18: 1697.591716 | E18: 1405000 | F18: 6.125829181 | G18: 880000 | H18: 9.780443182
A19: GARDEN VALLEY | B19: ='- 29 -'!$D19 -> 3229138 | C19: 2350 | D19: 1374.101277 | E19: 839821 | F19: 3.845031263 | G19: 485218 | H19: 6.655025164
A20: HANOVER | B20: ='- 29 -'!$D20 -> 3613450 | C20: 4772 | D20: 757.2191953 | E20: 1355554 | F20: 2.665662895 | G20: 799527 | H20: 4.519484645
A21: INTERLAKE | B21: ='- 29 -'!$D21 -> 2436023 | C21: 1862 | D21: 1308.283029 | E21: 964405 | F21: 2.525933607 | G21: 509120 | H21: 4.784771763
A22: KELSEY | B22: ='- 29 -'!$D22 -> 427504 | C22: 341 | D22: 1253.677419 | E22: 169537 | F22: 2.521597056 | G22: 103411 | H22: 4.134028295
A23: LAKESHORE | B23: ='- 29 -'!$D23 -> 1568104 | C23: 628 | D23: 2496.980892 | E23: 859692 | F23: 1.824030001 | G23: 513918 | H23: 3.051272771
A24: LORD SELKIRK | B24: ='- 29 -'!$D24 -> 2827497 | C24: 2445 | D24: 1156.440491 | E24: 972946 | F24: 2.906119147 | G24: 708526 | H24: 3.990675007
A25: LOUIS RIEL | B25: ='- 29 -'!$D25 -> 5403332 | C25: 3501 | D25: 1543.368181 | E25: 906315 | F25: 5.961869769 | G25: 466385 | H25: 11.58556129
A26: MOUNTAIN VIEW | B26: ='- 29 -'!$D26 -> 2920597 | C26: 1533 | D26: 1905.151337 | E26: 1226708 | F26: 2.380841243 | G26: 929902 | H26: 3.140757843
A27: MYSTERY LAKE | B27: ='- 29 -'!$D27 -> 57500 | D27: =IF(AND(CELL("type",C27)="v",C27>0),B27/C27,"") ->  | F27: =IF(AND(CELL("type",E27)="v",E27>0),B27/E27,"") ->  | H27: =IF(AND(CELL("type",G27)="v",G27>0),B27/G27,"") -> 
A28: PARK WEST | B28: ='- 29 -'!$D28 -> 1869500 | C28: 848 | D28: 2204.599057 | E28: 1039219 | F28: 1.798947094 | G28: 682657 | H28: 2.738564169
A29: PEMBINA TRAILS | B29: ='- 29 -'!$D29 -> 2867988 | C29: 3122 | D29: 918.6380525 | E29: 616616 | F29: 4.651173502 | G29: 388472 | H29: 7.382740584
A30: PINE CREEK | B30: ='- 29 -'!$D30 -> 1365970 | C30: 710 | D30: 1923.901408 | E30: 610229 | F30: 2.238454744 | G30: 462929 | H30: 2.950711664
A31: PORTAGE LA PRAIRIE | B31: ='- 29 -'!$D31 -> 1193761 | C31: 1610 | D31: 741.4664596 | E31: 587216 | F31: 2.032916337 | G31: 394548 | H31: 3.025642
A32: PRAIRIE ROSE | B32: ='- 29 -'!$D32 -> 2586286 | C32: 1549 | D32: 1669.648806 | E32: 1192650 | F32: 2.168520522 | G32: 731575 | H32: 3.535230154
A33: PRAIRIE SPIRIT | B33: ='- 29 -'!$D33 -> 2446880 | C33: 1109 | D33: 2206.38413 | E33: 1452846 | F33: 1.684197775 | G33: 891312 | H33: 2.745256431
A34: RED RIVER VALLEY | B34: ='- 29 -'!$D34 -> 2768269 | C34: 1376 | D34: 2011.823401 | E34: 1360341 | F34: 2.03498167 | G34: 926887 | H34: 2.986630517
A35: RIVER EAST TRANSCONA | B35: ='- 29 -'!$D35 -> 5103582 | C35: 3890 | D35: 1311.974807 | E35: 1115799 | F35: 4.573925949 | G35: 510555 | H35: 9.996145371
A36: ROLLING RIVER | B36: ='- 29 -'!$D36 -> 1865558 | C36: 927 | D36: 2012.468177 | E36: 831918 | F36: 2.242478225 | G36: 530883 | H36: 3.514066188
A37: SEINE RIVER | B37: ='- 29 -'!$D37 -> 3673094 | C37: 2458 | D37: 1494.342555 | E37: 1390221 | F37: 2.642093595 | G37: 817564 | H37: 4.492729621
A38: SEVEN OAKS | B38: ='- 29 -'!$D38 -> 4526216 | C38: 2952 | D38: 1533.271003 | E38: 858220 | F38: 5.273957726 | G38: 473760 | H38: 9.553816278
A39: SOUTHWEST HORIZON | B39: ='- 29 -'!$D39 -> 1873136 | C39: 680 | D39: 2754.611765 | E39: 955296 | F39: 1.96079121 | G39: 568788 | H39: 3.293205904
A40: ST. JAMES-ASSINIBOIA | B40: ='- 29 -'!$D40 -> 2523694 | C40: 1611 | D40: 1566.538796 | E40: 561216 | F40: 4.496831879 | G40: 278360 | H40: 9.066295445
A41: SUNRISE | B41: ='- 29 -'!$D41 -> 5203425 | C41: 3660 | D41: 1421.70082 | E41: 2208724 | F41: 2.355851161 | G41: 1369279 | H41: 3.800120355
A42: SWAN VALLEY | B42: ='- 29 -'!$D42 -> 1466707 | C42: 1231 | D42: 1191.476036 | E42: 747980 | F42: 1.960890666 | G42: 642035 | H42: 2.2844658
A43: TURTLE MOUNTAIN | B43: ='- 29 -'!$D43 -> 1083258 | C43: 468 | D43: 2314.653846 | E43: 586440 | F43: 1.847176182 | G43: 397379 | H43: 2.726007162
A44: TURTLE RIVER | B44: ='- 29 -'!$D44 -> 1276317 | C44: 388 | D44: 3289.476804 | E44: 637980 | F44: 2.000559579 | G44: 464246 | H44: 2.749225626
A45: WESTERN | B45: ='- 29 -'!$D45 -> 997753 | C45: 1150 | D45: 867.6113043 | E45: 296740 | F45: 3.362381209 | G45: 187220 | H45: 5.329307766
A46: WINNIPEG | B46: ='- 29 -'!$D46 -> 6977392 | C46: 1884 | D46: 3703.498938 | E46: 949975 | F46: 7.344816443 | G46: 572575 | H46: 12.18598786
A48: PROVINCE | B48: =SUM(B11:B46) -> 103359361 | C48: =SUM(C11:C46) -> 65960 | D48: =B48/C48 -> 1567.000622 | E48: =SUM(E11:E46) -> 34550444 | F48: =B48/E48 -> 2.991549428 | G48: =SUM(G11:G46) -> 21262782.2 | H48: =B48/G48 -> 4.861045936
A50: WHITESHELL | B50: ='- 29 -'!$D50 -> 0 | C50: N/A | D50: =IF(AND(CELL("type",C50)="v",C50>0),B50/C50,"") ->  | E50: N/A | F50: =IF(AND(CELL("type",E50)="v",E50>0),B50/E50,"") ->  | G50: N/A | H50: =IF(AND(CELL("type",G50)="v",G50>0),B50/G50,"") -> 

Sheet - 35 -
B2: ANALYSIS OF TRANSPORTATION EXPENSES (CONT'D)
B3: =OPYEAR -> OPERATING FUND 2023/2024 ACTUAL
B6: ADMINISTRATION, REGULAR AND OTHER (PROGRAMS 710, 720 AND 790)
C8: TOTAL KM. (LOG BOOK) | D8: COST PER KM.
A9: DIVISION / DISTRICT | B9: AMOUNT
A11: BEAUTIFUL PLAINS | B11: =SUM('- 29 -'!$B11,'- 29 -'!$D11,'- 30 -'!$D11) -> 1535738 | C11: 658725 | D11: =IF(AND(CELL("type",C11)="v",C11>0),B11/C11,"") -> 2.331379559
A12: BORDER LAND | B12: =SUM('- 29 -'!$B12,'- 29 -'!$D12,'- 30 -'!$D12) -> 2947852 | C12: 1113977 | D12: =IF(AND(CELL("type",C12)="v",C12>0),B12/C12,"") -> 2.64624135
A13: BRANDON | B13: =SUM('- 29 -'!$B13,'- 29 -'!$D13,'- 30 -'!$D13) -> 2843095 | C13: 861657 | D13: 3.299566997
A14: DSFM | B14: =SUM('- 29 -'!$B14,'- 29 -'!$D14,'- 30 -'!$D14) -> 11814244 | C14: N/A
A15: EVERGREEN | B15: =SUM('- 29 -'!$B15,'- 29 -'!$D15,'- 30 -'!$D15) -> 1868299 | C15: 875885 | D15: 2.133041438
A16: FLIN FLON | B16: =SUM('- 29 -'!$B16,'- 29 -'!$D16,'- 30 -'!$D16) -> 567388 | C16: 108859 | D16: 5.212136801
A17: FORT LA BOSSE | B17: =SUM('- 29 -'!$B17,'- 29 -'!$D17,'- 30 -'!$D17) -> 1805310 | C17: 1103361.68 | D17: 1.636190592
A18: FRONTIER | B18: =SUM('- 29 -'!$B18,'- 29 -'!$D18,'- 30 -'!$D18) -> 10520218 | C18: 1520000 | D18: 6.921196053
A19: GARDEN VALLEY | B19: =SUM('- 29 -'!$B19,'- 29 -'!$D19,'- 30 -'!$D19) -> 3385836 | C19: 862954 | D19: 3.923541695
A20: HANOVER | B20: =SUM('- 29 -'!$B20,'- 29 -'!$D20,'- 30 -'!$D20) -> 4573200 | C20: 1581031 | D20: 2.892542904
A21: INTERLAKE | B21: =SUM('- 29 -'!$B21,'- 29 -'!$D21,'- 30 -'!$D21) -> 2799644 | C21: 981914.6 | D21: 2.85120926
A22: KELSEY | B22: =SUM('- 29 -'!$B22,'- 29 -'!$D22,'- 30 -'!$D22) -> 536290 | C22: 162841 | D22: 3.293335217
A23: LAKESHORE | B23: =SUM('- 29 -'!$B23,'- 29 -'!$D23,'- 30 -'!$D23) -> 1689774 | C23: 770875 | D23: 2.192020756
A24: LORD SELKIRK | B24: =SUM('- 29 -'!$B24,'- 29 -'!$D24,'- 30 -'!$D24) -> 3055681 | C24: 972946 | D24: 3.140648094
A25: LOUIS RIEL | B25: =SUM('- 29 -'!$B25,'- 29 -'!$D25,'- 30 -'!$D25) -> 6009146 | C25: 1147496 | D25: 5.236746795
A26: MOUNTAIN VIEW | B26: =SUM('- 29 -'!$B26,'- 29 -'!$D26,'- 30 -'!$D26) -> 3383497 | C26: 1301708 | D26: 2.599274953
A27: MYSTERY LAKE | B27: =SUM('- 29 -'!$B27,'- 29 -'!$D27,'- 30 -'!$D27) -> 244791 | C27: N/A
A28: PARK WEST | B28: =SUM('- 29 -'!$B28,'- 29 -'!$D28,'- 30 -'!$D28) -> 1923700 | C28: 979590 | D28: 1.963780765
A29: PEMBINA TRAILS | B29: =SUM('- 29 -'!$B29,'- 29 -'!$D29,'- 30 -'!$D29) -> 4246273 | C29: 830529 | D29: 5.112732969
A30: PINE CREEK | B30: =SUM('- 29 -'!$B30,'- 29 -'!$D30,'- 30 -'!$D30) -> 1525917 | C30: 654415 | D30: 2.331726809
A31: PORTAGE LA PRAIRIE | B31: =SUM('- 29 -'!$B31,'- 29 -'!$D31,'- 30 -'!$D31) -> 1377558 | C31: 506800 | D31: 2.718149171
A32: PRAIRIE ROSE | B32: =SUM('- 29 -'!$B32,'- 29 -'!$D32,'- 30 -'!$D32) -> 2832447 | C32: 1156849 | D32: 2.44841548
A33: PRAIRIE SPIRIT | B33: =SUM('- 29 -'!$B33,'- 29 -'!$D33,'- 30 -'!$D33) -> 2664349 | C33: 1380054 | D33: 1.930612135
A34: RED RIVER VALLEY | B34: =SUM('- 29 -'!$B34,'- 29 -'!$D34,'- 30 -'!$D34) -> 3141016 | C34: 1407896 | D34: 2.231000017
A35: RIVER EAST TRANSCONA | B35: =SUM('- 29 -'!$B35,'- 29 -'!$D35,'- 30 -'!$D35) -> 5789059 | C35: 1616639 | D35: 3.580922519
A36: ROLLING RIVER | B36: =SUM('- 29 -'!$B36,'- 29 -'!$D36,'- 30 -'!$D36) -> 2031622 | C36: 861016 | D36: 2.359563585
A37: SEINE RIVER | B37: =SUM('- 29 -'!$B37,'- 29 -'!$D37,'- 30 -'!$D37) -> 3962820 | C37: 1454206 | D37: 2.725074714
A38: SEVEN OAKS | B38: =SUM('- 29 -'!$B38,'- 29 -'!$D38,'- 30 -'!$D38) -> 5341360 | C38: 1155655 | D38: 4.621933016
A39: SOUTHWEST HORIZON | B39: =SUM('- 29 -'!$B39,'- 29 -'!$D39,'- 30 -'!$D39) -> 2024332 | C39: 922499 | D39: 2.194400211
A40: ST. JAMES-ASSINIBOIA | B40: =SUM('- 29 -'!$B40,'- 29 -'!$D40,'- 30 -'!$D40) -> 2816299 | C40: 639323 | D40: 4.405126986
A41: SUNRISE | B41: =SUM('- 29 -'!$B41,'- 29 -'!$D41,'- 30 -'!$D41) -> 5838841 | C41: 2274557 | D41: 2.567023381
A42: SWAN VALLEY | B42: =SUM('- 29 -'!$B42,'- 29 -'!$D42,'- 30 -'!$D42) -> 1746345 | C42: 594501 | D42: 2.937497161
A43: TURTLE MOUNTAIN | B43: =SUM('- 29 -'!$B43,'- 29 -'!$D43,'- 30 -'!$D43) -> 1171276 | C43: 584842 | D43: 2.002722103
A44: TURTLE RIVER | B44: =SUM('- 29 -'!$B44,'- 29 -'!$D44,'- 30 -'!$D44) -> 1360529 | C44: 708364 | D44: 1.92066367
A45: WESTERN | B45: =SUM('- 29 -'!$B45,'- 29 -'!$D45,'- 30 -'!$D45) -> 1182893 | C45: 352106 | D45: 3.359479816
A46: WINNIPEG | B46: =SUM('- 29 -'!$B46,'- 29 -'!$D46,'- 30 -'!$D46) -> 8317462 | C46: 1522550 | D46: 5.462849824
A48: PROVINCE | B48: =SUM(B11:B46) -> 118874101 | C48: =SUM(C11:C46) -> 33626621.28 | D48: =B48/C48 -> 3.535118798
A50: WHITESHELL | B50: =SUM('- 29 -'!$B50,'- 29 -'!$D50,'- 30 -'!$D50) -> 61425 | C50: N/A | D50: =IF(AND(CELL("type",C50)="v",C50>0),B50/C50,"") -> 

Sheet - 36 -
A2: ANALYSIS OF OPERATIONS AND MAINTENANCE EXPENSES FOR SCHOOL BUILDINGS
A3: =OPYEAR -> OPERATING FUND 2023/2024 ACTUAL
F6: REPAIRS AND REPLACEMENTS
B7: MAINTENANCE | I7: TOTAL
C8: COST PER PUPIL | D8: COST PER SQ. FT. (1) | E8: SQ. FT. PER PUPIL (2) | G8: COST PER SQ. FT. (1) | I8: AREA
A9: DIVISION / DISTRICT | B9: AMOUNT | F9: AMOUNT | I9: =+Data!AD9 -> at September 30, 2023
A11: BEAUTIFUL PLAINS | B11: ='- 31 -'!D11 -> 2002216 | C11: =B11/'- 7 -'!E11 -> 921.4487551 | D11: =B11/I11 -> 6.531364784 | E11: =I11/'- 7 -'!E11 -> 141.0805836 | F11: ='- 31 -'!F11 -> 232136 | G11: =F11/I11 -> 0.757243422 | I11: =+Data!AD11 -> 306554
A12: BORDER LAND | B12: ='- 31 -'!D12 -> 2965437 | C12: =B12/'- 7 -'!E12 -> 1438.485084 | D12: =B12/I12 -> 6.955486754 | E12: =I12/'- 7 -'!E12 -> 206.8130002 | F12: ='- 31 -'!F12 -> 413897 | G12: =F12/I12 -> 0.9708029882 | I12: =+Data!AD12 -> 426345
A13: BRANDON | B13: ='- 31 -'!D13 -> 8313744 | C13: =B13/'- 7 -'!E13 -> 889.3131518 | D13: 7.384585868 | E13: =I13/'- 7 -'!E13 -> 120.428304 | F13: ='- 31 -'!F13 -> 582395 | G13: 0.5173055469 | I13: =+Data!AD13 -> 1125824
A14: DSFM | B14: ='- 31 -'!D14 -> 10062264 | C14: =B14/'- 7 -'!E14 -> 1669.50341 | D14: 9.308387042 | E14: =I14/'- 7 -'!E14 -> 179.3547477 | F14: ='- 31 -'!F14 -> 251291 | G14: 0.2324639751 | I14: =+Data!AD14 -> 1080989
A15: EVERGREEN | B15: ='- 31 -'!D15 -> 2328348 | C15: =B15/'- 7 -'!E15 -> 1623.67364 | D15: 7.994218105 | E15: =I15/'- 7 -'!E15 -> 203.1059972 | F15: ='- 31 -'!F15 -> 560911 | G15: 1.925848229 | I15: =+Data!AD15 -> 291254
A16: FLIN FLON | B16: ='- 31 -'!D16 -> 2198513 | C16: =B16/'- 7 -'!E16 -> 2661.638015 | D16: 10.48183747 | E16: =I16/'- 7 -'!E16 -> 253.9285714 | F16: ='- 31 -'!F16 -> 126517 | G16: 0.6031943551 | I16: =+Data!AD16 -> 209745
A17: FORT LA BOSSE | B17: ='- 31 -'!D17 -> 1803528 | C17: =B17/'- 7 -'!E17 -> 1183.02919 | D17: 6.830122512 | E17: =I17/'- 7 -'!E17 -> 173.2076091 | F17: ='- 31 -'!F17 -> 132682 | G17: 0.5024786503 | I17: =+Data!AD17 -> 264055
A18: FRONTIER | B18: ='- 31 -'!D18 -> 22417515 | C18: =B18/'- 7 -'!E18 -> 3543.710876 | D18: =B18/I18 -> 17.41554428 | E18: =I18/'- 7 -'!E18 -> 203.479766 | F18: ='- 31 -'!F18 -> 2561474 | G18: =F18/I18 -> 1.989937951 | I18: =+Data!AD18 -> 1287213
A19: GARDEN VALLEY | B19: ='- 31 -'!D19 -> 5461100 | C19: =B19/'- 7 -'!E19 -> 1288.299127 | D19: 7.652425653 | E19: =I19/'- 7 -'!E19 -> 168.3517339 | F19: ='- 31 -'!F19 -> 23212 | G19: 0.03252606696 | I19: =+Data!AD19 -> 713643
A20: HANOVER | B20: ='- 31 -'!D20 -> 8489830 | C20: =B20/'- 7 -'!E20 -> 1008.401136 | D20: 7.568831836 | E20: =I20/'- 7 -'!E20 -> 133.2307491 | F20: ='- 31 -'!F20 -> 561196 | G20: 0.5003160429 | I20: =+Data!AD20 -> 1121683
A21: INTERLAKE | B21: ='- 31 -'!D21 -> 3221561 | C21: =B21/'- 7 -'!E21 -> 1115.885348 | D21: 7.191000426 | E21: =I21/'- 7 -'!E21 -> 155.1780395 | F21: ='- 31 -'!F21 -> 250551 | G21: 0.5592668734 | I21: =+Data!AD21 -> 447999
A22: KELSEY | B22: ='- 31 -'!D22 -> 2601837 | C22: =B22/'- 7 -'!E22 -> 1796.848757 | D22: 7.632527399 | E22: =I22/'- 7 -'!E22 -> 235.4198895 | F22: ='- 31 -'!F22 -> 57213 | G22: 0.1678351834 | I22: =+Data!AD22 -> 340888
A23: LAKESHORE | B23: ='- 31 -'!D23 -> 1346336 | C23: =B23/'- 7 -'!E23 -> 1380.857436 | D23: 5.771924409 | E23: =I23/'- 7 -'!E23 -> 239.2369231 | F23: ='- 31 -'!F23 -> 101732 | G23: 0.4361388346 | I23: =+Data!AD23 -> 233256
A24: LORD SELKIRK | B24: ='- 31 -'!D24 -> 5848782 | C24: =B24/'- 7 -'!E24 -> 1548.935911 | D24: 8.227130145 | E24: =I24/'- 7 -'!E24 -> 188.2717161 | F24: ='- 31 -'!F24 -> 237247 | G24: 0.3337210971 | I24: =+Data!AD24 -> 710914
A25: LOUIS RIEL | B25: ='- 31 -'!D25 -> 20822560 | C25: =B25/'- 7 -'!E25 -> 1213.506615 | D25: 8.985768672 | E25: =I25/'- 7 -'!E25 -> 135.0476135 | F25: ='- 31 -'!F25 -> 811605 | G25: 0.3502400657 | I25: =+Data!AD25 -> 2317282
A26: MOUNTAIN VIEW | B26: ='- 31 -'!D26 -> 5264809 | C26: =B26/'- 7 -'!E26 -> 1691.831036 | D26: 6.839164046 | E26: =I26/'- 7 -'!E26 -> 247.3739516 | F26: ='- 31 -'!F26 -> 388782 | G26: 0.5050409001 | I26: =+Data!AD26 -> 769803
A27: MYSTERY LAKE | B27: ='- 31 -'!D27 -> 5227461 | C27: =B27/'- 7 -'!E27 -> 1849.446665 | D27: 11.17286816 | E27: =I27/'- 7 -'!E27 -> 165.530161 | F27: ='- 31 -'!F27 -> 295696 | G27: 0.6320032659 | I27: =+Data!AD27 -> 467871
A28: PARK WEST | B28: ='- 31 -'!D28 -> 3347008 | C28: =B28/'- 7 -'!E28 -> 1584.757576 | D28: 7.534793463 | E28: =I28/'- 7 -'!E28 -> 210.3252841 | F28: ='- 31 -'!F28 -> 109177 | G28: 0.2457795577 | I28: =+Data!AD28+Data!AE28 -> 444207
A29: PEMBINA TRAILS | B29: ='- 31 -'!D29 -> 18316912 | C29: =B29/'- 7 -'!E29 -> 1107.866574 | D29: 9.887436952 | E29: =I29/'- 7 -'!E29 -> 112.0479027 | F29: ='- 31 -'!F29 -> 819720 | G29: 0.4424834174 | I29: =+Data!AD29 -> 1852544
A30: PINE CREEK | B30: ='- 31 -'!D30 -> 1383665 | C30: =B30/'- 7 -'!E30 -> 1293.14486 | D30: 6.595224931 | E30: =I30/'- 7 -'!E30 -> 196.0728972 | F30: ='- 31 -'!F30 -> 107925 | G30: 0.5144233977 | I30: =+Data!AD30 -> 209798
A31: PORTAGE LA PRAIRIE | B31: ='- 31 -'!D31 -> 3953360 | C31: =B31/'- 7 -'!E31 -> 1202.542966 | D31: 6.674770887 | E31: =I31/'- 7 -'!E31 -> 180.1624335 | F31: ='- 31 -'!F31 -> 188666 | G31: 0.3185397546 | I31: =+Data!AD31 -> 592284
A32: PRAIRIE ROSE | B32: ='- 31 -'!D32 -> 3311608 | C32: =B32/'- 7 -'!E32 -> 1461.433363 | D32: 8.639277888 | E32: =I32/'- 7 -'!E32 -> 169.1615181 | F32: ='- 31 -'!F32 -> 120656 | G32: 0.314765731 | I32: =+Data!AD32 -> 383320
A33: PRAIRIE SPIRIT | B33: ='- 31 -'!D33 -> 3065142 | C33: =B33/'- 7 -'!E33 -> 1466.57512 | D33: 6.320258325 | E33: =I33/'- 7 -'!E33 -> 232.0435407 | F33: ='- 31 -'!F33 -> 183296 | G33: 0.3779524961 | I33: =+Data!AD33 -> 484971
A34: RED RIVER VALLEY | B34: ='- 31 -'!D34 -> 2525477 | C34: =B34/'- 7 -'!E34 -> 1114.508826 | D34: 6.611127109 | E34: =I34/'- 7 -'!E34 -> 168.580759 | F34: ='- 31 -'!F34 -> 398774 | G34: 1.043900064 | I34: =+Data!AD34 -> 382004
A35: RIVER EAST TRANSCONA | B35: ='- 31 -'!D35 -> 20141919 | C35: =B35/'- 7 -'!E35 -> 1135.235677 | D35: 8.119750884 | E35: =I35/'- 7 -'!E35 -> 139.8116387 | F35: ='- 31 -'!F35 -> 263294 | G35: 0.1061409138 | I35: =+Data!AD35 -> 2480608
A36: ROLLING RIVER | B36: ='- 31 -'!D36 -> 2925078 | C36: =B36/'- 7 -'!E36 -> 1690.796532 | D36: 9.110717968 | E36: =I36/'- 7 -'!E36 -> 185.583237 | F36: ='- 31 -'!F36 -> 112704 | G36: 0.3510382827 | I36: =+Data!AD36 -> 321059
A37: SEINE RIVER | B37: ='- 31 -'!D37 -> 4720179 | C37: =B37/'- 7 -'!E37 -> 990.8016373 | D37: 7.817053116 | E37: =I37/'- 7 -'!E37 -> 126.7487406 | F37: ='- 31 -'!F37 -> 580727 | G37: 0.9617376385 | I37: =+Data!AD37 -> 603831
A38: SEVEN OAKS | B38: ='- 31 -'!D38 -> 12537506 | C38: =B38/'- 7 -'!E38 -> 1047.04331 | D38: 8.643128415 | E38: =I38/'- 7 -'!E38 -> 121.1417047 | F38: ='- 31 -'!F38 -> 534314 | G38: 0.3683463454 | I38: =+Data!AD38 -> 1450575
